Workbook

Sheet INTRODUCTION
B2: Welcome to HD TRUCS!
B3: HD TRUCS evaluates the design features needed to meet the energy and power demands of 101 representative HD vehicle types that cover the full range of weight classes within the scope of the proposed standards in EPA's Greenhouse Gas Emissions Standards for Heavy-Duty Vehicles - Phase 3 rulemaking (i.e., Class 2b through 8 vocational vehicles and tractors). The representative vehicles cover many aspects of work performed by the industry. This work was translated into total energy and power demands by vehicle type based on everyday use of HD vehicles, ranging from moving goods and people to mixing cement. We then identified the technical properties required for a battery electric vehicle (BEV) or fuel cell electric vehicle (FCEV) to meet the operational needs of a comparable vehicle powered by an internal combustion engine (ICE).
B5: Please note
B6: There is no singular technology pathway for future heavy-duty vehicle technologies. Technologies in the market or under development such as hybrid electric vehicles, plug-in electric vehicles and hydrogen-powered ICE, for example, are not presented in HD TRUCS. Instead, the technical attributes and component costs of only BEVs and FCEVs are included here using EPA's inputs for these technologies. While the adoption rates of BEVs and FCEVs for the technology packages are presented here, additional examples of these technologies for the different vehicle applications are shown as well. Furthermore, different inputs can yield different technology design attributes, payback, and adoption rates; please use the inputs tab to see how adjustments to the input values can influence the results.
B8: Please read below to help you better utilize HD TRUCS.
B9: User should start with the Main Section including the Summary and Inputs sheets. These sheets provide the "at-a-glance" summary of outputs from HD TRUCS as well as the key assumptions used. Users are able to input their own assumptions on the "Inputs" tab. The "Summary" sheet is supported by the "Vehicle Properties", "Technical Properties", "Payback" and "Adoption Rates" sheets which use the inputs provided in the "Inputs" sheet to perform the calculations in those sheets. Vehicle Properties sheet establishes benchmark performance requirements for each HD TRUCS vehicle type, independent of the powertrain. These benchmarks requirements include vehicle activity, typical rates of energy consumption at the axle, and distributions of new vehicle sales for a wide range of vehicle applications, weight classes, and duty cycles. Technical Properties sheet calculates the performance metrics for each powertrain including ICE, BEV, and FCEV technologies as well as the component-level costs of these technologies. Payback sheet compares the amount of time it takes for BEVs and FCEVs to pay back using upfront technology costs and operational costs. Adoption Rates sheet translates payback time into adoption of the BEV and FCEV technologies.
B11: 2023-04-10

Sheet Table of Contents
B2: Hello! Welcome to HD TRUCS!
B3: HD TRUCS evaluates the design features needed to meet the energy and power demands of 101 representative HD vehicle types that cover the full range of weight classes within the scope of the proposed standards in EPA's Greenhouse Gas Emissions Standards for Heavy-Duty Vehicles - Phase 3 rulemaking (i.e., Class 2b through 8 vocational vehicles and tractors). The representative vehicles cover many aspects of work performed by the industry. This work was translated into total energy and power demands by vehicle type based on everyday use of HD vehicles, ranging from moving goods and people to mixing cement. We then identified the technical properties required for a battery electric vehicle (BEV) or fuel cell electric vehicle (FCEV) to meet the operational needs of a comparable vehicle powered by an internal combustion engine (ICE).
B5: Please read below to help you better utilize HD TRUCS. | D5: Main Section | G5: A = Appendix sheets*
B6: User should start with the Main Section including the Summary and Inputs sheets. These sheets provide the "at-a-glance" summary of outputs from HD TRUCS as well as the key assumptions used. Users are able to input their own assumptions on the "Inputs" tab. | D6: Summary | E6: Summary page with key inputs and outputs | G6: *Appendix sheets are hidden, to use hyperlinks please unhide respective sheets
D7: Inputs | E7: Input assumption values
D10: Vehicle Properties | G10: Technical Properties
D11: 1_Veh Prop | E11: Vehicle properties independent of powertrain type | G11: 2_ICE Tech | H11: ICE technology properties
B12: The "Summary" sheet is supported by the "Vehicle Properties", "Technical Properties", "Payback" and "Adoption Rates" sheets which use the inputs provided in the "Inputs" sheet to perform the calculations in those sheets. | G12: 2_BEV Tech | H12: BEV technology properties
D13: A1a_VMT_ID | E13: Vehicle daily VMT mapping | G13: 2_FCEV Tech | H13: FCEV technology properties
D14: A1a_VMTbyYr | E14: Change in operational VMT over time
D15: A1a_fleetDNA_data | E15: fleetDNA VMT data from NREL | G15: A2_Aux Load | H15: Auxilary load (including HVAC, battery conditioning, PTO)
... 17 more rows

Sheet Summary
B1: Return to Table of Contents
B2: Click here to modify all inputs | T2: BEV | AE2: FCEV
G3: Vehicle ID | H3: Vehicle Application | I3: Class | J3: Payload Weight | K3: Percent Total HD Sales | L3: MOVES source TypeID | M3: MOVES regClassID | N3: GEM Energy ID | O3: 10 yr Average Daily Operational VMT | P3: Daily Sizing VMT | Q3: 2027 ZEV Adoption Rates by Vehicle Type | R3: 2032 ZEV Adoption Rates by Vehicle Type | T3: BEV Operating Energy | U3: Total Battery Size | V3: Percent of Payload Impact | W3: Battery DMC (Without IRA Tax Credit) | X3: IRA Battery Tax Credit | Y3: Per Vehicle EVSE Cost | Z3: BEV+EVSE Incremental RPE | AA3: BEV IRA Vehicle Tax Credit | AB3: Annual BEV Operating Cost Savings | AC3: BEV Payback Period | AE3: FCEV Operating Energy | AF3: Hydrogen Fuel Cell Size | AG3: FCEV Battery Size | AH3: Sizing Hydrogen Mass | AI3: FC Stack DMC | AJ3: Battery DMC (Without IRA Tax Credit) | AK3: IRA Battery Tax Credit | AL3: Hydrogen Tank DMC | AM3: FCEV Incremental RPE | AN3: FCEV IRA Vehicle Tax Credit | AO3: Annual FCEV Operating Cost | AP3: FCEV Payback Period
B5: Input Categories | C5: Input Values | J5: lbs | K5: % | O5: Miles | P5: Miles | Q5: % | R5: % | T5: kWh/mi | U5: kWh | V5: % | W5: $ | X5: $ | Y5: $/Vehicle | Z5: $ | AA5: $ | AB5: $ | AC5: Year | AE5: kWh/mi | AF5: kW | AG5: kWh | AH5: kg | AI5: $ | AJ5: $ | AK5: $ | AL5: $ | AM5: $ | AN5: $ | AO5: $ | AP5: Year
G6: Vehicle ID | H6: Segment | I6: Class | J6: Phase II Payload Weight (lbs) | K6: Sales % | L6: MOVES source TypeID | M6: MOVES regClassID | N6: GEM Energy ID | O6: ='1_Veh Prop'!X6 -> 10 yr Average Operational VMT | P6: Absolute Sizing VMT (90%) | Q6: 2027 ZEV Vehicle Type | R6: 2032 ZEV Vehicle Type | T6: =Tech_Pen1&" "& "BEV Operating Energy Consumption (kWh/mi)" -> Default BEV Operating Energy Consumption (kWh/mi) | U6: ='2_BEV Tech'!Y6 -> Default Battery Req Actual Sizing (kWh/pack) | V6: ='2_BEV Tech'!AA6 -> Default % of Payload Impact | W6: Battery Cost No IRA ($/unit) | X6: Battery Cost ($/unit) | Y6: =A3_BEV_Charging!G6 -> Default EVSE Cost ($/vehicle) | Z6: BEV Vehicle+EVSE Delta | AA6: BEV Vehicle Tax Credit | AB6: BEV Full Annual Cost Saving | AC6: ='3_Payback'!I6 -> Default BEV Payback + 10 year M&R | AE6: =Tech_Pen1&" "& "FCEV Operating Energy Consumption (kWh/mi)" -> Default FCEV Operating Energy Consumption (kWh/mi) | AF6: FC Size (kW) | AG6: =Tech_Pen1&" Battery size (kWh)" -> Default Battery size (kWh) | AH6: =Tech_Pen1&" H2 Sizing Actual (kg)" -> Default H2 Sizing Actual (kg) | AI6: FC Stack (unit) | AJ6: Battery (unit) | AK6: Battery Tax Credit (unit) | AL6: H2 Fuel Tank (unit) | AM6: FCHEV Vehicle Delta | AN6: FCEV Vehicle Tax Credit | AO6: FCHEV Full Annual Cost Delta | AP6: =Tech_Pen1&" FCHEV Payback + "&Assess_P&" year M&R" -> Default FCHEV Payback + 10 year M&R
B7: Scenario Year | C7: 2027 | D7: Select years between 2027-2032 | G7: ='1_Veh Prop'!B7 -> 01V_Amb_Cl4-5_MP | H7: ='1_Veh Prop'!G7 -> Ambulance | I7: ='1_Veh Prop'!H7 -> 4-5 | J7: =INDEX('1_Veh Prop'!$A$6:$AJ$107,MATCH($G7,'1_Veh Prop'!$B$6:$B$107,0),MATCH(J$6,'1_Veh Prop'!$6:$6,0)) -> 5700 | K7: =INDEX('1_Veh Prop'!$A$6:$AJ$107,MATCH($G7,'1_Veh Prop'!$B$6:$B$107,0),MATCH(K$6,'1_Veh Prop'!$6:$6,0)) -> 0.009034307068 | L7: =INDEX('1_Veh Prop'!$A$6:$AJ$107,MATCH($G7,'1_Veh Prop'!$B$6:$B$107,0),MATCH(L$6,'1_Veh Prop'!$6:$6,0)) -> 52 | M7: =INDEX('1_Veh Prop'!$A$6:$AJ$107,MATCH($G7,'1_Veh Prop'!$B$6:$B$107,0),MATCH(M$6,'1_Veh Prop'!$6:$6,0)) -> 42 | N7: =INDEX(A1c_GEM_ID!$A$6:$AQ$107,MATCH($G7,A1c_GEM_ID!$B$6:$B$107,0),MATCH(N$6,A1c_GEM_ID!$6:$6,0)) -> LHD_M | O7: =INDEX('1_Veh Prop'!$A$6:$AJ$107,MATCH($G7,'1_Veh Prop'!$B$6:$B$107,0),MATCH(O$6,'1_Veh Prop'!$6:$6,0)) -> 29.97013062 | P7: =INDEX('1_Veh Prop'!$A$6:$AJ$107,MATCH($G7,'1_Veh Prop'!$B$6:$B$107,0),MATCH(P$6,'1_Veh Prop'!$6:$6,0)) -> 50.35810678 | Q7: =INDEX('4_Adoption Rates'!$A$7:$AL$108,MATCH($G7,'4_Adoption Rates'!$B$7:$B$108,0),MATCH(Q$6,'4_Adoption Rates'!$6:$6,0)) -> 0.18 | R7: =INDEX('4_Adoption Rates'!$A$7:$AL$108,MATCH($G7,'4_Adoption Rates'!$B$7:$B$108,0),MATCH(R$6,'4_Adoption Rates'!$6:$6,0)) -> 0.8 | T7: =INDEX('2_BEV Tech'!$A$6:$AR$107,MATCH($G7,'2_BEV Tech'!$B$6:$B$107,0),MATCH(T$6,'2_BEV Tech'!$6:$6,0)) -> 1.359161311 | U7: =INDEX('2_BEV Tech'!$A$6:$AR$107,MATCH($G7,'2_BEV Tech'!$B$6:$B$107,0),MATCH(U$6,'2_BEV Tech'!$6:$6,0)) -> 90 | V7: =INDEX('2_BEV Tech'!$A$6:$AR$107,MATCH($G7,'2_BEV Tech'!$B$6:$B$107,0),MATCH(V$6,'2_BEV Tech'!$6:$6,0)) -> -0.1015308683 | W7: =INDEX('2_BEV Tech'!$A$6:$AR$107,MATCH($G7,'2_BEV Tech'!$B$6:$B$107,0),MATCH(W$6,'2_BEV Tech'!$6:$6,0)) -> 13092.02095 | X7: =W7-INDEX('2_BEV Tech'!$A$6:$AR$107,MATCH($G7,'2_BEV Tech'!$B$6:$B$107,0),MATCH(X$6,'2_BEV Tech'!$6:$6,0)) -> 1188.380282 | Y7: =INDEX(A3_BEV_Charging!$A$6:$BS$107,MATCH($G7,A3_BEV_Charging!$B$6:$B$107,0),MATCH(Y$6,A3_BEV_Charging!$6:$6,0)) -> 10541.07967 | Z7: =INDEX('3_Payback'!$A$6:$CO$107,MATCH($G7,'3_Payback'!$B$6:$B$107,0),MATCH(Z$6,'3_Payback'!$6:$6,0)) -> 6015.791757 | AA7: =INDEX('3_Payback'!$A$6:$CO$107,MATCH($G7,'3_Payback'!$B$6:$B$107,0),MATCH(AA$6,'3_Payback'!$6:$6,0)) -> 0 | AB7: =INDEX('3_Payback'!$A$6:$CO$107,MATCH($G7,'3_Payback'!$B$6:$B$107,0),MATCH(AB$6,'3_Payback'!$6:$6,0)) -> 2566.124213 | AC7: =INDEX('3_Payback'!$A$6:$CO$107,MATCH($G7,'3_Payback'!$B$6:$B$107,0),MATCH(AC$6,'3_Payback'!$6:$6,0)) -> 2.34431043 | AE7: =INDEX('2_FCEV Tech'!$A$6:$BS$107,MATCH($G7,'2_FCEV Tech'!$B$6:$B$107,0),MATCH(AE$6,'2_FCEV Tech'!$6:$6,0)) -> 1.466115412 | AF7: =INDEX('2_FCEV Tech'!$A$6:$BS$107,MATCH($G7,'2_FCEV Tech'!$B$6:$B$107,0),MATCH(AF$6,'2_FCEV Tech'!$6:$6,0)) -> 93.34396979 | AG7: =INDEX('2_FCEV Tech'!$A$6:$BS$107,MATCH($G7,'2_FCEV Tech'!$B$6:$B$107,0),MATCH(AG$6,'2_FCEV Tech'!$6:$6,0)) -> 43.88893683 | AH7: =INDEX('2_FCEV Tech'!$A$6:$BS$107,MATCH($G7,'2_FCEV Tech'!$B$6:$B$107,0),MATCH(AH$6,'2_FCEV Tech'!$6:$6,0)) -> 2.591428223 | AI7: =INDEX('2_FCEV Tech'!$A$6:$BS$107,MATCH($G7,'2_FCEV Tech'!$B$6:$B$107,0),MATCH(AI$6,'2_FCEV Tech'!$6:$6,0)) -> 22630.7631 | AJ7: =INDEX('2_FCEV Tech'!$A$6:$BS$107,MATCH($G7,'2_FCEV Tech'!$B$6:$B$107,0),MATCH(AJ$6,'2_FCEV Tech'!$6:$6,0)) -> 5804.868146 | AK7: =INDEX('2_FCEV Tech'!$A$6:$BS$107,MATCH($G7,'2_FCEV Tech'!$B$6:$B$107,0),MATCH(AK$6,'2_FCEV Tech'!$6:$6,0)) -> 579.5194124 | AL7: =INDEX('2_FCEV Tech'!$A$6:$BS$107,MATCH($G7,'2_FCEV Tech'!$B$6:$B$107,0),MATCH(AL$6,'2_FCEV Tech'!$6:$6,0)) -> 2076.050303 | AM7: =INDEX('3_Payback'!$A$6:$CO$107,MATCH($G7,'3_Payback'!$B$6:$B$107,0),MATCH(AM$6,'3_Payback'!$6:$6,0)) -> 21844.24416 | AN7: =INDEX('3_Payback'!$A$6:$CO$107,MATCH($G7,'3_Payback'!$B$6:$B$107,0),MATCH(AN$6,'3_Payback'!$6:$6,0)) -> 21844.24416 | AO7: =INDEX('3_Payback'!$A$6:$CO$107,MATCH($G7,'3_Payback'!$B$6:$B$107,0),MATCH(AO$6,'3_Payback'!$6:$6,0)) -> 1173.95758 | AP7: =INDEX('3_Payback'!$A$6:$CO$107,MATCH($G7,'3_Payback'!$B$6:$B$107,0),MATCH(AP$6,'3_Payback'!$6:$6,0)) -> 0
B8: Operation (hrs) | C8: 8 | D8: change value on Inputs tab | G8: ='1_Veh Prop'!B8 -> 02V_Amb_Cl2b-3_MP | H8: ='1_Veh Prop'!G8 -> Ambulance | I8: ='1_Veh Prop'!H8 -> 2b-3 | J8: =INDEX('1_Veh Prop'!$A$6:$AJ$107,MATCH($G8,'1_Veh Prop'!$B$6:$B$107,0),MATCH(J$6,'1_Veh Prop'!$6:$6,0)) -> 5700 | K8: =INDEX('1_Veh Prop'!$A$6:$AJ$107,MATCH($G8,'1_Veh Prop'!$B$6:$B$107,0),MATCH(K$6,'1_Veh Prop'!$6:$6,0)) -> 0.006178456254 | L8: =INDEX('1_Veh Prop'!$A$6:$AJ$107,MATCH($G8,'1_Veh Prop'!$B$6:$B$107,0),MATCH(L$6,'1_Veh Prop'!$6:$6,0)) -> 52 | M8: =INDEX('1_Veh Prop'!$A$6:$AJ$107,MATCH($G8,'1_Veh Prop'!$B$6:$B$107,0),MATCH(M$6,'1_Veh Prop'!$6:$6,0)) -> 41 | N8: =INDEX(A1c_GEM_ID!$A$6:$AQ$107,MATCH($G8,A1c_GEM_ID!$B$6:$B$107,0),MATCH(N$6,A1c_GEM_ID!$6:$6,0)) -> LHD_M | O8: =INDEX('1_Veh Prop'!$A$6:$AJ$107,MATCH($G8,'1_Veh Prop'!$B$6:$B$107,0),MATCH(O$6,'1_Veh Prop'!$6:$6,0)) -> 43.65444857 | P8: =INDEX('1_Veh Prop'!$A$6:$AJ$107,MATCH($G8,'1_Veh Prop'!$B$6:$B$107,0),MATCH(P$6,'1_Veh Prop'!$6:$6,0)) -> 63.97377355 | Q8: =INDEX('4_Adoption Rates'!$A$7:$AL$108,MATCH($G8,'4_Adoption Rates'!$B$7:$B$108,0),MATCH(Q$6,'4_Adoption Rates'!$6:$6,0)) -> 0.18 | R8: =INDEX('4_Adoption Rates'!$A$7:$AL$108,MATCH($G8,'4_Adoption Rates'!$B$7:$B$108,0),MATCH(R$6,'4_Adoption Rates'!$6:$6,0)) -> 0.55 | T8: =INDEX('2_BEV Tech'!$A$6:$AR$107,MATCH($G8,'2_BEV Tech'!$B$6:$B$107,0),MATCH(T$6,'2_BEV Tech'!$6:$6,0)) -> 1.188074982 | U8: =INDEX('2_BEV Tech'!$A$6:$AR$107,MATCH($G8,'2_BEV Tech'!$B$6:$B$107,0),MATCH(U$6,'2_BEV Tech'!$6:$6,0)) -> 100 | V8: =INDEX('2_BEV Tech'!$A$6:$AR$107,MATCH($G8,'2_BEV Tech'!$B$6:$B$107,0),MATCH(V$6,'2_BEV Tech'!$6:$6,0)) -> 0.04409441452 | W8: =INDEX('2_BEV Tech'!$A$6:$AR$107,MATCH($G8,'2_BEV Tech'!$B$6:$B$107,0),MATCH(W$6,'2_BEV Tech'!$6:$6,0)) -> 14546.68994 | X8: =W8-INDEX('2_BEV Tech'!$A$6:$AR$107,MATCH($G8,'2_BEV Tech'!$B$6:$B$107,0),MATCH(X$6,'2_BEV Tech'!$6:$6,0)) -> 1320.422535 | Y8: =INDEX(A3_BEV_Charging!$A$6:$BS$107,MATCH($G8,A3_BEV_Charging!$B$6:$B$107,0),MATCH(Y$6,A3_BEV_Charging!$6:$6,0)) -> 10541.07967 | Z8: =INDEX('3_Payback'!$A$6:$CO$107,MATCH($G8,'3_Payback'!$B$6:$B$107,0),MATCH(Z$6,'3_Payback'!$6:$6,0)) -> 9749.096936 | AA8: =INDEX('3_Payback'!$A$6:$CO$107,MATCH($G8,'3_Payback'!$B$6:$B$107,0),MATCH(AA$6,'3_Payback'!$6:$6,0)) -> 0 | AB8: =INDEX('3_Payback'!$A$6:$CO$107,MATCH($G8,'3_Payback'!$B$6:$B$107,0),MATCH(AB$6,'3_Payback'!$6:$6,0)) -> 3936.367106 | AC8: =INDEX('3_Payback'!$A$6:$CO$107,MATCH($G8,'3_Payback'!$B$6:$B$107,0),MATCH(AC$6,'3_Payback'!$6:$6,0)) -> 2.476673713 | AE8: =INDEX('2_FCEV Tech'!$A$6:$BS$107,MATCH($G8,'2_FCEV Tech'!$B$6:$B$107,0),MATCH(AE$6,'2_FCEV Tech'!$6:$6,0)) -> 1.390217557 | AF8: =INDEX('2_FCEV Tech'!$A$6:$BS$107,MATCH($G8,'2_FCEV Tech'!$B$6:$B$107,0),MATCH(AF$6,'2_FCEV Tech'!$6:$6,0)) -> 93.34396979 | AG8: =INDEX('2_FCEV Tech'!$A$6:$BS$107,MATCH($G8,'2_FCEV Tech'!$B$6:$B$107,0),MATCH(AG$6,'2_FCEV Tech'!$6:$6,0)) -> 43.88893683 | AH8: =INDEX('2_FCEV Tech'!$A$6:$BS$107,MATCH($G8,'2_FCEV Tech'!$B$6:$B$107,0),MATCH(AH$6,'2_FCEV Tech'!$6:$6,0)) -> 3.129473098 | AI8: =INDEX('2_FCEV Tech'!$A$6:$BS$107,MATCH($G8,'2_FCEV Tech'!$B$6:$B$107,0),MATCH(AI$6,'2_FCEV Tech'!$6:$6,0)) -> 22630.7631 | AJ8: =INDEX('2_FCEV Tech'!$A$6:$BS$107,MATCH($G8,'2_FCEV Tech'!$B$6:$B$107,0),MATCH(AJ$6,'2_FCEV Tech'!$6:$6,0)) -> 5804.868146 | AK8: =INDEX('2_FCEV Tech'!$A$6:$BS$107,MATCH($G8,'2_FCEV Tech'!$B$6:$B$107,0),MATCH(AK$6,'2_FCEV Tech'!$6:$6,0)) -> 579.5194124 | AL8: =INDEX('2_FCEV Tech'!$A$6:$BS$107,MATCH($G8,'2_FCEV Tech'!$B$6:$B$107,0),MATCH(AL$6,'2_FCEV Tech'!$6:$6,0)) -> 2507.089918 | AM8: =INDEX('3_Payback'!$A$6:$CO$107,MATCH($G8,'3_Payback'!$B$6:$B$107,0),MATCH(AM$6,'3_Payback'!$6:$6,0)) -> 24311.49562 | AN8: =INDEX('3_Payback'!$A$6:$CO$107,MATCH($G8,'3_Payback'!$B$6:$B$107,0),MATCH(AN$6,'3_Payback'!$6:$6,0)) -> 7500 | AO8: =INDEX('3_Payback'!$A$6:$CO$107,MATCH($G8,'3_Payback'!$B$6:$B$107,0),MATCH(AO$6,'3_Payback'!$6:$6,0)) -> 1881.570591 | AP8: =INDEX('3_Payback'!$A$6:$CO$107,MATCH($G8,'3_Payback'!$B$6:$B$107,0),MATCH(AP$6,'3_Payback'!$6:$6,0)) -> 8.93482057
B9: Dwell time (hrs) | C9: 12 | D9: change value on Inputs tab | G9: ='1_Veh Prop'!B9 -> 03V_Amb_Cl4-5_U | H9: ='1_Veh Prop'!G9 -> Ambulance | I9: ='1_Veh Prop'!H9 -> 4-5 | J9: =INDEX('1_Veh Prop'!$A$6:$AJ$107,MATCH($G9,'1_Veh Prop'!$B$6:$B$107,0),MATCH(J$6,'1_Veh Prop'!$6:$6,0)) -> 5700 | K9: =INDEX('1_Veh Prop'!$A$6:$AJ$107,MATCH($G9,'1_Veh Prop'!$B$6:$B$107,0),MATCH(K$6,'1_Veh Prop'!$6:$6,0)) -> 0.009034307068 | L9: =INDEX('1_Veh Prop'!$A$6:$AJ$107,MATCH($G9,'1_Veh Prop'!$B$6:$B$107,0),MATCH(L$6,'1_Veh Prop'!$6:$6,0)) -> 52 | M9: =INDEX('1_Veh Prop'!$A$6:$AJ$107,MATCH($G9,'1_Veh Prop'!$B$6:$B$107,0),MATCH(M$6,'1_Veh Prop'!$6:$6,0)) -> 42 | N9: =INDEX(A1c_GEM_ID!$A$6:$AQ$107,MATCH($G9,A1c_GEM_ID!$B$6:$B$107,0),MATCH(N$6,A1c_GEM_ID!$6:$6,0)) -> LHD_U | O9: =INDEX('1_Veh Prop'!$A$6:$AJ$107,MATCH($G9,'1_Veh Prop'!$B$6:$B$107,0),MATCH(O$6,'1_Veh Prop'!$6:$6,0)) -> 34.52543312 | P9: =INDEX('1_Veh Prop'!$A$6:$AJ$107,MATCH($G9,'1_Veh Prop'!$B$6:$B$107,0),MATCH(P$6,'1_Veh Prop'!$6:$6,0)) -> 58.04734232 | Q9: =INDEX('4_Adoption Rates'!$A$7:$AL$108,MATCH($G9,'4_Adoption Rates'!$B$7:$B$108,0),MATCH(Q$6,'4_Adoption Rates'!$6:$6,0)) -> 0.32 | R9: =INDEX('4_Adoption Rates'!$A$7:$AL$108,MATCH($G9,'4_Adoption Rates'!$B$7:$B$108,0),MATCH(R$6,'4_Adoption Rates'!$6:$6,0)) -> 0.8 | T9: =INDEX('2_BEV Tech'!$A$6:$AR$107,MATCH($G9,'2_BEV Tech'!$B$6:$B$107,0),MATCH(T$6,'2_BEV Tech'!$6:$6,0)) -> 1.194310618 | U9: =INDEX('2_BEV Tech'!$A$6:$AR$107,MATCH($G9,'2_BEV Tech'!$B$6:$B$107,0),MATCH(U$6,'2_BEV Tech'!$6:$6,0)) -> 92 | V9: =INDEX('2_BEV Tech'!$A$6:$AR$107,MATCH($G9,'2_BEV Tech'!$B$6:$B$107,0),MATCH(V$6,'2_BEV Tech'!$6:$6,0)) -> -0.0976338819 | W9: =INDEX('2_BEV Tech'!$A$6:$AR$107,MATCH($G9,'2_BEV Tech'!$B$6:$B$107,0),MATCH(W$6,'2_BEV Tech'!$6:$6,0)) -> 13382.95474 | X9: =W9-INDEX('2_BEV Tech'!$A$6:$AR$107,MATCH($G9,'2_BEV Tech'!$B$6:$B$107,0),MATCH(X$6,'2_BEV Tech'!$6:$6,0)) -> 1214.788732 | Y9: =INDEX(A3_BEV_Charging!$A$6:$BS$107,MATCH($G9,A3_BEV_Charging!$B$6:$B$107,0),MATCH(Y$6,A3_BEV_Charging!$6:$6,0)) -> 10541.07967 | Z9: =INDEX('3_Payback'!$A$6:$CO$107,MATCH($G9,'3_Payback'!$B$6:$B$107,0),MATCH(Z$6,'3_Payback'!$6:$6,0)) -> 6391.417751 | AA9: =INDEX('3_Payback'!$A$6:$CO$107,MATCH($G9,'3_Payback'!$B$6:$B$107,0),MATCH(AA$6,'3_Payback'!$6:$6,0)) -> 0 | AB9: =INDEX('3_Payback'!$A$6:$CO$107,MATCH($G9,'3_Payback'!$B$6:$B$107,0),MATCH(AB$6,'3_Payback'!$6:$6,0)) -> 3384.782954 | AC9: =INDEX('3_Payback'!$A$6:$CO$107,MATCH($G9,'3_Payback'!$B$6:$B$107,0),MATCH(AC$6,'3_Payback'!$6:$6,0)) -> 1.88827994 | AE9: =INDEX('2_FCEV Tech'!$A$6:$BS$107,MATCH($G9,'2_FCEV Tech'!$B$6:$B$107,0),MATCH(AE$6,'2_FCEV Tech'!$6:$6,0)) -> 1.289489599 | AF9: =INDEX('2_FCEV Tech'!$A$6:$BS$107,MATCH($G9,'2_FCEV Tech'!$B$6:$B$107,0),MATCH(AF$6,'2_FCEV Tech'!$6:$6,0)) -> 93.34396979 | AG9: =INDEX('2_FCEV Tech'!$A$6:$BS$107,MATCH($G9,'2_FCEV Tech'!$B$6:$B$107,0),MATCH(AG$6,'2_FCEV Tech'!$6:$6,0)) -> 43.88893683 | AH9: =INDEX('2_FCEV Tech'!$A$6:$BS$107,MATCH($G9,'2_FCEV Tech'!$B$6:$B$107,0),MATCH(AH$6,'2_FCEV Tech'!$6:$6,0)) -> 2.627409257 | AI9: =INDEX('2_FCEV Tech'!$A$6:$BS$107,MATCH($G9,'2_FCEV Tech'!$B$6:$B$107,0),MATCH(AI$6,'2_FCEV Tech'!$6:$6,0)) -> 22630.7631 | AJ9: =INDEX('2_FCEV Tech'!$A$6:$BS$107,MATCH($G9,'2_FCEV Tech'!$B$6:$B$107,0),MATCH(AJ$6,'2_FCEV Tech'!$6:$6,0)) -> 5804.868146 | AK9: =INDEX('2_FCEV Tech'!$A$6:$BS$107,MATCH($G9,'2_FCEV Tech'!$B$6:$B$107,0),MATCH(AK$6,'2_FCEV Tech'!$6:$6,0)) -> 579.5194124 | AL9: =INDEX('2_FCEV Tech'!$A$6:$BS$107,MATCH($G9,'2_FCEV Tech'!$B$6:$B$107,0),MATCH(AL$6,'2_FCEV Tech'!$6:$6,0)) -> 2104.875503 | AM9: =INDEX('3_Payback'!$A$6:$CO$107,MATCH($G9,'3_Payback'!$B$6:$B$107,0),MATCH(AM$6,'3_Payback'!$6:$6,0)) -> 21885.17594 | AN9: =INDEX('3_Payback'!$A$6:$CO$107,MATCH($G9,'3_Payback'!$B$6:$B$107,0),MATCH(AN$6,'3_Payback'!$6:$6,0)) -> 21885.17594 | AO9: =INDEX('3_Payback'!$A$6:$CO$107,MATCH($G9,'3_Payback'!$B$6:$B$107,0),MATCH(AO$6,'3_Payback'!$6:$6,0)) -> 1945.508153 | AP9: =INDEX('3_Payback'!$A$6:$CO$107,MATCH($G9,'3_Payback'!$B$6:$B$107,0),MATCH(AP$6,'3_Payback'!$6:$6,0)) -> 0
B10: Operating days (days) | C10: 250 | D10: change value on Inputs tab | G10: ='1_Veh Prop'!B10 -> 04V_Amb_Cl2b-3_U | H10: ='1_Veh Prop'!G10 -> Ambulance | I10: ='1_Veh Prop'!H10 -> 2b-3 | J10: =INDEX('1_Veh Prop'!$A$6:$AJ$107,MATCH($G10,'1_Veh Prop'!$B$6:$B$107,0),MATCH(J$6,'1_Veh Prop'!$6:$6,0)) -> 5700 | K10: =INDEX('1_Veh Prop'!$A$6:$AJ$107,MATCH($G10,'1_Veh Prop'!$B$6:$B$107,0),MATCH(K$6,'1_Veh Prop'!$6:$6,0)) -> 0.006178456254 | L10: =INDEX('1_Veh Prop'!$A$6:$AJ$107,MATCH($G10,'1_Veh Prop'!$B$6:$B$107,0),MATCH(L$6,'1_Veh Prop'!$6:$6,0)) -> 52 | M10: =INDEX('1_Veh Prop'!$A$6:$AJ$107,MATCH($G10,'1_Veh Prop'!$B$6:$B$107,0),MATCH(M$6,'1_Veh Prop'!$6:$6,0)) -> 41 | N10: =INDEX(A1c_GEM_ID!$A$6:$AQ$107,MATCH($G10,A1c_GEM_ID!$B$6:$B$107,0),MATCH(N$6,A1c_GEM_ID!$6:$6,0)) -> LHD_U | O10: =INDEX('1_Veh Prop'!$A$6:$AJ$107,MATCH($G10,'1_Veh Prop'!$B$6:$B$107,0),MATCH(O$6,'1_Veh Prop'!$6:$6,0)) -> 35.13171863 | P10: =INDEX('1_Veh Prop'!$A$6:$AJ$107,MATCH($G10,'1_Veh Prop'!$B$6:$B$107,0),MATCH(P$6,'1_Veh Prop'!$6:$6,0)) -> 51.71311883 | Q10: =INDEX('4_Adoption Rates'!$A$7:$AL$108,MATCH($G10,'4_Adoption Rates'!$B$7:$B$108,0),MATCH(Q$6,'4_Adoption Rates'!$6:$6,0)) -> 0.32 | R10: =INDEX('4_Adoption Rates'!$A$7:$AL$108,MATCH($G10,'4_Adoption Rates'!$B$7:$B$108,0),MATCH(R$6,'4_Adoption Rates'!$6:$6,0)) -> 0.8 | T10: =INDEX('2_BEV Tech'!$A$6:$AR$107,MATCH($G10,'2_BEV Tech'!$B$6:$B$107,0),MATCH(T$6,'2_BEV Tech'!$6:$6,0)) -> 1.103679477 | U10: =INDEX('2_BEV Tech'!$A$6:$AR$107,MATCH($G10,'2_BEV Tech'!$B$6:$B$107,0),MATCH(U$6,'2_BEV Tech'!$6:$6,0)) -> 75 | V10: =INDEX('2_BEV Tech'!$A$6:$AR$107,MATCH($G10,'2_BEV Tech'!$B$6:$B$107,0),MATCH(V$6,'2_BEV Tech'!$6:$6,0)) -> -0.004617915278 | W10: =INDEX('2_BEV Tech'!$A$6:$AR$107,MATCH($G10,'2_BEV Tech'!$B$6:$B$107,0),MATCH(W$6,'2_BEV Tech'!$6:$6,0)) -> 10910.01745 | X10: =W10-INDEX('2_BEV Tech'!$A$6:$AR$107,MATCH($G10,'2_BEV Tech'!$B$6:$B$107,0),MATCH(X$6,'2_BEV Tech'!$6:$6,0)) -> 990.3169014 | Y10: =INDEX(A3_BEV_Charging!$A$6:$BS$107,MATCH($G10,A3_BEV_Charging!$B$6:$B$107,0),MATCH(Y$6,A3_BEV_Charging!$6:$6,0)) -> 10541.07967 | Z10: =INDEX('3_Payback'!$A$6:$CO$107,MATCH($G10,'3_Payback'!$B$6:$B$107,0),MATCH(Z$6,'3_Payback'!$6:$6,0)) -> 5053.772008 | AA10: =INDEX('3_Payback'!$A$6:$CO$107,MATCH($G10,'3_Payback'!$B$6:$B$107,0),MATCH(AA$6,'3_Payback'!$6:$6,0)) -> 0 | AB10: =INDEX('3_Payback'!$A$6:$CO$107,MATCH($G10,'3_Payback'!$B$6:$B$107,0),MATCH(AB$6,'3_Payback'!$6:$6,0)) -> 3528.868751 | AC10: =INDEX('3_Payback'!$A$6:$CO$107,MATCH($G10,'3_Payback'!$B$6:$B$107,0),MATCH(AC$6,'3_Payback'!$6:$6,0)) -> 1.432122407 | AE10: =INDEX('2_FCEV Tech'!$A$6:$BS$107,MATCH($G10,'2_FCEV Tech'!$B$6:$B$107,0),MATCH(AE$6,'2_FCEV Tech'!$6:$6,0)) -> 1.252694997 | AF10: =INDEX('2_FCEV Tech'!$A$6:$BS$107,MATCH($G10,'2_FCEV Tech'!$B$6:$B$107,0),MATCH(AF$6,'2_FCEV Tech'!$6:$6,0)) -> 93.34396979 | AG10: =INDEX('2_FCEV Tech'!$A$6:$BS$107,MATCH($G10,'2_FCEV Tech'!$B$6:$B$107,0),MATCH(AG$6,'2_FCEV Tech'!$6:$6,0)) -> 43.88893683 | AH10: =INDEX('2_FCEV Tech'!$A$6:$BS$107,MATCH($G10,'2_FCEV Tech'!$B$6:$B$107,0),MATCH(AH$6,'2_FCEV Tech'!$6:$6,0)) -> 2.277144117 | AI10: =INDEX('2_FCEV Tech'!$A$6:$BS$107,MATCH($G10,'2_FCEV Tech'!$B$6:$B$107,0),MATCH(AI$6,'2_FCEV Tech'!$6:$6,0)) -> 22630.7631 | AJ10: =INDEX('2_FCEV Tech'!$A$6:$BS$107,MATCH($G10,'2_FCEV Tech'!$B$6:$B$107,0),MATCH(AJ$6,'2_FCEV Tech'!$6:$6,0)) -> 5804.868146 | AK10: =INDEX('2_FCEV Tech'!$A$6:$BS$107,MATCH($G10,'2_FCEV Tech'!$B$6:$B$107,0),MATCH(AK$6,'2_FCEV Tech'!$6:$6,0)) -> 579.5194124 | AL10: =INDEX('2_FCEV Tech'!$A$6:$BS$107,MATCH($G10,'2_FCEV Tech'!$B$6:$B$107,0),MATCH(AL$6,'2_FCEV Tech'!$6:$6,0)) -> 1824.270374 | AM10: =INDEX('3_Payback'!$A$6:$CO$107,MATCH($G10,'3_Payback'!$B$6:$B$107,0),MATCH(AM$6,'3_Payback'!$6:$6,0)) -> 23341.89186 | AN10: =INDEX('3_Payback'!$A$6:$CO$107,MATCH($G10,'3_Payback'!$B$6:$B$107,0),MATCH(AN$6,'3_Payback'!$6:$6,0)) -> 7500 | AO10: =INDEX('3_Payback'!$A$6:$CO$107,MATCH($G10,'3_Payback'!$B$6:$B$107,0),MATCH(AO$6,'3_Payback'!$6:$6,0)) -> 2046.615556 | AP10: =INDEX('3_Payback'!$A$6:$CO$107,MATCH($G10,'3_Payback'!$B$6:$B$107,0),MATCH(AP$6,'3_Payback'!$6:$6,0)) -> 7.740531348
G11: ='1_Veh Prop'!B11 -> 05T_Box_Cl8_MP | H11: ='1_Veh Prop'!G11 -> Box Truck | I11: ='1_Veh Prop'!H11 -> 8 | J11: =INDEX('1_Veh Prop'!$A$6:$AJ$107,MATCH($G11,'1_Veh Prop'!$B$6:$B$107,0),MATCH(J$6,'1_Veh Prop'!$6:$6,0)) -> 15000 | K11: =INDEX('1_Veh Prop'!$A$6:$AJ$107,MATCH($G11,'1_Veh Prop'!$B$6:$B$107,0),MATCH(K$6,'1_Veh Prop'!$6:$6,0)) -> 0.00319004387 | L11: =INDEX('1_Veh Prop'!$A$6:$AJ$107,MATCH($G11,'1_Veh Prop'!$B$6:$B$107,0),MATCH(L$6,'1_Veh Prop'!$6:$6,0)) -> 52 | M11: =INDEX('1_Veh Prop'!$A$6:$AJ$107,MATCH($G11,'1_Veh Prop'!$B$6:$B$107,0),MATCH(M$6,'1_Veh Prop'!$6:$6,0)) -> 47 | N11: =INDEX(A1c_GEM_ID!$A$6:$AQ$107,MATCH($G11,A1c_GEM_ID!$B$6:$B$107,0),MATCH(N$6,A1c_GEM_ID!$6:$6,0)) -> HHD_M | O11: =INDEX('1_Veh Prop'!$A$6:$AJ$107,MATCH($G11,'1_Veh Prop'!$B$6:$B$107,0),MATCH(O$6,'1_Veh Prop'!$6:$6,0)) -> 58.31166 | P11: =INDEX('1_Veh Prop'!$A$6:$AJ$107,MATCH($G11,'1_Veh Prop'!$B$6:$B$107,0),MATCH(P$6,'1_Veh Prop'!$6:$6,0)) -> 89.87900719 | Q11: =INDEX('4_Adoption Rates'!$A$7:$AL$108,MATCH($G11,'4_Adoption Rates'!$B$7:$B$108,0),MATCH(Q$6,'4_Adoption Rates'!$6:$6,0)) -> 0.13 | R11: =INDEX('4_Adoption Rates'!$A$7:$AL$108,MATCH($G11,'4_Adoption Rates'!$B$7:$B$108,0),MATCH(R$6,'4_Adoption Rates'!$6:$6,0)) -> 0.35 | T11: =INDEX('2_BEV Tech'!$A$6:$AR$107,MATCH($G11,'2_BEV Tech'!$B$6:$B$107,0),MATCH(T$6,'2_BEV Tech'!$6:$6,0)) -> 2.51395223 | U11: =INDEX('2_BEV Tech'!$A$6:$AR$107,MATCH($G11,'2_BEV Tech'!$B$6:$B$107,0),MATCH(U$6,'2_BEV Tech'!$6:$6,0)) -> 298 | V11: =INDEX('2_BEV Tech'!$A$6:$AR$107,MATCH($G11,'2_BEV Tech'!$B$6:$B$107,0),MATCH(V$6,'2_BEV Tech'!$6:$6,0)) -> 0.06099369313 | W11: =INDEX('2_BEV Tech'!$A$6:$AR$107,MATCH($G11,'2_BEV Tech'!$B$6:$B$107,0),MATCH(W$6,'2_BEV Tech'!$6:$6,0)) -> 43349.13602 | X11: =W11-INDEX('2_BEV Tech'!$A$6:$AR$107,MATCH($G11,'2_BEV Tech'!$B$6:$B$107,0),MATCH(X$6,'2_BEV Tech'!$6:$6,0)) -> 3934.859155 | Y11: =INDEX(A3_BEV_Charging!$A$6:$BS$107,MATCH($G11,A3_BEV_Charging!$B$6:$B$107,0),MATCH(Y$6,A3_BEV_Charging!$6:$6,0)) -> 31623.239 | Z11: =INDEX('3_Payback'!$A$6:$CO$107,MATCH($G11,'3_Payback'!$B$6:$B$107,0),MATCH(Z$6,'3_Payback'!$6:$6,0)) -> 34619.82875 | AA11: =INDEX('3_Payback'!$A$6:$CO$107,MATCH($G11,'3_Payback'!$B$6:$B$107,0),MATCH(AA$6,'3_Payback'!$6:$6,0)) -> 2996.589757 | AB11: =INDEX('3_Payback'!$A$6:$CO$107,MATCH($G11,'3_Payback'!$B$6:$B$107,0),MATCH(AB$6,'3_Payback'!$6:$6,0)) -> 6538.072356 | AC11: =INDEX('3_Payback'!$A$6:$CO$107,MATCH($G11,'3_Payback'!$B$6:$B$107,0),MATCH(AC$6,'3_Payback'!$6:$6,0)) -> 4.836783272 | AE11: =INDEX('2_FCEV Tech'!$A$6:$BS$107,MATCH($G11,'2_FCEV Tech'!$B$6:$B$107,0),MATCH(AE$6,'2_FCEV Tech'!$6:$6,0)) -> 3.1512175 | AF11: =INDEX('2_FCEV Tech'!$A$6:$BS$107,MATCH($G11,'2_FCEV Tech'!$B$6:$B$107,0),MATCH(AF$6,'2_FCEV Tech'!$6:$6,0)) -> 199.5012756 | AG11: =INDEX('2_FCEV Tech'!$A$6:$BS$107,MATCH($G11,'2_FCEV Tech'!$B$6:$B$107,0),MATCH(AG$6,'2_FCEV Tech'!$6:$6,0)) -> 45.6413407 | AH11: =INDEX('2_FCEV Tech'!$A$6:$BS$107,MATCH($G11,'2_FCEV Tech'!$B$6:$B$107,0),MATCH(AH$6,'2_FCEV Tech'!$6:$6,0)) -> 9.981248482 | AI11: =INDEX('2_FCEV Tech'!$A$6:$BS$107,MATCH($G11,'2_FCEV Tech'!$B$6:$B$107,0),MATCH(AI$6,'2_FCEV Tech'!$6:$6,0)) -> 48368.05332 | AJ11: =INDEX('2_FCEV Tech'!$A$6:$BS$107,MATCH($G11,'2_FCEV Tech'!$B$6:$B$107,0),MATCH(AJ$6,'2_FCEV Tech'!$6:$6,0)) -> 6036.645767 | AK11: =INDEX('2_FCEV Tech'!$A$6:$BS$107,MATCH($G11,'2_FCEV Tech'!$B$6:$B$107,0),MATCH(AK$6,'2_FCEV Tech'!$6:$6,0)) -> 602.6585479 | AL11: =INDEX('2_FCEV Tech'!$A$6:$BS$107,MATCH($G11,'2_FCEV Tech'!$B$6:$B$107,0),MATCH(AL$6,'2_FCEV Tech'!$6:$6,0)) -> 7996.198291 | AM11: =INDEX('3_Payback'!$A$6:$CO$107,MATCH($G11,'3_Payback'!$B$6:$B$107,0),MATCH(AM$6,'3_Payback'!$6:$6,0)) -> 35279.26691 | AN11: =INDEX('3_Payback'!$A$6:$CO$107,MATCH($G11,'3_Payback'!$B$6:$B$107,0),MATCH(AN$6,'3_Payback'!$6:$6,0)) -> 35279.26691 | AO11: =INDEX('3_Payback'!$A$6:$CO$107,MATCH($G11,'3_Payback'!$B$6:$B$107,0),MATCH(AO$6,'3_Payback'!$6:$6,0)) -> 530.8859778 | AP11: =INDEX('3_Payback'!$A$6:$CO$107,MATCH($G11,'3_Payback'!$B$6:$B$107,0),MATCH(AP$6,'3_Payback'!$6:$6,0)) -> 0
B12: ZEV Adoption | C12: 2027 | D12: 2032 | G12: ='1_Veh Prop'!B12 -> 06T_Box_Cl8_R | H12: ='1_Veh Prop'!G12 -> Box Truck | I12: ='1_Veh Prop'!H12 -> 8 | J12: =INDEX('1_Veh Prop'!$A$6:$AJ$107,MATCH($G12,'1_Veh Prop'!$B$6:$B$107,0),MATCH(J$6,'1_Veh Prop'!$6:$6,0)) -> 15000 | K12: =INDEX('1_Veh Prop'!$A$6:$AJ$107,MATCH($G12,'1_Veh Prop'!$B$6:$B$107,0),MATCH(K$6,'1_Veh Prop'!$6:$6,0)) -> 0.002155550864 | L12: =INDEX('1_Veh Prop'!$A$6:$AJ$107,MATCH($G12,'1_Veh Prop'!$B$6:$B$107,0),MATCH(L$6,'1_Veh Prop'!$6:$6,0)) -> 53 | M12: =INDEX('1_Veh Prop'!$A$6:$AJ$107,MATCH($G12,'1_Veh Prop'!$B$6:$B$107,0),MATCH(M$6,'1_Veh Prop'!$6:$6,0)) -> 47 | N12: =INDEX(A1c_GEM_ID!$A$6:$AQ$107,MATCH($G12,A1c_GEM_ID!$B$6:$B$107,0),MATCH(N$6,A1c_GEM_ID!$6:$6,0)) -> HHD_R | O12: =INDEX('1_Veh Prop'!$A$6:$AJ$107,MATCH($G12,'1_Veh Prop'!$B$6:$B$107,0),MATCH(O$6,'1_Veh Prop'!$6:$6,0)) -> 58.31166 | P12: =INDEX('1_Veh Prop'!$A$6:$AJ$107,MATCH($G12,'1_Veh Prop'!$B$6:$B$107,0),MATCH(P$6,'1_Veh Prop'!$6:$6,0)) -> 89.87900719 | Q12: =INDEX('4_Adoption Rates'!$A$7:$AL$108,MATCH($G12,'4_Adoption Rates'!$B$7:$B$108,0),MATCH(Q$6,'4_Adoption Rates'!$6:$6,0)) -> 0.13 | R12: =INDEX('4_Adoption Rates'!$A$7:$AL$108,MATCH($G12,'4_Adoption Rates'!$B$7:$B$108,0),MATCH(R$6,'4_Adoption Rates'!$6:$6,0)) -> 0.35 | T12: =INDEX('2_BEV Tech'!$A$6:$AR$107,MATCH($G12,'2_BEV Tech'!$B$6:$B$107,0),MATCH(T$6,'2_BEV Tech'!$6:$6,0)) -> 2.685651558 | U12: =INDEX('2_BEV Tech'!$A$6:$AR$107,MATCH($G12,'2_BEV Tech'!$B$6:$B$107,0),MATCH(U$6,'2_BEV Tech'!$6:$6,0)) -> 319 | V12: =INDEX('2_BEV Tech'!$A$6:$AR$107,MATCH($G12,'2_BEV Tech'!$B$6:$B$107,0),MATCH(V$6,'2_BEV Tech'!$6:$6,0)) -> 0.07654266881 | W12: =INDEX('2_BEV Tech'!$A$6:$AR$107,MATCH($G12,'2_BEV Tech'!$B$6:$B$107,0),MATCH(W$6,'2_BEV Tech'!$6:$6,0)) -> 46403.94091 | X12: =W12-INDEX('2_BEV Tech'!$A$6:$AR$107,MATCH($G12,'2_BEV Tech'!$B$6:$B$107,0),MATCH(X$6,'2_BEV Tech'!$6:$6,0)) -> 4212.147887 | Y12: =INDEX(A3_BEV_Charging!$A$6:$BS$107,MATCH($G12,A3_BEV_Charging!$B$6:$B$107,0),MATCH(Y$6,A3_BEV_Charging!$6:$6,0)) -> 31623.239 | Z12: =INDEX('3_Payback'!$A$6:$CO$107,MATCH($G12,'3_Payback'!$B$6:$B$107,0),MATCH(Z$6,'3_Payback'!$6:$6,0)) -> 38563.90169 | AA12: =INDEX('3_Payback'!$A$6:$CO$107,MATCH($G12,'3_Payback'!$B$6:$B$107,0),MATCH(AA$6,'3_Payback'!$6:$6,0)) -> 6940.662697 | AB12: =INDEX('3_Payback'!$A$6:$CO$107,MATCH($G12,'3_Payback'!$B$6:$B$107,0),MATCH(AB$6,'3_Payback'!$6:$6,0)) -> 5373.987714 | AC12: =INDEX('3_Payback'!$A$6:$CO$107,MATCH($G12,'3_Payback'!$B$6:$B$107,0),MATCH(AC$6,'3_Payback'!$6:$6,0)) -> 5.884501544 | AE12: =INDEX('2_FCEV Tech'!$A$6:$BS$107,MATCH($G12,'2_FCEV Tech'!$B$6:$B$107,0),MATCH(AE$6,'2_FCEV Tech'!$6:$6,0)) -> 3.373876899 | AF12: =INDEX('2_FCEV Tech'!$A$6:$BS$107,MATCH($G12,'2_FCEV Tech'!$B$6:$B$107,0),MATCH(AF$6,'2_FCEV Tech'!$6:$6,0)) -> 199.5012756 | AG12: =INDEX('2_FCEV Tech'!$A$6:$BS$107,MATCH($G12,'2_FCEV Tech'!$B$6:$B$107,0),MATCH(AG$6,'2_FCEV Tech'!$6:$6,0)) -> 45.6413407 | AH12: =INDEX('2_FCEV Tech'!$A$6:$BS$107,MATCH($G12,'2_FCEV Tech'!$B$6:$B$107,0),MATCH(AH$6,'2_FCEV Tech'!$6:$6,0)) -> 10.68722405 | AI12: =INDEX('2_FCEV Tech'!$A$6:$BS$107,MATCH($G12,'2_FCEV Tech'!$B$6:$B$107,0),MATCH(AI$6,'2_FCEV Tech'!$6:$6,0)) -> 48368.05332 | AJ12: =INDEX('2_FCEV Tech'!$A$6:$BS$107,MATCH($G12,'2_FCEV Tech'!$B$6:$B$107,0),MATCH(AJ$6,'2_FCEV Tech'!$6:$6,0)) -> 6036.645767 | AK12: =INDEX('2_FCEV Tech'!$A$6:$BS$107,MATCH($G12,'2_FCEV Tech'!$B$6:$B$107,0),MATCH(AK$6,'2_FCEV Tech'!$6:$6,0)) -> 602.6585479 | AL12: =INDEX('2_FCEV Tech'!$A$6:$BS$107,MATCH($G12,'2_FCEV Tech'!$B$6:$B$107,0),MATCH(AL$6,'2_FCEV Tech'!$6:$6,0)) -> 8561.770885 | AM12: =INDEX('3_Payback'!$A$6:$CO$107,MATCH($G12,'3_Payback'!$B$6:$B$107,0),MATCH(AM$6,'3_Payback'!$6:$6,0)) -> 36082.37999 | AN12: =INDEX('3_Payback'!$A$6:$CO$107,MATCH($G12,'3_Payback'!$B$6:$B$107,0),MATCH(AN$6,'3_Payback'!$6:$6,0)) -> 36082.37999 | AO12: =INDEX('3_Payback'!$A$6:$CO$107,MATCH($G12,'3_Payback'!$B$6:$B$107,0),MATCH(AO$6,'3_Payback'!$6:$6,0)) -> -1039.415704 | AP12: =INDEX('3_Payback'!$A$6:$CO$107,MATCH($G12,'3_Payback'!$B$6:$B$107,0),MATCH(AP$6,'3_Payback'!$6:$6,0)) -> NA
B13: Vocational | C13: ='4_Adoption Rates'!T8 -> 0.2023080886 | D13: ='4_Adoption Rates'!U8 -> 0.5049386423 | G13: ='1_Veh Prop'!B13 -> 07T_Box_Cl6-7_MP | H13: ='1_Veh Prop'!G13 -> Box Truck | I13: ='1_Veh Prop'!H13 -> 6-7 | J13: =INDEX('1_Veh Prop'!$A$6:$AJ$107,MATCH($G13,'1_Veh Prop'!$B$6:$B$107,0),MATCH(J$6,'1_Veh Prop'!$6:$6,0)) -> 11200 | K13: =INDEX('1_Veh Prop'!$A$6:$AJ$107,MATCH($G13,'1_Veh Prop'!$B$6:$B$107,0),MATCH(K$6,'1_Veh Prop'!$6:$6,0)) -> 0.006527400312 | L13: =INDEX('1_Veh Prop'!$A$6:$AJ$107,MATCH($G13,'1_Veh Prop'!$B$6:$B$107,0),MATCH(L$6,'1_Veh Prop'!$6:$6,0)) -> 52 | M13: =INDEX('1_Veh Prop'!$A$6:$AJ$107,MATCH($G13,'1_Veh Prop'!$B$6:$B$107,0),MATCH(M$6,'1_Veh Prop'!$6:$6,0)) -> 46 | N13: =INDEX(A1c_GEM_ID!$A$6:$AQ$107,MATCH($G13,A1c_GEM_ID!$B$6:$B$107,0),MATCH(N$6,A1c_GEM_ID!$6:$6,0)) -> MHD_M | O13: =INDEX('1_Veh Prop'!$A$6:$AJ$107,MATCH($G13,'1_Veh Prop'!$B$6:$B$107,0),MATCH(O$6,'1_Veh Prop'!$6:$6,0)) -> 35.20172089 | P13: =INDEX('1_Veh Prop'!$A$6:$AJ$107,MATCH($G13,'1_Veh Prop'!$B$6:$B$107,0),MATCH(P$6,'1_Veh Prop'!$6:$6,0)) -> 89.87900719 | Q13: =INDEX('4_Adoption Rates'!$A$7:$AL$108,MATCH($G13,'4_Adoption Rates'!$B$7:$B$108,0),MATCH(Q$6,'4_Adoption Rates'!$6:$6,0)) -> 0.18 | R13: =INDEX('4_Adoption Rates'!$A$7:$AL$108,MATCH($G13,'4_Adoption Rates'!$B$7:$B$108,0),MATCH(R$6,'4_Adoption Rates'!$6:$6,0)) -> 0.35 | T13: =INDEX('2_BEV Tech'!$A$6:$AR$107,MATCH($G13,'2_BEV Tech'!$B$6:$B$107,0),MATCH(T$6,'2_BEV Tech'!$6:$6,0)) -> 1.697479875 | U13: =INDEX('2_BEV Tech'!$A$6:$AR$107,MATCH($G13,'2_BEV Tech'!$B$6:$B$107,0),MATCH(U$6,'2_BEV Tech'!$6:$6,0)) -> 201 | V13: =INDEX('2_BEV Tech'!$A$6:$AR$107,MATCH($G13,'2_BEV Tech'!$B$6:$B$107,0),MATCH(V$6,'2_BEV Tech'!$6:$6,0)) -> 0.05863744476 | W13: =INDEX('2_BEV Tech'!$A$6:$AR$107,MATCH($G13,'2_BEV Tech'!$B$6:$B$107,0),MATCH(W$6,'2_BEV Tech'!$6:$6,0)) -> 29238.84678 | X13: =W13-INDEX('2_BEV Tech'!$A$6:$AR$107,MATCH($G13,'2_BEV Tech'!$B$6:$B$107,0),MATCH(X$6,'2_BEV Tech'!$6:$6,0)) -> 2654.049296 | Y13: =INDEX(A3_BEV_Charging!$A$6:$BS$107,MATCH($G13,A3_BEV_Charging!$B$6:$B$107,0),MATCH(Y$6,A3_BEV_Charging!$6:$6,0)) -> 10541.07967 | Z13: =INDEX('3_Payback'!$A$6:$CO$107,MATCH($G13,'3_Payback'!$B$6:$B$107,0),MATCH(Z$6,'3_Payback'!$6:$6,0)) -> 25926.6565 | AA13: =INDEX('3_Payback'!$A$6:$CO$107,MATCH($G13,'3_Payback'!$B$6:$B$107,0),MATCH(AA$6,'3_Payback'!$6:$6,0)) -> 15385.57684 | AB13: =INDEX('3_Payback'!$A$6:$CO$107,MATCH($G13,'3_Payback'!$B$6:$B$107,0),MATCH(AB$6,'3_Payback'!$6:$6,0)) -> 3781.655669 | AC13: =INDEX('3_Payback'!$A$6:$CO$107,MATCH($G13,'3_Payback'!$B$6:$B$107,0),MATCH(AC$6,'3_Payback'!$6:$6,0)) -> 2.787424501 | AE13: =INDEX('2_FCEV Tech'!$A$6:$BS$107,MATCH($G13,'2_FCEV Tech'!$B$6:$B$107,0),MATCH(AE$6,'2_FCEV Tech'!$6:$6,0)) -> 2.114442689 | AF13: =INDEX('2_FCEV Tech'!$A$6:$BS$107,MATCH($G13,'2_FCEV Tech'!$B$6:$B$107,0),MATCH(AF$6,'2_FCEV Tech'!$6:$6,0)) -> 147.9537869 | AG13: =INDEX('2_FCEV Tech'!$A$6:$BS$107,MATCH($G13,'2_FCEV Tech'!$B$6:$B$107,0),MATCH(AG$6,'2_FCEV Tech'!$6:$6,0)) -> 29.05612285 | AH13: =INDEX('2_FCEV Tech'!$A$6:$BS$107,MATCH($G13,'2_FCEV Tech'!$B$6:$B$107,0),MATCH(AH$6,'2_FCEV Tech'!$6:$6,0)) -> 6.681696848 | AI13: =INDEX('2_FCEV Tech'!$A$6:$BS$107,MATCH($G13,'2_FCEV Tech'!$B$6:$B$107,0),MATCH(AI$6,'2_FCEV Tech'!$6:$6,0)) -> 35870.63106 | AJ13: =INDEX('2_FCEV Tech'!$A$6:$BS$107,MATCH($G13,'2_FCEV Tech'!$B$6:$B$107,0),MATCH(AJ$6,'2_FCEV Tech'!$6:$6,0)) -> 3843.040505 | AK13: =INDEX('2_FCEV Tech'!$A$6:$BS$107,MATCH($G13,'2_FCEV Tech'!$B$6:$B$107,0),MATCH(AK$6,'2_FCEV Tech'!$6:$6,0)) -> 383.663594 | AL13: =INDEX('2_FCEV Tech'!$A$6:$BS$107,MATCH($G13,'2_FCEV Tech'!$B$6:$B$107,0),MATCH(AL$6,'2_FCEV Tech'!$6:$6,0)) -> 5352.854707 | AM13: =INDEX('3_Payback'!$A$6:$CO$107,MATCH($G13,'3_Payback'!$B$6:$B$107,0),MATCH(AM$6,'3_Payback'!$6:$6,0)) -> 41412.57944 | AN13: =INDEX('3_Payback'!$A$6:$CO$107,MATCH($G13,'3_Payback'!$B$6:$B$107,0),MATCH(AN$6,'3_Payback'!$6:$6,0)) -> 40000 | AO13: =INDEX('3_Payback'!$A$6:$CO$107,MATCH($G13,'3_Payback'!$B$6:$B$107,0),MATCH(AO$6,'3_Payback'!$6:$6,0)) -> 1281.181271 | AP13: =INDEX('3_Payback'!$A$6:$CO$107,MATCH($G13,'3_Payback'!$B$6:$B$107,0),MATCH(AP$6,'3_Payback'!$6:$6,0)) -> 1.102560167
B14: Sleeper Cabs | C14: ='4_Adoption Rates'!T9 -> 0 | D14: ='4_Adoption Rates'!U9 -> 0.25 | G14: ='1_Veh Prop'!B14 -> 08T_Box_Cl6-7_R | H14: ='1_Veh Prop'!G14 -> Box Truck | I14: ='1_Veh Prop'!H14 -> 6-7 | J14: =INDEX('1_Veh Prop'!$A$6:$AJ$107,MATCH($G14,'1_Veh Prop'!$B$6:$B$107,0),MATCH(J$6,'1_Veh Prop'!$6:$6,0)) -> 11200 | K14: =INDEX('1_Veh Prop'!$A$6:$AJ$107,MATCH($G14,'1_Veh Prop'!$B$6:$B$107,0),MATCH(K$6,'1_Veh Prop'!$6:$6,0)) -> 0.004089059538 | L14: =INDEX('1_Veh Prop'!$A$6:$AJ$107,MATCH($G14,'1_Veh Prop'!$B$6:$B$107,0),MATCH(L$6,'1_Veh Prop'!$6:$6,0)) -> 53 | M14: =INDEX('1_Veh Prop'!$A$6:$AJ$107,MATCH($G14,'1_Veh Prop'!$B$6:$B$107,0),MATCH(M$6,'1_Veh Prop'!$6:$6,0)) -> 46 | N14: =INDEX(A1c_GEM_ID!$A$6:$AQ$107,MATCH($G14,A1c_GEM_ID!$B$6:$B$107,0),MATCH(N$6,A1c_GEM_ID!$6:$6,0)) -> MHD_R | O14: =INDEX('1_Veh Prop'!$A$6:$AJ$107,MATCH($G14,'1_Veh Prop'!$B$6:$B$107,0),MATCH(O$6,'1_Veh Prop'!$6:$6,0)) -> 35.20172089 | P14: =INDEX('1_Veh Prop'!$A$6:$AJ$107,MATCH($G14,'1_Veh Prop'!$B$6:$B$107,0),MATCH(P$6,'1_Veh Prop'!$6:$6,0)) -> 89.87900719 | Q14: =INDEX('4_Adoption Rates'!$A$7:$AL$108,MATCH($G14,'4_Adoption Rates'!$B$7:$B$108,0),MATCH(Q$6,'4_Adoption Rates'!$6:$6,0)) -> 0.13 | R14: =INDEX('4_Adoption Rates'!$A$7:$AL$108,MATCH($G14,'4_Adoption Rates'!$B$7:$B$108,0),MATCH(R$6,'4_Adoption Rates'!$6:$6,0)) -> 0.25 | T14: =INDEX('2_BEV Tech'!$A$6:$AR$107,MATCH($G14,'2_BEV Tech'!$B$6:$B$107,0),MATCH(T$6,'2_BEV Tech'!$6:$6,0)) -> 1.910563141 | U14: =INDEX('2_BEV Tech'!$A$6:$AR$107,MATCH($G14,'2_BEV Tech'!$B$6:$B$107,0),MATCH(U$6,'2_BEV Tech'!$6:$6,0)) -> 227 | V14: =INDEX('2_BEV Tech'!$A$6:$AR$107,MATCH($G14,'2_BEV Tech'!$B$6:$B$107,0),MATCH(V$6,'2_BEV Tech'!$6:$6,0)) -> 0.08442018503 | W14: =INDEX('2_BEV Tech'!$A$6:$AR$107,MATCH($G14,'2_BEV Tech'!$B$6:$B$107,0),MATCH(W$6,'2_BEV Tech'!$6:$6,0)) -> 33020.98616 | X14: =W14-INDEX('2_BEV Tech'!$A$6:$AR$107,MATCH($G14,'2_BEV Tech'!$B$6:$B$107,0),MATCH(X$6,'2_BEV Tech'!$6:$6,0)) -> 2997.359155 | Y14: =INDEX(A3_BEV_Charging!$A$6:$BS$107,MATCH($G14,A3_BEV_Charging!$B$6:$B$107,0),MATCH(Y$6,A3_BEV_Charging!$6:$6,0)) -> 15811.6195 | Z14: =INDEX('3_Payback'!$A$6:$CO$107,MATCH($G14,'3_Payback'!$B$6:$B$107,0),MATCH(Z$6,'3_Payback'!$6:$6,0)) -> 36080.33426 | AA14: =INDEX('3_Payback'!$A$6:$CO$107,MATCH($G14,'3_Payback'!$B$6:$B$107,0),MATCH(AA$6,'3_Payback'!$6:$6,0)) -> 20268.71476 | AB14: =INDEX('3_Payback'!$A$6:$CO$107,MATCH($G14,'3_Payback'!$B$6:$B$107,0),MATCH(AB$6,'3_Payback'!$6:$6,0)) -> 3481.740005 | AC14: =INDEX('3_Payback'!$A$6:$CO$107,MATCH($G14,'3_Payback'!$B$6:$B$107,0),MATCH(AC$6,'3_Payback'!$6:$6,0)) -> 4.541298166 | AE14: =INDEX('2_FCEV Tech'!$A$6:$BS$107,MATCH($G14,'2_FCEV Tech'!$B$6:$B$107,0),MATCH(AE$6,'2_FCEV Tech'!$6:$6,0)) -> 2.388240865 | AF14: =INDEX('2_FCEV Tech'!$A$6:$BS$107,MATCH($G14,'2_FCEV Tech'!$B$6:$B$107,0),MATCH(AF$6,'2_FCEV Tech'!$6:$6,0)) -> 147.9537869 | AG14: =INDEX('2_FCEV Tech'!$A$6:$BS$107,MATCH($G14,'2_FCEV Tech'!$B$6:$B$107,0),MATCH(AG$6,'2_FCEV Tech'!$6:$6,0)) -> 29.05612285 | AH14: =INDEX('2_FCEV Tech'!$A$6:$BS$107,MATCH($G14,'2_FCEV Tech'!$B$6:$B$107,0),MATCH(AH$6,'2_FCEV Tech'!$6:$6,0)) -> 7.549815695 | AI14: =INDEX('2_FCEV Tech'!$A$6:$BS$107,MATCH($G14,'2_FCEV Tech'!$B$6:$B$107,0),MATCH(AI$6,'2_FCEV Tech'!$6:$6,0)) -> 35870.63106 | AJ14: =INDEX('2_FCEV Tech'!$A$6:$BS$107,MATCH($G14,'2_FCEV Tech'!$B$6:$B$107,0),MATCH(AJ$6,'2_FCEV Tech'!$6:$6,0)) -> 3843.040505 | AK14: =INDEX('2_FCEV Tech'!$A$6:$BS$107,MATCH($G14,'2_FCEV Tech'!$B$6:$B$107,0),MATCH(AK$6,'2_FCEV Tech'!$6:$6,0)) -> 383.663594 | AL14: =INDEX('2_FCEV Tech'!$A$6:$BS$107,MATCH($G14,'2_FCEV Tech'!$B$6:$B$107,0),MATCH(AL$6,'2_FCEV Tech'!$6:$6,0)) -> 6048.323861 | AM14: =INDEX('3_Payback'!$A$6:$CO$107,MATCH($G14,'3_Payback'!$B$6:$B$107,0),MATCH(AM$6,'3_Payback'!$6:$6,0)) -> 42400.14563 | AN14: =INDEX('3_Payback'!$A$6:$CO$107,MATCH($G14,'3_Payback'!$B$6:$B$107,0),MATCH(AN$6,'3_Payback'!$6:$6,0)) -> 40000 | AO14: =INDEX('3_Payback'!$A$6:$CO$107,MATCH($G14,'3_Payback'!$B$6:$B$107,0),MATCH(AO$6,'3_Payback'!$6:$6,0)) -> 681.5420423 | AP14: =INDEX('3_Payback'!$A$6:$CO$107,MATCH($G14,'3_Payback'!$B$6:$B$107,0),MATCH(AP$6,'3_Payback'!$6:$6,0)) -> 3.521639878
B15: Day Cabs | C15: ='4_Adoption Rates'!T10 -> 0.09501377551 | D15: ='4_Adoption Rates'!U10 -> 0.3447457719 | G15: ='1_Veh Prop'!B15 -> 09T_Box_Cl8_U | H15: ='1_Veh Prop'!G15 -> Box Truck | I15: ='1_Veh Prop'!H15 -> 8 | J15: =INDEX('1_Veh Prop'!$A$6:$AJ$107,MATCH($G15,'1_Veh Prop'!$B$6:$B$107,0),MATCH(J$6,'1_Veh Prop'!$6:$6,0)) -> 15000 | K15: =INDEX('1_Veh Prop'!$A$6:$AJ$107,MATCH($G15,'1_Veh Prop'!$B$6:$B$107,0),MATCH(K$6,'1_Veh Prop'!$6:$6,0)) -> 0.00319004387 | L15: =INDEX('1_Veh Prop'!$A$6:$AJ$107,MATCH($G15,'1_Veh Prop'!$B$6:$B$107,0),MATCH(L$6,'1_Veh Prop'!$6:$6,0)) -> 52 | M15: =INDEX('1_Veh Prop'!$A$6:$AJ$107,MATCH($G15,'1_Veh Prop'!$B$6:$B$107,0),MATCH(M$6,'1_Veh Prop'!$6:$6,0)) -> 47 | N15: =INDEX(A1c_GEM_ID!$A$6:$AQ$107,MATCH($G15,A1c_GEM_ID!$B$6:$B$107,0),MATCH(N$6,A1c_GEM_ID!$6:$6,0)) -> HHD_U | O15: =INDEX('1_Veh Prop'!$A$6:$AJ$107,MATCH($G15,'1_Veh Prop'!$B$6:$B$107,0),MATCH(O$6,'1_Veh Prop'!$6:$6,0)) -> 58.31166 | P15: =INDEX('1_Veh Prop'!$A$6:$AJ$107,MATCH($G15,'1_Veh Prop'!$B$6:$B$107,0),MATCH(P$6,'1_Veh Prop'!$6:$6,0)) -> 89.87900719 | Q15: =INDEX('4_Adoption Rates'!$A$7:$AL$108,MATCH($G15,'4_Adoption Rates'!$B$7:$B$108,0),MATCH(Q$6,'4_Adoption Rates'!$6:$6,0)) -> 0.18 | R15: =INDEX('4_Adoption Rates'!$A$7:$AL$108,MATCH($G15,'4_Adoption Rates'!$B$7:$B$108,0),MATCH(R$6,'4_Adoption Rates'!$6:$6,0)) -> 0.35 | T15: =INDEX('2_BEV Tech'!$A$6:$AR$107,MATCH($G15,'2_BEV Tech'!$B$6:$B$107,0),MATCH(T$6,'2_BEV Tech'!$6:$6,0)) -> 2.324539777 | U15: =INDEX('2_BEV Tech'!$A$6:$AR$107,MATCH($G15,'2_BEV Tech'!$B$6:$B$107,0),MATCH(U$6,'2_BEV Tech'!$6:$6,0)) -> 276 | V15: =INDEX('2_BEV Tech'!$A$6:$AR$107,MATCH($G15,'2_BEV Tech'!$B$6:$B$107,0),MATCH(V$6,'2_BEV Tech'!$6:$6,0)) -> 0.03911489353 | W15: =INDEX('2_BEV Tech'!$A$6:$AR$107,MATCH($G15,'2_BEV Tech'!$B$6:$B$107,0),MATCH(W$6,'2_BEV Tech'!$6:$6,0)) -> 40148.86423 | X15: =W15-INDEX('2_BEV Tech'!$A$6:$AR$107,MATCH($G15,'2_BEV Tech'!$B$6:$B$107,0),MATCH(X$6,'2_BEV Tech'!$6:$6,0)) -> 3644.366197 | Y15: =INDEX(A3_BEV_Charging!$A$6:$BS$107,MATCH($G15,A3_BEV_Charging!$B$6:$B$107,0),MATCH(Y$6,A3_BEV_Charging!$6:$6,0)) -> 31623.239 | Z15: =INDEX('3_Payback'!$A$6:$CO$107,MATCH($G15,'3_Payback'!$B$6:$B$107,0),MATCH(Z$6,'3_Payback'!$6:$6,0)) -> 41995.10214 | AA15: =INDEX('3_Payback'!$A$6:$CO$107,MATCH($G15,'3_Payback'!$B$6:$B$107,0),MATCH(AA$6,'3_Payback'!$6:$6,0)) -> 10371.86315 | AB15: =INDEX('3_Payback'!$A$6:$CO$107,MATCH($G15,'3_Payback'!$B$6:$B$107,0),MATCH(AB$6,'3_Payback'!$6:$6,0)) -> 8669.002367 | AC15: =INDEX('3_Payback'!$A$6:$CO$107,MATCH($G15,'3_Payback'!$B$6:$B$107,0),MATCH(AC$6,'3_Payback'!$6:$6,0)) -> 3.647852158 | AE15: =INDEX('2_FCEV Tech'!$A$6:$BS$107,MATCH($G15,'2_FCEV Tech'!$B$6:$B$107,0),MATCH(AE$6,'2_FCEV Tech'!$6:$6,0)) -> 2.905833563 | AF15: =INDEX('2_FCEV Tech'!$A$6:$BS$107,MATCH($G15,'2_FCEV Tech'!$B$6:$B$107,0),MATCH(AF$6,'2_FCEV Tech'!$6:$6,0)) -> 199.5012756 | AG15: =INDEX('2_FCEV Tech'!$A$6:$BS$107,MATCH($G15,'2_FCEV Tech'!$B$6:$B$107,0),MATCH(AG$6,'2_FCEV Tech'!$6:$6,0)) -> 45.6413407 | AH15: =INDEX('2_FCEV Tech'!$A$6:$BS$107,MATCH($G15,'2_FCEV Tech'!$B$6:$B$107,0),MATCH(AH$6,'2_FCEV Tech'!$6:$6,0)) -> 9.203221311 | AI15: =INDEX('2_FCEV Tech'!$A$6:$BS$107,MATCH($G15,'2_FCEV Tech'!$B$6:$B$107,0),MATCH(AI$6,'2_FCEV Tech'!$6:$6,0)) -> 48368.05332 | AJ15: =INDEX('2_FCEV Tech'!$A$6:$BS$107,MATCH($G15,'2_FCEV Tech'!$B$6:$B$107,0),MATCH(AJ$6,'2_FCEV Tech'!$6:$6,0)) -> 6036.645767 | AK15: =INDEX('2_FCEV Tech'!$A$6:$BS$107,MATCH($G15,'2_FCEV Tech'!$B$6:$B$107,0),MATCH(AK$6,'2_FCEV Tech'!$6:$6,0)) -> 602.6585479 | AL15: =INDEX('2_FCEV Tech'!$A$6:$BS$107,MATCH($G15,'2_FCEV Tech'!$B$6:$B$107,0),MATCH(AL$6,'2_FCEV Tech'!$6:$6,0)) -> 7372.903565 | AM15: =INDEX('3_Payback'!$A$6:$CO$107,MATCH($G15,'3_Payback'!$B$6:$B$107,0),MATCH(AM$6,'3_Payback'!$6:$6,0)) -> 45901.34772 | AN15: =INDEX('3_Payback'!$A$6:$CO$107,MATCH($G15,'3_Payback'!$B$6:$B$107,0),MATCH(AN$6,'3_Payback'!$6:$6,0)) -> 40000 | AO15: =INDEX('3_Payback'!$A$6:$CO$107,MATCH($G15,'3_Payback'!$B$6:$B$107,0),MATCH(AO$6,'3_Payback'!$6:$6,0)) -> 3109.197544 | AP15: =INDEX('3_Payback'!$A$6:$CO$107,MATCH($G15,'3_Payback'!$B$6:$B$107,0),MATCH(AP$6,'3_Payback'!$6:$6,0)) -> 1.898029199
... 18 more rows

Sheet Inputs
A1: Return to Table of Contents | D1: Default | F1: =Scenario_yr -> 2027 | G1: 2027 | H1: =G1+1 -> 2028 | I1: =H1+1 -> 2029 | J1: =I1+1 -> 2030 | K1: =J1+1 -> 2031 | L1: =K1+1 -> 2032 | M1: HD TRUCS uses input values in from purple cells
A3: Property Name | B3: Property ID | C3: Unit | D3: Tech Penetration ID | E3: Property and Tech Penetration Scenario ID | F3: Property Value | G3: =CONCATENATE("YR",G1) -> YR2027 | H3: YR2028 | I3: YR2029 | J3: YR2030 | K3: YR2031 | L3: YR2032 | M3: Source | N3: Comments
A4: Battery Cost | B4: Batt_Cost | C4: 2021$/kWh | D4: 1 | E4: =CONCATENATE(B4,"_",D4) -> Batt_Cost_1 | F4: =VLOOKUP($D$1,D5:F5,3,FALSE) -> 145.4668994 | M4: =VLOOKUP($D$1,D5:M5,10,FALSE) -> Adapted from ICCT
A5: Battery Cost | B5: Batt_Cost | C5: 2021$/kWh | D5: Default | E5: Batt_Cost_Default | F5: =INDEX(G5:L5,MATCH(Scenario_yr,$G$1:$L$1,0)) -> 145.4668994 | G5: =138*Adj_Factor -> 145.4668994 | H5: =$G$5*H95 -> 133.9750143 | I5: =$G$5*I95 -> 125.9743349 | J5: =$G$5*J95 -> 119.8647251 | K5: =$G$5*K95 -> 115.0643174 | L5: =$G$5*L95 -> 111.1367111 | M5: Adapted from ICCT | N5: Average of values in meta-study, linearly interpolated for MY2027, and then calculated using learning rates for MY2028-2032
A6: Battery efficiency | B6: Batt_Eff | D6: 1 | E6: Batt_Eff_1 | F6: =VLOOKUP($D$1,D7:F9,3,FALSE) -> 0.95 | M6: =VLOOKUP($D$1,D7:M9,10,FALSE) -> MOVES
A7: Battery efficiency | B7: Batt_Eff | D7: High | E7: Batt_Eff_High | F7: =INDEX(G7:L7,MATCH(Scenario_yr,$G$1:$L$1,0)) -> 0.95 | G7: 0.95 | H7: 0.95 | I7: 0.95 | J7: 0.95 | K7: 0.95 | L7: 0.95 | M7: MOVES
A8: Battery efficiency | B8: Batt_Eff | D8: Low | E8: Batt_Eff_Low | F8: =INDEX(G8:L8,MATCH(Scenario_yr,$G$1:$L$1,0)) -> 0.95 | G8: 0.95 | H8: 0.95 | I8: 0.95 | J8: 0.95 | K8: 0.95 | L8: 0.95 | M8: MOVES
A9: Battery efficiency | B9: Batt_Eff | D9: Default | E9: Batt_Eff_Default | F9: =AVERAGE(F7:F8) -> 0.95 | M9: MOVES
A10: Battery Deterioration Factor | B10: Batt_Det | D10: 1 | E10: Batt_Det_1 | F10: =VLOOKUP($D$1,D11:F11,3,FALSE) -> 0.2 | M10: HD Phase 3 Default Assumption
A11: Battery Deterioration Factor | B11: Batt_Det | D11: Default | E11: Batt_Det_Default | F11: 0.2 | M11: HD Phase 3 Default Assumption
A12: On Board Charging efficiency | B12: On_Charge_Eff | D12: 1 | E12: On_Charge_Eff_1 | F12: =VLOOKUP($D$1,D13:F15,3,FALSE) -> 0.975 | M12: =VLOOKUP($D$1,D13:M15,10,FALSE) -> Brooker et al
A13: On Board Charging efficiency | B13: On_Charge_Eff | D13: High | E13: On_Charge_Eff_High | F13: =INDEX(G13:L13,MATCH(Scenario_yr,$G$1:$L$1,0)) -> 0.98 | G13: 0.98 | H13: 0.98 | I13: 0.98 | J13: 0.985 | K13: 0.985 | L13: 0.985 | M13: Brooker et al
A14: On Board Charging efficiency | B14: On_Charge_Eff | D14: Low | E14: On_Charge_Eff_Low | F14: =INDEX(G14:L14,MATCH(Scenario_yr,$G$1:$L$1,0)) -> 0.97 | G14: 0.97 | H14: 0.97 | I14: 0.97 | J14: 0.97 | K14: 0.97 | L14: 0.97 | M14: Brooker et al
A15: On Board Charging efficiency | B15: On_Charge_Eff | D15: Default | E15: On_Charge_Eff_Default | F15: =INDEX(G15:L15,MATCH(Scenario_yr,$G$1:$L$1,0)) -> 0.975 | G15: =AVERAGE(G13:G14) -> 0.975 | H15: 0.975 | I15: 0.975 | J15: 0.9775 | K15: 0.9775 | L15: 0.9775 | M15: Brooker et al
... 18 more rows

Sheet A_Inputs Parameters (hidden)
A1: Return to Table of Contents
A2: Performance baseline (peak power calc) | B2: Class | C2: 0-30 (s) | D2: 0-60 (s) | E2: =CONCATENATE("MPH Cruise @ ", Grade*100," %") -> MPH Cruise @ 6 % | I2: Scenario year
B3: 2b-3 | C3: =MPH30_2b3_C -> 7 | D3: =MPH60_2b3_C -> 25 | E3: =cruise_grade_2b3_C -> 65 | I3: 2027
B4: 4-5 | C4: =MPH30_4_5_C -> 8 | D4: =MPH60_4_5_C -> 25 | E4: =cruise_grade_4_5_C -> 55 | I4: 2028
B5: 6-7 | C5: =MPH30_6_7_C -> 16 | D5: =MPH60_6_7_C -> 50 | E5: =cruise_grade_6_7_C -> 45 | I5: 2029
B6: 7 | C6: =MPH30_7_C -> 18 | D6: =MPH60_7_C -> 60 | E6: =cruise_grade_7_C -> 35 | I6: 2030
B7: 8 | C7: =MPH30_8_C -> 20 | D7: =MPH60_8_C -> 100 | E7: =cruise_grade_8_C -> 25 | I7: 2031
B8: Grade % | C8: 0.06 | I8: 2032
B10: Cold Temp Eff | C10: No Temp Eff | D10: Hot Temp Eff
A11: Temperature Weighting Factors | B11: 0.368 | C11: 0.38 | D11: 0.252
A13: Input Scenarios
A14: High
A15: Low
A16: Default

Sheet 1_Veh Prop
A1: =Scenario_yr -> 2027 | B1: Return to Table of Contents | AA1: Weighted Regen Fraction | AB1: Baseline Energy Use | AQ1: =VLOOKUP(Scenario,'A_Inputs Parameters'!$A$11:$D$11,2,FALSE) ->  | AR1: =VLOOKUP(Scenario,'A_Inputs Parameters'!$A$11:$D$11,3,FALSE) ->  | AS1: =VLOOKUP(Scenario,'A_Inputs Parameters'!$A$11:$D$11,4,FALSE) -> 
C2: Hide | L2: Hide | AB2: Remove Mid | AC2: Remove Mid | AD2: Remove Mid | AE2: Remove Mid, 75 | AF2: Remove Mid, 20 | AG2: Remove Mid, 95 | AH2: Remove Mid, 20 | AI2: Remove Mid, 75 | AJ2: Remove Mid, 95 | AK2: Delete | AL2: Delete | AM2: Delete | AN2: Delete | AO2: Delete | AP2: Delete | AQ2: Delete | AR2: Delete | AS2: Delete
B3: Vehicle ID | C3: Vehicle ID2 | D3: MOVES source TypeID | E3: MOVES regClassID | F3: GEM Energy ID | G3: Vehicle Application | H3: Class | I3: Example Vehicle | J3: Typical Duty Cycle | K3: GEM Weight [kg] | L3: GEM Weight [lb] | M3: Rotational Mass | N3: Coefficient of Drag Area | O3: Tire Rolling Resistance | P3: Max 0-30 mph Acc Time | Q3: Max 0-60 mph Acc Time | R3: Cruise Speed @ Grade | S3: Payload Weight | T3: Sales Estimates | U3: Percent Total HD Sales | V3: Average Daily Operation | W3: Daily Operational VMT | X3: 10 yr Average Daily Operational VMT | Y3: Daily Sizing VMT | Z3: ZEV Energy Demand @ Axle | AA3: Regenerative Braking Available Energy @ Axle | AB3: PTO Energy Demand | AC3: Battery Conditioning @ Cold Ambient Temp | AD3: Battery Conditioning @ Hot Ambient Temp | AE3: ZEV Baseline Energy | AF3: BEV HVAC Heating Load | AG3: ZEV HVAC Cooling Load | AH3: BEV Total Energy per day @ Cold Ambient Temp | AI3: ZEV Total Energy Without Temp Effects | AJ3: ZEV Total Energy per day @ Hot Ambient Temp
K5: kg | M5: kg | N5: m^2 | O5: kg/ton | P5: sec | Q5: sec | R5: MPH | S5: lbs | T5: unit | U5: % | V5: hours | W5: miles | X5: miles | Y5: miles | Z5: kWh/mi | AA5: kWh/mi | AB5: kWh/mi | AC5: kWh/mi | AD5: kWh/mi | AE5: kWh/mi | AF5: kWh/mi | AG5: kWh/mi | AH5: kWh/day | AI5: kWh/day | AJ5: kWh/day
A6: # | B6: Vehicle ID | C6: Vehicle ID2 | D6: MOVES source TypeID | E6: MOVES regClassID | F6: GEM Energy ID | G6: Segment | H6: Class | I6: Example Vehicle | J6: Duty Cycle | K6: GEM Weight [kg] | L6: GEM Weight [lb] | M6: Mrot [kg] | N6: GEM CdA | O6: GEM Crr (kg/ton) | P6: 0-30 | Q6: 0-60 | R6: Cruise @ Grade | S6: Phase II Payload Weight (lbs) | T6: Sales (unit) | U6: Sales % | V6: Operation Hours | W6: =CONCATENATE("Operation VMT (",Op_Range_Percentile*100,"%)") -> Operation VMT (50%) | X6: =A1a_VMTbyYr!I6 -> 10 yr Average Operational VMT | Y6: =CONCATENATE("Absolute Sizing VMT (",Sizing_Range_Percentile*100,"%)") -> Absolute Sizing VMT (90%) | Z6: Energy Use per Mile - GEM 2027 (kWh/mi) | AA6: Regen Use per Mile (kWh/mi) | AB6: =Tech_Pen1&" PTO Load Only (kWh/mi)" -> Default PTO Load Only (kWh/mi) | AC6: =Tech_Pen1&" Cold Battery Conditioning (kWh/mi)" -> Default Cold Battery Conditioning (kWh/mi) | AD6: =Tech_Pen1&" Hot Battery Conditioning (kWh/mi)" -> Default Hot Battery Conditioning (kWh/mi) | AE6: =Tech_Pen1&" Baseline Energy 75 F (kWh/mi)" -> Default Baseline Energy 75 F (kWh/mi) | AF6: =Tech_Pen1&" HVAC Load Only @ 20 F (kWh/mi)" -> Default HVAC Load Only @ 20 F (kWh/mi) | AG6: =Tech_Pen1&" HVAC Load Only @ 95 F (kWh/mi)" -> Default HVAC Load Only @ 95 F (kWh/mi) | AH6: =Tech_Pen1&" Energy per Day 20 F HVAC (kWh/day)" -> Default Energy per Day 20 F HVAC (kWh/day) | AI6: =Tech_Pen1&" Energy per Day 75 F (kWh/day)" -> Default Energy per Day 75 F (kWh/day) | AJ6: =Tech_Pen1&" Energy per Day 95 F HVAC (kWh/day)" -> Default Energy per Day 95 F HVAC (kWh/day) | AK6: =Tech_Pen2&" PTO Load Only (kWh/mi)" -> PTO Load Only (kWh/mi) | AL6: =Tech_Pen2&" Cold Battery Conditioning (kWh/mi)" -> Cold Battery Conditioning (kWh/mi) | AM6: =Tech_Pen2&" Hot Battery Conditioning (kWh/mi)" -> Hot Battery Conditioning (kWh/mi) | AN6: =Tech_Pen2&" Baseline Energy 75 F (kWh/mi)" -> Baseline Energy 75 F (kWh/mi) | AO6: =Tech_Pen2&" HVAC Load Only @ 20 F (kWh/mi)" -> HVAC Load Only @ 20 F (kWh/mi) | AP6: =Tech_Pen2&" HVAC Load Only @ 95 F (kWh/mi)" -> HVAC Load Only @ 95 F (kWh/mi) | AQ6: =Tech_Pen2&" Energy per Day 20 F HVAC (kWh/day)" -> Energy per Day 20 F HVAC (kWh/day) | AR6: =Tech_Pen2&" Energy per Day 75 F (kWh/day)" -> Energy per Day 75 F (kWh/day) | AS6: =Tech_Pen2&" Energy per Day 95 F HVAC (kWh/day)" -> Energy per Day 95 F HVAC (kWh/day)
A7: 1 | B7: =CONCATENATE(TEXT(A7,"00"),VLOOKUP(G7,'A98_Segment Match Up'!$A$3:$B$24,2,FALSE),"_Cl",H7,"_",VLOOKUP(J7,'A98_Segment Match Up'!$A$40:$B$45,2,FALSE)) -> 01V_Amb_Cl4-5_MP | C7: =CONCATENATE(VLOOKUP(G7,'A98_Segment Match Up'!$A$3:$B$23,2,FALSE),"_Cl",H7) -> V_Amb_Cl4-5 | D7: 52 | E7: 42 | F7: =INDEX(A1c_GEM_ID!$B$6:$AX$107,MATCH($B7,A1c_GEM_ID!$B$6:$B$107,0),MATCH(F$6,A1c_GEM_ID!$6:$6,0)-1) -> LHD_M | G7: Ambulance | H7: 4-5 | I7: Envirotech Drive Systems C Series Cutaway | J7: Multi-Purpose | K7: 7257 | L7: =CONVERT(K7*1000,"g","lbm") -> 15998.94637 | M7: 340 | N7: 3.4 | O7: 7.7 | P7: =VLOOKUP(H7,'A_Inputs Parameters'!$B$3:$D$7,2,FALSE) -> 8 | Q7: =VLOOKUP($H7,'A_Inputs Parameters'!$B$3:$D$7,3,FALSE) -> 25 | R7: =VLOOKUP(H7,'A_Inputs Parameters'!$B$3:$E$7,4,FALSE) -> 55 | S7: 5700 | T7: =INDEX(A1b_Sales_ID!$A$6:$V$107,MATCH($A7,A1b_Sales_ID!$A$6:$A$107,0),MATCH(T$6,A1b_Sales_ID!$6:$6,0)) -> 7653.902811 | U7: =INDEX(A1b_Sales_ID!$A$6:$V$107,MATCH($A7,A1b_Sales_ID!$A$6:$A$107,0),MATCH(U$6,A1b_Sales_ID!$6:$6,0)) -> 0.009034307068 | V7: =Op_hrs -> 8 | W7: =INDEX(A1a_VMT_ID!$A$6:$AB$107,MATCH($A7,A1a_VMT_ID!$A$6:$A$107,0),MATCH(W$6,A1a_VMT_ID!$6:$6,0)) -> 33.92166542 | X7: =INDEX(A1a_VMTbyYr!$C$6:$S$107,MATCH($B7,A1a_VMTbyYr!$C$6:$C$107,0),MATCH(X$6,A1a_VMTbyYr!$6:$6,0)-2) -> 29.97013062 | Y7: =INDEX(A1a_VMT_ID!$A$6:$AB$107,MATCH($A7,A1a_VMT_ID!$A$6:$A$107,0),MATCH(Y$6,A1a_VMT_ID!$6:$6,0)) -> 50.35810678 | Z7: =INDEX(A1c_GEM_ID!$A$7:$H$107,MATCH(B7,A1c_GEM_ID!$B$7:$B$107,0),MATCH(Z$6,A1c_GEM_ID!$6:$6,0)) -> 0.8601323948 | AA7: =INDEX(A1c_GEM_ID!$A$7:$P$107,MATCH(B7,A1c_GEM_ID!$B$7:$B$107,0),MATCH(AA$1,A1c_GEM_ID!$A$6:$S$6,0))*-1*Z7 -> -0.08453897256 | AB7: =INDEX('A2_Aux Load'!$B$6:$Z$107,MATCH($B7,'A2_Aux Load'!$B$6:$B$107,0),MATCH(AB$6,'A2_Aux Load'!$B$6:$Z$6,0)) -> 0 | AC7: =INDEX('A2_Aux Load'!$B$6:$Z$107,MATCH($B7,'A2_Aux Load'!$B$6:$B$107,0),MATCH(AC$6,'A2_Aux Load'!$B$6:$Z$6,0)) -> 0.01605264206 | AD7: =INDEX('A2_Aux Load'!$B$6:$Z$107,MATCH($B7,'A2_Aux Load'!$B$6:$B$107,0),MATCH(AD$6,'A2_Aux Load'!$B$6:$Z$6,0)) -> 0.03612866038 | AE7: =Z7+AB7+AA7 -> 0.7755934223 | AF7: =INDEX('A2_Aux Load'!$B$6:$Z$107,MATCH($B7,'A2_Aux Load'!$B$6:$B$107,0),MATCH(AF$6,'A2_Aux Load'!$B$6:$Z$6,0)) -> 0.4702873525 | AG7: =INDEX('A2_Aux Load'!$B$6:$Z$107,MATCH($B7,'A2_Aux Load'!$B$6:$B$107,0),MATCH(AG$6,'A2_Aux Load'!$B$6:$Z$6,0)) -> 0.3090504684 | AH7: =$Y7*(AE7+AC7+AF7) -> 63.54857776 | AI7: =$Y7*AE7 -> 39.05741638 | AJ7: =$Y7*(AE7+AG7) -> 54.62061287 | AK7: =INDEX('A2_Aux Load'!$B$6:$Z$107,MATCH($B7,'A2_Aux Load'!$B$6:$B$107,0),MATCH(AK$6,'A2_Aux Load'!$B$6:$Z$6,0)) -> 0 | AL7: =INDEX('A2_Aux Load'!$B$6:$Z$107,MATCH($B7,'A2_Aux Load'!$B$6:$B$107,0),MATCH(AL$6,'A2_Aux Load'!$B$6:$Z$6,0)) -> 0.01605264206 | AM7: =INDEX('A2_Aux Load'!$B$6:$Z$107,MATCH($B7,'A2_Aux Load'!$B$6:$B$107,0),MATCH(AM$6,'A2_Aux Load'!$B$6:$Z$6,0)) -> 0.03612866038 | AN7: =Z7+AA7+AK7 -> 0.7755934223 | AO7: =INDEX('A2_Aux Load'!$B$6:$Z$107,MATCH($B7,'A2_Aux Load'!$B$6:$B$107,0),MATCH(AO$6,'A2_Aux Load'!$B$6:$Z$6,0)) -> 0.4702873525 | AP7: =INDEX('A2_Aux Load'!$B$6:$Z$107,MATCH($B7,'A2_Aux Load'!$B$6:$B$107,0),MATCH(AP$6,'A2_Aux Load'!$B$6:$Z$6,0)) -> 0.3090504684 | AQ7: =$Y7*(AN7+AL7+AO7) -> 63.54857776 | AR7: =$Y7*AN7 -> 39.05741638 | AS7: =$Y7*(AN7+AP7) -> 54.62061287
A8: =A7+1 -> 2 | B8: =CONCATENATE(TEXT(A8,"00"),VLOOKUP(G8,'A98_Segment Match Up'!$A$3:$B$24,2,FALSE),"_Cl",H8,"_",VLOOKUP(J8,'A98_Segment Match Up'!$A$40:$B$45,2,FALSE)) -> 02V_Amb_Cl2b-3_MP | C8: =CONCATENATE(VLOOKUP(G8,'A98_Segment Match Up'!$A$3:$B$23,2,FALSE),"_Cl",H8) -> V_Amb_Cl2b-3 | D8: 52 | E8: 41 | F8: =INDEX(A1c_GEM_ID!$B$6:$AX$107,MATCH($B8,A1c_GEM_ID!$B$6:$B$107,0),MATCH(F$6,A1c_GEM_ID!$6:$6,0)-1) -> LHD_M | G8: Ambulance | H8: 2b-3 | J8: Multi-Purpose | K8: 7257 | L8: =CONVERT(K8*1000,"g","lbm") -> 15998.94637 | M8: 340 | N8: 3.4 | O8: 7.7 | P8: =VLOOKUP(H8,'A_Inputs Parameters'!$B$3:$D$7,2,FALSE) -> 7 | Q8: =VLOOKUP($H8,'A_Inputs Parameters'!$B$3:$D$7,3,FALSE) -> 25 | R8: =VLOOKUP(H8,'A_Inputs Parameters'!$B$3:$E$7,4,FALSE) -> 65 | S8: 5700 | T8: =INDEX(A1b_Sales_ID!$A$6:$V$107,MATCH($A8,A1b_Sales_ID!$A$6:$A$107,0),MATCH(T$6,A1b_Sales_ID!$6:$6,0)) -> 5234.414033 | U8: =INDEX(A1b_Sales_ID!$A$6:$V$107,MATCH($A8,A1b_Sales_ID!$A$6:$A$107,0),MATCH(U$6,A1b_Sales_ID!$6:$6,0)) -> 0.006178456254 | V8: 8 | W8: =INDEX(A1a_VMT_ID!$A$6:$AB$107,MATCH($A8,A1a_VMT_ID!$A$6:$A$107,0),MATCH(W$6,A1a_VMT_ID!$6:$6,0)) -> 49.4102484 | X8: =INDEX(A1a_VMTbyYr!$C$6:$S$107,MATCH($B8,A1a_VMTbyYr!$C$6:$C$107,0),MATCH(X$6,A1a_VMTbyYr!$6:$6,0)-2) -> 43.65444857 | Y8: =INDEX(A1a_VMT_ID!$A$6:$AB$107,MATCH($A8,A1a_VMT_ID!$A$6:$A$107,0),MATCH(Y$6,A1a_VMT_ID!$6:$6,0)) -> 63.97377355 | Z8: =INDEX(A1c_GEM_ID!$A$7:$H$107,MATCH(B8,A1c_GEM_ID!$B$7:$B$107,0),MATCH(Z$6,A1c_GEM_ID!$6:$6,0)) -> 0.8601323948 | AA8: =INDEX(A1c_GEM_ID!$A$7:$P$107,MATCH(B8,A1c_GEM_ID!$B$7:$B$107,0),MATCH(AA$1,A1c_GEM_ID!$A$6:$S$6,0))*-1*Z8 -> -0.08453897256 | AB8: =INDEX('A2_Aux Load'!$B$6:$Z$107,MATCH($B8,'A2_Aux Load'!$B$6:$B$107,0),MATCH(AB$6,'A2_Aux Load'!$B$6:$Z$6,0)) -> 0 | AC8: =INDEX('A2_Aux Load'!$B$6:$Z$107,MATCH($B8,'A2_Aux Load'!$B$6:$B$107,0),MATCH(AC$6,'A2_Aux Load'!$B$6:$Z$6,0)) -> 0.01605264206 | AD8: =INDEX('A2_Aux Load'!$B$6:$Z$107,MATCH($B8,'A2_Aux Load'!$B$6:$B$107,0),MATCH(AD$6,'A2_Aux Load'!$B$6:$Z$6,0)) -> 0.03612866038 | AE8: =Z8+AB8+AA8 -> 0.7755934223 | AF8: =INDEX('A2_Aux Load'!$B$6:$Z$107,MATCH($B8,'A2_Aux Load'!$B$6:$B$107,0),MATCH(AF$6,'A2_Aux Load'!$B$6:$Z$6,0)) -> 0.224586113 | AG8: =INDEX('A2_Aux Load'!$B$6:$Z$107,MATCH($B8,'A2_Aux Load'!$B$6:$B$107,0),MATCH(AG$6,'A2_Aux Load'!$B$6:$Z$6,0)) -> 0.147587306 | AH8: 65.01220719 | AI8: 49.61763797 | AJ8: =$Y8*(AE8+AG8) -> 59.05935486 | AK8: =INDEX('A2_Aux Load'!$B$6:$Z$107,MATCH($B8,'A2_Aux Load'!$B$6:$B$107,0),MATCH(AK$6,'A2_Aux Load'!$B$6:$Z$6,0)) -> 0 | AL8: =INDEX('A2_Aux Load'!$B$6:$Z$107,MATCH($B8,'A2_Aux Load'!$B$6:$B$107,0),MATCH(AL$6,'A2_Aux Load'!$B$6:$Z$6,0)) -> 0.01605264206 | AM8: =INDEX('A2_Aux Load'!$B$6:$Z$107,MATCH($B8,'A2_Aux Load'!$B$6:$B$107,0),MATCH(AM$6,'A2_Aux Load'!$B$6:$Z$6,0)) -> 0.03612866038 | AN8: 0.7755934223 | AO8: =INDEX('A2_Aux Load'!$B$6:$Z$107,MATCH($B8,'A2_Aux Load'!$B$6:$B$107,0),MATCH(AO$6,'A2_Aux Load'!$B$6:$Z$6,0)) -> 0.224586113 | AP8: =INDEX('A2_Aux Load'!$B$6:$Z$107,MATCH($B8,'A2_Aux Load'!$B$6:$B$107,0),MATCH(AP$6,'A2_Aux Load'!$B$6:$Z$6,0)) -> 0.147587306 | AQ8: 65.01220719 | AR8: 49.61763797 | AS8: 59.05935486
A9: 3 | B9: =CONCATENATE(TEXT(A9,"00"),VLOOKUP(G9,'A98_Segment Match Up'!$A$3:$B$24,2,FALSE),"_Cl",H9,"_",VLOOKUP(J9,'A98_Segment Match Up'!$A$40:$B$45,2,FALSE)) -> 03V_Amb_Cl4-5_U | C9: =CONCATENATE(VLOOKUP(G9,'A98_Segment Match Up'!$A$3:$B$24,2,FALSE),"_Cl",H9) -> V_Amb_Cl4-5 | D9: 52 | E9: 42 | F9: =INDEX(A1c_GEM_ID!$B$6:$AX$107,MATCH($B9,A1c_GEM_ID!$B$6:$B$107,0),MATCH(F$6,A1c_GEM_ID!$6:$6,0)-1) -> LHD_U | G9: Ambulance | H9: 4-5 | I9: Envirotech Drive Systems C Series Cutaway | J9: Urban | K9: 7257 | L9: 15998.94637 | M9: 340 | N9: 3.4 | O9: 7.7 | P9: =VLOOKUP(H9,'A_Inputs Parameters'!$B$3:$D$7,2,FALSE) -> 8 | Q9: =VLOOKUP($H9,'A_Inputs Parameters'!$B$3:$D$7,3,FALSE) -> 25 | R9: =VLOOKUP(H9,'A_Inputs Parameters'!$B$3:$E$7,4,FALSE) -> 55 | S9: 5700 | T9: =INDEX(A1b_Sales_ID!$A$6:$V$107,MATCH($A9,A1b_Sales_ID!$A$6:$A$107,0),MATCH(T$6,A1b_Sales_ID!$6:$6,0)) -> 7653.902811 | U9: =INDEX(A1b_Sales_ID!$A$6:$V$107,MATCH($A9,A1b_Sales_ID!$A$6:$A$107,0),MATCH(U$6,A1b_Sales_ID!$6:$6,0)) -> 0.009034307068 | V9: 8 | W9: =INDEX(A1a_VMT_ID!$A$6:$AB$107,MATCH($A9,A1a_VMT_ID!$A$6:$A$107,0),MATCH(W$6,A1a_VMT_ID!$6:$6,0)) -> 39.07758046 | X9: =INDEX(A1a_VMTbyYr!$C$6:$S$107,MATCH($B9,A1a_VMTbyYr!$C$6:$C$107,0),MATCH(X$6,A1a_VMTbyYr!$6:$6,0)-2) -> 34.52543312 | Y9: =INDEX(A1a_VMT_ID!$A$6:$AB$107,MATCH($A9,A1a_VMT_ID!$A$6:$A$107,0),MATCH(Y$6,A1a_VMT_ID!$6:$6,0)) -> 58.04734232 | Z9: =INDEX(A1c_GEM_ID!$A$7:$H$107,MATCH(B9,A1c_GEM_ID!$B$7:$B$107,0),MATCH(Z$6,A1c_GEM_ID!$6:$6,0)) -> 0.8179302201 | AA9: =INDEX(A1c_GEM_ID!$A$7:$P$107,MATCH(B9,A1c_GEM_ID!$B$7:$B$107,0),MATCH(AA$1,A1c_GEM_ID!$A$6:$S$6,0))*-1*Z9 -> -0.1346869335 | AB9: =INDEX('A2_Aux Load'!$B$6:$Z$107,MATCH($B9,'A2_Aux Load'!$B$6:$B$107,0),MATCH(AB$6,'A2_Aux Load'!$B$6:$Z$6,0)) -> 0 | AC9: =INDEX('A2_Aux Load'!$B$6:$Z$107,MATCH($B9,'A2_Aux Load'!$B$6:$B$107,0),MATCH(AC$6,'A2_Aux Load'!$B$6:$Z$6,0)) -> 0.0152650233 | AD9: =INDEX('A2_Aux Load'!$B$6:$Z$107,MATCH($B9,'A2_Aux Load'!$B$6:$B$107,0),MATCH(AD$6,'A2_Aux Load'!$B$6:$Z$6,0)) -> 0.03435601695 | AE9: 0.6832432866 | AF9: =INDEX('A2_Aux Load'!$B$6:$Z$107,MATCH($B9,'A2_Aux Load'!$B$6:$B$107,0),MATCH(AF$6,'A2_Aux Load'!$B$6:$Z$6,0)) -> 0.4079907842 | AG9: =INDEX('A2_Aux Load'!$B$6:$Z$107,MATCH($B9,'A2_Aux Load'!$B$6:$B$107,0),MATCH(AG$6,'A2_Aux Load'!$B$6:$Z$6,0)) -> 0.2681121282 | AH9: 64.22933169 | AI9: 39.66045695 | AJ9: =$Y9*(AE9+AG9) -> 55.22365343 | AK9: =INDEX('A2_Aux Load'!$B$6:$Z$107,MATCH($B9,'A2_Aux Load'!$B$6:$B$107,0),MATCH(AK$6,'A2_Aux Load'!$B$6:$Z$6,0)) -> 0 | AL9: =INDEX('A2_Aux Load'!$B$6:$Z$107,MATCH($B9,'A2_Aux Load'!$B$6:$B$107,0),MATCH(AL$6,'A2_Aux Load'!$B$6:$Z$6,0)) -> 0.0152650233 | AM9: =INDEX('A2_Aux Load'!$B$6:$Z$107,MATCH($B9,'A2_Aux Load'!$B$6:$B$107,0),MATCH(AM$6,'A2_Aux Load'!$B$6:$Z$6,0)) -> 0.03435601695 | AN9: 0.6832432866 | AO9: =INDEX('A2_Aux Load'!$B$6:$Z$107,MATCH($B9,'A2_Aux Load'!$B$6:$B$107,0),MATCH(AO$6,'A2_Aux Load'!$B$6:$Z$6,0)) -> 0.4079907842 | AP9: =INDEX('A2_Aux Load'!$B$6:$Z$107,MATCH($B9,'A2_Aux Load'!$B$6:$B$107,0),MATCH(AP$6,'A2_Aux Load'!$B$6:$Z$6,0)) -> 0.2681121282 | AQ9: 64.22933169 | AR9: 39.66045695 | AS9: 55.22365343
A10: 4 | B10: =CONCATENATE(TEXT(A10,"00"),VLOOKUP(G10,'A98_Segment Match Up'!$A$3:$B$24,2,FALSE),"_Cl",H10,"_",VLOOKUP(J10,'A98_Segment Match Up'!$A$40:$B$45,2,FALSE)) -> 04V_Amb_Cl2b-3_U | C10: =CONCATENATE(VLOOKUP(G10,'A98_Segment Match Up'!$A$3:$B$24,2,FALSE),"_Cl",H10) -> V_Amb_Cl2b-3 | D10: 52 | E10: 41 | F10: =INDEX(A1c_GEM_ID!$B$6:$AX$107,MATCH($B10,A1c_GEM_ID!$B$6:$B$107,0),MATCH(F$6,A1c_GEM_ID!$6:$6,0)-1) -> LHD_U | G10: Ambulance | H10: 2b-3 | J10: Urban | K10: 7257 | L10: 15998.94637 | M10: 340 | N10: 3.4 | O10: 7.7 | P10: =VLOOKUP(H10,'A_Inputs Parameters'!$B$3:$D$7,2,FALSE) -> 7 | Q10: =VLOOKUP($H10,'A_Inputs Parameters'!$B$3:$D$7,3,FALSE) -> 25 | R10: =VLOOKUP(H10,'A_Inputs Parameters'!$B$3:$E$7,4,FALSE) -> 65 | S10: 5700 | T10: =INDEX(A1b_Sales_ID!$A$6:$V$107,MATCH($A10,A1b_Sales_ID!$A$6:$A$107,0),MATCH(T$6,A1b_Sales_ID!$6:$6,0)) -> 5234.414033 | U10: =INDEX(A1b_Sales_ID!$A$6:$V$107,MATCH($A10,A1b_Sales_ID!$A$6:$A$107,0),MATCH(U$6,A1b_Sales_ID!$6:$6,0)) -> 0.006178456254 | V10: 8 | W10: =INDEX(A1a_VMT_ID!$A$6:$AB$107,MATCH($A10,A1a_VMT_ID!$A$6:$A$107,0),MATCH(W$6,A1a_VMT_ID!$6:$6,0)) -> 39.76380417 | X10: =INDEX(A1a_VMTbyYr!$C$6:$S$107,MATCH($B10,A1a_VMTbyYr!$C$6:$C$107,0),MATCH(X$6,A1a_VMTbyYr!$6:$6,0)-2) -> 35.13171863 | Y10: =INDEX(A1a_VMT_ID!$A$6:$AB$107,MATCH($A10,A1a_VMT_ID!$A$6:$A$107,0),MATCH(Y$6,A1a_VMT_ID!$6:$6,0)) -> 51.71311883 | Z10: =INDEX(A1c_GEM_ID!$A$7:$H$107,MATCH(B10,A1c_GEM_ID!$B$7:$B$107,0),MATCH(Z$6,A1c_GEM_ID!$6:$6,0)) -> 0.8179302201 | AA10: =INDEX(A1c_GEM_ID!$A$7:$P$107,MATCH(B10,A1c_GEM_ID!$B$7:$B$107,0),MATCH(AA$1,A1c_GEM_ID!$A$6:$S$6,0))*-1*Z10 -> -0.1346869335 | AB10: =INDEX('A2_Aux Load'!$B$6:$Z$107,MATCH($B10,'A2_Aux Load'!$B$6:$B$107,0),MATCH(AB$6,'A2_Aux Load'!$B$6:$Z$6,0)) -> 0 | AC10: =INDEX('A2_Aux Load'!$B$6:$Z$107,MATCH($B10,'A2_Aux Load'!$B$6:$B$107,0),MATCH(AC$6,'A2_Aux Load'!$B$6:$Z$6,0)) -> 0.0152650233 | AD10: =INDEX('A2_Aux Load'!$B$6:$Z$107,MATCH($B10,'A2_Aux Load'!$B$6:$B$107,0),MATCH(AD$6,'A2_Aux Load'!$B$6:$Z$6,0)) -> 0.03435601695 | AE10: 0.6832432866 | AF10: =INDEX('A2_Aux Load'!$B$6:$Z$107,MATCH($B10,'A2_Aux Load'!$B$6:$B$107,0),MATCH(AF$6,'A2_Aux Load'!$B$6:$Z$6,0)) -> 0.2778331971 | AG10: =INDEX('A2_Aux Load'!$B$6:$Z$107,MATCH($B10,'A2_Aux Load'!$B$6:$B$107,0),MATCH(AG$6,'A2_Aux Load'!$B$6:$Z$6,0)) -> 0.1825787558 | AH10: 50.48966437 | AI10: 35.33264127 | AJ10: =$Y10*(AE10+AG10) -> 44.77435816 | AK10: =INDEX('A2_Aux Load'!$B$6:$Z$107,MATCH($B10,'A2_Aux Load'!$B$6:$B$107,0),MATCH(AK$6,'A2_Aux Load'!$B$6:$Z$6,0)) -> 0 | AL10: =INDEX('A2_Aux Load'!$B$6:$Z$107,MATCH($B10,'A2_Aux Load'!$B$6:$B$107,0),MATCH(AL$6,'A2_Aux Load'!$B$6:$Z$6,0)) -> 0.0152650233 | AM10: =INDEX('A2_Aux Load'!$B$6:$Z$107,MATCH($B10,'A2_Aux Load'!$B$6:$B$107,0),MATCH(AM$6,'A2_Aux Load'!$B$6:$Z$6,0)) -> 0.03435601695 | AN10: 0.6832432866 | AO10: =INDEX('A2_Aux Load'!$B$6:$Z$107,MATCH($B10,'A2_Aux Load'!$B$6:$B$107,0),MATCH(AO$6,'A2_Aux Load'!$B$6:$Z$6,0)) -> 0.2778331971 | AP10: =INDEX('A2_Aux Load'!$B$6:$Z$107,MATCH($B10,'A2_Aux Load'!$B$6:$B$107,0),MATCH(AP$6,'A2_Aux Load'!$B$6:$Z$6,0)) -> 0.1825787558 | AQ10: 50.48966437 | AR10: 35.33264127 | AS10: 44.77435816
A11: 5 | B11: =CONCATENATE(TEXT(A11,"00"),VLOOKUP(G11,'A98_Segment Match Up'!$A$3:$B$24,2,FALSE),"_Cl",H11,"_",VLOOKUP(J11,'A98_Segment Match Up'!$A$40:$B$45,2,FALSE)) -> 05T_Box_Cl8_MP | C11: =CONCATENATE(VLOOKUP(G11,'A98_Segment Match Up'!$A$3:$B$24,2,FALSE),"_Cl",H11) -> T_Box_Cl8 | D11: 52 | E11: 47 | F11: =INDEX(A1c_GEM_ID!$B$6:$AX$107,MATCH($B11,A1c_GEM_ID!$B$6:$B$107,0),MATCH(F$6,A1c_GEM_ID!$6:$6,0)-1) -> HHD_M | G11: Box Truck | H11: 8 | I11: Lion Electric Lion8P | J11: Multi-Purpose | K11: 19051 | L11: 42000.26557 | M11: 794 | N11: 6.86 | O11: 7.7 | P11: =VLOOKUP(H11,'A_Inputs Parameters'!$B$3:$D$7,2,FALSE) -> 20 | Q11: =VLOOKUP($H11,'A_Inputs Parameters'!$B$3:$D$7,3,FALSE) -> 100 | R11: =VLOOKUP(H11,'A_Inputs Parameters'!$B$3:$E$7,4,FALSE) -> 25 | S11: 15000 | T11: =INDEX(A1b_Sales_ID!$A$6:$V$107,MATCH($A11,A1b_Sales_ID!$A$6:$A$107,0),MATCH(T$6,A1b_Sales_ID!$6:$6,0)) -> 2702.618537 | U11: =INDEX(A1b_Sales_ID!$A$6:$V$107,MATCH($A11,A1b_Sales_ID!$A$6:$A$107,0),MATCH(U$6,A1b_Sales_ID!$6:$6,0)) -> 0.00319004387 | V11: 8 | W11: =INDEX(A1a_VMT_ID!$A$6:$AB$107,MATCH($A11,A1a_VMT_ID!$A$6:$A$107,0),MATCH(W$6,A1a_VMT_ID!$6:$6,0)) -> 66 | X11: =INDEX(A1a_VMTbyYr!$C$6:$S$107,MATCH($B11,A1a_VMTbyYr!$C$6:$C$107,0),MATCH(X$6,A1a_VMTbyYr!$6:$6,0)-2) -> 58.31166 | Y11: =INDEX(A1a_VMT_ID!$A$6:$AB$107,MATCH($A11,A1a_VMT_ID!$A$6:$A$107,0),MATCH(Y$6,A1a_VMT_ID!$6:$6,0)) -> 89.87900719 | Z11: =INDEX(A1c_GEM_ID!$A$7:$H$107,MATCH(B11,A1c_GEM_ID!$B$7:$B$107,0),MATCH(Z$6,A1c_GEM_ID!$6:$6,0)) -> 2.069512479 | AA11: =INDEX(A1c_GEM_ID!$A$7:$P$107,MATCH(B11,A1c_GEM_ID!$B$7:$B$107,0),MATCH(AA$1,A1c_GEM_ID!$A$6:$S$6,0))*-1*Z11 -> -0.2289977643 | AB11: =INDEX('A2_Aux Load'!$B$6:$Z$107,MATCH($B11,'A2_Aux Load'!$B$6:$B$107,0),MATCH(AB$6,'A2_Aux Load'!$B$6:$Z$6,0)) -> 0 | AC11: =INDEX('A2_Aux Load'!$B$6:$Z$107,MATCH($B11,'A2_Aux Load'!$B$6:$B$107,0),MATCH(AC$6,'A2_Aux Load'!$B$6:$Z$6,0)) -> 0.03862329015 | AD11: =INDEX('A2_Aux Load'!$B$6:$Z$107,MATCH($B11,'A2_Aux Load'!$B$6:$B$107,0),MATCH(AD$6,'A2_Aux Load'!$B$6:$Z$6,0)) -> 0.08692698236 | AE11: 1.840514715 | AF11: =INDEX('A2_Aux Load'!$B$6:$Z$107,MATCH($B11,'A2_Aux Load'!$B$6:$B$107,0),MATCH(AF$6,'A2_Aux Load'!$B$6:$Z$6,0)) -> 0.09343413511 | AG11: =INDEX('A2_Aux Load'!$B$6:$Z$107,MATCH($B11,'A2_Aux Load'!$B$6:$B$107,0),MATCH(AG$6,'A2_Aux Load'!$B$6:$Z$6,0)) -> 0.06140046732 | AH11: 177.2928255 | AI11: 165.4236353 | AJ11: =$Y11*(AE11+AG11) -> 170.9422483 | AK11: =INDEX('A2_Aux Load'!$B$6:$Z$107,MATCH($B11,'A2_Aux Load'!$B$6:$B$107,0),MATCH(AK$6,'A2_Aux Load'!$B$6:$Z$6,0)) -> 0 | AL11: =INDEX('A2_Aux Load'!$B$6:$Z$107,MATCH($B11,'A2_Aux Load'!$B$6:$B$107,0),MATCH(AL$6,'A2_Aux Load'!$B$6:$Z$6,0)) -> 0.03862329015 | AM11: =INDEX('A2_Aux Load'!$B$6:$Z$107,MATCH($B11,'A2_Aux Load'!$B$6:$B$107,0),MATCH(AM$6,'A2_Aux Load'!$B$6:$Z$6,0)) -> 0.08692698236 | AN11: 1.840514715 | AO11: =INDEX('A2_Aux Load'!$B$6:$Z$107,MATCH($B11,'A2_Aux Load'!$B$6:$B$107,0),MATCH(AO$6,'A2_Aux Load'!$B$6:$Z$6,0)) -> 0.09343413511 | AP11: =INDEX('A2_Aux Load'!$B$6:$Z$107,MATCH($B11,'A2_Aux Load'!$B$6:$B$107,0),MATCH(AP$6,'A2_Aux Load'!$B$6:$Z$6,0)) -> 0.06140046732 | AQ11: 177.2928255 | AR11: 165.4236353 | AS11: 170.9422483
A12: 6 | B12: =CONCATENATE(TEXT(A12,"00"),VLOOKUP(G12,'A98_Segment Match Up'!$A$3:$B$24,2,FALSE),"_Cl",H12,"_",VLOOKUP(J12,'A98_Segment Match Up'!$A$40:$B$45,2,FALSE)) -> 06T_Box_Cl8_R | C12: =CONCATENATE(VLOOKUP(G12,'A98_Segment Match Up'!$A$3:$B$24,2,FALSE),"_Cl",H12) -> T_Box_Cl8 | D12: 53 | E12: 47 | F12: =INDEX(A1c_GEM_ID!$B$6:$AX$107,MATCH($B12,A1c_GEM_ID!$B$6:$B$107,0),MATCH(F$6,A1c_GEM_ID!$6:$6,0)-1) -> HHD_R | G12: Box Truck | H12: 8 | I12: Lion Electric Lion8P | J12: Regional | K12: 19051 | L12: 42000.26557 | M12: 794 | N12: 6.86 | O12: 7.7 | P12: =VLOOKUP(H12,'A_Inputs Parameters'!$B$3:$D$7,2,FALSE) -> 20 | Q12: =VLOOKUP($H12,'A_Inputs Parameters'!$B$3:$D$7,3,FALSE) -> 100 | R12: =VLOOKUP(H12,'A_Inputs Parameters'!$B$3:$E$7,4,FALSE) -> 25 | S12: 15000 | T12: =INDEX(A1b_Sales_ID!$A$6:$V$107,MATCH($A12,A1b_Sales_ID!$A$6:$A$107,0),MATCH(T$6,A1b_Sales_ID!$6:$6,0)) -> 1826.191726 | U12: =INDEX(A1b_Sales_ID!$A$6:$V$107,MATCH($A12,A1b_Sales_ID!$A$6:$A$107,0),MATCH(U$6,A1b_Sales_ID!$6:$6,0)) -> 0.002155550864 | V12: 8 | W12: =INDEX(A1a_VMT_ID!$A$6:$AB$107,MATCH($A12,A1a_VMT_ID!$A$6:$A$107,0),MATCH(W$6,A1a_VMT_ID!$6:$6,0)) -> 66 | X12: =INDEX(A1a_VMTbyYr!$C$6:$S$107,MATCH($B12,A1a_VMTbyYr!$C$6:$C$107,0),MATCH(X$6,A1a_VMTbyYr!$6:$6,0)-2) -> 58.31166 | Y12: =INDEX(A1a_VMT_ID!$A$6:$AB$107,MATCH($A12,A1a_VMT_ID!$A$6:$A$107,0),MATCH(Y$6,A1a_VMT_ID!$6:$6,0)) -> 89.87900719 | Z12: =INDEX(A1c_GEM_ID!$A$7:$H$107,MATCH(B12,A1c_GEM_ID!$B$7:$B$107,0),MATCH(Z$6,A1c_GEM_ID!$6:$6,0)) -> 2.06559048 | AA12: =INDEX(A1c_GEM_ID!$A$7:$P$107,MATCH(B12,A1c_GEM_ID!$B$7:$B$107,0),MATCH(AA$1,A1c_GEM_ID!$A$6:$S$6,0))*-1*Z12 -> -0.09343078857 | AB12: =INDEX('A2_Aux Load'!$B$6:$Z$107,MATCH($B12,'A2_Aux Load'!$B$6:$B$107,0),MATCH(AB$6,'A2_Aux Load'!$B$6:$Z$6,0)) -> 0 | AC12: =INDEX('A2_Aux Load'!$B$6:$Z$107,MATCH($B12,'A2_Aux Load'!$B$6:$B$107,0),MATCH(AC$6,'A2_Aux Load'!$B$6:$Z$6,0)) -> 0.03855009392 | AD12: =INDEX('A2_Aux Load'!$B$6:$Z$107,MATCH($B12,'A2_Aux Load'!$B$6:$B$107,0),MATCH(AD$6,'A2_Aux Load'!$B$6:$Z$6,0)) -> 0.08676224425 | AE12: 1.972159691 | AF12: =INDEX('A2_Aux Load'!$B$6:$Z$107,MATCH($B12,'A2_Aux Load'!$B$6:$B$107,0),MATCH(AF$6,'A2_Aux Load'!$B$6:$Z$6,0)) -> 0.09343413511 | AG12: =INDEX('A2_Aux Load'!$B$6:$Z$107,MATCH($B12,'A2_Aux Load'!$B$6:$B$107,0),MATCH(AG$6,'A2_Aux Load'!$B$6:$Z$6,0)) -> 0.06140046732 | AH12: 189.1183665 | AI12: 177.2557551 | AJ12: =$Y14*(AE12+AG12) -> 182.7743681 | AK12: =INDEX('A2_Aux Load'!$B$6:$Z$107,MATCH($B12,'A2_Aux Load'!$B$6:$B$107,0),MATCH(AK$6,'A2_Aux Load'!$B$6:$Z$6,0)) -> 0 | AL12: =INDEX('A2_Aux Load'!$B$6:$Z$107,MATCH($B12,'A2_Aux Load'!$B$6:$B$107,0),MATCH(AL$6,'A2_Aux Load'!$B$6:$Z$6,0)) -> 0.03855009392 | AM12: =INDEX('A2_Aux Load'!$B$6:$Z$107,MATCH($B12,'A2_Aux Load'!$B$6:$B$107,0),MATCH(AM$6,'A2_Aux Load'!$B$6:$Z$6,0)) -> 0.08676224425 | AN12: 1.972159691 | AO12: =INDEX('A2_Aux Load'!$B$6:$Z$107,MATCH($B12,'A2_Aux Load'!$B$6:$B$107,0),MATCH(AO$6,'A2_Aux Load'!$B$6:$Z$6,0)) -> 0.09343413511 | AP12: =INDEX('A2_Aux Load'!$B$6:$Z$107,MATCH($B12,'A2_Aux Load'!$B$6:$B$107,0),MATCH(AP$6,'A2_Aux Load'!$B$6:$Z$6,0)) -> 0.06140046732 | AQ12: 189.1183665 | AR12: 177.2557551 | AS12: 182.7743681
A13: 7 | B13: =CONCATENATE(TEXT(A13,"00"),VLOOKUP(G13,'A98_Segment Match Up'!$A$3:$B$24,2,FALSE),"_Cl",H13,"_",VLOOKUP(J13,'A98_Segment Match Up'!$A$40:$B$45,2,FALSE)) -> 07T_Box_Cl6-7_MP | C13: =CONCATENATE(VLOOKUP(G13,'A98_Segment Match Up'!$A$3:$B$24,2,FALSE),"_Cl",H13) -> T_Box_Cl6-7 | D13: 52 | E13: 46 | F13: =INDEX(A1c_GEM_ID!$B$6:$AX$107,MATCH($B13,A1c_GEM_ID!$B$6:$B$107,0),MATCH(F$6,A1c_GEM_ID!$6:$6,0)-1) -> MHD_M | G13: Box Truck | H13: 6-7 | I13: Freightliner eM2 | J13: Multi-Purpose | K13: 11408 | L13: 25150.33487 | M13: 340 | N13: 5.4 | O13: 7.7 | P13: =VLOOKUP(H13,'A_Inputs Parameters'!$B$3:$D$7,2,FALSE) -> 16 | Q13: =VLOOKUP($H13,'A_Inputs Parameters'!$B$3:$D$7,3,FALSE) -> 50 | R13: =VLOOKUP(H13,'A_Inputs Parameters'!$B$3:$E$7,4,FALSE) -> 45 | S13: 11200 | T13: =INDEX(A1b_Sales_ID!$A$6:$V$107,MATCH($A13,A1b_Sales_ID!$A$6:$A$107,0),MATCH(T$6,A1b_Sales_ID!$6:$6,0)) -> 5530.040901 | U13: =INDEX(A1b_Sales_ID!$A$6:$V$107,MATCH($A13,A1b_Sales_ID!$A$6:$A$107,0),MATCH(U$6,A1b_Sales_ID!$6:$6,0)) -> 0.006527400312 | V13: 8 | W13: =INDEX(A1a_VMT_ID!$A$6:$AB$107,MATCH($A13,A1a_VMT_ID!$A$6:$A$107,0),MATCH(W$6,A1a_VMT_ID!$6:$6,0)) -> 39.84303617 | X13: =INDEX(A1a_VMTbyYr!$C$6:$S$107,MATCH($B13,A1a_VMTbyYr!$C$6:$C$107,0),MATCH(X$6,A1a_VMTbyYr!$6:$6,0)-2) -> 35.20172089 | Y13: =INDEX(A1a_VMT_ID!$A$6:$AB$107,MATCH($A13,A1a_VMT_ID!$A$6:$A$107,0),MATCH(Y$6,A1a_VMT_ID!$6:$6,0)) -> 89.87900719 | Z13: =INDEX(A1c_GEM_ID!$A$7:$H$107,MATCH(B13,A1c_GEM_ID!$B$7:$B$107,0),MATCH(Z$6,A1c_GEM_ID!$6:$6,0)) -> 1.364338591 | AA13: =INDEX(A1c_GEM_ID!$A$7:$P$107,MATCH(B13,A1c_GEM_ID!$B$7:$B$107,0),MATCH(AA$1,A1c_GEM_ID!$A$6:$S$6,0))*-1*Z13 -> -0.13719516 | AB13: =INDEX('A2_Aux Load'!$B$6:$Z$107,MATCH($B13,'A2_Aux Load'!$B$6:$B$107,0),MATCH(AB$6,'A2_Aux Load'!$B$6:$Z$6,0)) -> 0 | AC13: =INDEX('A2_Aux Load'!$B$6:$Z$107,MATCH($B13,'A2_Aux Load'!$B$6:$B$107,0),MATCH(AC$6,'A2_Aux Load'!$B$6:$Z$6,0)) -> 0.02546263712 | AD13: =INDEX('A2_Aux Load'!$B$6:$Z$107,MATCH($B13,'A2_Aux Load'!$B$6:$B$107,0),MATCH(AD$6,'A2_Aux Load'!$B$6:$Z$6,0)) -> 0.05730713771 | AE13: 1.227143431 | AF13: =INDEX('A2_Aux Load'!$B$6:$Z$107,MATCH($B13,'A2_Aux Load'!$B$6:$B$107,0),MATCH(AF$6,'A2_Aux Load'!$B$6:$Z$6,0)) -> 0.09343413511 | AG13: =INDEX('A2_Aux Load'!$B$6:$Z$107,MATCH($B13,'A2_Aux Load'!$B$6:$B$107,0),MATCH(AG$6,'A2_Aux Load'!$B$6:$Z$6,0)) -> 0.06140046732 | AH13: 120.9807571 | AI13: 110.2944333 | AJ13: =$Y15*(AE13+AG13) -> 115.8130463 | AK13: =INDEX('A2_Aux Load'!$B$6:$Z$107,MATCH($B13,'A2_Aux Load'!$B$6:$B$107,0),MATCH(AK$6,'A2_Aux Load'!$B$6:$Z$6,0)) -> 0 | AL13: =INDEX('A2_Aux Load'!$B$6:$Z$107,MATCH($B13,'A2_Aux Load'!$B$6:$B$107,0),MATCH(AL$6,'A2_Aux Load'!$B$6:$Z$6,0)) -> 0.02546263712 | AM13: =INDEX('A2_Aux Load'!$B$6:$Z$107,MATCH($B13,'A2_Aux Load'!$B$6:$B$107,0),MATCH(AM$6,'A2_Aux Load'!$B$6:$Z$6,0)) -> 0.05730713771 | AN13: 1.227143431 | AO13: =INDEX('A2_Aux Load'!$B$6:$Z$107,MATCH($B13,'A2_Aux Load'!$B$6:$B$107,0),MATCH(AO$6,'A2_Aux Load'!$B$6:$Z$6,0)) -> 0.09343413511 | AP13: =INDEX('A2_Aux Load'!$B$6:$Z$107,MATCH($B13,'A2_Aux Load'!$B$6:$B$107,0),MATCH(AP$6,'A2_Aux Load'!$B$6:$Z$6,0)) -> 0.06140046732 | AQ13: 120.9807571 | AR13: 110.2944333 | AS13: 115.8130463
A14: 8 | B14: =CONCATENATE(TEXT(A14,"00"),VLOOKUP(G14,'A98_Segment Match Up'!$A$3:$B$24,2,FALSE),"_Cl",H14,"_",VLOOKUP(J14,'A98_Segment Match Up'!$A$40:$B$45,2,FALSE)) -> 08T_Box_Cl6-7_R | C14: =CONCATENATE(VLOOKUP(G14,'A98_Segment Match Up'!$A$3:$B$24,2,FALSE),"_Cl",H14) -> T_Box_Cl6-7 | D14: 53 | E14: 46 | F14: =INDEX(A1c_GEM_ID!$B$6:$AX$107,MATCH($B14,A1c_GEM_ID!$B$6:$B$107,0),MATCH(F$6,A1c_GEM_ID!$6:$6,0)-1) -> MHD_R | G14: Box Truck | H14: 6-7 | I14: Freightliner eM2 | J14: Regional | K14: 11408 | L14: 25150.33487 | M14: 340 | N14: 5.4 | O14: 7.7 | P14: =VLOOKUP(H14,'A_Inputs Parameters'!$B$3:$D$7,2,FALSE) -> 16 | Q14: =VLOOKUP($H14,'A_Inputs Parameters'!$B$3:$D$7,3,FALSE) -> 50 | R14: =VLOOKUP(H14,'A_Inputs Parameters'!$B$3:$E$7,4,FALSE) -> 45 | S14: 11200 | T14: =INDEX(A1b_Sales_ID!$A$6:$V$107,MATCH($A14,A1b_Sales_ID!$A$6:$A$107,0),MATCH(T$6,A1b_Sales_ID!$6:$6,0)) -> 3464.268378 | U14: =INDEX(A1b_Sales_ID!$A$6:$V$107,MATCH($A14,A1b_Sales_ID!$A$6:$A$107,0),MATCH(U$6,A1b_Sales_ID!$6:$6,0)) -> 0.004089059538 | V14: 8 | W14: =INDEX(A1a_VMT_ID!$A$6:$AB$107,MATCH($A14,A1a_VMT_ID!$A$6:$A$107,0),MATCH(W$6,A1a_VMT_ID!$6:$6,0)) -> 39.84303617 | X14: =INDEX(A1a_VMTbyYr!$C$6:$S$107,MATCH($B14,A1a_VMTbyYr!$C$6:$C$107,0),MATCH(X$6,A1a_VMTbyYr!$6:$6,0)-2) -> 35.20172089 | Y14: =INDEX(A1a_VMT_ID!$A$6:$AB$107,MATCH($A14,A1a_VMT_ID!$A$6:$A$107,0),MATCH(Y$6,A1a_VMT_ID!$6:$6,0)) -> 89.87900719 | Z14: =INDEX(A1c_GEM_ID!$A$7:$H$107,MATCH(B14,A1c_GEM_ID!$B$7:$B$107,0),MATCH(Z$6,A1c_GEM_ID!$6:$6,0)) -> 1.445105306 | AA14: =INDEX(A1c_GEM_ID!$A$7:$P$107,MATCH(B14,A1c_GEM_ID!$B$7:$B$107,0),MATCH(AA$1,A1c_GEM_ID!$A$6:$S$6,0))*-1*Z14 -> -0.0560816467 | AB14: =INDEX('A2_Aux Load'!$B$6:$Z$107,MATCH($B14,'A2_Aux Load'!$B$6:$B$107,0),MATCH(AB$6,'A2_Aux Load'!$B$6:$Z$6,0)) -> 0 | AC14: =INDEX('A2_Aux Load'!$B$6:$Z$107,MATCH($B14,'A2_Aux Load'!$B$6:$B$107,0),MATCH(AC$6,'A2_Aux Load'!$B$6:$Z$6,0)) -> 0.02696998549 | AD14: =INDEX('A2_Aux Load'!$B$6:$Z$107,MATCH($B14,'A2_Aux Load'!$B$6:$B$107,0),MATCH(AD$6,'A2_Aux Load'!$B$6:$Z$6,0)) -> 0.0606996308 | AE14: 1.389023659 | AF14: =INDEX('A2_Aux Load'!$B$6:$Z$107,MATCH($B14,'A2_Aux Load'!$B$6:$B$107,0),MATCH(AF$6,'A2_Aux Load'!$B$6:$Z$6,0)) -> 0.09343413511 | AG14: =INDEX('A2_Aux Load'!$B$6:$Z$107,MATCH($B14,'A2_Aux Load'!$B$6:$B$107,0),MATCH(AG$6,'A2_Aux Load'!$B$6:$Z$6,0)) -> 0.06140046732 | AH14: 135.6658703 | AI14: 124.8440674 | AJ14: =$Y16*(AE14+AG14) -> 151.7258586 | AK14: =INDEX('A2_Aux Load'!$B$6:$Z$107,MATCH($B14,'A2_Aux Load'!$B$6:$B$107,0),MATCH(AK$6,'A2_Aux Load'!$B$6:$Z$6,0)) -> 0 | AL14: =INDEX('A2_Aux Load'!$B$6:$Z$107,MATCH($B14,'A2_Aux Load'!$B$6:$B$107,0),MATCH(AL$6,'A2_Aux Load'!$B$6:$Z$6,0)) -> 0.02696998549 | AM14: =INDEX('A2_Aux Load'!$B$6:$Z$107,MATCH($B14,'A2_Aux Load'!$B$6:$B$107,0),MATCH(AM$6,'A2_Aux Load'!$B$6:$Z$6,0)) -> 0.0606996308 | AN14: 1.389023659 | AO14: =INDEX('A2_Aux Load'!$B$6:$Z$107,MATCH($B14,'A2_Aux Load'!$B$6:$B$107,0),MATCH(AO$6,'A2_Aux Load'!$B$6:$Z$6,0)) -> 0.09343413511 | AP14: =INDEX('A2_Aux Load'!$B$6:$Z$107,MATCH($B14,'A2_Aux Load'!$B$6:$B$107,0),MATCH(AP$6,'A2_Aux Load'!$B$6:$Z$6,0)) -> 0.06140046732 | AQ14: 135.6658703 | AR14: 124.8440674 | AS14: 130.3626805
A15: 9 | B15: =CONCATENATE(TEXT(A15,"00"),VLOOKUP(G15,'A98_Segment Match Up'!$A$3:$B$24,2,FALSE),"_Cl",H15,"_",VLOOKUP(J15,'A98_Segment Match Up'!$A$40:$B$45,2,FALSE)) -> 09T_Box_Cl8_U | C15: =CONCATENATE(VLOOKUP(G15,'A98_Segment Match Up'!$A$3:$B$24,2,FALSE),"_Cl",H15) -> T_Box_Cl8 | D15: 52 | E15: 47 | F15: =INDEX(A1c_GEM_ID!$B$6:$AX$107,MATCH($B15,A1c_GEM_ID!$B$6:$B$107,0),MATCH(F$6,A1c_GEM_ID!$6:$6,0)-1) -> HHD_U | G15: Box Truck | H15: 8 | I15: Lion Electric Lion8P | J15: Urban | K15: 19051 | L15: 42000.26557 | M15: 794 | N15: 6.86 | O15: 7.7 | P15: =VLOOKUP(H15,'A_Inputs Parameters'!$B$3:$D$7,2,FALSE) -> 20 | Q15: =VLOOKUP($H15,'A_Inputs Parameters'!$B$3:$D$7,3,FALSE) -> 100 | R15: =VLOOKUP(H15,'A_Inputs Parameters'!$B$3:$E$7,4,FALSE) -> 25 | S15: 15000 | T15: =INDEX(A1b_Sales_ID!$A$6:$V$107,MATCH($A15,A1b_Sales_ID!$A$6:$A$107,0),MATCH(T$6,A1b_Sales_ID!$6:$6,0)) -> 2702.618537 | U15: =INDEX(A1b_Sales_ID!$A$6:$V$107,MATCH($A15,A1b_Sales_ID!$A$6:$A$107,0),MATCH(U$6,A1b_Sales_ID!$6:$6,0)) -> 0.00319004387 | V15: 8 | W15: =INDEX(A1a_VMT_ID!$A$6:$AB$107,MATCH($A15,A1a_VMT_ID!$A$6:$A$107,0),MATCH(W$6,A1a_VMT_ID!$6:$6,0)) -> 66 | X15: =INDEX(A1a_VMTbyYr!$C$6:$S$107,MATCH($B15,A1a_VMTbyYr!$C$6:$C$107,0),MATCH(X$6,A1a_VMTbyYr!$6:$6,0)-2) -> 58.31166 | Y15: =INDEX(A1a_VMT_ID!$A$6:$AB$107,MATCH($A15,A1a_VMT_ID!$A$6:$A$107,0),MATCH(Y$6,A1a_VMT_ID!$6:$6,0)) -> 89.87900719 | Z15: =INDEX(A1c_GEM_ID!$A$7:$H$107,MATCH(B15,A1c_GEM_ID!$B$7:$B$107,0),MATCH(Z$6,A1c_GEM_ID!$6:$6,0)) -> 2.06551186 | AA15: =INDEX(A1c_GEM_ID!$A$7:$P$107,MATCH(B15,A1c_GEM_ID!$B$7:$B$107,0),MATCH(AA$1,A1c_GEM_ID!$A$6:$S$6,0))*-1*Z15 -> -0.3700777599 | AB15: =INDEX('A2_Aux Load'!$B$6:$Z$107,MATCH($B15,'A2_Aux Load'!$B$6:$B$107,0),MATCH(AB$6,'A2_Aux Load'!$B$6:$Z$6,0)) -> 0 | AC15: =INDEX('A2_Aux Load'!$B$6:$Z$107,MATCH($B15,'A2_Aux Load'!$B$6:$B$107,0),MATCH(AC$6,'A2_Aux Load'!$B$6:$Z$6,0)) -> 0.03854862664 | AD15: =INDEX('A2_Aux Load'!$B$6:$Z$107,MATCH($B15,'A2_Aux Load'!$B$6:$B$107,0),MATCH(AD$6,'A2_Aux Load'!$B$6:$Z$6,0)) -> 0.08675894194 | AE15: 1.6954341 | AF15: =INDEX('A2_Aux Load'!$B$6:$Z$107,MATCH($B15,'A2_Aux Load'!$B$6:$B$107,0),MATCH(AF$6,'A2_Aux Load'!$B$6:$Z$6,0)) -> 0.09343413511 | AG15: =INDEX('A2_Aux Load'!$B$6:$Z$107,MATCH($B15,'A2_Aux Load'!$B$6:$B$107,0),MATCH(AG$6,'A2_Aux Load'!$B$6:$Z$6,0)) -> 0.06140046732 | AH15: 164.2464133 | AI15: 152.3839337 | AJ15: =$Y23*(AE15+AG15) -> 514.1148623 | AK15: =INDEX('A2_Aux Load'!$B$6:$Z$107,MATCH($B15,'A2_Aux Load'!$B$6:$B$107,0),MATCH(AK$6,'A2_Aux Load'!$B$6:$Z$6,0)) -> 0 | AL15: =INDEX('A2_Aux Load'!$B$6:$Z$107,MATCH($B15,'A2_Aux Load'!$B$6:$B$107,0),MATCH(AL$6,'A2_Aux Load'!$B$6:$Z$6,0)) -> 0.03854862664 | AM15: =INDEX('A2_Aux Load'!$B$6:$Z$107,MATCH($B15,'A2_Aux Load'!$B$6:$B$107,0),MATCH(AM$6,'A2_Aux Load'!$B$6:$Z$6,0)) -> 0.08675894194 | AN15: 1.6954341 | AO15: =INDEX('A2_Aux Load'!$B$6:$Z$107,MATCH($B15,'A2_Aux Load'!$B$6:$B$107,0),MATCH(AO$6,'A2_Aux Load'!$B$6:$Z$6,0)) -> 0.09343413511 | AP15: =INDEX('A2_Aux Load'!$B$6:$Z$107,MATCH($B15,'A2_Aux Load'!$B$6:$B$107,0),MATCH(AP$6,'A2_Aux Load'!$B$6:$Z$6,0)) -> 0.06140046732 | AQ15: 164.2464133 | AR15: 152.3839337 | AS15: 157.9025467
... 17 more rows

Sheet A1a_VMT_ID (hidden)
B1: Return to Table of Contents | N1: 0.5 | O1: 0.9 | S1: =Op_Days -> 250 | W1: 0.5 | X1: 0.9 | Y1: Max
C2: Hide | F2: Delete, with edits to G | I2: Hide | M2: Hide | N2: 0.5 -> 50th using formula | O2: 0.9 -> 90th using formula | V2: Hide | W2: 0.5 -> 50th using formula | X2: 0.9 -> 90th using formula
B3: Vehicle ID | C3: Vehicle ID2 | D3: Weight Class | E3: VMT Source | F3: Absolute Sizing VMT | G3: Daily Operational VMT | H3: Daily Sizing VMT | I3: % difference | J3: FleetDNA Type | K3: FleetDNA Vocation | L3: Class | M3: FleetDNA ID | N3: FleetDNA 50th Percentile Daily VMT | O3: FleetDNA 90th Percentile Daily VMT | P3: FleetDNA Max Daily VMT | Q3: 2002 VIUS Body Type | R3: 2002 VIUS Annual VMT | S3: 2002 VIUS Daily Annual VMT | T3: NREL UCR Type | U3: NREL UCR Weight Class | W3: NREL UCR 50th Percentile Daily VMT | X3: NREL UCR 90th Percentile Daily VMT | Y3: NREL UCR Max Daily VMT | Z3: MOVES3 Category | AA3: MOVES3 Daily VMT
G5: miles | H5: miles | N5: miles | O5: miles | P5: miles | R5: miles | S5: miles | W5: miles | X5: miles | Y5: miles | AA5: miles
A6: # | B6: Vehicle ID | C6: Vehicle ID2 | D6: Weight Class | E6: VMT Match Up Source | F6: Absolute Sizing VMT | G6: =CONCATENATE("Operation VMT (",Op_Range_Percentile*100,"%)") -> Operation VMT (50%) | H6: =CONCATENATE("Absolute Sizing VMT (",Sizing_Range_Percentile*100,"%)") -> Absolute Sizing VMT (90%) | I6: % difference | J6: FleetDNA Type | K6: FleetDNA Vocation | L6: Class | M6: FleetDNA ID | N6: =N1&" Percentile Daily VMT" -> 0.5 Percentile Daily VMT | O6: =Sizing_Range_Percentile&" Percentile Daily VMT" -> 0.9 Percentile Daily VMT | P6: Max VMT | Q6: 2002 VIUS Category | R6: Annual VMT | S6: Operational Day VMT | T6: NREL UCR Type | U6: NREL UCR Weight Class | V6: UCR ID | W6: =W1&" Percentile Daily VMT" -> 0.5 Percentile Daily VMT | X6: =X1&" Percentile Daily VMT" -> 0.9 Percentile Daily VMT | Y6: Max Daily VMT | Z6: MOVES3 Category | AA6: MOVES3 Daily VMT
A7: 1 | B7: ='1_Veh Prop'!B7 -> 01V_Amb_Cl4-5_MP | C7: ='1_Veh Prop'!C7 -> V_Amb_Cl4-5 | D7: ='1_Veh Prop'!H7 -> 4-5 | E7: FleetDNA | F7: =IF(E7="2002 VIUS",S7,IF(E7="FleetDNA",O7,IF(E7="NREL UCR",X7,1))) -> 58.04734232 | G7: =IF(OR(E7="Independent",E7="2002 VIUS"),F7,AVERAGE(N7,W7)) -> 33.92166542 | H7: =IF(OR(E7="Independent",E7="2002 VIUS"),F7,AVERAGE(O7,X7)) -> 50.35810678 | I7: =G7/H7 -> 0.6736088306 | J7: Straight Truck | K7: Food Delivery | L7: 5 | M7: T_Straight5F | N7: =IF(M7="","",_xlfn.PERCENTILE.INC(IF(fleetDNA[VMT_ID]=$M7,fleetDNA[distance_total]),Op_Range_Percentile)) -> 39.07758046 | O7: =IF(M7="","",_xlfn.PERCENTILE.INC(IF(fleetDNA[VMT_ID]=$M7,fleetDNA[distance_total]),Sizing_Range_Percentile)) -> 58.04734232 | P7: =IF(M7="","",MAX(IF(fleetDNA[VMT_ID]=$M7,fleetDNA[distance_total]))) -> 81.20493642 | Q7: Service, Other | R7: 15500 | S7: =IF(R7="","",R7/Op_Days) -> 62 | T7: WalkIn, Box Truck | U7: 5 | V7: T_WalkinBox4-5 | W7: =IF(V7="","",_xlfn.PERCENTILE.INC(IF(UCR[VMT ID]=$V7,UCR[MilesDrivenPerOperationDay]),Op_Range_Percentile)) -> 28.76575038 | X7: =IF(V7="","",_xlfn.PERCENTILE.INC(IF(UCR[VMT ID]=$V7,UCR[MilesDrivenPerOperationDay]),Sizing_Range_Percentile)) -> 42.66887125 | Y7: =IF(V7="","",MAX(IF(UCR[VMT ID]=$V7,UCR[MilesDrivenPerOperationDay]))) -> 46.60389311 | Z7: Single Unit Short-haul | AA7: 67
A8: =A7+1 -> 2 | B8: ='1_Veh Prop'!B8 -> 02V_Amb_Cl2b-3_MP | C8: ='1_Veh Prop'!C8 -> V_Amb_Cl2b-3 | D8: ='1_Veh Prop'!H8 -> 2b-3 | E8: FleetDNA | F8: 51.71311883 | G8: =IF(OR(E8="Independent",E8="2002 VIUS"),F8,AVERAGE(N8,W8)) -> 49.4102484 | H8: =IF(OR(E8="Independent",E8="2002 VIUS"),F8,AVERAGE(O8,X8)) -> 63.97377355 | I8: =G8/H8 -> 0.7723516319 | J8: Straight Truck | K8: Food Delivery | L8: 3 | M8: T_Straight3F | N8: =IF(M8="","",_xlfn.PERCENTILE.INC(IF(fleetDNA[VMT_ID]=$M8,fleetDNA[distance_total]),Op_Range_Percentile)) -> 39.76380417 | O8: =IF(M8="","",_xlfn.PERCENTILE.INC(IF(fleetDNA[VMT_ID]=$M8,fleetDNA[distance_total]),Sizing_Range_Percentile)) -> 51.71311883 | P8: =IF(M8="","",MAX(IF(fleetDNA[VMT_ID]=$M8,fleetDNA[distance_total]))) -> 78.82617489 | Q8: Service, Other | R8: 15500 | S8: 62 | T8: WalkIn, Box Truck | U8: 3 | V8: T_WalkinBox2-3 | W8: =IF(V8="","",_xlfn.PERCENTILE.INC(IF(UCR[VMT ID]=$V8,UCR[MilesDrivenPerOperationDay]),Op_Range_Percentile)) -> 59.05669263 | X8: =IF(V8="","",_xlfn.PERCENTILE.INC(IF(UCR[VMT ID]=$V8,UCR[MilesDrivenPerOperationDay]),Sizing_Range_Percentile)) -> 76.23442828 | Y8: =IF(V8="","",MAX(IF(UCR[VMT ID]=$V8,UCR[MilesDrivenPerOperationDay]))) -> 85.44612721 | Z8: Single Unit Short-haul | AA8: 67
A9: 3 | B9: ='1_Veh Prop'!B9 -> 03V_Amb_Cl4-5_U | C9: ='1_Veh Prop'!C9 -> V_Amb_Cl4-5 | D9: ='1_Veh Prop'!H9 -> 4-5 | E9: FleetDNA | F9: 58.04734232 | G9: 39.07758046 | H9: =IF(OR(E9="Independent",E9="2002 VIUS"),F9,AVERAGE(O9,X9)) -> 58.04734232 | I9: 0.6732018884 | J9: Straight Truck | K9: Food Delivery | L9: 5 | M9: T_Straight5F | N9: =IF(M9="","",_xlfn.PERCENTILE.INC(IF(fleetDNA[VMT_ID]=$M9,fleetDNA[distance_total]),Op_Range_Percentile)) -> 39.07758046 | O9: =IF(M9="","",_xlfn.PERCENTILE.INC(IF(fleetDNA[VMT_ID]=$M9,fleetDNA[distance_total]),Sizing_Range_Percentile)) -> 58.04734232 | P9: =IF(M9="","",MAX(IF(fleetDNA[VMT_ID]=$M9,fleetDNA[distance_total]))) -> 81.20493642 | W9: =IF(V9="","",_xlfn.PERCENTILE.INC(IF(UCR[VMT ID]=$V9,UCR[MilesDrivenPerOperationDay]),Op_Range_Percentile)) ->  | X9: =IF(V9="","",_xlfn.PERCENTILE.INC(IF(UCR[VMT ID]=$V9,UCR[MilesDrivenPerOperationDay]),Sizing_Range_Percentile)) ->  | Y9: =IF(V9="","",MAX(IF(UCR[VMT ID]=$V9,UCR[MilesDrivenPerOperationDay]))) ->  | Z9: Single Unit Short-haul | AA9: 67
A10: 4 | B10: ='1_Veh Prop'!B10 -> 04V_Amb_Cl2b-3_U | C10: ='1_Veh Prop'!C10 -> V_Amb_Cl2b-3 | D10: ='1_Veh Prop'!H10 -> 2b-3 | E10: FleetDNA | F10: 51.71311883 | G10: 39.76380417 | H10: =IF(OR(E10="Independent",E10="2002 VIUS"),F10,AVERAGE(O10,X10)) -> 51.71311883 | I10: 0.7689306906 | J10: Straight Truck | K10: Food Delivery | L10: 3 | M10: T_Straight3F | N10: =IF(M10="","",_xlfn.PERCENTILE.INC(IF(fleetDNA[VMT_ID]=$M10,fleetDNA[distance_total]),Op_Range_Percentile)) -> 39.76380417 | O10: =IF(M10="","",_xlfn.PERCENTILE.INC(IF(fleetDNA[VMT_ID]=$M10,fleetDNA[distance_total]),Sizing_Range_Percentile)) -> 51.71311883 | P10: =IF(M10="","",MAX(IF(fleetDNA[VMT_ID]=$M10,fleetDNA[distance_total]))) -> 78.82617489 | W10: =IF(V10="","",_xlfn.PERCENTILE.INC(IF(UCR[VMT ID]=$V10,UCR[MilesDrivenPerOperationDay]),Op_Range_Percentile)) ->  | X10: =IF(V10="","",_xlfn.PERCENTILE.INC(IF(UCR[VMT ID]=$V10,UCR[MilesDrivenPerOperationDay]),Sizing_Range_Percentile)) ->  | Y10: =IF(V10="","",MAX(IF(UCR[VMT ID]=$V10,UCR[MilesDrivenPerOperationDay]))) ->  | Z10: Single Unit Short-haul | AA10: 67
A11: 5 | B11: ='1_Veh Prop'!B11 -> 05T_Box_Cl8_MP | C11: ='1_Veh Prop'!C11 -> T_Box_Cl8 | D11: ='1_Veh Prop'!H11 -> 8 | E11: 2002 VIUS | F11: 66 | G11: 66 | H11: =H13 -> 89.87900719 | I11: 0.7343205278 | N11: =IF(M11="","",_xlfn.PERCENTILE.INC(IF(fleetDNA[VMT_ID]=$M11,fleetDNA[distance_total]),Op_Range_Percentile)) ->  | O11: =IF(M11="","",_xlfn.PERCENTILE.INC(IF(fleetDNA[VMT_ID]=$M11,fleetDNA[distance_total]),Sizing_Range_Percentile)) ->  | P11: =IF(M11="","",MAX(IF(fleetDNA[VMT_ID]=$M11,fleetDNA[distance_total]))) ->  | Q11: Van, Step, Walk-in, or Multistop | R11: 16500 | S11: 66 | W11: =IF(V11="","",_xlfn.PERCENTILE.INC(IF(UCR[VMT ID]=$V11,UCR[MilesDrivenPerOperationDay]),Op_Range_Percentile)) ->  | X11: =IF(V11="","",_xlfn.PERCENTILE.INC(IF(UCR[VMT ID]=$V11,UCR[MilesDrivenPerOperationDay]),Sizing_Range_Percentile)) ->  | Y11: =IF(V11="","",MAX(IF(UCR[VMT ID]=$V11,UCR[MilesDrivenPerOperationDay]))) ->  | Z11: Single Unit Long-haul | AA11: 107
A12: 6 | B12: ='1_Veh Prop'!B12 -> 06T_Box_Cl8_R | C12: ='1_Veh Prop'!C12 -> T_Box_Cl8 | D12: ='1_Veh Prop'!H12 -> 8 | E12: 2002 VIUS | F12: 66 | G12: 66 | H12: =H13 -> 89.87900719 | I12: 0.7343205278 | Q12: Van, Step, Walk-in, or Multistop | R12: 16500 | S12: =IF(R12="","",R12/Op_Days) -> 66
A13: 7 | B13: ='1_Veh Prop'!B13 -> 07T_Box_Cl6-7_MP | C13: ='1_Veh Prop'!C13 -> T_Box_Cl6-7 | D13: ='1_Veh Prop'!H13 -> 6-7 | E13: FleetDNA | F13: 104.6079253 | G13: 39.84303617 | H13: =IF(OR(E13="Independent",E13="2002 VIUS"),F13,AVERAGE(O13,X13)) -> 89.87900719 | I13: 0.4432963538 | J13: Straight Truck | K13: Linen, Parcel, Warehouse Delivery | L13: 6-7 | M13: T_Straight6-7LPW | N13: =IF(M13="","",_xlfn.PERCENTILE.INC(IF(fleetDNA[VMT_ID]=$M13,fleetDNA[distance_total]),Op_Range_Percentile)) -> 38.87076498 | O13: =IF(M13="","",_xlfn.PERCENTILE.INC(IF(fleetDNA[VMT_ID]=$M13,fleetDNA[distance_total]),Sizing_Range_Percentile)) -> 104.6079253 | P13: =IF(M13="","",MAX(IF(fleetDNA[VMT_ID]=$M13,fleetDNA[distance_total]))) -> 191.4906022 | T13: Box Truck, Straight Truck | U13: 6-7 | V13: T_BoxStraight6-7 | W13: =IF(V13="","",_xlfn.PERCENTILE.INC(IF(UCR[VMT ID]=$V13,UCR[MilesDrivenPerOperationDay]),Op_Range_Percentile)) -> 40.81530737 | X13: =IF(V13="","",_xlfn.PERCENTILE.INC(IF(UCR[VMT ID]=$V13,UCR[MilesDrivenPerOperationDay]),Sizing_Range_Percentile)) -> 75.15008912 | Y13: =IF(V13="","",MAX(IF(UCR[VMT ID]=$V13,UCR[MilesDrivenPerOperationDay]))) -> 113.5382344 | Z13: Single Unit Long-haul | AA13: 107
A14: 8 | B14: ='1_Veh Prop'!B14 -> 08T_Box_Cl6-7_R | C14: ='1_Veh Prop'!C14 -> T_Box_Cl6-7 | D14: ='1_Veh Prop'!H14 -> 6-7 | E14: FleetDNA | F14: 104.6079253 | G14: 39.84303617 | H14: =IF(OR(E14="Independent",E14="2002 VIUS"),F14,AVERAGE(O14,X14)) -> 89.87900719 | I14: 0.4432963538 | J14: Straight Truck | K14: Linen, Parcel, Warehouse Delivery | L14: 6-7 | M14: T_Straight6-7LPW | N14: =IF(M14="","",_xlfn.PERCENTILE.INC(IF(fleetDNA[VMT_ID]=$M14,fleetDNA[distance_total]),Op_Range_Percentile)) -> 38.87076498 | O14: =IF(M14="","",_xlfn.PERCENTILE.INC(IF(fleetDNA[VMT_ID]=$M14,fleetDNA[distance_total]),Sizing_Range_Percentile)) -> 104.6079253 | P14: =IF(M14="","",MAX(IF(fleetDNA[VMT_ID]=$M14,fleetDNA[distance_total]))) -> 191.4906022 | V14: T_BoxStraight6-7 | W14: =IF(V14="","",_xlfn.PERCENTILE.INC(IF(UCR[VMT ID]=$V14,UCR[MilesDrivenPerOperationDay]),Op_Range_Percentile)) -> 40.81530737 | X14: =IF(V14="","",_xlfn.PERCENTILE.INC(IF(UCR[VMT ID]=$V14,UCR[MilesDrivenPerOperationDay]),Sizing_Range_Percentile)) -> 75.15008912 | Y14: =IF(V14="","",MAX(IF(UCR[VMT ID]=$V14,UCR[MilesDrivenPerOperationDay]))) -> 113.5382344 | Z14: Single Unit Long-haul | AA14: 107
A15: 9 | B15: ='1_Veh Prop'!B15 -> 09T_Box_Cl8_U | C15: ='1_Veh Prop'!C15 -> T_Box_Cl8 | D15: ='1_Veh Prop'!H15 -> 8 | E15: 2002 VIUS | F15: 66 | G15: 66 | H15: =H12 -> 89.87900719 | I15: 0.7343205278 | N15: =IF(M15="","",_xlfn.PERCENTILE.INC(IF(fleetDNA[VMT_ID]=$M15,fleetDNA[distance_total]),Op_Range_Percentile)) ->  | O15: =IF(M15="","",_xlfn.PERCENTILE.INC(IF(fleetDNA[VMT_ID]=$M15,fleetDNA[distance_total]),Sizing_Range_Percentile)) ->  | P15: =IF(M15="","",MAX(IF(fleetDNA[VMT_ID]=$M15,fleetDNA[distance_total]))) ->  | Q15: Van, Step, Walk-in, or Multistop | R15: 16500 | S15: 66 | T15: Box Truck, Straight Truck | U15: 8 | V15: T_BoxStraight8 | W15: =IF(V15="","",_xlfn.PERCENTILE.INC(IF(UCR[VMT ID]=$V15,UCR[MilesDrivenPerOperationDay]),Op_Range_Percentile)) -> 81.66661906 | X15: =IF(V15="","",_xlfn.PERCENTILE.INC(IF(UCR[VMT ID]=$V15,UCR[MilesDrivenPerOperationDay]),Sizing_Range_Percentile)) -> 385.7341233 | Y15: =IF(V15="","",MAX(IF(UCR[VMT ID]=$V15,UCR[MilesDrivenPerOperationDay]))) -> 501.9260975 | Z15: Single Unit Long-haul | AA15: 107
... 18 more rows

Sheet A1a_fleetDNA_data (hidden)
A1: Return to Table of Contents
A2: vid | B2: did | C2: pid | D2: class_id | E2: voc_id | F2: type_id | G2: drive_id | H2: fuel_id | I2: day_id | J2: fleetDNA ID | K2: VMT_ID | L2: Class | M2: Vocation | N2: Type | O2: Drivetrain | P2: Fuel | Q2: trip_count | R2: distance_total | S2: Column1 | U2: Straight Truck | V2: Class 3 | AC2: Straight Truck | AD2: Class 5 | AK2: Straight Truck | AL2: Class 7 | AS2: Tractor | AT2: Class 8 | BA2: Tractor | BB2: Class 7 | BI2: Refuse Truck | BJ2: Class 8 | BQ2: School Bus | BR2: Class 6 | BY2: Step Van | BZ2: Walk In | CA2: Class 3 | CG2: Step Van | CH2: Walk In | CI2: Class 4 | CJ2: Class 5 | CO2: Step Van | CP2: Walk In | CQ2: Class 6 | CW2: City Transit Bus | CX2: Class 8 | DE2: City Transit Bus | DF2: Class 7 | DM2: Bucket Truck | DN2: Class 3 | DU2: Bucket Truck | DV2: Class 8 | ED2: Voc_id | EE2: Voc_id Description | EG2: type_id | EH2: type_id Description | EJ2: fuel_id | EK2: fuel_id Description | EM2: drive_id | EN2: drive_id Description
A3: 284 | B3: 32 | C3: 19 | D3: 3 | E3: 1 | F3: 2 | G3: 0 | H3: 0 | I3: 4 | J3: =CONCATENATE(VLOOKUP(fleetDNA[[#This Row],[Type]],'A98_Segment Match Up'!$A$28:$B$36,2,FALSE), fleetDNA[[#This Row],[Vocation]],RIGHT(fleetDNA[[#This Row],[Class]],1)) -> T_BucketTelecom3 | K3: =VLOOKUP(fleetDNA[[#This Row],[fleetDNA ID]],'A98_Segment Match Up'!$S$3:$T$26,2,FALSE) -> T_Bucket3T | L3: =IF(fleetDNA[[#This Row],[class_id]]=1,"Class 1",IF(fleetDNA[[#This Row],[class_id]]=2,"Class 2",IF(fleetDNA[[#This Row],[class_id]]=3,"Class 3",IF(fleetDNA[[#This Row],[class_id]]=4,"Class 4",IF(fleetDNA[[#This Row],[class_id]]=5,"Class 5",IF(fleetDNA[[#This Row],[class_id]]=6,"Class 6",IF(fleetDNA[[#This Row],[class_id]]=7,"Class 7",IF(fleetDNA[[#This Row],[class_id]]=8,"Class 8")))))))) -> Class 3 | M3: =VLOOKUP(fleetDNA[[#This Row],[voc_id]],A1a_fleetDNA_data!$ED$3:$EE$18,2,FALSE) -> Telecom | N3: =VLOOKUP(fleetDNA[[#This Row],[type_id]],A1a_fleetDNA_data!$EG$3:$EH$39,2,FALSE) -> Bucket Truck | O3: =VLOOKUP(fleetDNA[[#This Row],[drive_id]],A1a_fleetDNA_data!$EM$3:$EN$9,2,FALSE) -> Conventional | P3: =VLOOKUP(fleetDNA[[#This Row],[fuel_id]],A1a_fleetDNA_data!$EJ$3:$EK$6,2,FALSE) -> Gasoline | Q3: 11 | R3: 13.93450472 | U3: =_xlfn._xlws.FILTER(fleetDNA[[Class]:[distance_total]],(fleetDNA[Type]=U2)*(fleetDNA[Class]=V2)) -> Class 3 | V3: Food Delivery | W3: Straight Truck | X3: Conventional | Y3: Diesel | Z3: 5 | AA3: 52.76783499 | AC3: =_xlfn._xlws.FILTER(fleetDNA[[Class]:[distance_total]],(fleetDNA[Type]=AC2)*(fleetDNA[Class]=AD2)) -> Class 5 | AD3: Food Delivery | AE3: Straight Truck | AF3: Conventional | AG3: Diesel | AH3: 11 | AI3: 9.520855817 | AK3: =_xlfn._xlws.FILTER(fleetDNA[[Class]:[distance_total]],(fleetDNA[Type]=AK2)*(fleetDNA[Class]=AL2)) -> Class 7 | AL3: Parcel Delivery | AM3: Straight Truck | AN3: Conventional | AO3: Diesel | AP3: 4 | AQ3: 11.28923037 | AS3: =_xlfn._xlws.FILTER(fleetDNA[[Class]:[distance_total]],(fleetDNA[Type]=AS2)*(fleetDNA[Class]=AT2)) -> Class 8 | AT3: Beverage Delivery | AU3: Tractor | AV3: Parallel Hybrid | AW3: Diesel | AX3: 11 | AY3: 33.89814911 | BA3: =_xlfn._xlws.FILTER(fleetDNA[[Class]:[distance_total]],(fleetDNA[Type]=BA2)*(fleetDNA[Class]=BB2)) -> Class 7 | BB3: Beverage Delivery | BC3: Tractor | BD3: Conventional | BE3: Diesel | BF3: 9 | BG3: 38.40593089 | BI3: =_xlfn._xlws.FILTER(fleetDNA[[Class]:[distance_total]],(fleetDNA[Type]=BI2)*(fleetDNA[Class]=BJ2)) -> Class 8 | BJ3: Refuse Pickup | BK3: Refuse Truck | BL3: Conventional | BM3: CNG | BN3: 5 | BO3: 59.46978409 | BQ3: =_xlfn._xlws.FILTER(fleetDNA[[Class]:[distance_total]],(fleetDNA[Type]=BQ2)*(fleetDNA[Class]=BR2)) -> Class 6 | BR3: School Bus | BS3: School Bus | BT3: Conventional | BU3: Diesel | BV3: 2 | BW3: 96.92271309 | BY3: =_xlfn._xlws.FILTER(fleetDNA[[Class]:[distance_total]],((fleetDNA[Type]=BY2) + (fleetDNA[Type]=BZ2))*(fleetDNA[Class]=CA2)) -> Class 3 | BZ3: Parcel Delivery | CA3: Step Van | CB3: Conventional | CC3: Diesel | CD3: 9 | CE3: 62.71199667 | CG3: =_xlfn._xlws.FILTER(fleetDNA[[Class]:[distance_total]],((fleetDNA[Type]=CG2) + (fleetDNA[Type]=CH2))*((fleetDNA[Class]=CI2) + (fleetDNA[Class]=CJ2))) -> Class 4 | CH3: Parcel Delivery | CI3: Step Van | CJ3: Parallel Hybrid | CK3: Diesel | CL3: 22 | CM3: 28.94662289 | CO3: =_xlfn._xlws.FILTER(fleetDNA[[Class]:[distance_total]],((fleetDNA[Type]=CO2) + (fleetDNA[Type]=CP2))*(fleetDNA[Class]=CQ2)) -> Class 6 | CP3: Linen Delivery | CQ3: Step Van | CR3: Conventional | CS3: Diesel | CT3: 16 | CU3: 64.28718266 | CW3: =_xlfn._xlws.FILTER(fleetDNA[[Class]:[distance_total]],(fleetDNA[Type]=CW2)*(fleetDNA[Class]=CX2)) -> Class 8 | CX3: Mass Transit | CY3: City Transit Bus | CZ3: Parallel Hybrid | DA3: Diesel | DB3: 12 | DC3: 170.9788373 | DE3: =_xlfn._xlws.FILTER(fleetDNA[[Class]:[distance_total]],(fleetDNA[Type]=DE2)*(fleetDNA[Class]=DF2)) -> Class 7 | DF3: Mass Transit | DG3: City Transit Bus | DH3: Conventional | DI3: Diesel | DJ3: 4 | DK3: 172.9133262 | DM3: =_xlfn._xlws.FILTER(fleetDNA[[Class]:[distance_total]],(fleetDNA[Type]=DM2)*(fleetDNA[Class]=DN2)) -> Class 3 | DN3: Telecom | DO3: Bucket Truck | DP3: Conventional | DQ3: Gasoline | DR3: 11 | DS3: 13.93450472 | DU3: =_xlfn._xlws.FILTER(fleetDNA[[Class]:[distance_total]],(fleetDNA[Type]=DU2)*(fleetDNA[Class]=DV2)) -> Class 8 | DV3: Utility | DW3: Bucket Truck | DX3: Conventional | DY3: Diesel | DZ3: 2 | EA3: 14.51245125 | ED3: 1 | EE3: Telecom | EG3: 1 | EH3: Beverage | EJ3: 0 | EK3: Gasoline | EM3: 0 | EN3: Conventional
A4: 287 | B4: 32 | C4: 19 | D4: 3 | E4: 1 | F4: 2 | G4: 0 | H4: 0 | I4: 2 | J4: =CONCATENATE(VLOOKUP(fleetDNA[[#This Row],[Type]],'A98_Segment Match Up'!$A$28:$B$36,2,FALSE), fleetDNA[[#This Row],[Vocation]],RIGHT(fleetDNA[[#This Row],[Class]],1)) -> T_BucketTelecom3 | K4: =VLOOKUP(fleetDNA[[#This Row],[fleetDNA ID]],'A98_Segment Match Up'!$S$3:$T$26,2,FALSE) -> T_Bucket3T | L4: =IF(fleetDNA[[#This Row],[class_id]]=1,"Class 1",IF(fleetDNA[[#This Row],[class_id]]=2,"Class 2",IF(fleetDNA[[#This Row],[class_id]]=3,"Class 3",IF(fleetDNA[[#This Row],[class_id]]=4,"Class 4",IF(fleetDNA[[#This Row],[class_id]]=5,"Class 5",IF(fleetDNA[[#This Row],[class_id]]=6,"Class 6",IF(fleetDNA[[#This Row],[class_id]]=7,"Class 7",IF(fleetDNA[[#This Row],[class_id]]=8,"Class 8")))))))) -> Class 3 | M4: =VLOOKUP(fleetDNA[[#This Row],[voc_id]],A1a_fleetDNA_data!$ED$3:$EE$18,2,FALSE) -> Telecom | N4: =VLOOKUP(fleetDNA[[#This Row],[type_id]],A1a_fleetDNA_data!$EG$3:$EH$39,2,FALSE) -> Bucket Truck | O4: =VLOOKUP(fleetDNA[[#This Row],[drive_id]],A1a_fleetDNA_data!$EM$3:$EN$9,2,FALSE) -> Conventional | P4: =VLOOKUP(fleetDNA[[#This Row],[fuel_id]],A1a_fleetDNA_data!$EJ$3:$EK$6,2,FALSE) -> Gasoline | Q4: 9 | R4: 57.93692714 | U4: Class 3 | V4: Food Delivery | W4: Straight Truck | X4: Conventional | Y4: Diesel | Z4: 8 | AA4: 51.48381384 | AC4: Class 5 | AD4: Food Delivery | AE4: Straight Truck | AF4: Conventional | AG4: Diesel | AH4: 13 | AI4: 9.627238592 | AK4: Class 7 | AL4: Parcel Delivery | AM4: Straight Truck | AN4: Conventional | AO4: Diesel | AP4: 4 | AQ4: 11.56468493 | AS4: Class 8 | AT4: Beverage Delivery | AU4: Tractor | AV4: Parallel Hybrid | AW4: Diesel | AX4: 9 | AY4: 34.96441894 | BA4: Class 7 | BB4: Beverage Delivery | BC4: Tractor | BD4: Conventional | BE4: Diesel | BF4: 2 | BG4: 12.65277631 | BI4: Class 8 | BJ4: Refuse Pickup | BK4: Refuse Truck | BL4: Conventional | BM4: CNG | BN4: 2 | BO4: 27.06525248 | BQ4: Class 6 | BR4: School Bus | BS4: School Bus | BT4: Conventional | BU4: Diesel | BV4: 2 | BW4: 95.4840548 | BY4: Class 3 | BZ4: Parcel Delivery | CA4: Step Van | CB4: Conventional | CC4: Diesel | CD4: 9 | CE4: 87.39033939 | CG4: Class 4 | CH4: Parcel Delivery | CI4: Step Van | CJ4: Parallel Hybrid | CK4: Diesel | CL4: 23 | CM4: 35.42488208 | CO4: Class 6 | CP4: Linen Delivery | CQ4: Step Van | CR4: Conventional | CS4: Diesel | CT4: 16 | CU4: 71.50217006 | CW4: Class 8 | CX4: Mass Transit | CY4: City Transit Bus | CZ4: Parallel Hybrid | DA4: Diesel | DB4: 6 | DC4: 112.048103 | DE4: Class 7 | DF4: Mass Transit | DG4: City Transit Bus | DH4: Conventional | DI4: Diesel | DJ4: 1 | DK4: 22.29278553 | DM4: Class 3 | DN4: Telecom | DO4: Bucket Truck | DP4: Conventional | DQ4: Gasoline | DR4: 9 | DS4: 57.93692714 | DU4: Class 8 | DV4: Utility | DW4: Bucket Truck | DX4: Conventional | DY4: Diesel | DZ4: 1 | EA4: 14.24716946 | ED4: 2 | EE4: Beverage Delivery | EG4: 2 | EH4: Bucket Truck | EJ4: 1 | EK4: Diesel | EM4: 1 | EN4: Parallel Hybrid
A5: 287 | B5: 32 | C5: 19 | D5: 3 | E5: 1 | F5: 2 | G5: 0 | H5: 0 | I5: 3 | J5: =CONCATENATE(VLOOKUP(fleetDNA[[#This Row],[Type]],'A98_Segment Match Up'!$A$28:$B$36,2,FALSE), fleetDNA[[#This Row],[Vocation]],RIGHT(fleetDNA[[#This Row],[Class]],1)) -> T_BucketTelecom3 | K5: =VLOOKUP(fleetDNA[[#This Row],[fleetDNA ID]],'A98_Segment Match Up'!$S$3:$T$26,2,FALSE) -> T_Bucket3T | L5: =IF(fleetDNA[[#This Row],[class_id]]=1,"Class 1",IF(fleetDNA[[#This Row],[class_id]]=2,"Class 2",IF(fleetDNA[[#This Row],[class_id]]=3,"Class 3",IF(fleetDNA[[#This Row],[class_id]]=4,"Class 4",IF(fleetDNA[[#This Row],[class_id]]=5,"Class 5",IF(fleetDNA[[#This Row],[class_id]]=6,"Class 6",IF(fleetDNA[[#This Row],[class_id]]=7,"Class 7",IF(fleetDNA[[#This Row],[class_id]]=8,"Class 8")))))))) -> Class 3 | M5: =VLOOKUP(fleetDNA[[#This Row],[voc_id]],A1a_fleetDNA_data!$ED$3:$EE$18,2,FALSE) -> Telecom | N5: =VLOOKUP(fleetDNA[[#This Row],[type_id]],A1a_fleetDNA_data!$EG$3:$EH$39,2,FALSE) -> Bucket Truck | O5: =VLOOKUP(fleetDNA[[#This Row],[drive_id]],A1a_fleetDNA_data!$EM$3:$EN$9,2,FALSE) -> Conventional | P5: =VLOOKUP(fleetDNA[[#This Row],[fuel_id]],A1a_fleetDNA_data!$EJ$3:$EK$6,2,FALSE) -> Gasoline | Q5: 6 | R5: 65.37111505 | U5: Class 3 | V5: Food Delivery | W5: Straight Truck | X5: Conventional | Y5: Diesel | Z5: 6 | AA5: 51.52943549 | AC5: Class 5 | AD5: Food Delivery | AE5: Straight Truck | AF5: Conventional | AG5: Diesel | AH5: 10 | AI5: 9.707233563 | AK5: Class 7 | AL5: Parcel Delivery | AM5: Straight Truck | AN5: Conventional | AO5: Diesel | AP5: 7 | AQ5: 22.59012735 | AS5: Class 8 | AT5: Beverage Delivery | AU5: Tractor | AV5: Conventional | AW5: Diesel | AX5: 9 | AY5: 31.01700317 | BA5: Class 7 | BB5: Beverage Delivery | BC5: Tractor | BD5: Conventional | BE5: Diesel | BF5: 12 | BG5: 22.46011827 | BI5: Class 8 | BJ5: Refuse Pickup | BK5: Refuse Truck | BL5: Conventional | BM5: CNG | BN5: 4 | BO5: 76.07690487 | BQ5: Class 6 | BR5: School Bus | BS5: School Bus | BT5: Conventional | BU5: Diesel | BV5: 2 | BW5: 94.55433488 | BY5: Class 3 | BZ5: Parcel Delivery | CA5: Step Van | CB5: Conventional | CC5: Diesel | CD5: 7 | CE5: 58.85646273 | CG5: Class 4 | CH5: Parcel Delivery | CI5: Step Van | CJ5: Parallel Hybrid | CK5: Diesel | CL5: 22 | CM5: 27.65718757 | CO5: Class 6 | CP5: Linen Delivery | CQ5: Step Van | CR5: Conventional | CS5: Diesel | CT5: 10 | CU5: 61.45772859 | CW5: Class 8 | CX5: Mass Transit | CY5: City Transit Bus | CZ5: Parallel Hybrid | DA5: Diesel | DB5: 8 | DC5: 81.47384062 | DE5: Class 7 | DF5: Mass Transit | DG5: City Transit Bus | DH5: Conventional | DI5: Diesel | DJ5: 5 | DK5: 87.40021519 | DM5: Class 3 | DN5: Telecom | DO5: Bucket Truck | DP5: Conventional | DQ5: Gasoline | DR5: 6 | DS5: 65.37111505 | DU5: Class 8 | DV5: Utility | DW5: Bucket Truck | DX5: Conventional | DY5: Diesel | DZ5: 1 | EA5: 9.780273362 | ED5: 3 | EE5: Warehouse Delivery | EG5: 3 | EH5: Cement Mixer | EJ5: 2 | EK5: Electricity | EM5: 2 | EN5: Hydraulic Hybrid
A6: 288 | B6: 32 | C6: 19 | D6: 3 | E6: 1 | F6: 2 | G6: 0 | H6: 0 | I6: 2 | J6: =CONCATENATE(VLOOKUP(fleetDNA[[#This Row],[Type]],'A98_Segment Match Up'!$A$28:$B$36,2,FALSE), fleetDNA[[#This Row],[Vocation]],RIGHT(fleetDNA[[#This Row],[Class]],1)) -> T_BucketTelecom3 | K6: =VLOOKUP(fleetDNA[[#This Row],[fleetDNA ID]],'A98_Segment Match Up'!$S$3:$T$26,2,FALSE) -> T_Bucket3T | L6: =IF(fleetDNA[[#This Row],[class_id]]=1,"Class 1",IF(fleetDNA[[#This Row],[class_id]]=2,"Class 2",IF(fleetDNA[[#This Row],[class_id]]=3,"Class 3",IF(fleetDNA[[#This Row],[class_id]]=4,"Class 4",IF(fleetDNA[[#This Row],[class_id]]=5,"Class 5",IF(fleetDNA[[#This Row],[class_id]]=6,"Class 6",IF(fleetDNA[[#This Row],[class_id]]=7,"Class 7",IF(fleetDNA[[#This Row],[class_id]]=8,"Class 8")))))))) -> Class 3 | M6: =VLOOKUP(fleetDNA[[#This Row],[voc_id]],A1a_fleetDNA_data!$ED$3:$EE$18,2,FALSE) -> Telecom | N6: =VLOOKUP(fleetDNA[[#This Row],[type_id]],A1a_fleetDNA_data!$EG$3:$EH$39,2,FALSE) -> Bucket Truck | O6: =VLOOKUP(fleetDNA[[#This Row],[drive_id]],A1a_fleetDNA_data!$EM$3:$EN$9,2,FALSE) -> Conventional | P6: =VLOOKUP(fleetDNA[[#This Row],[fuel_id]],A1a_fleetDNA_data!$EJ$3:$EK$6,2,FALSE) -> Gasoline | Q6: 6 | R6: 34.93424813 | U6: Class 3 | V6: Food Delivery | W6: Straight Truck | X6: Conventional | Y6: Diesel | Z6: 4 | AA6: 51.7318946 | AC6: Class 5 | AD6: Food Delivery | AE6: Straight Truck | AF6: Conventional | AG6: Diesel | AH6: 10 | AI6: 12.45501416 | AK6: Class 7 | AL6: Parcel Delivery | AM6: Straight Truck | AN6: Conventional | AO6: Diesel | AP6: 6 | AQ6: 23.39759926 | AS6: Class 8 | AT6: Beverage Delivery | AU6: Tractor | AV6: Conventional | AW6: Diesel | AX6: 10 | AY6: 43.97458388 | BA6: Class 7 | BB6: Beverage Delivery | BC6: Tractor | BD6: Conventional | BE6: Diesel | BF6: 7 | BG6: 26.03628015 | BI6: Class 8 | BJ6: Refuse Pickup | BK6: Refuse Truck | BL6: Conventional | BM6: CNG | BN6: 2 | BO6: 59.07737509 | BQ6: Class 6 | BR6: School Bus | BS6: School Bus | BT6: Conventional | BU6: Diesel | BV6: 4 | BW6: 82.87392938 | BY6: Class 3 | BZ6: Parcel Delivery | CA6: Step Van | CB6: Conventional | CC6: Diesel | CD6: 3 | CE6: 37.00075641 | CG6: Class 4 | CH6: Parcel Delivery | CI6: Step Van | CJ6: Parallel Hybrid | CK6: Diesel | CL6: 9 | CM6: 59.20806785 | CO6: Class 6 | CP6: Linen Delivery | CQ6: Step Van | CR6: Conventional | CS6: Diesel | CT6: 13 | CU6: 74.66619908 | CW6: Class 8 | CX6: Mass Transit | CY6: City Transit Bus | CZ6: Parallel Hybrid | DA6: Diesel | DB6: 8 | DC6: 195.5137734 | DE6: Class 7 | DF6: Mass Transit | DG6: City Transit Bus | DH6: Conventional | DI6: Diesel | DJ6: 3 | DK6: 148.8970894 | DM6: Class 3 | DN6: Telecom | DO6: Bucket Truck | DP6: Conventional | DQ6: Gasoline | DR6: 6 | DS6: 34.93424813 | DU6: Class 8 | DV6: Utility | DW6: Bucket Truck | DX6: Conventional | DY6: Diesel | DZ6: 4 | EA6: 31.81472914 | ED6: 4 | EE6: Parcel Delivery | EG6: 4 | EH6: City Delivery | EJ6: 3 | EK6: CNG | EM6: 3 | EN6: Series Hybrid
A7: 291 | B7: 32 | C7: 19 | D7: 3 | E7: 1 | F7: 2 | G7: 0 | H7: 0 | I7: 2 | J7: =CONCATENATE(VLOOKUP(fleetDNA[[#This Row],[Type]],'A98_Segment Match Up'!$A$28:$B$36,2,FALSE), fleetDNA[[#This Row],[Vocation]],RIGHT(fleetDNA[[#This Row],[Class]],1)) -> T_BucketTelecom3 | K7: =VLOOKUP(fleetDNA[[#This Row],[fleetDNA ID]],'A98_Segment Match Up'!$S$3:$T$26,2,FALSE) -> T_Bucket3T | L7: =IF(fleetDNA[[#This Row],[class_id]]=1,"Class 1",IF(fleetDNA[[#This Row],[class_id]]=2,"Class 2",IF(fleetDNA[[#This Row],[class_id]]=3,"Class 3",IF(fleetDNA[[#This Row],[class_id]]=4,"Class 4",IF(fleetDNA[[#This Row],[class_id]]=5,"Class 5",IF(fleetDNA[[#This Row],[class_id]]=6,"Class 6",IF(fleetDNA[[#This Row],[class_id]]=7,"Class 7",IF(fleetDNA[[#This Row],[class_id]]=8,"Class 8")))))))) -> Class 3 | M7: =VLOOKUP(fleetDNA[[#This Row],[voc_id]],A1a_fleetDNA_data!$ED$3:$EE$18,2,FALSE) -> Telecom | N7: =VLOOKUP(fleetDNA[[#This Row],[type_id]],A1a_fleetDNA_data!$EG$3:$EH$39,2,FALSE) -> Bucket Truck | O7: =VLOOKUP(fleetDNA[[#This Row],[drive_id]],A1a_fleetDNA_data!$EM$3:$EN$9,2,FALSE) -> Conventional | P7: =VLOOKUP(fleetDNA[[#This Row],[fuel_id]],A1a_fleetDNA_data!$EJ$3:$EK$6,2,FALSE) -> Gasoline | Q7: 1 | R7: 53.60532154 | U7: Class 3 | V7: Food Delivery | W7: Straight Truck | X7: Conventional | Y7: Diesel | Z7: 6 | AA7: 51.6054078 | AC7: Class 5 | AD7: Food Delivery | AE7: Straight Truck | AF7: Conventional | AG7: Diesel | AH7: 8 | AI7: 10.95826589 | AK7: Class 7 | AL7: Parcel Delivery | AM7: Straight Truck | AN7: Conventional | AO7: Diesel | AP7: 3 | AQ7: 12.03673083 | AS7: Class 8 | AT7: Beverage Delivery | AU7: Tractor | AV7: Conventional | AW7: Diesel | AX7: 13 | AY7: 60.83531809 | BA7: Class 7 | BB7: Beverage Delivery | BC7: Tractor | BD7: Conventional | BE7: Diesel | BF7: 10 | BG7: 45.15137404 | BI7: Class 8 | BJ7: Refuse Pickup | BK7: Refuse Truck | BL7: Conventional | BM7: CNG | BN7: 1 | BO7: 74.43535355 | BQ7: Class 6 | BR7: School Bus | BS7: School Bus | BT7: Conventional | BU7: Diesel | BV7: 3 | BW7: 83.23788809 | BY7: Class 3 | BZ7: Parcel Delivery | CA7: Step Van | CB7: Conventional | CC7: Diesel | CD7: 11 | CE7: 71.35249628 | CG7: Class 4 | CH7: Parcel Delivery | CI7: Step Van | CJ7: Parallel Hybrid | CK7: Diesel | CL7: 8 | CM7: 49.33685352 | CO7: Class 6 | CP7: Linen Delivery | CQ7: Step Van | CR7: Conventional | CS7: Diesel | CT7: 17 | CU7: 55.08838186 | CW7: Class 8 | CX7: Mass Transit | CY7: City Transit Bus | CZ7: Parallel Hybrid | DA7: Diesel | DB7: 4 | DC7: 41.09576907 | DE7: Class 7 | DF7: Mass Transit | DG7: City Transit Bus | DH7: Conventional | DI7: Diesel | DJ7: 7 | DK7: 40.31895756 | DM7: Class 3 | DN7: Telecom | DO7: Bucket Truck | DP7: Conventional | DQ7: Gasoline | DR7: 1 | DS7: 53.60532154 | DU7: Class 8 | DV7: Utility | DW7: Bucket Truck | DX7: Conventional | DY7: Diesel | DZ7: 1 | EA7: 6.901991691 | ED7: 5 | EE7: School Bus | EG7: 5 | EH7: City Transit Bus | EM7: 4 | EN7: Hybrid
A8: 291 | B8: 32 | C8: 19 | D8: 3 | E8: 1 | F8: 2 | G8: 0 | H8: 0 | I8: 3 | J8: =CONCATENATE(VLOOKUP(fleetDNA[[#This Row],[Type]],'A98_Segment Match Up'!$A$28:$B$36,2,FALSE), fleetDNA[[#This Row],[Vocation]],RIGHT(fleetDNA[[#This Row],[Class]],1)) -> T_BucketTelecom3 | K8: =VLOOKUP(fleetDNA[[#This Row],[fleetDNA ID]],'A98_Segment Match Up'!$S$3:$T$26,2,FALSE) -> T_Bucket3T | L8: =IF(fleetDNA[[#This Row],[class_id]]=1,"Class 1",IF(fleetDNA[[#This Row],[class_id]]=2,"Class 2",IF(fleetDNA[[#This Row],[class_id]]=3,"Class 3",IF(fleetDNA[[#This Row],[class_id]]=4,"Class 4",IF(fleetDNA[[#This Row],[class_id]]=5,"Class 5",IF(fleetDNA[[#This Row],[class_id]]=6,"Class 6",IF(fleetDNA[[#This Row],[class_id]]=7,"Class 7",IF(fleetDNA[[#This Row],[class_id]]=8,"Class 8")))))))) -> Class 3 | M8: =VLOOKUP(fleetDNA[[#This Row],[voc_id]],A1a_fleetDNA_data!$ED$3:$EE$18,2,FALSE) -> Telecom | N8: =VLOOKUP(fleetDNA[[#This Row],[type_id]],A1a_fleetDNA_data!$EG$3:$EH$39,2,FALSE) -> Bucket Truck | O8: =VLOOKUP(fleetDNA[[#This Row],[drive_id]],A1a_fleetDNA_data!$EM$3:$EN$9,2,FALSE) -> Conventional | P8: =VLOOKUP(fleetDNA[[#This Row],[fuel_id]],A1a_fleetDNA_data!$EJ$3:$EK$6,2,FALSE) -> Gasoline | Q8: 7 | R8: 65.63117475 | U8: Class 3 | V8: Food Delivery | W8: Straight Truck | X8: Conventional | Y8: Diesel | Z8: 7 | AA8: 51.57410913 | AC8: Class 5 | AD8: Food Delivery | AE8: Straight Truck | AF8: Conventional | AG8: Diesel | AH8: 11 | AI8: 9.546133573 | AK8: Class 7 | AL8: Parcel Delivery | AM8: Straight Truck | AN8: Conventional | AO8: Diesel | AP8: 5 | AQ8: 11.62236649 | AS8: Class 8 | AT8: Beverage Delivery | AU8: Tractor | AV8: Conventional | AW8: Diesel | AX8: 11 | AY8: 48.15703399 | BA8: Class 7 | BB8: Food Delivery | BC8: Tractor | BD8: Parallel Hybrid | BE8: Diesel | BF8: 19 | BG8: 85.08828914 | BI8: Class 8 | BJ8: Refuse Pickup | BK8: Refuse Truck | BL8: Conventional | BM8: CNG | BN8: 4 | BO8: 48.0710005 | BQ8: Class 6 | BR8: School Bus | BS8: School Bus | BT8: Conventional | BU8: Diesel | BV8: 7 | BW8: 72.61449437 | BY8: Class 3 | BZ8: Parcel Delivery | CA8: Step Van | CB8: Conventional | CC8: Diesel | CD8: 8 | CE8: 63.70921046 | CG8: Class 4 | CH8: Parcel Delivery | CI8: Step Van | CJ8: Parallel Hybrid | CK8: Diesel | CL8: 6 | CM8: 47.34594923 | CO8: Class 6 | CP8: Linen Delivery | CQ8: Step Van | CR8: Conventional | CS8: Diesel | CT8: 17 | CU8: 61.65123295 | CW8: Class 8 | CX8: Mass Transit | CY8: City Transit Bus | CZ8: Parallel Hybrid | DA8: Diesel | DB8: 6 | DC8: 101.4459402 | DE8: Class 7 | DF8: Mass Transit | DG8: City Transit Bus | DH8: Conventional | DI8: Diesel | DJ8: 3 | DK8: 122.8984561 | DM8: Class 3 | DN8: Telecom | DO8: Bucket Truck | DP8: Conventional | DQ8: Gasoline | DR8: 7 | DS8: 65.63117475 | DU8: Class 8 | DV8: Utility | DW8: Bucket Truck | DX8: Conventional | DY8: Diesel | DZ8: 7 | EA8: 12.30439925 | ED8: 6 | EE8: Linen Delivery | EG8: 6 | EH8: Conventional Van | EM8: 5 | EN8: Electric
A9: 291 | B9: 32 | C9: 19 | D9: 3 | E9: 1 | F9: 2 | G9: 0 | H9: 0 | I9: 4 | J9: =CONCATENATE(VLOOKUP(fleetDNA[[#This Row],[Type]],'A98_Segment Match Up'!$A$28:$B$36,2,FALSE), fleetDNA[[#This Row],[Vocation]],RIGHT(fleetDNA[[#This Row],[Class]],1)) -> T_BucketTelecom3 | K9: =VLOOKUP(fleetDNA[[#This Row],[fleetDNA ID]],'A98_Segment Match Up'!$S$3:$T$26,2,FALSE) -> T_Bucket3T | L9: =IF(fleetDNA[[#This Row],[class_id]]=1,"Class 1",IF(fleetDNA[[#This Row],[class_id]]=2,"Class 2",IF(fleetDNA[[#This Row],[class_id]]=3,"Class 3",IF(fleetDNA[[#This Row],[class_id]]=4,"Class 4",IF(fleetDNA[[#This Row],[class_id]]=5,"Class 5",IF(fleetDNA[[#This Row],[class_id]]=6,"Class 6",IF(fleetDNA[[#This Row],[class_id]]=7,"Class 7",IF(fleetDNA[[#This Row],[class_id]]=8,"Class 8")))))))) -> Class 3 | M9: =VLOOKUP(fleetDNA[[#This Row],[voc_id]],A1a_fleetDNA_data!$ED$3:$EE$18,2,FALSE) -> Telecom | N9: =VLOOKUP(fleetDNA[[#This Row],[type_id]],A1a_fleetDNA_data!$EG$3:$EH$39,2,FALSE) -> Bucket Truck | O9: =VLOOKUP(fleetDNA[[#This Row],[drive_id]],A1a_fleetDNA_data!$EM$3:$EN$9,2,FALSE) -> Conventional | P9: =VLOOKUP(fleetDNA[[#This Row],[fuel_id]],A1a_fleetDNA_data!$EJ$3:$EK$6,2,FALSE) -> Gasoline | Q9: 6 | R9: 46.22251207 | U9: Class 3 | V9: Food Delivery | W9: Straight Truck | X9: Conventional | Y9: Diesel | Z9: 6 | AA9: 51.48266891 | AC9: Class 5 | AD9: Food Delivery | AE9: Straight Truck | AF9: Conventional | AG9: Diesel | AH9: 8 | AI9: 9.973609121 | AK9: Class 7 | AL9: Parcel Delivery | AM9: Straight Truck | AN9: Conventional | AO9: Diesel | AP9: 8 | AQ9: 22.81928991 | AS9: Class 8 | AT9: Beverage Delivery | AU9: Tractor | AV9: Conventional | AW9: Diesel | AX9: 13 | AY9: 44.79612676 | BA9: Class 7 | BB9: Food Delivery | BC9: Tractor | BD9: Parallel Hybrid | BE9: Diesel | BF9: 15 | BG9: 5.493378773 | BI9: Class 8 | BJ9: Refuse Pickup | BK9: Refuse Truck | BL9: Conventional | BM9: CNG | BN9: 3 | BO9: 59.33973821 | BQ9: Class 6 | BR9: School Bus | BS9: School Bus | BT9: Conventional | BU9: Diesel | BV9: 3 | BW9: 82.28322232 | BY9: Class 3 | BZ9: Parcel Delivery | CA9: Step Van | CB9: Conventional | CC9: Diesel | CD9: 7 | CE9: 54.59587747 | CG9: Class 4 | CH9: Parcel Delivery | CI9: Step Van | CJ9: Conventional | CK9: Diesel | CL9: 16 | CM9: 107.6798622 | CO9: Class 6 | CP9: Linen Delivery | CQ9: Step Van | CR9: Conventional | CS9: Diesel | CT9: 16 | CU9: 73.54571518 | CW9: Class 8 | CX9: Mass Transit | CY9: City Transit Bus | CZ9: Parallel Hybrid | DA9: Diesel | DB9: 12 | DC9: 208.9709325 | DE9: Class 7 | DF9: Mass Transit | DG9: City Transit Bus | DH9: Conventional | DI9: Diesel | DJ9: 3 | DK9: 164.0490635 | DM9: Class 3 | DN9: Telecom | DO9: Bucket Truck | DP9: Conventional | DQ9: Gasoline | DR9: 6 | DS9: 46.22251207 | DU9: Class 8 | DV9: Utility | DW9: Bucket Truck | DX9: Conventional | DY9: Diesel | DZ9: 1 | EA9: 10.93590459 | ED9: 7 | EE9: Refuse Pickup | EG9: 7 | EH9: Crew Size Pickup | EM9: 6 | EN9: Hybrid Electric
A10: 291 | B10: 32 | C10: 19 | D10: 3 | E10: 1 | F10: 2 | G10: 0 | H10: 0 | I10: 5 | J10: =CONCATENATE(VLOOKUP(fleetDNA[[#This Row],[Type]],'A98_Segment Match Up'!$A$28:$B$36,2,FALSE), fleetDNA[[#This Row],[Vocation]],RIGHT(fleetDNA[[#This Row],[Class]],1)) -> T_BucketTelecom3 | K10: =VLOOKUP(fleetDNA[[#This Row],[fleetDNA ID]],'A98_Segment Match Up'!$S$3:$T$26,2,FALSE) -> T_Bucket3T | L10: =IF(fleetDNA[[#This Row],[class_id]]=1,"Class 1",IF(fleetDNA[[#This Row],[class_id]]=2,"Class 2",IF(fleetDNA[[#This Row],[class_id]]=3,"Class 3",IF(fleetDNA[[#This Row],[class_id]]=4,"Class 4",IF(fleetDNA[[#This Row],[class_id]]=5,"Class 5",IF(fleetDNA[[#This Row],[class_id]]=6,"Class 6",IF(fleetDNA[[#This Row],[class_id]]=7,"Class 7",IF(fleetDNA[[#This Row],[class_id]]=8,"Class 8")))))))) -> Class 3 | M10: =VLOOKUP(fleetDNA[[#This Row],[voc_id]],A1a_fleetDNA_data!$ED$3:$EE$18,2,FALSE) -> Telecom | N10: =VLOOKUP(fleetDNA[[#This Row],[type_id]],A1a_fleetDNA_data!$EG$3:$EH$39,2,FALSE) -> Bucket Truck | O10: =VLOOKUP(fleetDNA[[#This Row],[drive_id]],A1a_fleetDNA_data!$EM$3:$EN$9,2,FALSE) -> Conventional | P10: =VLOOKUP(fleetDNA[[#This Row],[fuel_id]],A1a_fleetDNA_data!$EJ$3:$EK$6,2,FALSE) -> Gasoline | Q10: 5 | R10: 49.82353491 | U10: Class 3 | V10: Food Delivery | W10: Straight Truck | X10: Conventional | Y10: Diesel | Z10: 6 | AA10: 51.40823222 | AC10: Class 5 | AD10: Food Delivery | AE10: Straight Truck | AF10: Conventional | AG10: Diesel | AH10: 9 | AI10: 9.541131028 | AK10: Class 7 | AL10: Parcel Delivery | AM10: Straight Truck | AN10: Conventional | AO10: Diesel | AP10: 6 | AQ10: 22.57730853 | AS10: Class 8 | AT10: Beverage Delivery | AU10: Tractor | AV10: Conventional | AW10: Diesel | AX10: 3 | AY10: 25.37834048 | BA10: Class 7 | BB10: Food Delivery | BC10: Tractor | BD10: Parallel Hybrid | BE10: Diesel | BF10: 7 | BG10: 18.73967097 | BI10: Class 8 | BJ10: Refuse Pickup | BK10: Refuse Truck | BL10: Conventional | BM10: CNG | BN10: 3 | BO10: 87.23639123 | BQ10: Class 6 | BR10: School Bus | BS10: School Bus | BT10: Conventional | BU10: Diesel | BV10: 4 | BW10: 39.98677267 | BY10: Class 3 | BZ10: Parcel Delivery | CA10: Step Van | CB10: Conventional | CC10: Diesel | CD10: 12 | CE10: 74.55508177 | CG10: Class 4 | CH10: Parcel Delivery | CI10: Step Van | CJ10: Conventional | CK10: Diesel | CL10: 17 | CM10: 95.8871436 | CO10: Class 6 | CP10: Linen Delivery | CQ10: Step Van | CR10: Conventional | CS10: Diesel | CT10: 13 | CU10: 62.11329276 | CW10: Class 8 | CX10: Mass Transit | CY10: City Transit Bus | CZ10: Parallel Hybrid | DA10: Diesel | DB10: 9 | DC10: 97.54971468 | DE10: Class 7 | DF10: Mass Transit | DG10: City Transit Bus | DH10: Conventional | DI10: Diesel | DJ10: 4 | DK10: 175.2891275 | DM10: Class 3 | DN10: Telecom | DO10: Bucket Truck | DP10: Conventional | DQ10: Gasoline | DR10: 5 | DS10: 49.82353491 | DU10: Class 8 | DV10: Utility | DW10: Bucket Truck | DX10: Conventional | DY10: Diesel | DZ10: 1 | EA10: 17.58698331 | ED10: 8 | EE10: Long Haul | EG10: 8 | EH10: Dump
A11: 291 | B11: 32 | C11: 19 | D11: 3 | E11: 1 | F11: 2 | G11: 0 | H11: 0 | I11: 6 | J11: =CONCATENATE(VLOOKUP(fleetDNA[[#This Row],[Type]],'A98_Segment Match Up'!$A$28:$B$36,2,FALSE), fleetDNA[[#This Row],[Vocation]],RIGHT(fleetDNA[[#This Row],[Class]],1)) -> T_BucketTelecom3 | K11: =VLOOKUP(fleetDNA[[#This Row],[fleetDNA ID]],'A98_Segment Match Up'!$S$3:$T$26,2,FALSE) -> T_Bucket3T | L11: =IF(fleetDNA[[#This Row],[class_id]]=1,"Class 1",IF(fleetDNA[[#This Row],[class_id]]=2,"Class 2",IF(fleetDNA[[#This Row],[class_id]]=3,"Class 3",IF(fleetDNA[[#This Row],[class_id]]=4,"Class 4",IF(fleetDNA[[#This Row],[class_id]]=5,"Class 5",IF(fleetDNA[[#This Row],[class_id]]=6,"Class 6",IF(fleetDNA[[#This Row],[class_id]]=7,"Class 7",IF(fleetDNA[[#This Row],[class_id]]=8,"Class 8")))))))) -> Class 3 | M11: =VLOOKUP(fleetDNA[[#This Row],[voc_id]],A1a_fleetDNA_data!$ED$3:$EE$18,2,FALSE) -> Telecom | N11: =VLOOKUP(fleetDNA[[#This Row],[type_id]],A1a_fleetDNA_data!$EG$3:$EH$39,2,FALSE) -> Bucket Truck | O11: =VLOOKUP(fleetDNA[[#This Row],[drive_id]],A1a_fleetDNA_data!$EM$3:$EN$9,2,FALSE) -> Conventional | P11: =VLOOKUP(fleetDNA[[#This Row],[fuel_id]],A1a_fleetDNA_data!$EJ$3:$EK$6,2,FALSE) -> Gasoline | Q11: 6 | R11: 84.42057386 | U11: Class 3 | V11: Food Delivery | W11: Straight Truck | X11: Conventional | Y11: Diesel | Z11: 7 | AA11: 51.90337679 | AC11: Class 5 | AD11: Food Delivery | AE11: Straight Truck | AF11: Conventional | AG11: Diesel | AH11: 11 | AI11: 10.06629054 | AK11: Class 7 | AL11: Parcel Delivery | AM11: Straight Truck | AN11: Conventional | AO11: Diesel | AP11: 4 | AQ11: 11.53940587 | AS11: Class 8 | AT11: Beverage Delivery | AU11: Tractor | AV11: Conventional | AW11: Diesel | AX11: 10 | AY11: 78.13487239 | BA11: Class 7 | BB11: Food Delivery | BC11: Tractor | BD11: Parallel Hybrid | BE11: Diesel | BF11: 17 | BG11: 14.38571201 | BI11: Class 8 | BJ11: Refuse Pickup | BK11: Refuse Truck | BL11: Conventional | BM11: CNG | BN11: 3 | BO11: 49.23760761 | BQ11: Class 6 | BR11: School Bus | BS11: School Bus | BT11: Conventional | BU11: Diesel | BV11: 6 | BW11: 49.68382827 | BY11: Class 3 | BZ11: Parcel Delivery | CA11: Step Van | CB11: Conventional | CC11: Diesel | CD11: 3 | CE11: 33.30598381 | CG11: Class 4 | CH11: Parcel Delivery | CI11: Step Van | CJ11: Conventional | CK11: Diesel | CL11: 17 | CM11: 96.65516735 | CO11: Class 6 | CP11: Linen Delivery | CQ11: Step Van | CR11: Conventional | CS11: Diesel | CT11: 11 | CU11: 73.37989083 | CW11: Class 8 | CX11: Mass Transit | CY11: City Transit Bus | CZ11: Parallel Hybrid | DA11: Diesel | DB11: 12 | DC11: 146.9720415 | DE11: Class 7 | DF11: Mass Transit | DG11: City Transit Bus | DH11: Conventional | DI11: Diesel | DJ11: 3 | DK11: 166.5590879 | DM11: Class 3 | DN11: Telecom | DO11: Bucket Truck | DP11: Conventional | DQ11: Gasoline | DR11: 6 | DS11: 84.42057386 | DU11: Class 8 | DV11: Utility | DW11: Bucket Truck | DX11: Conventional | DY11: Diesel | DZ11: 3 | EA11: 15.04514932 | ED11: 10 | EE11: Mass Transit | EG11: 9 | EH11: Fire Truck
A12: 291 | B12: 32 | C12: 19 | D12: 3 | E12: 1 | F12: 2 | G12: 0 | H12: 0 | I12: 7 | J12: =CONCATENATE(VLOOKUP(fleetDNA[[#This Row],[Type]],'A98_Segment Match Up'!$A$28:$B$36,2,FALSE), fleetDNA[[#This Row],[Vocation]],RIGHT(fleetDNA[[#This Row],[Class]],1)) -> T_BucketTelecom3 | K12: =VLOOKUP(fleetDNA[[#This Row],[fleetDNA ID]],'A98_Segment Match Up'!$S$3:$T$26,2,FALSE) -> T_Bucket3T | L12: =IF(fleetDNA[[#This Row],[class_id]]=1,"Class 1",IF(fleetDNA[[#This Row],[class_id]]=2,"Class 2",IF(fleetDNA[[#This Row],[class_id]]=3,"Class 3",IF(fleetDNA[[#This Row],[class_id]]=4,"Class 4",IF(fleetDNA[[#This Row],[class_id]]=5,"Class 5",IF(fleetDNA[[#This Row],[class_id]]=6,"Class 6",IF(fleetDNA[[#This Row],[class_id]]=7,"Class 7",IF(fleetDNA[[#This Row],[class_id]]=8,"Class 8")))))))) -> Class 3 | M12: =VLOOKUP(fleetDNA[[#This Row],[voc_id]],A1a_fleetDNA_data!$ED$3:$EE$18,2,FALSE) -> Telecom | N12: =VLOOKUP(fleetDNA[[#This Row],[type_id]],A1a_fleetDNA_data!$EG$3:$EH$39,2,FALSE) -> Bucket Truck | O12: =VLOOKUP(fleetDNA[[#This Row],[drive_id]],A1a_fleetDNA_data!$EM$3:$EN$9,2,FALSE) -> Conventional | P12: =VLOOKUP(fleetDNA[[#This Row],[fuel_id]],A1a_fleetDNA_data!$EJ$3:$EK$6,2,FALSE) -> Gasoline | Q12: 5 | R12: 67.65258843 | U12: Class 3 | V12: Food Delivery | W12: Straight Truck | X12: Conventional | Y12: Diesel | Z12: 6 | AA12: 51.58202118 | AC12: Class 5 | AD12: Food Delivery | AE12: Straight Truck | AF12: Conventional | AG12: Diesel | AH12: 9 | AI12: 9.683102121 | AK12: Class 7 | AL12: Parcel Delivery | AM12: Straight Truck | AN12: Conventional | AO12: Diesel | AP12: 5 | AQ12: 11.0866963 | AS12: Class 8 | AT12: Beverage Delivery | AU12: Tractor | AV12: Conventional | AW12: Diesel | AX12: 8 | AY12: 65.46811129 | BA12: Class 7 | BB12: Food Delivery | BC12: Tractor | BD12: Parallel Hybrid | BE12: Diesel | BF12: 17 | BG12: 128.7840473 | BI12: Class 8 | BJ12: Refuse Pickup | BK12: Refuse Truck | BL12: Conventional | BM12: CNG | BN12: 4 | BO12: 73.30939832 | BQ12: Class 6 | BR12: School Bus | BS12: School Bus | BT12: Conventional | BU12: Diesel | BV12: 9 | BW12: 49.82268285 | BY12: Class 3 | BZ12: Parcel Delivery | CA12: Step Van | CB12: Conventional | CC12: Diesel | CD12: 7 | CE12: 63.0433243 | CG12: Class 4 | CH12: Parcel Delivery | CI12: Step Van | CJ12: Conventional | CK12: Diesel | CL12: 4 | CM12: 45.35375635 | CO12: Class 6 | CP12: Linen Delivery | CQ12: Step Van | CR12: Conventional | CS12: Diesel | CT12: 15 | CU12: 61.12247332 | CW12: Class 8 | CX12: Mass Transit | CY12: City Transit Bus | CZ12: Parallel Hybrid | DA12: Diesel | DB12: 15 | DC12: 68.54433187 | DE12: Class 7 | DF12: Mass Transit | DG12: City Transit Bus | DH12: Conventional | DI12: Diesel | DJ12: 3 | DK12: 126.1691805 | DM12: Class 3 | DN12: Telecom | DO12: Bucket Truck | DP12: Conventional | DQ12: Gasoline | DR12: 5 | DS12: 67.65258843 | DU12: Class 8 | DV12: Utility | DW12: Bucket Truck | DX12: Conventional | DY12: Diesel | DZ12: 3 | EA12: 7.424088857 | ED12: 11 | EE12: Towing | EG12: 10 | EH12: Fuel
A13: 291 | B13: 32 | C13: 19 | D13: 3 | E13: 1 | F13: 2 | G13: 0 | H13: 0 | I13: 8 | J13: =CONCATENATE(VLOOKUP(fleetDNA[[#This Row],[Type]],'A98_Segment Match Up'!$A$28:$B$36,2,FALSE), fleetDNA[[#This Row],[Vocation]],RIGHT(fleetDNA[[#This Row],[Class]],1)) -> T_BucketTelecom3 | K13: =VLOOKUP(fleetDNA[[#This Row],[fleetDNA ID]],'A98_Segment Match Up'!$S$3:$T$26,2,FALSE) -> T_Bucket3T | L13: =IF(fleetDNA[[#This Row],[class_id]]=1,"Class 1",IF(fleetDNA[[#This Row],[class_id]]=2,"Class 2",IF(fleetDNA[[#This Row],[class_id]]=3,"Class 3",IF(fleetDNA[[#This Row],[class_id]]=4,"Class 4",IF(fleetDNA[[#This Row],[class_id]]=5,"Class 5",IF(fleetDNA[[#This Row],[class_id]]=6,"Class 6",IF(fleetDNA[[#This Row],[class_id]]=7,"Class 7",IF(fleetDNA[[#This Row],[class_id]]=8,"Class 8")))))))) -> Class 3 | M13: =VLOOKUP(fleetDNA[[#This Row],[voc_id]],A1a_fleetDNA_data!$ED$3:$EE$18,2,FALSE) -> Telecom | N13: =VLOOKUP(fleetDNA[[#This Row],[type_id]],A1a_fleetDNA_data!$EG$3:$EH$39,2,FALSE) -> Bucket Truck | O13: =VLOOKUP(fleetDNA[[#This Row],[drive_id]],A1a_fleetDNA_data!$EM$3:$EN$9,2,FALSE) -> Conventional | P13: =VLOOKUP(fleetDNA[[#This Row],[fuel_id]],A1a_fleetDNA_data!$EJ$3:$EK$6,2,FALSE) -> Gasoline | Q13: 4 | R13: 51.00329747 | U13: Class 3 | V13: Food Delivery | W13: Straight Truck | X13: Conventional | Y13: Diesel | Z13: 4 | AA13: 51.86070864 | AC13: Class 5 | AD13: Food Delivery | AE13: Straight Truck | AF13: Conventional | AG13: Diesel | AH13: 11 | AI13: 10.30844267 | AK13: Class 7 | AL13: Parcel Delivery | AM13: Straight Truck | AN13: Conventional | AO13: Diesel | AP13: 5 | AQ13: 11.43068681 | AS13: Class 8 | AT13: Beverage Delivery | AU13: Tractor | AV13: Conventional | AW13: Diesel | AX13: 13 | AY13: 29.37731186 | BA13: Class 7 | BB13: Food Delivery | BC13: Tractor | BD13: Parallel Hybrid | BE13: Diesel | BF13: 14 | BG13: 5.57741512 | BI13: Class 8 | BJ13: Refuse Pickup | BK13: Refuse Truck | BL13: Conventional | BM13: CNG | BN13: 4 | BO13: 43.06335575 | BQ13: Class 6 | BR13: School Bus | BS13: School Bus | BT13: Conventional | BU13: Diesel | BV13: 8 | BW13: 49.74162234 | BY13: Class 3 | BZ13: Parcel Delivery | CA13: Step Van | CB13: Conventional | CC13: Diesel | CD13: 7 | CE13: 68.13293365 | CG13: Class 4 | CH13: Parcel Delivery | CI13: Step Van | CJ13: Conventional | CK13: Diesel | CL13: 17 | CM13: 98.81499006 | CO13: Class 6 | CP13: Linen Delivery | CQ13: Step Van | CR13: Conventional | CS13: Diesel | CT13: 17 | CU13: 60.98411005 | CW13: Class 8 | CX13: Mass Transit | CY13: City Transit Bus | CZ13: Parallel Hybrid | DA13: Diesel | DB13: 10 | DC13: 118.5638532 | DE13: Class 7 | DF13: Mass Transit | DG13: City Transit Bus | DH13: Conventional | DI13: Diesel | DJ13: 4 | DK13: 155.7930533 | DM13: Class 3 | DN13: Telecom | DO13: Bucket Truck | DP13: Conventional | DQ13: Gasoline | DR13: 4 | DS13: 51.00329747 | DU13: Class 8 | DV13: Utility | DW13: Bucket Truck | DX13: Conventional | DY13: Diesel | DZ13: 5 | EA13: 15.63190799 | ED13: 12 | EE13: Grocery Delivery | EG13: 11 | EH13: Full Size Pickup
A14: 291 | B14: 32 | C14: 19 | D14: 3 | E14: 1 | F14: 2 | G14: 0 | H14: 0 | I14: 9 | J14: =CONCATENATE(VLOOKUP(fleetDNA[[#This Row],[Type]],'A98_Segment Match Up'!$A$28:$B$36,2,FALSE), fleetDNA[[#This Row],[Vocation]],RIGHT(fleetDNA[[#This Row],[Class]],1)) -> T_BucketTelecom3 | K14: =VLOOKUP(fleetDNA[[#This Row],[fleetDNA ID]],'A98_Segment Match Up'!$S$3:$T$26,2,FALSE) -> T_Bucket3T | L14: =IF(fleetDNA[[#This Row],[class_id]]=1,"Class 1",IF(fleetDNA[[#This Row],[class_id]]=2,"Class 2",IF(fleetDNA[[#This Row],[class_id]]=3,"Class 3",IF(fleetDNA[[#This Row],[class_id]]=4,"Class 4",IF(fleetDNA[[#This Row],[class_id]]=5,"Class 5",IF(fleetDNA[[#This Row],[class_id]]=6,"Class 6",IF(fleetDNA[[#This Row],[class_id]]=7,"Class 7",IF(fleetDNA[[#This Row],[class_id]]=8,"Class 8")))))))) -> Class 3 | M14: =VLOOKUP(fleetDNA[[#This Row],[voc_id]],A1a_fleetDNA_data!$ED$3:$EE$18,2,FALSE) -> Telecom | N14: =VLOOKUP(fleetDNA[[#This Row],[type_id]],A1a_fleetDNA_data!$EG$3:$EH$39,2,FALSE) -> Bucket Truck | O14: =VLOOKUP(fleetDNA[[#This Row],[drive_id]],A1a_fleetDNA_data!$EM$3:$EN$9,2,FALSE) -> Conventional | P14: =VLOOKUP(fleetDNA[[#This Row],[fuel_id]],A1a_fleetDNA_data!$EJ$3:$EK$6,2,FALSE) -> Gasoline | Q14: 8 | R14: 59.50064614 | U14: Class 3 | V14: Food Delivery | W14: Straight Truck | X14: Conventional | Y14: Diesel | Z14: 7 | AA14: 52.14154782 | AC14: Class 5 | AD14: Food Delivery | AE14: Straight Truck | AF14: Conventional | AG14: Diesel | AH14: 8 | AI14: 9.184815763 | AK14: Class 7 | AL14: Parcel Delivery | AM14: Straight Truck | AN14: Conventional | AO14: Diesel | AP14: 5 | AQ14: 22.7503236 | AS14: Class 8 | AT14: Beverage Delivery | AU14: Tractor | AV14: Conventional | AW14: Diesel | AX14: 12 | AY14: 57.20132634 | BA14: Class 7 | BB14: Food Delivery | BC14: Tractor | BD14: Parallel Hybrid | BE14: Diesel | BF14: 17 | BG14: 6.386834597 | BI14: Class 8 | BJ14: Refuse Pickup | BK14: Refuse Truck | BL14: Conventional | BM14: CNG | BN14: 3 | BO14: 69.20662452 | BQ14: Class 6 | BR14: School Bus | BS14: School Bus | BT14: Conventional | BU14: Diesel | BV14: 6 | BW14: 41.1619204 | BY14: Class 3 | BZ14: Parcel Delivery | CA14: Step Van | CB14: Conventional | CC14: Diesel | CD14: 12 | CE14: 68.59498097 | CG14: Class 4 | CH14: Parcel Delivery | CI14: Step Van | CJ14: Conventional | CK14: Diesel | CL14: 16 | CM14: 98.99630957 | CO14: Class 6 | CP14: Linen Delivery | CQ14: Step Van | CR14: Conventional | CS14: Diesel | CT14: 16 | CU14: 73.96561024 | CW14: Class 8 | CX14: Mass Transit | CY14: City Transit Bus | CZ14: Parallel Hybrid | DA14: Diesel | DB14: 9 | DC14: 48.5183497 | DE14: Class 7 | DF14: Mass Transit | DG14: City Transit Bus | DH14: Conventional | DI14: Diesel | DJ14: 2 | DK14: 243.1906931 | DM14: Class 3 | DN14: Telecom | DO14: Bucket Truck | DP14: Conventional | DQ14: Gasoline | DR14: 8 | DS14: 59.50064614 | DU14: Class 8 | DV14: Utility | DW14: Bucket Truck | DX14: Conventional | DY14: Diesel | DZ14: 3 | EA14: 26.82799446 | ED14: 13 | EE14: Port Drayage | EG14: 12 | EH14: Furniture
A15: 291 | B15: 32 | C15: 19 | D15: 3 | E15: 1 | F15: 2 | G15: 0 | H15: 0 | I15: 10 | J15: =CONCATENATE(VLOOKUP(fleetDNA[[#This Row],[Type]],'A98_Segment Match Up'!$A$28:$B$36,2,FALSE), fleetDNA[[#This Row],[Vocation]],RIGHT(fleetDNA[[#This Row],[Class]],1)) -> T_BucketTelecom3 | K15: =VLOOKUP(fleetDNA[[#This Row],[fleetDNA ID]],'A98_Segment Match Up'!$S$3:$T$26,2,FALSE) -> T_Bucket3T | L15: =IF(fleetDNA[[#This Row],[class_id]]=1,"Class 1",IF(fleetDNA[[#This Row],[class_id]]=2,"Class 2",IF(fleetDNA[[#This Row],[class_id]]=3,"Class 3",IF(fleetDNA[[#This Row],[class_id]]=4,"Class 4",IF(fleetDNA[[#This Row],[class_id]]=5,"Class 5",IF(fleetDNA[[#This Row],[class_id]]=6,"Class 6",IF(fleetDNA[[#This Row],[class_id]]=7,"Class 7",IF(fleetDNA[[#This Row],[class_id]]=8,"Class 8")))))))) -> Class 3 | M15: =VLOOKUP(fleetDNA[[#This Row],[voc_id]],A1a_fleetDNA_data!$ED$3:$EE$18,2,FALSE) -> Telecom | N15: =VLOOKUP(fleetDNA[[#This Row],[type_id]],A1a_fleetDNA_data!$EG$3:$EH$39,2,FALSE) -> Bucket Truck | O15: =VLOOKUP(fleetDNA[[#This Row],[drive_id]],A1a_fleetDNA_data!$EM$3:$EN$9,2,FALSE) -> Conventional | P15: =VLOOKUP(fleetDNA[[#This Row],[fuel_id]],A1a_fleetDNA_data!$EJ$3:$EK$6,2,FALSE) -> Gasoline | Q15: 4 | R15: 81.61038523 | U15: Class 3 | V15: Food Delivery | W15: Straight Truck | X15: Conventional | Y15: Diesel | Z15: 7 | AA15: 51.72687723 | AC15: Class 5 | AD15: Food Delivery | AE15: Straight Truck | AF15: Conventional | AG15: Diesel | AH15: 16 | AI15: 9.55245349 | AK15: Class 7 | AL15: Parcel Delivery | AM15: Straight Truck | AN15: Conventional | AO15: Diesel | AP15: 10 | AQ15: 30.25877622 | AS15: Class 8 | AT15: Beverage Delivery | AU15: Tractor | AV15: Conventional | AW15: Diesel | AX15: 11 | AY15: 74.10214243 | BA15: Class 7 | BB15: Food Delivery | BC15: Tractor | BD15: Parallel Hybrid | BE15: Diesel | BF15: 17 | BG15: 5.44145451 | BI15: Class 8 | BJ15: Refuse Pickup | BK15: Refuse Truck | BL15: Conventional | BM15: CNG | BN15: 4 | BO15: 85.78890008 | BQ15: Class 6 | BR15: School Bus | BS15: School Bus | BT15: Conventional | BU15: Diesel | BV15: 4 | BW15: 71.39949564 | BY15: Class 3 | BZ15: Parcel Delivery | CA15: Step Van | CB15: Conventional | CC15: Diesel | CD15: 8 | CE15: 102.8083179 | CG15: Class 4 | CH15: Parcel Delivery | CI15: Step Van | CJ15: Conventional | CK15: Diesel | CL15: 16 | CM15: 107.7926223 | CO15: Class 6 | CP15: Linen Delivery | CQ15: Step Van | CR15: Conventional | CS15: Diesel | CT15: 11 | CU15: 69.19545923 | CW15: Class 8 | CX15: Mass Transit | CY15: City Transit Bus | CZ15: Parallel Hybrid | DA15: Diesel | DB15: 6 | DC15: 82.23987732 | DE15: Class 7 | DF15: Mass Transit | DG15: City Transit Bus | DH15: Conventional | DI15: Diesel | DJ15: 3 | DK15: 127.3431778 | DM15: Class 3 | DN15: Telecom | DO15: Bucket Truck | DP15: Conventional | DQ15: Gasoline | DR15: 4 | DS15: 81.61038523 | DU15: Class 8 | DV15: Utility | DW15: Bucket Truck | DX15: Conventional | DY15: Diesel | DZ15: 4 | EA15: 48.11844606 | ED15: 14 | EE15: Food Delivery | EG15: 13 | EH15: Heavy Semi Tractor
... 18 more rows

Sheet A1a_NREL-UCR-VMT (hidden)
A1: Return to Table of Contents
A2: VehicleID | B2: DepotState | C2: DeportCity | D2: DepotZipcode | E2: GPSState | F2: GPSCity | G2: SourceTypeID | H2: VINstem | I2: Model | J2: Manufacturer | K2: ModelYear | L2: GVWR | M2: Combination | N2: SleeperCab | O2: Axles | P2: Wheels | Q2: EngineManufacturer | R2: EngineModelYear | S2: Engine | T2: AuxiliaryPower Unit | U2: HybridElectric | V2: Fuel | W2: Odometer | X2: Age | Y2: URC_ID | Z2: VMT ID | AA2: Vocation | AB2: Type | AC2: Weight Class | AD2: MilesDrivenPerOperationDay | AF2: WalkIn | AG2: Box Truck | AH2: 3 | AJ2: WalkIn | AK2: Box Truck | AL2: 5 | AN2: Transit Bus | AO2: 5 | AR2: Box Truck | AS2: 6 | AT2: 7 | AU2: Straight Truck | AW2: WalkIn | AX2: 6 | BA2: School Bus | BB2: 6 | BE2: Tow Truck | BF2: 6 | BI2: Tractor | BJ2: 7 | BM2: Straight Truck | BN2: 7 | BQ2: Dump Truck | BR2: 7 | BU2: Drayage Tractor | BV2: 7 | BY2: Box Truck | BZ2: 7 | CC2: Transit Bus | CD2: 7 | CG2: Tanker Truck | CH2: 7 | CK2: Refuse | CL2: 7 | CO2: Snow Plow | CP2: 7 | CS2: Street Sweeper | CT2: 7 | CW2: Tow Truck | CX2: 7 | DA2: Straight Truck | DB2: 8 | DC2: Box Truck | DE2: Shuttle Bus | DF2: 8 | DI2: Long Haul | DJ2: Tractor | DK2: 8 | DM2: Beverage Delivery | DN2: Dump Truck | DO2: Food Delivery | DP2: Local Delivery | DQ2: Tractor | DR2: 8 | DT2: Regional Haul | DU2: tranfer truck | DV2: Tractor | DW2: 8 | DY2: Concrete Truck | DZ2: 8 | EC2: Dump Truck | ED2: 8 | EG2: Drayage Tractor | EH2: 8 | EK2: Transit Bus | EL2: 8 | EO2: Refuse | EP2: 8 | ES2: Snow Plow | ET2: 8 | EW2: Tow Truck | EX2: 8 | FA2: Utility Truck | FB2: 8
A3: 1075 | B3: CA | C3: Coalinga | D3: Unknown | E3: CA | F3: Hanford | G3: 61 | H3: \N | I3: 384 | J3: Peterbilt | K3: 2012 | L3: \N | M3: FALSE | N3: FALSE | O3: Unknown | P3: Unknown | Q3: Paccar | R3: 2010 | S3: MX | T3: Unknown | U3: FALSE | V3: Diesel | W3: \N | X3: 4 | Y3: =UCR[[#This Row],[Type]]&UCR[[#This Row],[Weight Class]] -> Straight Truck8 | Z3: =VLOOKUP(UCR[[#This Row],[URC_ID]],'A98_Segment Match Up'!$V$3:$Y$34,4,FALSE) -> T_BoxStraight8 | AA3: Agricultural | AB3: Straight Truck | AC3: 8 | AD3: 23.50041858 | AF3: =_xlfn._xlws.FILTER(UCR[[Type]:[MilesDrivenPerOperationDay]],((UCR[Type]=AG2)+(UCR[Type]=AF2))*(UCR[Weight Class]=AH2)) -> WalkIn | AG3: 3 | AH3: 61.49208916 | AJ3: =_xlfn._xlws.FILTER(UCR[[Type]:[MilesDrivenPerOperationDay]],((UCR[Type]=AK2)+(UCR[Type]=AJ2))*(UCR[Weight Class]=AL2)) -> Box Truck | AK3: 5 | AL3: 24.0443472 | AN3: =_xlfn._xlws.FILTER(UCR[[Type]:[MilesDrivenPerOperationDay]],(UCR[Type]=AN2)*(UCR[Weight Class]=AO2)) -> Transit Bus | AO3: 5 | AP3: 109.1223156 | AR3: =_xlfn._xlws.FILTER(UCR[[Type]:[MilesDrivenPerOperationDay]],((UCR[Type]=AR2)*(UCR[Weight Class]=AS2)+((UCR[Type]=AU2)*(UCR[Weight Class]=AT2)))) -> Straight Truck | AS3: 7 | AT3: 8.565877808 | AW3: =_xlfn._xlws.FILTER(UCR[[Type]:[MilesDrivenPerOperationDay]],(UCR[Type]=AW2)*(UCR[Weight Class]=AX2)) -> WalkIn | AX3: 6 | AY3: 39.19969785 | BA3: =_xlfn._xlws.FILTER(UCR[[Type]:[MilesDrivenPerOperationDay]],(UCR[Type]=BA2)*(UCR[Weight Class]=BB2)) -> School Bus | BB3: 6 | BC3: 29.80269057 | BE3: =_xlfn._xlws.FILTER(UCR[[Type]:[MilesDrivenPerOperationDay]],(UCR[Type]=BE2)*(UCR[Weight Class]=BF2)) -> Tow Truck | BF3: 6 | BG3: 70.42804743 | BI3: =_xlfn._xlws.FILTER(UCR[[Type]:[MilesDrivenPerOperationDay]],(UCR[Type]=BI2)*(UCR[Weight Class]=BJ2)) -> Tractor | BJ3: 7 | BK3: 33.91129035 | BM3: =_xlfn._xlws.FILTER(UCR[[Type]:[MilesDrivenPerOperationDay]],(UCR[Type]=BM2)*(UCR[Weight Class]=BN2)) -> Straight Truck | BN3: 7 | BO3: 8.565877808 | BQ3: =_xlfn._xlws.FILTER(UCR[[Type]:[MilesDrivenPerOperationDay]],(UCR[Type]=BQ2)*(UCR[Weight Class]=BR2)) -> Dump Truck | BR3: 7 | BS3: 121.1460181 | BU3: =_xlfn._xlws.FILTER(UCR[[Type]:[MilesDrivenPerOperationDay]],(UCR[Type]=BU2)*(UCR[Weight Class]=BV2)) -> Drayage Tractor | BV3: 7 | BW3: 65.54061683 | BY3: =_xlfn._xlws.FILTER(UCR[[Type]:[MilesDrivenPerOperationDay]],(UCR[Type]=BY2)*(UCR[Weight Class]=BZ2)) -> Box Truck | BZ3: 7 | CA3: 50.46754294 | CC3: =_xlfn._xlws.FILTER(UCR[[Type]:[MilesDrivenPerOperationDay]],(UCR[Type]=CC2)*(UCR[Weight Class]=CD2)) -> Transit Bus | CD3: 7 | CE3: 43.31002145 | CG3: =_xlfn._xlws.FILTER(UCR[[Type]:[MilesDrivenPerOperationDay]],(UCR[Type]=CG2)*(UCR[Weight Class]=CH2)) -> Tanker Truck | CH3: 7 | CI3: 25.64420334 | CK3: =_xlfn._xlws.FILTER(UCR[[Type]:[MilesDrivenPerOperationDay]],(UCR[Type]=CK2)*(UCR[Weight Class]=CL2)) -> Refuse | CL3: 7 | CM3: 21.2899581 | CO3: =_xlfn._xlws.FILTER(UCR[[Type]:[MilesDrivenPerOperationDay]],(UCR[Type]=CO2)*(UCR[Weight Class]=CP2)) -> Snow Plow | CP3: 7 | CQ3: 42.81033959 | CS3: =_xlfn._xlws.FILTER(UCR[[Type]:[MilesDrivenPerOperationDay]],(UCR[Type]=CS2)*(UCR[Weight Class]=CT2)) -> Street Sweeper | CT3: 7 | CU3: 29.68767981 | CW3: =_xlfn._xlws.FILTER(UCR[[Type]:[MilesDrivenPerOperationDay]],(UCR[Type]=CW2)*(UCR[Weight Class]=CX2)) -> Tow Truck | CX3: 7 | CY3: 155.7508872 | DA3: =_xlfn._xlws.FILTER(UCR[[Type]:[MilesDrivenPerOperationDay]],((UCR[Type]=DA2)+(UCR[Type]=DC2))*(UCR[Weight Class]=DB2)) -> Straight Truck | DB3: 8 | DC3: 23.50041858 | DE3: =_xlfn._xlws.FILTER(UCR[[Type]:[MilesDrivenPerOperationDay]],(UCR[Type]=DE2)*(UCR[Weight Class]=DF2)) -> Shuttle Bus | DF3: 8 | DG3: 94.50904872 | DI3: =_xlfn._xlws.FILTER(UCR[[Type]:[MilesDrivenPerOperationDay]],(UCR[Type]=DJ2)*(UCR[Weight Class]=DK2)*(UCR[Vocation]=DI2)) -> Tractor | DJ3: 8 | DK3: 238.9269192 | DM3: =_xlfn._xlws.FILTER(UCR[[Type]:[MilesDrivenPerOperationDay]],(UCR[Type]=DQ2)*(UCR[Weight Class]=DR2)*((UCR[Vocation]=DP2)+(UCR[Vocation]=DO2)+(UCR[Vocation]=DN2)+(UCR[Vocation]=DM2))) -> Tractor | DN3: 8 | DO3: 106.0569284 | DT3: =_xlfn._xlws.FILTER(UCR[[Type]:[MilesDrivenPerOperationDay]],(UCR[Type]=DV2)*(UCR[Weight Class]=DW2)*((UCR[Vocation]=DU2)+(UCR[Vocation]=DT2))) -> Tractor | DU3: 8 | DV3: 32.29949329 | DY3: =_xlfn._xlws.FILTER(UCR[[Type]:[MilesDrivenPerOperationDay]],(UCR[Type]=DY2)*(UCR[Weight Class]=DZ2)) -> Concrete Truck | DZ3: 8 | EA3: 90.96077503 | EC3: =_xlfn._xlws.FILTER(UCR[[Type]:[MilesDrivenPerOperationDay]],(UCR[Type]=EC2)*(UCR[Weight Class]=ED2)) -> Dump Truck | ED3: 8 | EE3: 3.370028697 | EG3: =_xlfn._xlws.FILTER(UCR[[Type]:[MilesDrivenPerOperationDay]],(UCR[Type]=EG2)*(UCR[Weight Class]=EH2)) -> Drayage Tractor | EH3: 8 | EI3: 145.2210816 | EK3: =_xlfn._xlws.FILTER(UCR[[Type]:[MilesDrivenPerOperationDay]],(UCR[Type]=EK2)*(UCR[Weight Class]=EL2)) -> Transit Bus | EL3: 8 | EM3: 131.5590479 | EO3: =_xlfn._xlws.FILTER(UCR[[Type]:[MilesDrivenPerOperationDay]],(UCR[Type]=EO2)*(UCR[Weight Class]=EP2)) -> Refuse | EP3: 8 | EQ3: 18.55657787 | ES3: =_xlfn._xlws.FILTER(UCR[[Type]:[MilesDrivenPerOperationDay]],(UCR[Type]=ES2)*(UCR[Weight Class]=ET2)) -> Snow Plow | ET3: 8 | EU3: 82.20566389 | EW3: =_xlfn._xlws.FILTER(UCR[[Type]:[MilesDrivenPerOperationDay]],(UCR[Type]=EW2)*(UCR[Weight Class]=EX2)) -> Tow Truck | EX3: 8 | EY3: 153.607905 | FA3: =_xlfn._xlws.FILTER(UCR[[Type]:[MilesDrivenPerOperationDay]],(UCR[Type]=FA2)*(UCR[Weight Class]=FB2)) -> Utility Truck | FB3: 8 | FC3: 37.83600165
A4: 1076 | B4: CA | C4: Coalinga | D4: Unknown | E4: CA | F4: Stockton | G4: 61 | H4: \N | I4: 384 | J4: Peterbilt | K4: 2012 | L4: \N | M4: FALSE | N4: FALSE | O4: Unknown | P4: Unknown | Q4: Paccar | R4: 2010 | S4: MX | T4: Unknown | U4: FALSE | V4: Diesel | W4: \N | X4: 4 | Y4: =UCR[[#This Row],[Type]]&UCR[[#This Row],[Weight Class]] -> Straight Truck8 | Z4: =VLOOKUP(UCR[[#This Row],[URC_ID]],'A98_Segment Match Up'!$V$3:$Y$34,4,FALSE) -> T_BoxStraight8 | AA4: Agricultural | AB4: Straight Truck | AC4: 8 | AD4: 108.1036416 | AF4: Box Truck | AG4: 3 | AH4: 56.6212961 | AJ4: WalkIn | AK4: 5 | AL4: 50.17000665 | AN4: Transit Bus | AO4: 5 | AP4: 92.55328637 | AR4: Straight Truck | AS4: 7 | AT4: 32.49825016 | AW4: WalkIn | AX4: 6 | AY4: 55.96693678 | BA4: School Bus | BB4: 6 | BC4: 69.15647898 | BE4: Tow Truck | BF4: 6 | BG4: 51.19846749 | BI4: Tractor | BJ4: 7 | BK4: 149.2531073 | BM4: Straight Truck | BN4: 7 | BO4: 32.49825016 | BU4: Drayage Tractor | BV4: 7 | BW4: 81.90936162 | BY4: Box Truck | BZ4: 7 | CA4: 29.93082875 | CC4: Transit Bus | CD4: 7 | CE4: 30.03942037 | CK4: Refuse | CL4: 7 | CM4: 25.3354434 | CO4: Snow Plow | CP4: 7 | CQ4: 36.8935666 | CS4: Street Sweeper | CT4: 7 | CU4: 35.96116651 | CW4: Tow Truck | CX4: 7 | CY4: 32.23108857 | DA4: Straight Truck | DB4: 8 | DC4: 108.1036416 | DE4: Shuttle Bus | DF4: 8 | DG4: 97.45581271 | DI4: Tractor | DJ4: 8 | DK4: 249.8784394 | DM4: Tractor | DN4: 8 | DO4: 104.9779358 | DT4: Tractor | DU4: 8 | DV4: 89.22767691 | DY4: Concrete Truck | DZ4: 8 | EA4: 93.23184563 | EC4: Dump Truck | ED4: 8 | EE4: 19.91873252 | EG4: Drayage Tractor | EH4: 8 | EI4: 126.1653263 | EK4: Transit Bus | EL4: 8 | EM4: 101.5885577 | EO4: Refuse | EP4: 8 | EQ4: 39.58257729 | ES4: Snow Plow | ET4: 8 | EU4: 102.3701447 | EW4: Tow Truck | EX4: 8 | EY4: 144.4328628 | FA4: Utility Truck | FB4: 8 | FC4: 17.15640936
A5: 1077 | B5: CA | C5: Coalinga | D5: Unknown | E5: CA | F5: Selma | G5: 61 | H5: \N | I5: 388 | J5: Peterbilt | K5: 2013 | L5: \N | M5: FALSE | N5: FALSE | O5: Unknown | P5: Unknown | Q5: Paccar | R5: 2013 | S5: MX | T5: Unknown | U5: FALSE | V5: Diesel | W5: \N | X5: 2 | Y5: =UCR[[#This Row],[Type]]&UCR[[#This Row],[Weight Class]] -> Straight Truck8 | Z5: =VLOOKUP(UCR[[#This Row],[URC_ID]],'A98_Segment Match Up'!$V$3:$Y$34,4,FALSE) -> T_BoxStraight8 | AA5: Agricultural | AB5: Straight Truck | AC5: 8 | AD5: 77.97177524 | AF5: Box Truck | AG5: 3 | AH5: 85.44612721 | AJ5: WalkIn | AK5: 5 | AL5: 58.12716879 | AN5: Transit Bus | AO5: 5 | AP5: 107.8230543 | AR5: Straight Truck | AS5: 7 | AT5: 20.15439153 | AW5: WalkIn | AX5: 6 | AY5: 96.42706994 | BA5: School Bus | BB5: 6 | BC5: 64.97587693 | BE5: Tow Truck | BF5: 6 | BG5: 35.85488887 | BI5: Tractor | BJ5: 7 | BK5: 157.490278 | BM5: Straight Truck | BN5: 7 | BO5: 20.15439153 | BY5: Box Truck | BZ5: 7 | CA5: 31.45723353 | CC5: Transit Bus | CD5: 7 | CE5: 45.47648278 | CO5: Snow Plow | CP5: 7 | CQ5: 21.2229007 | CS5: Street Sweeper | CT5: 7 | CU5: 39.78725882 | DA5: Straight Truck | DB5: 8 | DC5: 77.97177524 | DE5: Shuttle Bus | DF5: 8 | DG5: 100.2484291 | DI5: Tractor | DJ5: 8 | DK5: 217.4961774 | DM5: Tractor | DN5: 8 | DO5: 184.381553 | DT5: Tractor | DU5: 8 | DV5: 75.46777811 | DY5: Concrete Truck | DZ5: 8 | EA5: 84.90929314 | EC5: Dump Truck | ED5: 8 | EE5: 187.7644093 | EG5: Drayage Tractor | EH5: 8 | EI5: 102.9235876 | EK5: Transit Bus | EL5: 8 | EM5: 142.4602729 | EO5: Refuse | EP5: 8 | EQ5: 44.65595087 | ES5: Snow Plow | ET5: 8 | EU5: 38.34392044 | EW5: Tow Truck | EX5: 8 | EY5: 88.12252013 | FA5: Utility Truck | FB5: 8 | FC5: 24.9201562
A6: 1078 | B6: CA | C6: Coalinga | D6: Unknown | E6: CA | F6: Coalinga | G6: 61 | H6: \N | I6: 388 | J6: Peterbilt | K6: 2014 | L6: \N | M6: FALSE | N6: FALSE | O6: Unknown | P6: Unknown | Q6: Paccar | R6: 2014 | S6: MX-13 | T6: Unknown | U6: FALSE | V6: Diesel | W6: \N | X6: 2 | Y6: =UCR[[#This Row],[Type]]&UCR[[#This Row],[Weight Class]] -> Straight Truck8 | Z6: =VLOOKUP(UCR[[#This Row],[URC_ID]],'A98_Segment Match Up'!$V$3:$Y$34,4,FALSE) -> T_BoxStraight8 | AA6: Agricultural | AB6: Straight Truck | AC6: 8 | AD6: 6.091020329 | AF6: Box Truck | AG6: 3 | AH6: 72.28655731 | AJ6: Box Truck | AK6: 5 | AL6: 23.24085256 | AN6: Transit Bus | AO6: 5 | AP6: 94.25770468 | AR6: Straight Truck | AS6: 7 | AT6: 13.14079253 | AW6: WalkIn | AX6: 6 | AY6: 55.46752005 | BA6: School Bus | BB6: 6 | BC6: 53.59469306 | BE6: Tow Truck | BF6: 6 | BG6: 76.14914801 | BI6: Tractor | BJ6: 7 | BK6: 65.84430623 | BM6: Straight Truck | BN6: 7 | BO6: 13.14079253 | BY6: Box Truck | BZ6: 7 | CA6: 40.95794213 | CO6: Snow Plow | CP6: 7 | CQ6: 51.02888307 | CS6: Street Sweeper | CT6: 7 | CU6: 48.71816751 | DA6: Straight Truck | DB6: 8 | DC6: 6.091020329 | DE6: Shuttle Bus | DF6: 8 | DG6: 97.96798353 | DI6: Tractor | DJ6: 8 | DK6: 244.3346809 | DM6: Tractor | DN6: 8 | DO6: 158.5951896 | DT6: Tractor | DU6: 8 | DV6: 84.86698373 | DY6: Concrete Truck | DZ6: 8 | EA6: 59.77727634 | EC6: Dump Truck | ED6: 8 | EE6: 251.6671307 | EG6: Drayage Tractor | EH6: 8 | EI6: 128.3816466 | EK6: Transit Bus | EL6: 8 | EM6: 76.69087195 | EO6: Refuse | EP6: 8 | EQ6: 54.02969078 | ES6: Snow Plow | ET6: 8 | EU6: 29.06066642 | FA6: Utility Truck | FB6: 8 | FC6: 38.30650344
A7: 1079 | B7: CA | C7: Coalinga | D7: Unknown | E7: CA | F7: Coalinga | G7: 61 | H7: \N | I7: \N | J7: Freightliner | K7: 2009 | L7: \N | M7: FALSE | N7: FALSE | O7: Unknown | P7: Unknown | Q7: Mercedez-Benz (Detroit Diesel) | R7: 2009 | S7: OM 460 LA CID 781 | T7: Unknown | U7: FALSE | V7: Diesel | W7: \N | X7: 7 | Y7: =UCR[[#This Row],[Type]]&UCR[[#This Row],[Weight Class]] -> Straight Truck8 | Z7: =VLOOKUP(UCR[[#This Row],[URC_ID]],'A98_Segment Match Up'!$V$3:$Y$34,4,FALSE) -> T_BoxStraight8 | AA7: Agricultural | AB7: Straight Truck | AC7: 8 | AD7: 10.8309628 | AF7: Box Truck | AG7: 3 | AH7: 42.62786922 | AJ7: Box Truck | AK7: 5 | AL7: 33.48715356 | AR7: Straight Truck | AS7: 7 | AT7: 27.73495184 | AW7: WalkIn | AX7: 6 | AY7: 21.11811636 | BA7: School Bus | BB7: 6 | BC7: 42.07625489 | BE7: Tow Truck | BF7: 6 | BG7: 204.929685 | BI7: Tractor | BJ7: 7 | BK7: 57.79876769 | BM7: Straight Truck | BN7: 7 | BO7: 27.73495184 | BY7: Box Truck | BZ7: 7 | CA7: 32.08127645 | CS7: Street Sweeper | CT7: 7 | CU7: 29.40487867 | DA7: Straight Truck | DB7: 8 | DC7: 10.8309628 | DE7: Shuttle Bus | DF7: 8 | DG7: 67.37000339 | DI7: Tractor | DJ7: 8 | DK7: 242.6093214 | DM7: Tractor | DN7: 8 | DO7: 172.7376883 | DT7: Tractor | DU7: 8 | DV7: 83.47584938 | DY7: Concrete Truck | DZ7: 8 | EA7: 50.23467117 | EC7: Dump Truck | ED7: 8 | EE7: 101.4511215 | EG7: Drayage Tractor | EH7: 8 | EI7: 123.2310373 | EK7: Transit Bus | EL7: 8 | EM7: 141.1692513 | EO7: Refuse | EP7: 8 | EQ7: 49.61512293 | ES7: Snow Plow | ET7: 8 | EU7: 23.90855618 | FA7: Utility Truck | FB7: 8 | FC7: 32.15921305
A8: 1081 | B8: CA | C8: Coalinga | D8: Unknown | E8: CA | F8: Hanford | G8: 61 | H8: \N | I8: \N | J8: Freightliner | K8: 2009 | L8: \N | M8: FALSE | N8: FALSE | O8: Unknown | P8: Unknown | Q8: Mercedez-Benz (Detroit Diesel) | R8: 2009 | S8: OM 460 LA CID 781 | T8: Unknown | U8: FALSE | V8: Diesel | W8: \N | X8: 7 | Y8: =UCR[[#This Row],[Type]]&UCR[[#This Row],[Weight Class]] -> Straight Truck8 | Z8: =VLOOKUP(UCR[[#This Row],[URC_ID]],'A98_Segment Match Up'!$V$3:$Y$34,4,FALSE) -> T_BoxStraight8 | AA8: Agricultural | AB8: Straight Truck | AC8: 8 | AD8: 209.6725133 | AF8: Box Truck | AG8: 3 | AH8: 49.79213931 | AJ8: Box Truck | AK8: 5 | AL8: 46.60389311 | AR8: Box Truck | AS8: 6 | AT8: 36.78804434 | AW8: WalkIn | AX8: 6 | AY8: 58.69850565 | BA8: School Bus | BB8: 6 | BC8: 31.9841996 | BE8: Tow Truck | BF8: 6 | BG8: 216.8363274 | BI8: Tractor | BJ8: 7 | BK8: 76.47809304 | BM8: Straight Truck | BN8: 7 | BO8: 9.607092269 | BY8: Box Truck | BZ8: 7 | CA8: 32.40332923 | DA8: Straight Truck | DB8: 8 | DC8: 209.6725133 | DI8: Tractor | DJ8: 8 | DK8: 245.6335674 | DM8: Tractor | DN8: 8 | DO8: 145.0789452 | DT8: Tractor | DU8: 8 | DV8: 45.77415043 | DY8: Concrete Truck | DZ8: 8 | EA8: 88.06353447 | EC8: Dump Truck | ED8: 8 | EE8: 92.2836577 | EG8: Drayage Tractor | EH8: 8 | EI8: 144.9042963 | EK8: Transit Bus | EL8: 8 | EM8: 114.4543721 | EO8: Refuse | EP8: 8 | EQ8: 132.5284165 | ES8: Snow Plow | ET8: 8 | EU8: 44.24128818
A9: 1082 | B9: CA | C9: Selma | D9: Unknown | E9: CA | F9: Selma | G9: 61 | H9: \N | I9: T680 | J9: Kenworth | K9: 2014 | L9: \N | M9: FALSE | N9: FALSE | O9: Unknown | P9: Unknown | Q9: Paccar | R9: 2014 | S9: MX-13 | T9: Unknown | U9: FALSE | V9: Diesel | W9: \N | X9: 2 | Y9: =UCR[[#This Row],[Type]]&UCR[[#This Row],[Weight Class]] -> Straight Truck8 | Z9: =VLOOKUP(UCR[[#This Row],[URC_ID]],'A98_Segment Match Up'!$V$3:$Y$34,4,FALSE) -> T_BoxStraight8 | AA9: Agricultural | AB9: Straight Truck | AC9: 8 | AD9: 5.072498957 | AF9: Box Truck | AG9: 3 | AH9: 36.92454268 | AR9: Box Truck | AS9: 6 | AT9: 9.867011398 | AW9: WalkIn | AX9: 6 | AY9: 61.59399742 | BA9: School Bus | BB9: 6 | BC9: 41.71683085 | BI9: Tractor | BJ9: 7 | BK9: 51.3175722 | BM9: Straight Truck | BN9: 7 | BO9: 18.77345715 | BY9: Box Truck | BZ9: 7 | CA9: 36.35941484 | DA9: Straight Truck | DB9: 8 | DC9: 5.072498957 | DI9: Tractor | DJ9: 8 | DK9: 927.9312828 | DM9: Tractor | DN9: 8 | DO9: 260.039309 | DT9: Tractor | DU9: 8 | DV9: 269.7869232 | DY9: Concrete Truck | DZ9: 8 | EA9: 107.9233992 | EC9: Dump Truck | ED9: 8 | EE9: 54.67783311 | EG9: Drayage Tractor | EH9: 8 | EI9: 79.13635775 | EK9: Transit Bus | EL9: 8 | EM9: 149.2258675 | EO9: Refuse | EP9: 8 | EQ9: 15.45518441 | ES9: Snow Plow | ET9: 8 | EU9: 92.16638435
A10: 1083 | B10: CA | C10: Selma | D10: Unknown | E10: CA | F10: Kingsburg | G10: 61 | H10: \N | I10: T680 | J10: Kenworth | K10: 2014 | L10: \N | M10: FALSE | N10: FALSE | O10: Unknown | P10: Unknown | Q10: Paccar | R10: 2014 | S10: MX-13 | T10: Unknown | U10: FALSE | V10: Diesel | W10: \N | X10: 2 | Y10: =UCR[[#This Row],[Type]]&UCR[[#This Row],[Weight Class]] -> Straight Truck8 | Z10: =VLOOKUP(UCR[[#This Row],[URC_ID]],'A98_Segment Match Up'!$V$3:$Y$34,4,FALSE) -> T_BoxStraight8 | AA10: Agricultural | AB10: Straight Truck | AC10: 8 | AD10: 218.2173553 | AF10: Box Truck | AG10: 3 | AH10: 66.80855828 | AR10: Box Truck | AS10: 6 | AT10: 34.11118408 | AW10: WalkIn | AX10: 6 | AY10: 75.15914674 | BI10: Tractor | BJ10: 7 | BK10: 54.20966322 | BY10: Box Truck | BZ10: 7 | CA10: 11.27403344 | DA10: Straight Truck | DB10: 8 | DC10: 218.2173553 | DI10: Tractor | DJ10: 8 | DK10: 328.5803626 | DM10: Tractor | DN10: 8 | DO10: 245.9579253 | DT10: Tractor | DU10: 8 | DV10: 200.8430662 | DY10: Concrete Truck | DZ10: 8 | EA10: 90.64533933 | EC10: Dump Truck | ED10: 8 | EE10: 33.18886246 | EG10: Drayage Tractor | EH10: 8 | EI10: 106.2724902 | EK10: Transit Bus | EL10: 8 | EM10: 163.655685 | EO10: Refuse | EP10: 8 | EQ10: 46.30707793
A11: 1049 | B11: CA | C11: Oakland | D11: Unknown | E11: CA | F11: Oakland | G11: 41 | H11: \N | I11: G27D102N4 | J11: Gillig | K11: 2012 | L11: \N | M11: FALSE | N11: FALSE | O11: Unknown | P11: Unknown | Q11: Cummins | R11: 2012 | S11: ISL | T11: Unknown | U11: FALSE | V11: Diesel | W11: \N | X11: 4 | Y11: =UCR[[#This Row],[Type]]&UCR[[#This Row],[Weight Class]] -> Shuttle Bus8 | Z11: =VLOOKUP(UCR[[#This Row],[URC_ID]],'A98_Segment Match Up'!$V$3:$Y$34,4,FALSE) -> 0 | AA11: Airport Shuttle | AB11: Shuttle Bus | AC11: 8 | AD11: 94.50904872 | AR11: Box Truck | AS11: 6 | AT11: 30.87657076 | AW11: WalkIn | AX11: 6 | AY11: 28.07460843 | BI11: Tractor | BJ11: 7 | BK11: 96.71456094 | BY11: Box Truck | BZ11: 7 | CA11: 32.95219724 | DA11: Straight Truck | DB11: 8 | DC11: 25.76779649 | DI11: Tractor | DJ11: 8 | DK11: 415.1119365 | DM11: Tractor | DN11: 8 | DO11: 129.3163008 | DT11: Tractor | DU11: 8 | DV11: 96.77142164 | EG11: Drayage Tractor | EH11: 8 | EI11: 105.0361168 | EK11: Transit Bus | EL11: 8 | EM11: 127.2267933 | EO11: Refuse | EP11: 8 | EQ11: 35.95306593
A12: 1050 | B12: CA | C12: Oakland | D12: Unknown | E12: CA | F12: Oakland | G12: 41 | H12: \N | I12: G27D102N4 | J12: Gillig | K12: 2012 | L12: \N | M12: FALSE | N12: FALSE | O12: Unknown | P12: Unknown | Q12: Cummins | R12: 2012 | S12: ISL | T12: Unknown | U12: FALSE | V12: Diesel | W12: \N | X12: 4 | Y12: =UCR[[#This Row],[Type]]&UCR[[#This Row],[Weight Class]] -> Shuttle Bus8 | Z12: =VLOOKUP(UCR[[#This Row],[URC_ID]],'A98_Segment Match Up'!$V$3:$Y$34,4,FALSE) -> 0 | AA12: Airport Shuttle | AB12: Shuttle Bus | AC12: 8 | AD12: 97.45581271 | AR12: Box Truck | AS12: 6 | AT12: 50.34147816 | AW12: WalkIn | AX12: 6 | AY12: 72.35144569 | BI12: Tractor | BJ12: 7 | BK12: 93.01545822 | BY12: Box Truck | BZ12: 7 | CA12: 57.96874929 | DA12: Box Truck | DB12: 8 | DC12: 403.0672267 | DI12: Tractor | DJ12: 8 | DK12: 164.759364 | DM12: Tractor | DN12: 8 | DO12: 208.7501335 | DT12: Tractor | DU12: 8 | DV12: 154.9952874 | EG12: Drayage Tractor | EH12: 8 | EI12: 175.7968457 | EK12: Transit Bus | EL12: 8 | EM12: 148.9578055 | EO12: Refuse | EP12: 8 | EQ12: 48.77974034
A13: 1051 | B13: CA | C13: Oakland | D13: Unknown | E13: CA | F13: Oakland | G13: 41 | H13: \N | I13: G27D102N4 | J13: Gillig | K13: 2012 | L13: \N | M13: FALSE | N13: FALSE | O13: Unknown | P13: Unknown | Q13: Cummins | R13: 2012 | S13: ISL | T13: Unknown | U13: FALSE | V13: Diesel | W13: \N | X13: 4 | Y13: =UCR[[#This Row],[Type]]&UCR[[#This Row],[Weight Class]] -> Shuttle Bus8 | Z13: =VLOOKUP(UCR[[#This Row],[URC_ID]],'A98_Segment Match Up'!$V$3:$Y$34,4,FALSE) -> 0 | AA13: Airport Shuttle | AB13: Shuttle Bus | AC13: 8 | AD13: 100.2484291 | AR13: Box Truck | AS13: 6 | AT13: 49.62655333 | AW13: WalkIn | AX13: 6 | AY13: 107.900575 | BI13: Tractor | BJ13: 7 | BK13: 66.34719169 | BY13: Box Truck | BZ13: 7 | CA13: 42.87119706 | DA13: Box Truck | DB13: 8 | DC13: 81.66661906 | DI13: Tractor | DJ13: 8 | DK13: 325.1810318 | DM13: Tractor | DN13: 8 | DO13: 149.3362433 | DT13: Tractor | DU13: 8 | DV13: 327.8847841 | EG13: Drayage Tractor | EH13: 8 | EI13: 111.17059 | EK13: Transit Bus | EL13: 8 | EM13: 93.83019114 | EO13: Refuse | EP13: 8 | EQ13: 36.25404252
A14: 1053 | B14: CA | C14: Oakland | D14: Unknown | E14: CA | F14: Oakland | G14: 41 | H14: \N | I14: G27D102N4 | J14: Gillig | K14: 2012 | L14: \N | M14: FALSE | N14: FALSE | O14: Unknown | P14: Unknown | Q14: Cummins | R14: 2012 | S14: ISL | T14: Unknown | U14: FALSE | V14: Diesel | W14: \N | X14: 4 | Y14: =UCR[[#This Row],[Type]]&UCR[[#This Row],[Weight Class]] -> Shuttle Bus8 | Z14: =VLOOKUP(UCR[[#This Row],[URC_ID]],'A98_Segment Match Up'!$V$3:$Y$34,4,FALSE) -> 0 | AA14: Airport Shuttle | AB14: Shuttle Bus | AC14: 8 | AD14: 97.96798353 | AR14: Box Truck | AS14: 6 | AT14: 38.94925167 | AW14: WalkIn | AX14: 6 | AY14: 44.34005144 | BI14: Tractor | BJ14: 7 | BK14: 36.8958691 | BY14: Box Truck | BZ14: 7 | CA14: 30.34664001 | DA14: Box Truck | DB14: 8 | DC14: 33.18700005 | DI14: Tractor | DJ14: 8 | DK14: 400.5956711 | DM14: Tractor | DN14: 8 | DO14: 89.39038725 | DT14: Tractor | DU14: 8 | DV14: 181.3918892 | EG14: Drayage Tractor | EH14: 8 | EI14: 133.1686653 | EK14: Transit Bus | EL14: 8 | EM14: 164.9751496 | EO14: Refuse | EP14: 8 | EQ14: 40.63446014
A15: 1054 | B15: CA | C15: Oakland | D15: Unknown | E15: CA | F15: Oakland | G15: 41 | H15: \N | I15: G27D102N4 | J15: Gillig | K15: 2012 | L15: \N | M15: FALSE | N15: FALSE | O15: Unknown | P15: Unknown | Q15: Cummins | R15: 2012 | S15: ISL | T15: Unknown | U15: FALSE | V15: Diesel | W15: \N | X15: 4 | Y15: =UCR[[#This Row],[Type]]&UCR[[#This Row],[Weight Class]] -> Shuttle Bus8 | Z15: =VLOOKUP(UCR[[#This Row],[URC_ID]],'A98_Segment Match Up'!$V$3:$Y$34,4,FALSE) -> 0 | AA15: Airport Shuttle | AB15: Shuttle Bus | AC15: 8 | AD15: 67.37000339 | AR15: Box Truck | AS15: 6 | AT15: 37.42624311 | AW15: WalkIn | AX15: 6 | AY15: 94.65357667 | BI15: Tractor | BJ15: 7 | BK15: 68.0992826 | BY15: Box Truck | BZ15: 7 | CA15: 31.07630677 | DA15: Box Truck | DB15: 8 | DC15: 38.3946329 | DI15: Tractor | DJ15: 8 | DK15: 35.64005042 | DT15: Tractor | DU15: 8 | DV15: 261.9265312 | EG15: Drayage Tractor | EH15: 8 | EI15: 111.5580173 | EK15: Transit Bus | EL15: 8 | EM15: 134.6276756 | EO15: Refuse | EP15: 8 | EQ15: 45.28944067
... 18 more rows

Sheet A1a_VMTbyYr (hidden)
C1: Return to Table of Contents
J2: Year(s) of Operation
C3: Vehicle ID | D3: Vehicle ID2 | E3: Class | F3: Daily Operational VMT | G3: Annual Operational VMT | H3: 10 yr Average Annual Operational VMT | I3: 10 yr Average Daily Operational VMT | J3: Purchase Year | K3: 2 | L3: 3 | M3: 4 | N3: 5 | O3: 6 | P3: 7 | Q3: 8 | R3: 9 | S3: 10
F5: Miles | G5: Miles | H5: Miles | I5: Miles | J5: Year | K5: Year | L5: Year | M5: Year | N5: Year | O5: Year | P5: Year | Q5: Year | R5: Year | S5: Year
B6: # | C6: Vehicle ID | D6: Vehicle ID2 | E6: Class | F6: ='1_Veh Prop'!W6 -> Operation VMT (50%) | G6: =CONCATENATE("Annual Miles (",Op_Range_Percentile*100,"% VMT)") -> Annual Miles (50% VMT) | H6: =CONCATENATE(Assess_P," yr Average Annual VMT") -> 10 yr Average Annual VMT | I6: =CONCATENATE(Assess_P," yr Average Operational VMT") -> 10 yr Average Operational VMT | J6: 0 | K6: =J6+1 -> 1 | L6: =K6+1 -> 2 | M6: 3 | N6: 4 | O6: 5 | P6: 6 | Q6: 7 | R6: 8 | S6: 9
A7: 1 | B7: ='1_Veh Prop'!A7 -> 1 | C7: ='1_Veh Prop'!B7 -> 01V_Amb_Cl4-5_MP | D7: ='1_Veh Prop'!C7 -> V_Amb_Cl4-5 | E7: ='1_Veh Prop'!H7 -> 4-5 | F7: =INDEX('1_Veh Prop'!$B$6:$AS$107,MATCH($C7,'1_Veh Prop'!$B$6:$B$107,0),MATCH(F$6,'1_Veh Prop'!$6:$6,0)-1) -> 33.92166542 | G7: =F7*Op_Days -> 8480.416356 | H7: =SUMIF($J$6:$S$6,"<"&Assess_P,J7:S7)/Assess_P -> 7492.532654 | I7: =H7/Op_Days -> 29.97013062 | J7: =IF($A7=1,$G7*(0.0022*J$6+1.0015),$G7*(0.0106*J$6+1.022)) -> 8493.13698 | K7: 8511.793896 | L7: 8530.450812 | M7: =IF($A7=1,$G7*(-0.0588*M$6+1.1848),$G7*(-0.0547*M$6+1.2181)) -> 8551.651853 | N7: 8053.003371 | O7: 7554.35489 | P7: 7055.706408 | Q7: 6557.057926 | R7: 6058.409444 | S7: 5559.760963
A8: 1 | B8: ='1_Veh Prop'!A8 -> 2 | C8: ='1_Veh Prop'!B8 -> 02V_Amb_Cl2b-3_MP | D8: ='1_Veh Prop'!C8 -> V_Amb_Cl2b-3 | E8: ='1_Veh Prop'!H8 -> 2b-3 | F8: =INDEX('1_Veh Prop'!$B$6:$AS$107,MATCH($C8,'1_Veh Prop'!$B$6:$B$107,0),MATCH(F$6,'1_Veh Prop'!$6:$6,0)-1) -> 49.4102484 | G8: 12352.5621 | H8: 10913.61214 | I8: 43.65444857 | J8: 12371.09094 | K8: 12398.26658 | L8: 12425.44222 | M8: 12456.32362 | N8: 11729.99297 | O8: 11003.66232 | P8: 10277.33167 | Q8: 9551.001016 | R8: 8824.670365 | S8: 8098.339713
A9: 1 | B9: ='1_Veh Prop'!A9 -> 3 | C9: ='1_Veh Prop'!B9 -> 03V_Amb_Cl4-5_U | D9: ='1_Veh Prop'!C9 -> V_Amb_Cl4-5 | E9: ='1_Veh Prop'!H9 -> 4-5 | F9: =INDEX('1_Veh Prop'!$B$6:$AS$107,MATCH($C9,'1_Veh Prop'!$B$6:$B$107,0),MATCH(F$6,'1_Veh Prop'!$6:$6,0)-1) -> 39.07758046 | G9: 9769.395116 | H9: 8631.358279 | I9: 34.52543312 | J9: 9784.049209 | K9: 9805.541878 | L9: 9827.034547 | M9: 9851.458035 | N9: 9277.017602 | O9: 8702.577169 | P9: 8128.136737 | Q9: 7553.696304 | R9: 6979.255871 | S9: 6404.815438
A10: 1 | B10: ='1_Veh Prop'!A10 -> 4 | C10: ='1_Veh Prop'!B10 -> 04V_Amb_Cl2b-3_U | D10: ='1_Veh Prop'!C10 -> V_Amb_Cl2b-3 | E10: ='1_Veh Prop'!H10 -> 2b-3 | F10: =INDEX('1_Veh Prop'!$B$6:$AS$107,MATCH($C10,'1_Veh Prop'!$B$6:$B$107,0),MATCH(F$6,'1_Veh Prop'!$6:$6,0)-1) -> 39.76380417 | G10: 9940.951043 | H10: 8782.929656 | I10: 35.13171863 | J10: 9955.86247 | K10: 9977.732562 | L10: 9999.602655 | M10: 10024.45503 | N10: 9439.927111 | O10: 8855.399189 | P10: 8270.871268 | Q10: 7686.343347 | R10: 7101.815425 | S10: 6517.287504
A11: 1 | B11: ='1_Veh Prop'!A11 -> 5 | C11: ='1_Veh Prop'!B11 -> 05T_Box_Cl8_MP | D11: ='1_Veh Prop'!C11 -> T_Box_Cl8 | E11: ='1_Veh Prop'!H11 -> 8 | F11: =INDEX('1_Veh Prop'!$B$6:$AS$107,MATCH($C11,'1_Veh Prop'!$B$6:$B$107,0),MATCH(F$6,'1_Veh Prop'!$6:$6,0)-1) -> 66 | G11: 16500 | H11: 14577.915 | I11: 58.31166 | J11: 16524.75 | K11: 16561.05 | L11: 16597.35 | M11: 16638.6 | N11: 15668.4 | O11: 14698.2 | P11: 13728 | Q11: 12757.8 | R11: 11787.6 | S11: 10817.4
A12: 1 | B12: ='1_Veh Prop'!A12 -> 6 | C12: ='1_Veh Prop'!B12 -> 06T_Box_Cl8_R | D12: ='1_Veh Prop'!C12 -> T_Box_Cl8 | E12: ='1_Veh Prop'!H12 -> 8 | F12: =INDEX('1_Veh Prop'!$B$6:$AS$107,MATCH($C12,'1_Veh Prop'!$B$6:$B$107,0),MATCH(F$6,'1_Veh Prop'!$6:$6,0)-1) -> 66 | G12: 16500 | H12: 14577.915 | I12: 58.31166 | J12: 16524.75 | K12: 16561.05 | L12: 16597.35 | M12: 16638.6 | N12: 15668.4 | O12: 14698.2 | P12: 13728 | Q12: 12757.8 | R12: 11787.6 | S12: 10817.4
A13: 1 | B13: ='1_Veh Prop'!A13 -> 7 | C13: ='1_Veh Prop'!B13 -> 07T_Box_Cl6-7_MP | D13: ='1_Veh Prop'!C13 -> T_Box_Cl6-7 | E13: ='1_Veh Prop'!H13 -> 6-7 | F13: =INDEX('1_Veh Prop'!$B$6:$AS$107,MATCH($C13,'1_Veh Prop'!$B$6:$B$107,0),MATCH(F$6,'1_Veh Prop'!$6:$6,0)-1) -> 39.84303617 | G13: 9960.759043 | H13: 8800.430222 | I13: 35.20172089 | J13: 9975.700182 | K13: 9997.613852 | L13: 10019.52752 | M13: 10044.42942 | N13: 9458.736787 | O13: 8873.044156 | P13: 8287.351524 | Q13: 7701.658892 | R13: 7115.96626 | S13: 6530.273629
A14: 1 | B14: ='1_Veh Prop'!A14 -> 8 | C14: ='1_Veh Prop'!B14 -> 08T_Box_Cl6-7_R | D14: ='1_Veh Prop'!C14 -> T_Box_Cl6-7 | E14: ='1_Veh Prop'!H14 -> 6-7 | F14: =INDEX('1_Veh Prop'!$B$6:$AS$107,MATCH($C14,'1_Veh Prop'!$B$6:$B$107,0),MATCH(F$6,'1_Veh Prop'!$6:$6,0)-1) -> 39.84303617 | G14: 9960.759043 | H14: 8800.430222 | I14: 35.20172089 | J14: 9975.700182 | K14: 9997.613852 | L14: 10019.52752 | M14: 10044.42942 | N14: 9458.736787 | O14: 8873.044156 | P14: 8287.351524 | Q14: 7701.658892 | R14: 7115.96626 | S14: 6530.273629
A15: 1 | B15: ='1_Veh Prop'!A15 -> 9 | C15: ='1_Veh Prop'!B15 -> 09T_Box_Cl8_U | D15: ='1_Veh Prop'!C15 -> T_Box_Cl8 | E15: ='1_Veh Prop'!H15 -> 8 | F15: =INDEX('1_Veh Prop'!$B$6:$AS$107,MATCH($C15,'1_Veh Prop'!$B$6:$B$107,0),MATCH(F$6,'1_Veh Prop'!$6:$6,0)-1) -> 66 | G15: 16500 | H15: 14577.915 | I15: 58.31166 | J15: 16524.75 | K15: 16561.05 | L15: 16597.35 | M15: 16638.6 | N15: 15668.4 | O15: 14698.2 | P15: 13728 | Q15: 12757.8 | R15: 11787.6 | S15: 10817.4
... 18 more rows

Sheet A1a_CARB Fleet Report (hidden)
A1: Return to Table of Contents
A2: CARB Large Entity Report: https://ww2.arb.ca.gov/our-work/programs/advanced-clean-trucks/large-entity-reporting
A4: 31. What are the vehicle's average annual miles?
A5: Average Annual Miles | B5: Average Daily Miles | C5: Number Tractor Day Cab | D5: Number Tractor Sleeper Cab | E5: Number All Other Vehicles
A6: ≤5,000 | B6: =5000/250 -> 20 | C6: 886 | D6: 163 | E6: 41979
A7: 10000 | B7: =A7/250 -> 40 | C7: 1806 | D7: 61 | E7: 56753
A8: 20000 | B8: =A8/250 -> 80 | C8: 2846 | D8: 93 | E8: 45058
A9: 30000 | B9: 120 | C9: 4139 | D9: 100 | E9: 16534
A10: 40000 | B10: 160 | C10: 5010 | D10: 129 | E10: 4467
A11: 50000 | B11: 200 | C11: 5261 | D11: 298 | E11: 3231
A12: 60000 | B12: 240 | C12: 4008 | D12: 299 | E12: 813
A13: 70000 | B13: 280 | C13: 4050 | D13: 923 | E13: 2758
A14: 80000 | B14: 320 | C14: 1454 | D14: 599 | E14: 402
A15: 90000 | B15: 360 | C15: 1002 | D15: 2231 | E15: 530
... 15 more rows

Sheet A1b_Sales_ID (hidden)
A1: =Scenario_yr -> 2027 | B1: Return to Table of Contents
B3: Vehicle ID | C3: Vehicle ID2 | D3: GEM Energy ID | E3: MOVES source TypeID | F3: MOVES regClassID | G3: Sales Estimates | H3: Percent Total HD Sales
A5: Units | G5: unit | H5: %
A6: # | B6: Vehicle ID | C6: Vehicle ID2 | D6: GEM Energy ID | E6: MOVES source TypeID | F6: MOVES regClassID | G6: Sales (unit) | H6: Sales %
A7: 1 | B7: ='1_Veh Prop'!B7 -> 01V_Amb_Cl4-5_MP | C7: ='1_Veh Prop'!C7 -> V_Amb_Cl4-5 | D7: =INDEX('1_Veh Prop'!$A$6:$AJ$107,MATCH($B7,'1_Veh Prop'!$B$6:$B$107,0),MATCH(D$6,'1_Veh Prop'!$6:$6,0)) -> LHD_M | E7: =INDEX('1_Veh Prop'!$A$6:$AJ$107,MATCH($B7,'1_Veh Prop'!$B$6:$B$107,0),MATCH(E$6,'1_Veh Prop'!$6:$6,0)) -> 52 | F7: =INDEX('1_Veh Prop'!$A$6:$AJ$107,MATCH($B7,'1_Veh Prop'!$B$6:$B$107,0),MATCH(F$6,'1_Veh Prop'!$6:$6,0)) -> 42 | G7: 7653.902811 | H7: =G7/SUM($G$7:$G$107) -> 0.009034307068
A8: =A7+1 -> 2 | B8: ='1_Veh Prop'!B8 -> 02V_Amb_Cl2b-3_MP | C8: ='1_Veh Prop'!C8 -> V_Amb_Cl2b-3 | D8: =INDEX('1_Veh Prop'!$A$6:$AJ$107,MATCH($B8,'1_Veh Prop'!$B$6:$B$107,0),MATCH(D$6,'1_Veh Prop'!$6:$6,0)) -> LHD_M | E8: =INDEX('1_Veh Prop'!$A$6:$AJ$107,MATCH($B8,'1_Veh Prop'!$B$6:$B$107,0),MATCH(E$6,'1_Veh Prop'!$6:$6,0)) -> 52 | F8: =INDEX('1_Veh Prop'!$A$6:$AJ$107,MATCH($B8,'1_Veh Prop'!$B$6:$B$107,0),MATCH(F$6,'1_Veh Prop'!$6:$6,0)) -> 41 | G8: 5234.414033 | H8: 0.006178456254
A9: 3 | B9: ='1_Veh Prop'!B9 -> 03V_Amb_Cl4-5_U | C9: ='1_Veh Prop'!C9 -> V_Amb_Cl4-5 | D9: =INDEX('1_Veh Prop'!$A$6:$AJ$107,MATCH($B9,'1_Veh Prop'!$B$6:$B$107,0),MATCH(D$6,'1_Veh Prop'!$6:$6,0)) -> LHD_U | E9: =INDEX('1_Veh Prop'!$A$6:$AJ$107,MATCH($B9,'1_Veh Prop'!$B$6:$B$107,0),MATCH(E$6,'1_Veh Prop'!$6:$6,0)) -> 52 | F9: =INDEX('1_Veh Prop'!$A$6:$AJ$107,MATCH($B9,'1_Veh Prop'!$B$6:$B$107,0),MATCH(F$6,'1_Veh Prop'!$6:$6,0)) -> 42 | G9: 7653.902811 | H9: 0.009034307068
A10: 4 | B10: ='1_Veh Prop'!B10 -> 04V_Amb_Cl2b-3_U | C10: ='1_Veh Prop'!C10 -> V_Amb_Cl2b-3 | D10: =INDEX('1_Veh Prop'!$A$6:$AJ$107,MATCH($B10,'1_Veh Prop'!$B$6:$B$107,0),MATCH(D$6,'1_Veh Prop'!$6:$6,0)) -> LHD_U | E10: =INDEX('1_Veh Prop'!$A$6:$AJ$107,MATCH($B10,'1_Veh Prop'!$B$6:$B$107,0),MATCH(E$6,'1_Veh Prop'!$6:$6,0)) -> 52 | F10: =INDEX('1_Veh Prop'!$A$6:$AJ$107,MATCH($B10,'1_Veh Prop'!$B$6:$B$107,0),MATCH(F$6,'1_Veh Prop'!$6:$6,0)) -> 41 | G10: 5234.414033 | H10: 0.006178456254
A11: 5 | B11: ='1_Veh Prop'!B11 -> 05T_Box_Cl8_MP | C11: ='1_Veh Prop'!C11 -> T_Box_Cl8 | D11: =INDEX('1_Veh Prop'!$A$6:$AJ$107,MATCH($B11,'1_Veh Prop'!$B$6:$B$107,0),MATCH(D$6,'1_Veh Prop'!$6:$6,0)) -> HHD_M | E11: =INDEX('1_Veh Prop'!$A$6:$AJ$107,MATCH($B11,'1_Veh Prop'!$B$6:$B$107,0),MATCH(E$6,'1_Veh Prop'!$6:$6,0)) -> 52 | F11: =INDEX('1_Veh Prop'!$A$6:$AJ$107,MATCH($B11,'1_Veh Prop'!$B$6:$B$107,0),MATCH(F$6,'1_Veh Prop'!$6:$6,0)) -> 47 | G11: 2702.618537 | H11: 0.00319004387
A12: 6 | B12: ='1_Veh Prop'!B12 -> 06T_Box_Cl8_R | C12: ='1_Veh Prop'!C12 -> T_Box_Cl8 | D12: =INDEX('1_Veh Prop'!$A$6:$AJ$107,MATCH($B12,'1_Veh Prop'!$B$6:$B$107,0),MATCH(D$6,'1_Veh Prop'!$6:$6,0)) -> HHD_R | E12: =INDEX('1_Veh Prop'!$A$6:$AJ$107,MATCH($B12,'1_Veh Prop'!$B$6:$B$107,0),MATCH(E$6,'1_Veh Prop'!$6:$6,0)) -> 53 | F12: =INDEX('1_Veh Prop'!$A$6:$AJ$107,MATCH($B12,'1_Veh Prop'!$B$6:$B$107,0),MATCH(F$6,'1_Veh Prop'!$6:$6,0)) -> 47 | G12: 1826.191726 | H12: 0.002155550864
A13: 7 | B13: ='1_Veh Prop'!B13 -> 07T_Box_Cl6-7_MP | C13: ='1_Veh Prop'!C13 -> T_Box_Cl6-7 | D13: =INDEX('1_Veh Prop'!$A$6:$AJ$107,MATCH($B13,'1_Veh Prop'!$B$6:$B$107,0),MATCH(D$6,'1_Veh Prop'!$6:$6,0)) -> MHD_M | E13: =INDEX('1_Veh Prop'!$A$6:$AJ$107,MATCH($B13,'1_Veh Prop'!$B$6:$B$107,0),MATCH(E$6,'1_Veh Prop'!$6:$6,0)) -> 52 | F13: =INDEX('1_Veh Prop'!$A$6:$AJ$107,MATCH($B13,'1_Veh Prop'!$B$6:$B$107,0),MATCH(F$6,'1_Veh Prop'!$6:$6,0)) -> 46 | G13: 5530.040901 | H13: 0.006527400312
A14: 8 | B14: ='1_Veh Prop'!B14 -> 08T_Box_Cl6-7_R | C14: ='1_Veh Prop'!C14 -> T_Box_Cl6-7 | D14: =INDEX('1_Veh Prop'!$A$6:$AJ$107,MATCH($B14,'1_Veh Prop'!$B$6:$B$107,0),MATCH(D$6,'1_Veh Prop'!$6:$6,0)) -> MHD_R | E14: =INDEX('1_Veh Prop'!$A$6:$AJ$107,MATCH($B14,'1_Veh Prop'!$B$6:$B$107,0),MATCH(E$6,'1_Veh Prop'!$6:$6,0)) -> 53 | F14: =INDEX('1_Veh Prop'!$A$6:$AJ$107,MATCH($B14,'1_Veh Prop'!$B$6:$B$107,0),MATCH(F$6,'1_Veh Prop'!$6:$6,0)) -> 46 | G14: 3464.268378 | H14: 0.004089059538
A15: 9 | B15: ='1_Veh Prop'!B15 -> 09T_Box_Cl8_U | C15: ='1_Veh Prop'!C15 -> T_Box_Cl8 | D15: =INDEX('1_Veh Prop'!$A$6:$AJ$107,MATCH($B15,'1_Veh Prop'!$B$6:$B$107,0),MATCH(D$6,'1_Veh Prop'!$6:$6,0)) -> HHD_U | E15: =INDEX('1_Veh Prop'!$A$6:$AJ$107,MATCH($B15,'1_Veh Prop'!$B$6:$B$107,0),MATCH(E$6,'1_Veh Prop'!$6:$6,0)) -> 52 | F15: =INDEX('1_Veh Prop'!$A$6:$AJ$107,MATCH($B15,'1_Veh Prop'!$B$6:$B$107,0),MATCH(F$6,'1_Veh Prop'!$6:$6,0)) -> 47 | G15: 2702.618537 | H15: 0.00319004387
... 18 more rows

Sheet A1c_GEM_ID (hidden)
A1: =Scenario_yr -> 2027 | B1: Return to Table of Contents
B3: Vehicle ID | C3: Vehicle ID2 | D3: GEM Energy ID | E3: GEM Regen ID | F3: MOVES source TypeID | G3: MOVES regClassID | H3: ZEV Energy Demand @ Axle | I3: Weighted Regen Fraction | J3: ICE Weighted FE | K3: GEM Weighting Factor Cruise 55 | L3: GEM Weighting Factor Cruise 65 | M3: GEM Weighting Factor Transient | N3: GEM Air Conditioning Load | O3: GEM Air Conditioning Energy
A5: Units | H5: kWh/mi | J5: MPG | N5: kW | O5: kWh/mile
A6: # | B6: Vehicle ID | C6: Vehicle ID2 | D6: GEM Energy ID | E6: GEM Regen ID | F6: MOVES source TypeID | G6: MOVES regClassID | H6: Energy Use per Mile - GEM 2027 (kWh/mi) | I6: Weighted Regen Fraction | J6: ICE Weight FE (MPG) | K6: GEM WT Cruise 55 | L6: GEM WT Cruise 65 | M6: GEM Weight Transient | N6: GEM AC Load (kW) | O6: GEM AC Load (kWh/mi)
A7: 1 | B7: ='1_Veh Prop'!B7 -> 01V_Amb_Cl4-5_MP | C7: ='1_Veh Prop'!C7 -> V_Amb_Cl4-5 | D7: LHD_M | E7: LHD_M | F7: =INDEX('1_Veh Prop'!$A$6:$CW$107,MATCH($B7,'1_Veh Prop'!$B$6:$B$107,0),MATCH(F$6,'1_Veh Prop'!$6:$6,0)) -> 52 | G7: =INDEX('1_Veh Prop'!$A$6:$CW$107,MATCH($B7,'1_Veh Prop'!$B$6:$B$107,0),MATCH(G$6,'1_Veh Prop'!$6:$6,0)) -> 42 | H7: =INDEX('A1c_ZEV Energy Demand at Axle'!$A$2:$Y$28,MATCH(A1c_GEM_ID!D7,'A1c_ZEV Energy Demand at Axle'!$A$2:$A$28,0),MATCH(A1c_GEM_ID!$A$1,'A1c_ZEV Energy Demand at Axle'!$A$2:$Y$2,0))-O7 -> 0.8601323948 | I7: =INDEX('A1c_GEM Regen'!$A$3:$C$22,MATCH(A1c_GEM_ID!E7,'A1c_GEM Regen'!$A$3:$A$22,0),MATCH(I$6,'A1c_GEM Regen'!$A$2:$C$2,0)) -> 0.098286 | J7: =INDEX('A1c_ICE Weighted FE'!$A$3:$Y$28,MATCH(D7,'A1c_ICE Weighted FE'!$A$3:$A$28,0),MATCH($A$1,'A1c_ICE Weighted FE'!$A$2:$Y$2,0)) -> 11.36253856 | K7: =INDEX(A1c_GEM_WF!$A$3:$D$22,MATCH(A1c_GEM_ID!$E7,A1c_GEM_WF!$A$3:$A$22,0),2) -> 0.29 | L7: =INDEX(A1c_GEM_WF!$A$3:$D$22,MATCH(A1c_GEM_ID!$E7,A1c_GEM_WF!$A$3:$A$22,0),3) -> 0.17 | M7: =INDEX(A1c_GEM_WF!$A$3:$D$22,MATCH(A1c_GEM_ID!$E7,A1c_GEM_WF!$A$3:$A$22,0),4) -> 0.54 | N7: 1 | O7: =N7/(M7*(2.842/(668/60/60))+K7*55+L7*65) -> 0.02835212043
A8: =A7+1 -> 2 | B8: ='1_Veh Prop'!B8 -> 02V_Amb_Cl2b-3_MP | C8: ='1_Veh Prop'!C8 -> V_Amb_Cl2b-3 | D8: LHD_M | E8: LHD_M | F8: =INDEX('1_Veh Prop'!$A$6:$CW$107,MATCH($B8,'1_Veh Prop'!$B$6:$B$107,0),MATCH(F$6,'1_Veh Prop'!$6:$6,0)) -> 52 | G8: =INDEX('1_Veh Prop'!$A$6:$CW$107,MATCH($B8,'1_Veh Prop'!$B$6:$B$107,0),MATCH(G$6,'1_Veh Prop'!$6:$6,0)) -> 41 | H8: =INDEX('A1c_ZEV Energy Demand at Axle'!$A$2:$Y$28,MATCH(A1c_GEM_ID!D8,'A1c_ZEV Energy Demand at Axle'!$A$2:$A$28,0),MATCH(A1c_GEM_ID!$A$1,'A1c_ZEV Energy Demand at Axle'!$A$2:$Y$2,0))-O8 -> 0.8601323948 | I8: =INDEX('A1c_GEM Regen'!$A$3:$C$22,MATCH(A1c_GEM_ID!E8,'A1c_GEM Regen'!$A$3:$A$22,0),MATCH(I$6,'A1c_GEM Regen'!$A$2:$C$2,0)) -> 0.098286 | J8: =INDEX('A1c_ICE Weighted FE'!$A$3:$Y$28,MATCH(D8,'A1c_ICE Weighted FE'!$A$3:$A$28,0),MATCH($A$1,'A1c_ICE Weighted FE'!$A$2:$Y$2,0)) -> 11.36253856 | K8: =INDEX(A1c_GEM_WF!$A$3:$D$22,MATCH(A1c_GEM_ID!$E8,A1c_GEM_WF!$A$3:$A$22,0),2) -> 0.29 | L8: =INDEX(A1c_GEM_WF!$A$3:$D$22,MATCH(A1c_GEM_ID!$E8,A1c_GEM_WF!$A$3:$A$22,0),3) -> 0.17 | M8: =INDEX(A1c_GEM_WF!$A$3:$D$22,MATCH(A1c_GEM_ID!$E8,A1c_GEM_WF!$A$3:$A$22,0),4) -> 0.54 | N8: 1 | O8: =N8/(M8*(2.842/(668/60/60))+K8*55+L8*65) -> 0.02835212043
A9: 3 | B9: ='1_Veh Prop'!B9 -> 03V_Amb_Cl4-5_U | C9: ='1_Veh Prop'!C9 -> V_Amb_Cl4-5 | D9: LHD_U | E9: LHD_U | F9: =INDEX('1_Veh Prop'!$A$6:$CW$107,MATCH($B9,'1_Veh Prop'!$B$6:$B$107,0),MATCH(F$6,'1_Veh Prop'!$6:$6,0)) -> 52 | G9: =INDEX('1_Veh Prop'!$A$6:$CW$107,MATCH($B9,'1_Veh Prop'!$B$6:$B$107,0),MATCH(G$6,'1_Veh Prop'!$6:$6,0)) -> 42 | H9: =INDEX('A1c_ZEV Energy Demand at Axle'!$A$2:$Y$28,MATCH(A1c_GEM_ID!D9,'A1c_ZEV Energy Demand at Axle'!$A$2:$A$28,0),MATCH(A1c_GEM_ID!$A$1,'A1c_ZEV Energy Demand at Axle'!$A$2:$Y$2,0))-O9 -> 0.8179302201 | I9: =INDEX('A1c_GEM Regen'!$A$3:$C$22,MATCH(A1c_GEM_ID!E9,'A1c_GEM Regen'!$A$3:$A$22,0),MATCH(I$6,'A1c_GEM Regen'!$A$2:$C$2,0)) -> 0.164668 | J9: =INDEX('A1c_ICE Weighted FE'!$A$3:$Y$28,MATCH(D9,'A1c_ICE Weighted FE'!$A$3:$A$28,0),MATCH($A$1,'A1c_ICE Weighted FE'!$A$2:$Y$2,0)) -> 10.24287291 | K9: =INDEX(A1c_GEM_WF!$A$3:$D$22,MATCH(A1c_GEM_ID!$E9,A1c_GEM_WF!$A$3:$A$22,0),2) -> 0.08 | L9: =INDEX(A1c_GEM_WF!$A$3:$D$22,MATCH(A1c_GEM_ID!$E9,A1c_GEM_WF!$A$3:$A$22,0),3) -> 0 | M9: =INDEX(A1c_GEM_WF!$A$3:$D$22,MATCH(A1c_GEM_ID!$E9,A1c_GEM_WF!$A$3:$A$22,0),4) -> 0.92 | N9: 1 | O9: 0.0540807312
A10: 4 | B10: ='1_Veh Prop'!B10 -> 04V_Amb_Cl2b-3_U | C10: ='1_Veh Prop'!C10 -> V_Amb_Cl2b-3 | D10: LHD_U | E10: LHD_U | F10: =INDEX('1_Veh Prop'!$A$6:$CW$107,MATCH($B10,'1_Veh Prop'!$B$6:$B$107,0),MATCH(F$6,'1_Veh Prop'!$6:$6,0)) -> 52 | G10: =INDEX('1_Veh Prop'!$A$6:$CW$107,MATCH($B10,'1_Veh Prop'!$B$6:$B$107,0),MATCH(G$6,'1_Veh Prop'!$6:$6,0)) -> 41 | H10: =INDEX('A1c_ZEV Energy Demand at Axle'!$A$2:$Y$28,MATCH(A1c_GEM_ID!D10,'A1c_ZEV Energy Demand at Axle'!$A$2:$A$28,0),MATCH(A1c_GEM_ID!$A$1,'A1c_ZEV Energy Demand at Axle'!$A$2:$Y$2,0))-O10 -> 0.8179302201 | I10: =INDEX('A1c_GEM Regen'!$A$3:$C$22,MATCH(A1c_GEM_ID!E10,'A1c_GEM Regen'!$A$3:$A$22,0),MATCH(I$6,'A1c_GEM Regen'!$A$2:$C$2,0)) -> 0.164668 | J10: =INDEX('A1c_ICE Weighted FE'!$A$3:$Y$28,MATCH(D10,'A1c_ICE Weighted FE'!$A$3:$A$28,0),MATCH($A$1,'A1c_ICE Weighted FE'!$A$2:$Y$2,0)) -> 10.24287291 | K10: =INDEX(A1c_GEM_WF!$A$3:$D$22,MATCH(A1c_GEM_ID!$E10,A1c_GEM_WF!$A$3:$A$22,0),2) -> 0.08 | L10: =INDEX(A1c_GEM_WF!$A$3:$D$22,MATCH(A1c_GEM_ID!$E10,A1c_GEM_WF!$A$3:$A$22,0),3) -> 0 | M10: =INDEX(A1c_GEM_WF!$A$3:$D$22,MATCH(A1c_GEM_ID!$E10,A1c_GEM_WF!$A$3:$A$22,0),4) -> 0.92 | N10: 1 | O10: 0.0540807312
A11: 5 | B11: ='1_Veh Prop'!B11 -> 05T_Box_Cl8_MP | C11: ='1_Veh Prop'!C11 -> T_Box_Cl8 | D11: HHD_M | E11: HHD_M | F11: =INDEX('1_Veh Prop'!$A$6:$CW$107,MATCH($B11,'1_Veh Prop'!$B$6:$B$107,0),MATCH(F$6,'1_Veh Prop'!$6:$6,0)) -> 52 | G11: =INDEX('1_Veh Prop'!$A$6:$CW$107,MATCH($B11,'1_Veh Prop'!$B$6:$B$107,0),MATCH(G$6,'1_Veh Prop'!$6:$6,0)) -> 47 | H11: =INDEX('A1c_ZEV Energy Demand at Axle'!$A$2:$Y$28,MATCH(A1c_GEM_ID!D11,'A1c_ZEV Energy Demand at Axle'!$A$2:$A$28,0),MATCH(A1c_GEM_ID!$A$1,'A1c_ZEV Energy Demand at Axle'!$A$2:$Y$2,0))-O11 -> 2.069512479 | I11: =INDEX('A1c_GEM Regen'!$A$3:$C$22,MATCH(A1c_GEM_ID!E11,'A1c_GEM Regen'!$A$3:$A$22,0),MATCH(I$6,'A1c_GEM Regen'!$A$2:$C$2,0)) -> 0.110653 | J11: =INDEX('A1c_ICE Weighted FE'!$A$3:$Y$28,MATCH(D11,'A1c_ICE Weighted FE'!$A$3:$A$28,0),MATCH($A$1,'A1c_ICE Weighted FE'!$A$2:$Y$2,0)) -> 6.388987652 | K11: =INDEX(A1c_GEM_WF!$A$3:$D$22,MATCH(A1c_GEM_ID!$E11,A1c_GEM_WF!$A$3:$A$22,0),2) -> 0.23 | L11: =INDEX(A1c_GEM_WF!$A$3:$D$22,MATCH(A1c_GEM_ID!$E11,A1c_GEM_WF!$A$3:$A$22,0),3) -> 0.23 | M11: =INDEX(A1c_GEM_WF!$A$3:$D$22,MATCH(A1c_GEM_ID!$E11,A1c_GEM_WF!$A$3:$A$22,0),4) -> 0.54 | N11: 1.5 | O11: 0.04181682328
A12: 6 | B12: ='1_Veh Prop'!B12 -> 06T_Box_Cl8_R | C12: ='1_Veh Prop'!C12 -> T_Box_Cl8 | D12: HHD_R | E12: HHD_R | F12: =INDEX('1_Veh Prop'!$A$6:$CW$107,MATCH($B12,'1_Veh Prop'!$B$6:$B$107,0),MATCH(F$6,'1_Veh Prop'!$6:$6,0)) -> 53 | G12: =INDEX('1_Veh Prop'!$A$6:$CW$107,MATCH($B12,'1_Veh Prop'!$B$6:$B$107,0),MATCH(G$6,'1_Veh Prop'!$6:$6,0)) -> 47 | H12: =INDEX('A1c_ZEV Energy Demand at Axle'!$A$2:$Y$28,MATCH(A1c_GEM_ID!D12,'A1c_ZEV Energy Demand at Axle'!$A$2:$A$28,0),MATCH(A1c_GEM_ID!$A$1,'A1c_ZEV Energy Demand at Axle'!$A$2:$Y$2,0))-O12 -> 2.06559048 | I12: =INDEX('A1c_GEM Regen'!$A$3:$C$22,MATCH(A1c_GEM_ID!E12,'A1c_GEM Regen'!$A$3:$A$22,0),MATCH(I$6,'A1c_GEM Regen'!$A$2:$C$2,0)) -> 0.045232 | J12: =INDEX('A1c_ICE Weighted FE'!$A$3:$Y$28,MATCH(D12,'A1c_ICE Weighted FE'!$A$3:$A$28,0),MATCH($A$1,'A1c_ICE Weighted FE'!$A$2:$Y$2,0)) -> 7.242392599 | K12: =INDEX(A1c_GEM_WF!$A$3:$D$22,MATCH(A1c_GEM_ID!$E12,A1c_GEM_WF!$A$3:$A$22,0),2) -> 0.24 | L12: =INDEX(A1c_GEM_WF!$A$3:$D$22,MATCH(A1c_GEM_ID!$E12,A1c_GEM_WF!$A$3:$A$22,0),3) -> 0.56 | M12: =INDEX(A1c_GEM_WF!$A$3:$D$22,MATCH(A1c_GEM_ID!$E12,A1c_GEM_WF!$A$3:$A$22,0),4) -> 0.2 | N12: 1.5 | O12: 0.02848286934
A13: 7 | B13: ='1_Veh Prop'!B13 -> 07T_Box_Cl6-7_MP | C13: ='1_Veh Prop'!C13 -> T_Box_Cl6-7 | D13: MHD_M | E13: MHD_M | F13: =INDEX('1_Veh Prop'!$A$6:$CW$107,MATCH($B13,'1_Veh Prop'!$B$6:$B$107,0),MATCH(F$6,'1_Veh Prop'!$6:$6,0)) -> 52 | G13: =INDEX('1_Veh Prop'!$A$6:$CW$107,MATCH($B13,'1_Veh Prop'!$B$6:$B$107,0),MATCH(G$6,'1_Veh Prop'!$6:$6,0)) -> 46 | H13: =INDEX('A1c_ZEV Energy Demand at Axle'!$A$2:$Y$28,MATCH(A1c_GEM_ID!D13,'A1c_ZEV Energy Demand at Axle'!$A$2:$A$28,0),MATCH(A1c_GEM_ID!$A$1,'A1c_ZEV Energy Demand at Axle'!$A$2:$Y$2,0))-O13 -> 1.364338591 | I13: =INDEX('A1c_GEM Regen'!$A$3:$C$22,MATCH(A1c_GEM_ID!E13,'A1c_GEM Regen'!$A$3:$A$22,0),MATCH(I$6,'A1c_GEM Regen'!$A$2:$C$2,0)) -> 0.100558 | J13: =INDEX('A1c_ICE Weighted FE'!$A$3:$Y$28,MATCH(D13,'A1c_ICE Weighted FE'!$A$3:$A$28,0),MATCH($A$1,'A1c_ICE Weighted FE'!$A$2:$Y$2,0)) -> 8.00651241 | K13: =INDEX(A1c_GEM_WF!$A$3:$D$22,MATCH(A1c_GEM_ID!$E13,A1c_GEM_WF!$A$3:$A$22,0),2) -> 0.29 | L13: =INDEX(A1c_GEM_WF!$A$3:$D$22,MATCH(A1c_GEM_ID!$E13,A1c_GEM_WF!$A$3:$A$22,0),3) -> 0.17 | M13: =INDEX(A1c_GEM_WF!$A$3:$D$22,MATCH(A1c_GEM_ID!$E13,A1c_GEM_WF!$A$3:$A$22,0),4) -> 0.54 | N13: 1 | O13: 0.02835212043
A14: 8 | B14: ='1_Veh Prop'!B14 -> 08T_Box_Cl6-7_R | C14: ='1_Veh Prop'!C14 -> T_Box_Cl6-7 | D14: MHD_R | E14: MHD_R | F14: =INDEX('1_Veh Prop'!$A$6:$CW$107,MATCH($B14,'1_Veh Prop'!$B$6:$B$107,0),MATCH(F$6,'1_Veh Prop'!$6:$6,0)) -> 53 | G14: =INDEX('1_Veh Prop'!$A$6:$CW$107,MATCH($B14,'1_Veh Prop'!$B$6:$B$107,0),MATCH(G$6,'1_Veh Prop'!$6:$6,0)) -> 46 | H14: =INDEX('A1c_ZEV Energy Demand at Axle'!$A$2:$Y$28,MATCH(A1c_GEM_ID!D14,'A1c_ZEV Energy Demand at Axle'!$A$2:$A$28,0),MATCH(A1c_GEM_ID!$A$1,'A1c_ZEV Energy Demand at Axle'!$A$2:$Y$2,0))-O14 -> 1.445105306 | I14: =INDEX('A1c_GEM Regen'!$A$3:$C$22,MATCH(A1c_GEM_ID!E14,'A1c_GEM Regen'!$A$3:$A$22,0),MATCH(I$6,'A1c_GEM Regen'!$A$2:$C$2,0)) -> 0.038808 | J14: =INDEX('A1c_ICE Weighted FE'!$A$3:$Y$28,MATCH(D14,'A1c_ICE Weighted FE'!$A$3:$A$28,0),MATCH($A$1,'A1c_ICE Weighted FE'!$A$2:$Y$2,0)) -> 8.231898933 | K14: =INDEX(A1c_GEM_WF!$A$3:$D$22,MATCH(A1c_GEM_ID!$E14,A1c_GEM_WF!$A$3:$A$22,0),2) -> 0.24 | L14: =INDEX(A1c_GEM_WF!$A$3:$D$22,MATCH(A1c_GEM_ID!$E14,A1c_GEM_WF!$A$3:$A$22,0),3) -> 0.56 | M14: =INDEX(A1c_GEM_WF!$A$3:$D$22,MATCH(A1c_GEM_ID!$E14,A1c_GEM_WF!$A$3:$A$22,0),4) -> 0.2 | N14: 1 | O14: 0.01898857956
A15: 9 | B15: ='1_Veh Prop'!B15 -> 09T_Box_Cl8_U | C15: ='1_Veh Prop'!C15 -> T_Box_Cl8 | D15: HHD_U | E15: HHD_U | F15: =INDEX('1_Veh Prop'!$A$6:$CW$107,MATCH($B15,'1_Veh Prop'!$B$6:$B$107,0),MATCH(F$6,'1_Veh Prop'!$6:$6,0)) -> 52 | G15: =INDEX('1_Veh Prop'!$A$6:$CW$107,MATCH($B15,'1_Veh Prop'!$B$6:$B$107,0),MATCH(G$6,'1_Veh Prop'!$6:$6,0)) -> 47 | H15: =INDEX('A1c_ZEV Energy Demand at Axle'!$A$2:$Y$28,MATCH(A1c_GEM_ID!D15,'A1c_ZEV Energy Demand at Axle'!$A$2:$A$28,0),MATCH(A1c_GEM_ID!$A$1,'A1c_ZEV Energy Demand at Axle'!$A$2:$Y$2,0))-O15 -> 2.06551186 | I15: =INDEX('A1c_GEM Regen'!$A$3:$C$22,MATCH(A1c_GEM_ID!E15,'A1c_GEM Regen'!$A$3:$A$22,0),MATCH(I$6,'A1c_GEM Regen'!$A$2:$C$2,0)) -> 0.17917 | J15: =INDEX('A1c_ICE Weighted FE'!$A$3:$Y$28,MATCH(D15,'A1c_ICE Weighted FE'!$A$3:$A$28,0),MATCH($A$1,'A1c_ICE Weighted FE'!$A$2:$Y$2,0)) -> 5.147793979 | K15: =INDEX(A1c_GEM_WF!$A$3:$D$22,MATCH(A1c_GEM_ID!$E15,A1c_GEM_WF!$A$3:$A$22,0),2) -> 0.1 | L15: =INDEX(A1c_GEM_WF!$A$3:$D$22,MATCH(A1c_GEM_ID!$E15,A1c_GEM_WF!$A$3:$A$22,0),3) -> 0 | M15: =INDEX(A1c_GEM_WF!$A$3:$D$22,MATCH(A1c_GEM_ID!$E15,A1c_GEM_WF!$A$3:$A$22,0),4) -> 0.9 | N15: 1.5 | O15: 0.07778246991
... 18 more rows

Sheet A1c_GEM_WF (hidden)
A1: Return to Table of Contents
A2: GEM ID | B2: Cruise 55 | C2: Cruise 65 | D2: Transient
A3: C8_SC | B3: 0.09 | C3: 0.86 | D3: 0.05
A4: C8_DC | B4: 0.17 | C4: 0.64 | D4: 0.19
A5: C8_HH | B5: 0.17 | C5: 0.64 | D5: 0.19
A6: C7_DC | B6: 0.17 | C6: 0.64 | D6: 0.19
A7: HHD_R | B7: 0.24 | C7: 0.56 | D7: 0.2
A8: HHD_M | B8: 0.23 | C8: 0.23 | D8: 0.54
A9: HHD_U | B9: 0.1 | C9: 0 | D9: 0.9
A10: MHD_R | B10: 0.24 | C10: 0.56 | D10: 0.2
A11: MHD_M | B11: 0.29 | C11: 0.17 | D11: 0.54
A12: MHD_U | B12: 0.08 | C12: 0 | D12: 0.92
A13: LHD_R | B13: 0.24 | C13: 0.56 | D13: 0.2
A14: LHD_M | B14: 0.29 | C14: 0.17 | D14: 0.54
A15: LHD_U | B15: 0.08 | C15: 0 | D15: 0.92
A16: RV | B16: 0.24 | C16: 0.56 | D16: 0.2
A17: School Bus | B17: 0.08 | C17: 0 | D17: 0.92
A18: Coach Bus | B18: 0.24 | C18: 0.56 | D18: 0.2
A19: Emergency | B19: 0.1 | C19: 0 | D19: 0.9
A20: Concrete Mixer | B20: 0.1 | C20: 0 | D20: 0.9
A21: Transit Bus | B21: 0.1 | C21: 0 | D21: 0.9
A22: Refuse Truck | B22: 0.1 | C22: 0 | D22: 0.9

Sheet A1c_GEM Regen (hidden)
A1: Return to Table of Contents
B2: Weighted Regen % | C2: Weighted Regen Fraction
A3: C7_DC | B3: 5.2565 | C3: =B3/100 -> 0.052565
A4: C8_DC | B4: 6.2099 | C4: =B4/100 -> 0.062099
A5: C8_HH | B5: 7.0744 | C5: =B5/100 -> 0.070744
A6: C8_SC | B6: 3.2869 | C6: =B6/100 -> 0.032869
A7: HHD_R | B7: 4.5232 | C7: =B7/100 -> 0.045232
A8: HHD_M | B8: 11.0653 | C8: =B8/100 -> 0.110653
A9: HHD_U | B9: 17.917 | C9: 0.17917
A10: MHD_R | B10: 3.8808 | C10: 0.038808
A11: MHD_M | B11: 10.0558 | C11: 0.100558
A12: MHD_U | B12: 16.8456 | C12: 0.168456
A13: LHD_R | B13: 3.794 | C13: 0.03794
A14: LHD_M | B14: 9.8286 | C14: 0.098286
A15: LHD_U | B15: 16.4668 | C15: 0.164668
A16: RV | B16: 3.8808 | C16: 0.038808
A17: School Bus | B17: 16.8456 | C17: 0.168456
A18: Coach Bus | B18: 4.5232 | C18: 0.045232
A19: Emergency | B19: 17.917 | C19: 0.17917
A20: Concrete Mixer | B20: 17.917 | C20: 0.17917
A21: Transit Bus | B21: 17.917 | C21: 0.17917
A22: Refuse Truck | B22: 17.917 | C22: 0.17917

Sheet A1c_ZEV Energy Demand at Axle (hidden)
A1: Return to Table of Contents
A2: GEM Energy ID | B2: 2027 | C2: =B2+1 -> 2028 | D2: =C2+1 -> 2029 | E2: 2030 | F2: 2031 | G2: =F2+1 -> 2032
A3: C7_DC_HR | B3: 1.89955432 | C3: =B3 -> 1.89955432 | D3: =C3 -> 1.89955432 | E3: 1.89955432 | F3: 1.89955432 | G3: 1.89955432
A4: C7_DC_LR | B4: 1.813764709 | C4: =B4 -> 1.813764709 | D4: 1.813764709 | E4: 1.813764709 | F4: 1.813764709 | G4: 1.813764709
A5: C7_DC_MR | B5: 1.981085754 | C5: =B5 -> 1.981085754 | D5: 1.981085754 | E5: 1.981085754 | F5: 1.981085754 | G5: 1.981085754
A6: C8_DC_HR | B6: 2.314135681 | C6: =B6 -> 2.314135681 | D6: 2.314135681 | E6: 2.314135681 | F6: 2.314135681 | G6: 2.314135681
A7: C8_DC_LR | B7: 2.232046516 | C7: =B7 -> 2.232046516 | D7: 2.232046516 | E7: 2.232046516 | F7: 2.232046516 | G7: 2.232046516
A8: C8_DC_MR | B8: 2.398860101 | C8: =B8 -> 2.398860101 | D8: 2.398860101 | E8: 2.398860101 | F8: 2.398860101 | G8: 2.398860101
A9: C8_HH | B9: 3.295990486 | C9: =B9 -> 3.295990486 | D9: 3.295990486 | E9: 3.295990486 | F9: 3.295990486 | G9: 3.295990486
A10: C8_SC_HR | B10: 2.201579824 | C10: =B10 -> 2.201579824 | D10: 2.201579824 | E10: 2.201579824 | F10: 2.201579824 | G10: 2.201579824
A11: C8_SC_LR | B11: 2.194823534 | C11: =B11 -> 2.194823534 | D11: 2.194823534 | E11: 2.194823534 | F11: 2.194823534 | G11: 2.194823534
A12: C8_SC_MR | B12: 2.40278751 | C12: =B12 -> 2.40278751 | D12: 2.40278751 | E12: 2.40278751 | F12: 2.40278751 | G12: 2.40278751
A13: HHD_R | B13: 2.094073349 | C13: =B13 -> 2.094073349 | D13: 2.094073349 | E13: 2.094073349 | F13: 2.094073349 | G13: 2.094073349
A14: HHD_M | B14: 2.111329302 | C14: =B14 -> 2.111329302 | D14: 2.111329302 | E14: 2.111329302 | F14: 2.111329302 | G14: 2.111329302
A15: HHD_U | B15: 2.14329433 | C15: =B15 -> 2.14329433 | D15: 2.14329433 | E15: 2.14329433 | F15: 2.14329433 | G15: 2.14329433
A16: MHD_R | B16: 1.464093885 | C16: =B16 -> 1.464093885 | D16: 1.464093885 | E16: 1.464093885 | F16: 1.464093885 | G16: 1.464093885
A17: MHD_M | B17: 1.392690711 | C17: =B17 -> 1.392690711 | D17: 1.392690711 | E17: 1.392690711 | F17: 1.392690711 | G17: 1.392690711
A18: MHD_U | B18: 1.360022738 | C18: =B18 -> 1.360022738 | D18: 1.360022738 | E18: 1.360022738 | F18: 1.360022738 | G18: 1.360022738
A19: LHD_R | B19: 0.932377933 | C19: =B19 -> 0.932377933 | D19: 0.932377933 | E19: 0.932377933 | F19: 0.932377933 | G19: 0.932377933
A20: LHD_M | B20: 0.8884845153 | C20: =B20 -> 0.8884845153 | D20: 0.8884845153 | E20: 0.8884845153 | F20: 0.8884845153 | G20: 0.8884845153
A21: LHD_U | B21: 0.8720109513 | C21: =B21 -> 0.8720109513 | D21: 0.8720109513 | E21: 0.8720109513 | F21: 0.8720109513 | G21: 0.8720109513
A22: RV | B22: 1.37734795 | C22: =B22 -> 1.37734795 | D22: 1.37734795 | E22: 1.37734795 | F22: 1.37734795 | G22: 1.37734795
A23: School Bus | B23: 1.302086865 | C23: =B23 -> 1.302086865 | D23: 1.302086865 | E23: 1.302086865 | F23: 1.302086865 | G23: 1.302086865
A24: Coach Bus | B24: 1.939507832 | C24: =B24 -> 1.939507832 | D24: 1.939507832 | E24: 1.939507832 | F24: 1.939507832 | G24: 1.939507832
A25: Emergency | B25: 2.134016247 | C25: =B25 -> 2.134016247 | D25: 2.134016247 | E25: 2.134016247 | F25: 2.134016247 | G25: 2.134016247
A26: Concrete Mixer | B26: 2.100496777 | C26: =B26 -> 2.100496777 | D26: 2.100496777 | E26: 2.100496777 | F26: 2.100496777 | G26: 2.100496777
A27: Transit Bus | B27: 2.065676783 | C27: =B27 -> 2.065676783 | D27: 2.065676783 | E27: 2.065676783 | F27: 2.065676783 | G27: 2.065676783
A28: Refuse Truck | B28: 2.083157742 | C28: =B28 -> 2.083157742 | D28: 2.083157742 | E28: 2.083157742 | F28: 2.083157742 | G28: 2.083157742

Sheet A1c_ICE Weighted FE (hidden)
A1: Return to Table of Contents
A2: GEM Energy ID | B2: 2027 | C2: =B2+1 -> 2028 | D2: =C2+1 -> 2029 | E2: 2030 | F2: 2031 | G2: =F2+1 -> 2032
A3: C7_DC_HR | B3: 8.596068841 | C3: =B3 -> 8.596068841 | D3: =C3 -> 8.596068841 | E3: 8.596068841 | F3: 8.596068841 | G3: 8.596068841
A4: C7_DC_LR | B4: 8.920476568 | C4: =B4 -> 8.920476568 | D4: 8.920476568 | E4: 8.920476568 | F4: 8.920476568 | G4: 8.920476568
A5: C7_DC_MR | B5: 8.196505422 | C5: =B5 -> 8.196505422 | D5: 8.196505422 | E5: 8.196505422 | F5: 8.196505422 | G5: 8.196505422
A6: C8_DC_HR | B6: 7.533773443 | C6: =B6 -> 7.533773443 | D6: 7.533773443 | E6: 7.533773443 | F6: 7.533773443 | G6: 7.533773443
A7: C8_DC_LR | B7: 7.767181217 | C7: =B7 -> 7.767181217 | D7: 7.767181217 | E7: 7.767181217 | F7: 7.767181217 | G7: 7.767181217
A8: C8_DC_MR | B8: 7.210065754 | C8: =B8 -> 7.210065754 | D8: 7.210065754 | E8: 7.210065754 | F8: 7.210065754 | G8: 7.210065754
A9: C8_HH | B9: 5.340614268 | C9: =B9 -> 5.340614268 | D9: 5.340614268 | E9: 5.340614268 | F9: 5.340614268 | G9: 5.340614268
A10: C8_SC_HR | B10: 8.512735193 | C10: =B10 -> 8.512735193 | D10: 8.512735193 | E10: 8.512735193 | F10: 8.512735193 | G10: 8.512735193
A11: C8_SC_LR | B11: 8.520158041 | C11: =B11 -> 8.520158041 | D11: 8.520158041 | E11: 8.520158041 | F11: 8.520158041 | G11: 8.520158041
A12: C8_SC_MR | B12: 7.811401873 | C12: =B12 -> 7.811401873 | D12: 7.811401873 | E12: 7.811401873 | F12: 7.811401873 | G12: 7.811401873
A13: HHD_R | B13: 7.242392599 | C13: =B13 -> 7.242392599 | D13: 7.242392599 | E13: 7.242392599 | F13: 7.242392599 | G13: 7.242392599
A14: HHD_M | B14: 6.388987652 | C14: =B14 -> 6.388987652 | D14: 6.388987652 | E14: 6.388987652 | F14: 6.388987652 | G14: 6.388987652
A15: HHD_U | B15: 5.147793979 | C15: =B15 -> 5.147793979 | D15: 5.147793979 | E15: 5.147793979 | F15: 5.147793979 | G15: 5.147793979
A16: MHD_R | B16: 8.231898933 | C16: =B16 -> 8.231898933 | D16: 8.231898933 | E16: 8.231898933 | F16: 8.231898933 | G16: 8.231898933
A17: MHD_M | B17: 8.00651241 | C17: =B17 -> 8.00651241 | D17: 8.00651241 | E17: 8.00651241 | F17: 8.00651241 | G17: 8.00651241
A18: MHD_U | B18: 7.268259565 | C18: =B18 -> 7.268259565 | D18: 7.268259565 | E18: 7.268259565 | F18: 7.268259565 | G18: 7.268259565
A19: LHD_R | B19: 12.14986859 | C19: =B19 -> 12.14986859 | D19: 12.14986859 | E19: 12.14986859 | F19: 12.14986859 | G19: 12.14986859
A20: LHD_M | B20: 11.36253856 | C20: =B20 -> 11.36253856 | D20: 11.36253856 | E20: 11.36253856 | F20: 11.36253856 | G20: 11.36253856
A21: LHD_U | B21: 10.24287291 | C21: =B21 -> 10.24287291 | D21: 10.24287291 | E21: 10.24287291 | F21: 10.24287291 | G21: 10.24287291
A22: RV | B22: 8.392733319 | C22: =B22 -> 8.392733319 | D22: 8.392733319 | E22: 8.392733319 | F22: 8.392733319 | G22: 8.392733319
A23: School Bus | B23: 7.193651539 | C23: =B23 -> 7.193651539 | D23: 7.193651539 | E23: 7.193651539 | F23: 7.193651539 | G23: 7.193651539
A24: Coach Bus | B24: 6.919871765 | C24: =B24 -> 6.919871765 | D24: 6.919871765 | E24: 6.919871765 | F24: 6.919871765 | G24: 6.919871765
A25: Emergency | B25: 4.955818595 | C25: =B25 -> 4.955818595 | D25: 4.955818595 | E25: 4.955818595 | F25: 4.955818595 | G25: 4.955818595
A26: Concrete Mixer | B26: 5.016496122 | C26: =B26 -> 5.016496122 | D26: 5.016496122 | E26: 5.016496122 | F26: 5.016496122 | G26: 5.016496122
A27: Transit Bus | B27: 5.152277469 | C27: =B27 -> 5.152277469 | D27: 5.152277469 | E27: 5.152277469 | F27: 5.152277469 | G27: 5.152277469
A28: Refuse Truck | B28: 5.048516913 | C28: =B28 -> 5.048516913 | D28: 5.048516913 | E28: 5.048516913 | F28: 5.048516913 | G28: 5.048516913

Sheet 2_ICE Tech
A1: =Scenario_yr -> 2027 | B1: Return to Table of Contents
C2: Hide | AB2: Hide | AC2: Hide | AD2: Hide | AE2: Hide
B3: Vehicle ID | D3: GEM Energy ID | E3: MOVES regClassID | F3: ICE ID for ICE Engine Cost | G3: Daily Sizing VMT | H3: ICE Powertrain, DEF, Fuel Mass | I3: ICE Wheelbase | J3: ICE Power | K3: ICE Powertrain, DEF, Fuel Mass | L3: ICE Wheelbase | M3: ICE Frame Depth | N3: ICE Power | O3: ICE GEM Fuel Economy | Q3: Engine and Aftertreatment DMC | R3: Gearbox DMC | S3: 2027 Low NOx Rule Additional DMC | T3: Engine Starter DMC | U3: Engine Accessory DMC | V3: Torque Converter/Clutch DMC | W3: Final Drive DMC | X3: Generator DMC | Y3: Total ICE Powertrain DMC | Z3: Total ICE Powertrain RPE
O4: 10180 | U4: =1920+120+186 -> 2226 | V4: 506 | W4: 1500
A5: Units | G5: miles | H5: lb | I5: in | J5: HP | K5: kg | L5: m | M5: in | N5: kW | O5: MPGDe | Q5: $ | R5: $ | S5: $ | T5: $ | U5: $ | V5: $ | W5: $ | X5: $ | Y5: $ | Z5: $
A6: # | B6: Vehicle ID | C6: Vehicle ID2 | D6: GEM Energy ID | E6: MOVES regClassID | F6: ICE _ID | G6: =CONCATENATE("Absolute Sizing VMT (",Sizing_Range_Percentile*100,"%)") -> Absolute Sizing VMT (90%) | H6: ICE Powertrain Weight [lbs] | I6: ICE Wheelbase [in] | J6: ICE Power [hp] | K6: ICE Powertrain Weight [kg] | L6: ICE Wheelbase [m] | M6: Ladder Frame (ft) | N6: ICE Power [kW] | O6: ICE Weight FE (MPG) | Q6: Engine Cost ($/unit) | R6: Gearbox ($/unit) | S6: 2027 Rule Cost | T6: Starter Cost | U6: Accessory Cost | V6: Torque Converter Clutch Cost | W6: Final Drive Cost | X6: Generator Cost | Y6: ICE PT Cost ($/unit) | Z6: ICE PT RPE ($/unit) | AB6: ID | AC6: ICE Power (kW) | AD6: m | AE6: b
A7: ='1_Veh Prop'!A7 -> 1 | B7: ='1_Veh Prop'!B7 -> 01V_Amb_Cl4-5_MP | C7: ='1_Veh Prop'!C7 -> V_Amb_Cl4-5 | D7: =INDEX(A1c_GEM_ID!$B$6:$AX$107,MATCH($B7,A1c_GEM_ID!$B$6:$B$107,0),MATCH(D$6,A1c_GEM_ID!$6:$6,0)-1) -> LHD_M | E7: =INDEX('1_Veh Prop'!$B$6:$AS$107,MATCH($B7,'1_Veh Prop'!$B$6:$B$107,0),MATCH(E$6,'1_Veh Prop'!$6:$6,0)-1) -> 42 | F7: =IF(N7<212,1,IF(N7<261,2,3)) -> 1 | G7: =INDEX('1_Veh Prop'!$B$6:$AJ$107,MATCH($B7,'1_Veh Prop'!$B$6:$B$107,0),MATCH(G$6,'1_Veh Prop'!$6:$6,0)-1) -> 50.35810678 | H7: 1738 | I7: 141 | J7: 200 | K7: =CONVERT(H7,"lbm","g")/1000 -> 788.3435391 | L7: =CONVERT(I7,"in","m") -> 3.5814 | M7: 8 | N7: =CONVERT(J7,"HP","W")/1000 -> 149.1399743 | O7: =INDEX(A1c_GEM_ID!$A$6:$AK$107,MATCH($B7,A1c_GEM_ID!$B$6:$B$107,0),MATCH(O$6,A1c_GEM_ID!$6:$6,0)) -> 11.36253856 | Q7: =Adj_Factor*(IF(ROUND(N7,0)=149,15000,IF(ROUND(N7,0)=201,18000,VLOOKUP($F7,$AB$7:$AE$9,3,FALSE)*N7+VLOOKUP($F7,$AB$7:$AE$9,4,FALSE)+VLOOKUP($F7,$AB$12:$AE$14,3,FALSE)*N7+VLOOKUP($F7,$AB$12:$AE$14,4,FALSE)))) -> 15811.6195 | R7: =INDEX(A2_Gearbox_ID!$B$7:$J$107,MATCH('2_ICE Tech'!B7,A2_Gearbox_ID!$B$7:$B$107,0),5)*Adj_Factor -> 6183.0811 | S7: =1358*Adj_Factor -> 1431.478619 | T7: =150*Adj_Factor -> 158.116195 | U7: =U$4*Adj_Factor -> 2346.444334 | V7: =506*Adj_Factor -> 533.3786311 | W7: =1500*Adj_Factor -> 1581.16195 | X7: =66*Adj_Factor -> 69.57112579 | Y7: =SUM(Q7:X7) -> 28114.85145 | Z7: =Y7*RPE -> 39923.08906 | AB7: 1 | AC7: 212 | AD7: 181.28 | AE7: -22893
A8: ='1_Veh Prop'!A8 -> 2 | B8: ='1_Veh Prop'!B8 -> 02V_Amb_Cl2b-3_MP | C8: ='1_Veh Prop'!C8 -> V_Amb_Cl2b-3 | D8: =INDEX(A1c_GEM_ID!$B$6:$AX$107,MATCH($B8,A1c_GEM_ID!$B$6:$B$107,0),MATCH(D$6,A1c_GEM_ID!$6:$6,0)-1) -> LHD_M | E8: =INDEX('1_Veh Prop'!$B$6:$AS$107,MATCH($B8,'1_Veh Prop'!$B$6:$B$107,0),MATCH(E$6,'1_Veh Prop'!$6:$6,0)-1) -> 41 | F8: =IF(N8<212,1,IF(N8<261,2,3)) -> 1 | G8: =INDEX('1_Veh Prop'!$B$6:$AJ$107,MATCH($B8,'1_Veh Prop'!$B$6:$B$107,0),MATCH(G$6,'1_Veh Prop'!$6:$6,0)-1) -> 63.97377355 | H8: 1019 | I8: 148 | J8: 200 | K8: 462.210625 | L8: 3.7592 | M8: 6 | N8: 149.1399743 | O8: =INDEX(A1c_GEM_ID!$A$6:$AK$107,MATCH($B8,A1c_GEM_ID!$B$6:$B$107,0),MATCH(O$6,A1c_GEM_ID!$6:$6,0)) -> 11.36253856 | Q8: 15811.6195 | R8: =INDEX(A2_Gearbox_ID!$B$7:$J$107,MATCH('2_ICE Tech'!B8,A2_Gearbox_ID!$B$7:$B$107,0),5)*Adj_Factor -> 4876.619686 | S8: =1358*Adj_Factor -> 1431.478619 | T8: =150*Adj_Factor -> 158.116195 | U8: 2346.444334 | V8: =506*Adj_Factor -> 533.3786311 | W8: 1581.16195 | X8: =66*Adj_Factor -> 69.57112579 | Y8: =SUM(Q8:X8) -> 26808.39004 | Z8: 38067.91385 | AB8: 2 | AC8: 261 | AD8: 80.751 | AE8: 3355.5
A9: ='1_Veh Prop'!A9 -> 3 | B9: ='1_Veh Prop'!B9 -> 03V_Amb_Cl4-5_U | C9: ='1_Veh Prop'!C9 -> V_Amb_Cl4-5 | D9: =INDEX(A1c_GEM_ID!$B$6:$AX$107,MATCH($B9,A1c_GEM_ID!$B$6:$B$107,0),MATCH(D$6,A1c_GEM_ID!$6:$6,0)-1) -> LHD_U | E9: =INDEX('1_Veh Prop'!$B$6:$AS$107,MATCH($B9,'1_Veh Prop'!$B$6:$B$107,0),MATCH(E$6,'1_Veh Prop'!$6:$6,0)-1) -> 42 | F9: 1 | G9: =INDEX('1_Veh Prop'!$B$6:$AJ$107,MATCH($B9,'1_Veh Prop'!$B$6:$B$107,0),MATCH(G$6,'1_Veh Prop'!$6:$6,0)-1) -> 58.04734232 | H9: 1738 | I9: 141 | J9: 200 | K9: 788.3435391 | L9: 3.5814 | M9: 8 | N9: 149.1399743 | O9: =INDEX(A1c_GEM_ID!$A$6:$AK$107,MATCH($B9,A1c_GEM_ID!$B$6:$B$107,0),MATCH(O$6,A1c_GEM_ID!$6:$6,0)) -> 10.24287291 | Q9: 15811.6195 | R9: =INDEX(A2_Gearbox_ID!$B$7:$J$107,MATCH('2_ICE Tech'!B9,A2_Gearbox_ID!$B$7:$B$107,0),5)*Adj_Factor -> 6183.0811 | S9: =1358*Adj_Factor -> 1431.478619 | T9: =150*Adj_Factor -> 158.116195 | U9: 2346.444334 | V9: =506*Adj_Factor -> 533.3786311 | W9: 1581.16195 | X9: =66*Adj_Factor -> 69.57112579 | Y9: 28114.85145 | Z9: 39923.08906 | AB9: 3 | AC9: 338 | AD9: 4.4824 | AE9: 29236
A10: ='1_Veh Prop'!A10 -> 4 | B10: ='1_Veh Prop'!B10 -> 04V_Amb_Cl2b-3_U | C10: ='1_Veh Prop'!C10 -> V_Amb_Cl2b-3 | D10: =INDEX(A1c_GEM_ID!$B$6:$AX$107,MATCH($B10,A1c_GEM_ID!$B$6:$B$107,0),MATCH(D$6,A1c_GEM_ID!$6:$6,0)-1) -> LHD_U | E10: =INDEX('1_Veh Prop'!$B$6:$AS$107,MATCH($B10,'1_Veh Prop'!$B$6:$B$107,0),MATCH(E$6,'1_Veh Prop'!$6:$6,0)-1) -> 41 | F10: 1 | G10: =INDEX('1_Veh Prop'!$B$6:$AJ$107,MATCH($B10,'1_Veh Prop'!$B$6:$B$107,0),MATCH(G$6,'1_Veh Prop'!$6:$6,0)-1) -> 51.71311883 | H10: 1019 | I10: 148 | J10: 200 | K10: 462.210625 | L10: 3.7592 | M10: 6 | N10: 149.1399743 | O10: =INDEX(A1c_GEM_ID!$A$6:$AK$107,MATCH($B10,A1c_GEM_ID!$B$6:$B$107,0),MATCH(O$6,A1c_GEM_ID!$6:$6,0)) -> 10.24287291 | Q10: 15811.6195 | R10: =INDEX(A2_Gearbox_ID!$B$7:$J$107,MATCH('2_ICE Tech'!B10,A2_Gearbox_ID!$B$7:$B$107,0),5)*Adj_Factor -> 4876.619686 | S10: =1358*Adj_Factor -> 1431.478619 | T10: =150*Adj_Factor -> 158.116195 | U10: 2346.444334 | V10: =506*Adj_Factor -> 533.3786311 | W10: 1581.16195 | X10: =66*Adj_Factor -> 69.57112579 | Y10: 26808.39004 | Z10: 38067.91385
A11: ='1_Veh Prop'!A11 -> 5 | B11: ='1_Veh Prop'!B11 -> 05T_Box_Cl8_MP | C11: ='1_Veh Prop'!C11 -> T_Box_Cl8 | D11: =INDEX(A1c_GEM_ID!$B$6:$AX$107,MATCH($B11,A1c_GEM_ID!$B$6:$B$107,0),MATCH(D$6,A1c_GEM_ID!$6:$6,0)-1) -> HHD_M | E11: =INDEX('1_Veh Prop'!$B$6:$AS$107,MATCH($B11,'1_Veh Prop'!$B$6:$B$107,0),MATCH(E$6,'1_Veh Prop'!$6:$6,0)-1) -> 47 | F11: 3 | G11: =INDEX('1_Veh Prop'!$B$6:$AJ$107,MATCH($B11,'1_Veh Prop'!$B$6:$B$107,0),MATCH(G$6,'1_Veh Prop'!$6:$6,0)-1) -> 89.87900719 | H11: 3021 | I11: 125 | J11: 455 | K11: 1370.30255 | L11: 3.175 | M11: 10 | N11: 339.2934416 | O11: =INDEX(A1c_GEM_ID!$A$6:$AK$107,MATCH($B11,A1c_GEM_ID!$B$6:$B$107,0),MATCH(O$6,A1c_GEM_ID!$6:$6,0)) -> 6.388987652 | Q11: 38185.79796 | R11: =INDEX(A2_Gearbox_ID!$B$7:$J$107,MATCH('2_ICE Tech'!B11,A2_Gearbox_ID!$B$7:$B$107,0),5)*Adj_Factor -> 11096.9108 | S11: =2210*Adj_Factor -> 2329.578606 | T11: =300*Adj_Factor -> 316.23239 | U11: 2346.444334 | V11: =392*Adj_Factor -> 413.2103229 | W11: 1581.16195 | X11: =66*Adj_Factor -> 69.57112579 | Y11: 56338.90748 | Z11: 80001.24863
A12: ='1_Veh Prop'!A12 -> 6 | B12: ='1_Veh Prop'!B12 -> 06T_Box_Cl8_R | C12: ='1_Veh Prop'!C12 -> T_Box_Cl8 | D12: =INDEX(A1c_GEM_ID!$B$6:$AX$107,MATCH($B12,A1c_GEM_ID!$B$6:$B$107,0),MATCH(D$6,A1c_GEM_ID!$6:$6,0)-1) -> HHD_R | E12: =INDEX('1_Veh Prop'!$B$6:$AS$107,MATCH($B12,'1_Veh Prop'!$B$6:$B$107,0),MATCH(E$6,'1_Veh Prop'!$6:$6,0)-1) -> 47 | F12: 3 | G12: =INDEX('1_Veh Prop'!$B$6:$AJ$107,MATCH($B12,'1_Veh Prop'!$B$6:$B$107,0),MATCH(G$6,'1_Veh Prop'!$6:$6,0)-1) -> 89.87900719 | H12: 3021 | I12: 125 | J12: 455 | K12: 1370.30255 | L12: 3.175 | M12: 10 | N12: 339.2934416 | O12: =INDEX(A1c_GEM_ID!$A$6:$AK$107,MATCH($B12,A1c_GEM_ID!$B$6:$B$107,0),MATCH(O$6,A1c_GEM_ID!$6:$6,0)) -> 7.242392599 | Q12: 38185.79796 | R12: =INDEX(A2_Gearbox_ID!$B$7:$J$107,MATCH('2_ICE Tech'!B12,A2_Gearbox_ID!$B$7:$B$107,0),5)*Adj_Factor -> 11096.9108 | S12: =2210*Adj_Factor -> 2329.578606 | T12: =300*Adj_Factor -> 316.23239 | U12: 2346.444334 | V12: =392*Adj_Factor -> 413.2103229 | W12: 1581.16195 | X12: =66*Adj_Factor -> 69.57112579 | Y12: 56338.90748 | Z12: 80001.24863 | AB12: 1 | AC12: 212 | AD12: 8.6044 | AE12: 2323.9
A13: ='1_Veh Prop'!A13 -> 7 | B13: ='1_Veh Prop'!B13 -> 07T_Box_Cl6-7_MP | C13: ='1_Veh Prop'!C13 -> T_Box_Cl6-7 | D13: =INDEX(A1c_GEM_ID!$B$6:$AX$107,MATCH($B13,A1c_GEM_ID!$B$6:$B$107,0),MATCH(D$6,A1c_GEM_ID!$6:$6,0)-1) -> MHD_M | E13: =INDEX('1_Veh Prop'!$B$6:$AS$107,MATCH($B13,'1_Veh Prop'!$B$6:$B$107,0),MATCH(E$6,'1_Veh Prop'!$6:$6,0)-1) -> 46 | F13: 1 | G13: =INDEX('1_Veh Prop'!$B$6:$AJ$107,MATCH($B13,'1_Veh Prop'!$B$6:$B$107,0),MATCH(G$6,'1_Veh Prop'!$6:$6,0)-1) -> 89.87900719 | H13: 1937 | I13: 146 | J13: 270 | K13: 878.6084207 | L13: 3.7084 | M13: 10 | N13: 201.3389653 | O13: =INDEX(A1c_GEM_ID!$A$6:$AK$107,MATCH($B13,A1c_GEM_ID!$B$6:$B$107,0),MATCH(O$6,A1c_GEM_ID!$6:$6,0)) -> 8.00651241 | Q13: 18973.9434 | R13: =INDEX(A2_Gearbox_ID!$B$7:$J$107,MATCH('2_ICE Tech'!B13,A2_Gearbox_ID!$B$7:$B$107,0),5)*Adj_Factor -> 5265.269293 | S13: =1357*Adj_Factor -> 1430.424511 | T13: =150*Adj_Factor -> 158.116195 | U13: 2346.444334 | V13: =506*Adj_Factor -> 533.3786311 | W13: 1581.16195 | X13: =66*Adj_Factor -> 69.57112579 | Y13: 30358.30944 | Z13: 43108.7994 | AB13: 2 | AC13: 313 | AD13: 17.394 | AE13: -432.82
A14: ='1_Veh Prop'!A14 -> 8 | B14: ='1_Veh Prop'!B14 -> 08T_Box_Cl6-7_R | C14: ='1_Veh Prop'!C14 -> T_Box_Cl6-7 | D14: =INDEX(A1c_GEM_ID!$B$6:$AX$107,MATCH($B14,A1c_GEM_ID!$B$6:$B$107,0),MATCH(D$6,A1c_GEM_ID!$6:$6,0)-1) -> MHD_R | E14: =INDEX('1_Veh Prop'!$B$6:$AS$107,MATCH($B14,'1_Veh Prop'!$B$6:$B$107,0),MATCH(E$6,'1_Veh Prop'!$6:$6,0)-1) -> 46 | F14: 1 | G14: =INDEX('1_Veh Prop'!$B$6:$AJ$107,MATCH($B14,'1_Veh Prop'!$B$6:$B$107,0),MATCH(G$6,'1_Veh Prop'!$6:$6,0)-1) -> 89.87900719 | H14: 1937 | I14: 146 | J14: 270 | K14: 878.6084207 | L14: 3.7084 | M14: 10 | N14: 201.3389653 | O14: =INDEX(A1c_GEM_ID!$A$6:$AK$107,MATCH($B14,A1c_GEM_ID!$B$6:$B$107,0),MATCH(O$6,A1c_GEM_ID!$6:$6,0)) -> 8.231898933 | Q14: 18973.9434 | R14: =INDEX(A2_Gearbox_ID!$B$7:$J$107,MATCH('2_ICE Tech'!B14,A2_Gearbox_ID!$B$7:$B$107,0),5)*Adj_Factor -> 5265.269293 | S14: =1357*Adj_Factor -> 1430.424511 | T14: =150*Adj_Factor -> 158.116195 | U14: 2346.444334 | V14: =506*Adj_Factor -> 533.3786311 | W14: 1581.16195 | X14: =66*Adj_Factor -> 69.57112579 | Y14: 30358.30944 | Z14: 43108.7994 | AB14: 3 | AC14: 313 | AD14: 17.394 | AE14: -432.82
A15: ='1_Veh Prop'!A15 -> 9 | B15: ='1_Veh Prop'!B15 -> 09T_Box_Cl8_U | C15: ='1_Veh Prop'!C15 -> T_Box_Cl8 | D15: =INDEX(A1c_GEM_ID!$B$6:$AX$107,MATCH($B15,A1c_GEM_ID!$B$6:$B$107,0),MATCH(D$6,A1c_GEM_ID!$6:$6,0)-1) -> HHD_U | E15: =INDEX('1_Veh Prop'!$B$6:$AS$107,MATCH($B15,'1_Veh Prop'!$B$6:$B$107,0),MATCH(E$6,'1_Veh Prop'!$6:$6,0)-1) -> 47 | F15: 2 | G15: =INDEX('1_Veh Prop'!$B$6:$AJ$107,MATCH($B15,'1_Veh Prop'!$B$6:$B$107,0),MATCH(G$6,'1_Veh Prop'!$6:$6,0)-1) -> 89.87900719 | H15: 3021 | I15: 125 | J15: 350 | K15: 1370.30255 | L15: 3.175 | M15: 10 | N15: 260.9949551 | O15: =INDEX(A1c_GEM_ID!$A$6:$AK$107,MATCH($B15,A1c_GEM_ID!$B$6:$B$107,0),MATCH(O$6,A1c_GEM_ID!$6:$6,0)) -> 5.147793979 | Q15: 30082.16463 | R15: =INDEX(A2_Gearbox_ID!$B$7:$J$107,MATCH('2_ICE Tech'!B15,A2_Gearbox_ID!$B$7:$B$107,0),5)*Adj_Factor -> 11096.9108 | S15: =2210*Adj_Factor -> 2329.578606 | T15: =300*Adj_Factor -> 316.23239 | U15: 2346.444334 | V15: =392*Adj_Factor -> 413.2103229 | W15: 1581.16195 | X15: =66*Adj_Factor -> 69.57112579 | Y15: 48235.27416 | Z15: 68494.0893
... 18 more rows

Sheet 2_BEV Tech
A1: =Scenario_yr -> 2027 | B1: Return to Table of Contents
B3: Vehicle ID | D3: GEM Energy ID | E3: 10 yr Average Daily Operational VMT | F3: Daily Sizing VMT | G3: Peak Power Demand | H3: Battery Conditioning @ Cold Ambient Temp | I3: Battery Conditioning @ Hot Ambient Temp | J3: BEV HVAC Heating Load | K3: BEV Baseline Energy | L3: BEV HVAC Cooling Load | M3: BEV Baseline Energy | O3: Daily Energy Demand for Operation @ Cold Ambient Temp | P3: Daily Energy Demand for Operation Without Temp Effects | Q3: Daily Energy Demand for Operation @ Hot Ambient Temp | R3: Daily Energy Demand for Sizing @ Cold Ambient Temp | S3: Daily Energy Demand for Sizing Without Temp Effects | T3: Daily Energy Demand for Sizing @ Hot Ambient Temp | U3: Annual BEV Electricity Consumption | V3: BEV Operating Energy | X3: Daily Energy Demand for Sizing | Y3: Total Battery Size | Z3: Payload Impact | AA3: Percent of Payload Impact | AB3: Battery Depth | AC3: Battery Width | AD3: BEV Battery Mass | AE3: BEV Motor Mass | AF3: BEV Gearbox Mass | AG3: BEV Total Powertrain Mass | AH3: Battery Volume | AJ3: Battery DMC (without IRA Battery Tax Credit) | AK3: Effective Battery DMC (with IRA Battery Tax Credit) | AL3: Motor DMC | AM3: On-board Charger DMC | AN3: Gearbox DMC | AO3: Final Drive DMC | AP3: Power Electronics DMC | AQ3: Electric Accessories | AR3: BEV Powertrain DMC
F4: =Sizing_Range_Percentile -> 0.9 | M4: GEM Weight [kg]
A5: Units | E5: miles | F5: miles | G5: kW | H5: kWh/mi | I5: kWh/mi | J5: kWh/mi | K5: kWh/mi | L5: kWh/mi | M5: kWh/ton-mi | O5: kWh/day | P5: kWh/day | Q5: kWh/day | R5: kWh/day | S5: kWh/day | T5: kWh/day | U5: kWh/year | V5: kWh/mi | X5: kWh/day | Y5: kWh | Z5: lb | AA5: % | AB5: in | AC5: ft | AD5: kg | AE5: kg | AF5: kg | AG5: kg | AH5: m^3 | AJ5: $ | AK5: $ | AL5: $ | AM5: $ | AN5: $ | AO5: $ | AP5: $ | AQ5: $ | AR5: $
A6: # | B6: Vehicle ID | C6: Vehicle ID2 | D6: GEM Energy ID | E6: ='1_Veh Prop'!X6 -> 10 yr Average Operational VMT | F6: =CONCATENATE("Absolute Sizing VMT (",F4*100,"%)") -> Absolute Sizing VMT (90%) | G6: =Tech_Pen1&" Peak Power (kW)" -> Default Peak Power (kW) | H6: =Tech_Pen1&" Cold Battery Conditioning (kWh/mi)" -> Default Cold Battery Conditioning (kWh/mi) | I6: =Tech_Pen1&" Hot Battery Conditioning (kWh/mi)" -> Default Hot Battery Conditioning (kWh/mi) | J6: =Tech_Pen1&" HVAC Load Only @ 20 F (kWh/mi)" -> Default HVAC Load Only @ 20 F (kWh/mi) | K6: =Tech_Pen1&" Baseline Energy 75 F (kWh/mi)" -> Default Baseline Energy 75 F (kWh/mi) | L6: =Tech_Pen1&" HVAC Load Only @ 95 F (kWh/mi)" -> Default HVAC Load Only @ 95 F (kWh/mi) | M6: =Tech_Pen1&" Baseline Energy 75 F (Wh/ton-mile)" -> Default Baseline Energy 75 F (Wh/ton-mile) | O6: =Tech_Pen1&" Operating Electricity per Day 20 F (kWh/day)" -> Default Operating Electricity per Day 20 F (kWh/day) | P6: =Tech_Pen1&" Operating Electricity per Day 75 F (kWh/day)" -> Default Operating Electricity per Day 75 F (kWh/day) | Q6: =Tech_Pen1&" Operating Electricity per Day 95 F HVAC (kWh/day)" -> Default Operating Electricity per Day 95 F HVAC (kWh/day) | R6: =Tech_Pen1&" Sizing Energy per Day 20 F HVAC (kWh/day)" -> Default Sizing Energy per Day 20 F HVAC (kWh/day) | S6: =Tech_Pen1&" Sizing Energy per Day 75 F (kWh/day)" -> Default Sizing Energy per Day 75 F (kWh/day) | T6: =Tech_Pen1&" Sizing Energy per Day 95 F HVAC (kWh/day)" -> Default Sizing Energy per Day 95 F HVAC (kWh/day) | U6: =Tech_Pen1&" Annual Discharge Throughput (kWh/year)" -> Default Annual Discharge Throughput (kWh/year) | V6: =Tech_Pen1&" "& "BEV Operating Energy Consumption (kWh/mi)" -> Default BEV Operating Energy Consumption (kWh/mi) | X6: =Tech_Pen1&" "& "BEV Sizing Energy Consumption (kWh/mi)" -> Default BEV Sizing Energy Consumption (kWh/mi) | Y6: =Tech_Pen1&" Battery Req Actual Sizing (kWh/pack)" -> Default Battery Req Actual Sizing (kWh/pack) | Z6: =Tech_Pen1&" Payload Impact (lb)" -> Default Payload Impact (lb) | AA6: =Tech_Pen1&" % of Payload Impact" -> Default % of Payload Impact | AB6: Battery Depth (in) | AC6: =Tech_Pen1&" Battery Width (ft)" -> Default Battery Width (ft) | AD6: =Tech_Pen1&" Battery Mass [kg]" -> Default Battery Mass [kg] | AE6: =Tech_Pen1&" Motor Mass (kg)" -> Default Motor Mass (kg) | AF6: Gearbox [kg] | AG6: =Tech_Pen1&" EV total (kg)" -> Default EV total (kg) | AH6: =Tech_Pen1&" Battery Volume [m^3]" -> Default Battery Volume [m^3] | AJ6: Battery Cost No IRA ($/unit) | AK6: Battery Cost ($/unit) | AL6: Motor Cost ($/unit) | AM6: Charger ($) | AN6: Gearbox | AO6: Final Drive | AP6: Accessories ($) | AR6: =Tech_Pen1&" BEV PT Cost ($/unit)" -> Default BEV PT Cost ($/unit)
A7: 1 | B7: ='1_Veh Prop'!B7 -> 01V_Amb_Cl4-5_MP | C7: ='1_Veh Prop'!C7 -> V_Amb_Cl4-5 | D7: =INDEX(A1c_GEM_ID!$B$6:$AX$107,MATCH($B7,A1c_GEM_ID!$B$6:$B$107,0),MATCH(D$6,A1c_GEM_ID!$6:$6,0)-1) -> LHD_M | E7: =INDEX('1_Veh Prop'!$B$6:$Y$107,MATCH(B7,'1_Veh Prop'!$B$6:$B$107,0),MATCH(E$6,'1_Veh Prop'!$B$6:$Y$6,0)) -> 29.97013062 | F7: =INDEX('1_Veh Prop'!$B$6:$Y$107,MATCH(B7,'1_Veh Prop'!$B$6:$B$107,0),MATCH(F$6,'1_Veh Prop'!$B$6:$Y$6,0)) -> 50.35810678 | G7: =INDEX('A2_Power Sizing'!$B$6:$S$107,MATCH($B7,'A2_Power Sizing'!$B$6:$B$107,0),MATCH(G$6,'A2_Power Sizing'!$6:$6,0)-1) -> 258.8527924 | H7: =INDEX('A2_Aux Load'!$B$6:$Z$107,MATCH('1_Veh Prop'!$B7,'A2_Aux Load'!$B$6:$B$107,0),MATCH(H$6,'A2_Aux Load'!$B$6:$Z$6,0)) -> 0.01605264206 | I7: =INDEX('A2_Aux Load'!$B$6:$Z$107,MATCH('1_Veh Prop'!$B7,'A2_Aux Load'!$B$6:$B$107,0),MATCH(I$6,'A2_Aux Load'!$B$6:$Z$6,0)) -> 0.03612866038 | J7: =(INDEX('1_Veh Prop'!$B$6:$CI$107,MATCH($B7,'1_Veh Prop'!$B$6:$B$107,0),MATCH(J$6,'1_Veh Prop'!$6:$6,0)-1)+$H7)/BTR_1 -> 0.558486703 | K7: =(INDEX('1_Veh Prop'!$B$6:$CI$107,MATCH($B7,'1_Veh Prop'!$B$6:$B$107,0),MATCH(K$6,'1_Veh Prop'!$6:$6,0)-1))/BTR_1 -> 0.8906497886 | L7: =(INDEX('1_Veh Prop'!$B$6:$CI$107,MATCH($B7,'1_Veh Prop'!$B$6:$B$107,0),MATCH(L$6,'1_Veh Prop'!$6:$6,0)-1)+$I7)/BTR_1 -> 0.3963851539 | M7: =K7/CONVERT(INDEX('1_Veh Prop'!$B$6:$AS$107,MATCH($B7,'1_Veh Prop'!$B$6:$B$107,0),MATCH(M$4,'1_Veh Prop'!$6:$6,0)-1),"kg","ton")*1000 -> 111.3385554 | O7: =J7/WTB_1*E7+P7 -> 49.35319311 | P7: =K7/WTB_1*E7 -> 30.33283011 | Q7: =L7/WTB_1*E7+P7 -> 43.83250606 | R7: =$F7*(J7)+S7 -> 72.97577019 | S7: =$F7*K7 -> 44.85143716 | T7: =$F7*L7+S7 -> 64.81264307 | U7: =Op_Days*SUMPRODUCT('A_Inputs Parameters'!$B$11:$D$11,O7:Q7) -> 10183.56051 | V7: =SUMPRODUCT('A_Inputs Parameters'!$B$11:$D$11,O7:Q7)/E7 -> 1.359161311 | X7: =SUMPRODUCT('A_Inputs Parameters'!$B$11:$D$11,R7:T7) -> 60.2314156 | Y7: =ROUND(X7*(1+Batt_UseRange_1)/DoD_EV_1,0) -> 90 | Z7: =CONVERT(('2_ICE Tech'!K7-AG7)*1000,"g","lbm") -> 578.7259492 | AA7: =-Z7/'1_Veh Prop'!S7 -> -0.1015308683 | AB7: ='2_ICE Tech'!M7*1.1 -> 8.8 | AC7: =CONVERT('2_BEV Tech'!$AH7,"m^3","ft^3")/('2_ICE Tech'!$I7/12)/(AB7/12) -> 0.7432891767 | AD7: ='2_BEV Tech'!$Y7*1000/(Pack_SE_1) -> 453.4005038 | AE7: =kW_Weight_Conv_1*'2_ICE Tech'!N7 -> 72.43736041 | AF7: 0 | AG7: =AD7+AE7+AF7 -> 525.8378642 | AH7: ='2_BEV Tech'!$Y7*1000/(Pack_ED_1)*0.001 -> 0.1813602015 | AJ7: =Y7*Batt_Cost_1 -> 13092.02095 | AK7: =Y7*(Batt_Cost_1-IRA_Batt_1/RPE) -> 11903.64066 | AL7: =G7*Motor_Cost_1 -> 5080.630682 | AM7: =On_Charger_1 -> 37.9478868 | AN7: =INDEX(A2_Gearbox_ID!$B$7:$J$107,MATCH('2_BEV Tech'!B7,A2_Gearbox_ID!$B$7:$B$107,0),7)*Adj_Factor -> 0 | AO7: =1500*Adj_Factor*Learning_1 -> 1581.16195 | AP7: =Power_Elec_1 -> 1581.16195 | AQ7: =4500*Adj_Factor*Learning_1 -> 4743.48585 | AR7: =SUM(AK7:AQ7) -> 24928.02898
A8: =A7+1 -> 2 | B8: ='1_Veh Prop'!B8 -> 02V_Amb_Cl2b-3_MP | C8: ='1_Veh Prop'!C8 -> V_Amb_Cl2b-3 | D8: =INDEX(A1c_GEM_ID!$B$6:$AX$107,MATCH($B8,A1c_GEM_ID!$B$6:$B$107,0),MATCH(D$6,A1c_GEM_ID!$6:$6,0)-1) -> LHD_M | E8: =INDEX('1_Veh Prop'!$B$6:$Y$107,MATCH(B8,'1_Veh Prop'!$B$6:$B$107,0),MATCH(E$6,'1_Veh Prop'!$B$6:$Y$6,0)) -> 43.65444857 | F8: =INDEX('1_Veh Prop'!$B$6:$Y$107,MATCH(B8,'1_Veh Prop'!$B$6:$B$107,0),MATCH(F$6,'1_Veh Prop'!$B$6:$Y$6,0)) -> 63.97377355 | G8: =INDEX('A2_Power Sizing'!$B$6:$S$107,MATCH($B8,'A2_Power Sizing'!$B$6:$B$107,0),MATCH(G$6,'A2_Power Sizing'!$6:$6,0)-1) -> 258.8527924 | H8: =INDEX('A2_Aux Load'!$B$6:$Z$107,MATCH('1_Veh Prop'!$B8,'A2_Aux Load'!$B$6:$B$107,0),MATCH(H$6,'A2_Aux Load'!$B$6:$Z$6,0)) -> 0.01605264206 | I8: =INDEX('A2_Aux Load'!$B$6:$Z$107,MATCH('1_Veh Prop'!$B8,'A2_Aux Load'!$B$6:$B$107,0),MATCH(I$6,'A2_Aux Load'!$B$6:$Z$6,0)) -> 0.03612866038 | J8: =(INDEX('1_Veh Prop'!$B$6:$CI$107,MATCH($B8,'1_Veh Prop'!$B$6:$B$107,0),MATCH(J$6,'1_Veh Prop'!$6:$6,0)-1)+$H8)/BTR_1 -> 0.276336609 | K8: =(INDEX('1_Veh Prop'!$B$6:$CI$107,MATCH($B8,'1_Veh Prop'!$B$6:$B$107,0),MATCH(K$6,'1_Veh Prop'!$6:$6,0)-1))/BTR_1 -> 0.8906497886 | L8: =(INDEX('1_Veh Prop'!$B$6:$CI$107,MATCH($B8,'1_Veh Prop'!$B$6:$B$107,0),MATCH(L$6,'1_Veh Prop'!$6:$6,0)-1)+$I8)/BTR_1 -> 0.2109695388 | M8: =K8/CONVERT(INDEX('1_Veh Prop'!$B$6:$AS$107,MATCH($B8,'1_Veh Prop'!$B$6:$B$107,0),MATCH(M$4,'1_Veh Prop'!$6:$6,0)-1),"kg","ton")*1000 -> 111.3385554 | O8: 57.8910769 | P8: 44.18275612 | Q8: 54.64839121 | R8: 74.65652354 | S8: 56.97822789 | T8: 70.4747454 | U8: =Op_Days*SUMPRODUCT('A_Inputs Parameters'!$B$11:$D$11,O8:Q8) -> 12966.18955 | V8: =SUMPRODUCT('A_Inputs Parameters'!$B$11:$D$11,O8:Q8)/E8 -> 1.188074982 | X8: =SUMPRODUCT('A_Inputs Parameters'!$B$11:$D$11,R8:T8) -> 66.8849631 | Y8: 100 | Z8: =CONVERT(('2_ICE Tech'!K8-AG8)*1000,"g","lbm") -> -251.3381627 | AA8: =-Z8/'1_Veh Prop'!S8 -> 0.04409441452 | AB8: ='2_ICE Tech'!M8*1.1 -> 6.6 | AC8: =CONVERT('2_BEV Tech'!$AH8,"m^3","ft^3")/('2_ICE Tech'!$I8/12)/(AB8/12) -> 1.049086826 | AD8: ='2_BEV Tech'!$Y8*1000/(Pack_SE_1) -> 503.7783375 | AE8: =kW_Weight_Conv_1*'2_ICE Tech'!N8 -> 72.43736041 | AF8: 0 | AG8: 576.2156979 | AH8: ='2_BEV Tech'!$Y8*1000/(Pack_ED_1)*0.001 -> 0.201511335 | AJ8: 14546.68994 | AK8: 13226.2674 | AL8: 5080.630682 | AM8: 37.9478868 | AN8: =INDEX(A2_Gearbox_ID!$B$7:$J$107,MATCH('2_BEV Tech'!B8,A2_Gearbox_ID!$B$7:$B$107,0),7)*Adj_Factor -> 0 | AO8: =Final_Drive_1 -> 1581.16195 | AP8: =Power_Elec_1 -> 1581.16195 | AQ8: 4743.48585 | AR8: =SUM(AK8:AQ8) -> 26250.65572
A9: 3 | B9: ='1_Veh Prop'!B9 -> 03V_Amb_Cl4-5_U | C9: ='1_Veh Prop'!C9 -> V_Amb_Cl4-5 | D9: =INDEX(A1c_GEM_ID!$B$6:$AX$107,MATCH($B9,A1c_GEM_ID!$B$6:$B$107,0),MATCH(D$6,A1c_GEM_ID!$6:$6,0)-1) -> LHD_U | E9: =INDEX('1_Veh Prop'!$B$6:$Y$107,MATCH(B9,'1_Veh Prop'!$B$6:$B$107,0),MATCH(E$6,'1_Veh Prop'!$B$6:$Y$6,0)) -> 34.52543312 | F9: =INDEX('1_Veh Prop'!$B$6:$Y$107,MATCH(B9,'1_Veh Prop'!$B$6:$B$107,0),MATCH(F$6,'1_Veh Prop'!$B$6:$Y$6,0)) -> 58.04734232 | G9: =INDEX('A2_Power Sizing'!$B$6:$S$107,MATCH($B9,'A2_Power Sizing'!$B$6:$B$107,0),MATCH(G$6,'A2_Power Sizing'!$6:$6,0)-1) -> 258.8527924 | H9: =INDEX('A2_Aux Load'!$B$6:$Z$107,MATCH('1_Veh Prop'!$B9,'A2_Aux Load'!$B$6:$B$107,0),MATCH(H$6,'A2_Aux Load'!$B$6:$Z$6,0)) -> 0.0152650233 | I9: =INDEX('A2_Aux Load'!$B$6:$Z$107,MATCH('1_Veh Prop'!$B9,'A2_Aux Load'!$B$6:$B$107,0),MATCH(I$6,'A2_Aux Load'!$B$6:$Z$6,0)) -> 0.03435601695 | J9: =(INDEX('1_Veh Prop'!$B$6:$CI$107,MATCH($B9,'1_Veh Prop'!$B$6:$B$107,0),MATCH(J$6,'1_Veh Prop'!$6:$6,0)-1)+$H9)/BTR_1 -> 0.4860442142 | K9: =(INDEX('1_Veh Prop'!$B$6:$CI$107,MATCH($B9,'1_Veh Prop'!$B$6:$B$107,0),MATCH(K$6,'1_Veh Prop'!$6:$6,0)-1))/BTR_1 -> 0.7845998578 | L9: =(INDEX('1_Veh Prop'!$B$6:$CI$107,MATCH($B9,'1_Veh Prop'!$B$6:$B$107,0),MATCH(L$6,'1_Veh Prop'!$6:$6,0)-1)+$I9)/BTR_1 -> 0.3473381566 | M9: =K9/CONVERT(INDEX('1_Veh Prop'!$B$6:$AS$107,MATCH($B9,'1_Veh Prop'!$B$6:$B$107,0),MATCH(M$4,'1_Veh Prop'!$6:$6,0)-1),"kg","ton")*1000 -> 98.08144109 | O9: 49.8517465 | P9: 30.78255672 | Q9: 44.40982978 | R9: 73.75751141 | S9: 45.54393653 | T9: 65.7059934 | U9: =Op_Days*SUMPRODUCT('A_Inputs Parameters'!$B$11:$D$11,O9:Q9) -> 10308.52284 | V9: =SUMPRODUCT('A_Inputs Parameters'!$B$11:$D$11,O9:Q9)/E9 -> 1.194310618 | X9: =SUMPRODUCT('A_Inputs Parameters'!$B$11:$D$11,R9:T9) -> 61.00737042 | Y9: 92 | Z9: =CONVERT(('2_ICE Tech'!K9-AG9)*1000,"g","lbm") -> 556.5131268 | AA9: =-Z9/'1_Veh Prop'!S9 -> -0.0976338819 | AB9: ='2_ICE Tech'!M9*1.1 -> 8.8 | AC9: =CONVERT('2_BEV Tech'!$AH9,"m^3","ft^3")/('2_ICE Tech'!$I9/12)/(AB9/12) -> 0.759806714 | AD9: ='2_BEV Tech'!$Y9*1000/(Pack_SE_1) -> 463.4760705 | AE9: =kW_Weight_Conv_1*'2_ICE Tech'!N9 -> 72.43736041 | AF9: 0 | AG9: 535.9134309 | AH9: ='2_BEV Tech'!$Y9*1000/(Pack_ED_1)*0.001 -> 0.1853904282 | AJ9: 13382.95474 | AK9: 12168.16601 | AL9: 5080.630682 | AM9: 37.9478868 | AN9: =INDEX(A2_Gearbox_ID!$B$7:$J$107,MATCH('2_BEV Tech'!B9,A2_Gearbox_ID!$B$7:$B$107,0),7)*Adj_Factor -> 0 | AO9: 1581.16195 | AP9: 1581.16195 | AQ9: 4743.48585 | AR9: 25192.55433
A10: 4 | B10: ='1_Veh Prop'!B10 -> 04V_Amb_Cl2b-3_U | C10: ='1_Veh Prop'!C10 -> V_Amb_Cl2b-3 | D10: =INDEX(A1c_GEM_ID!$B$6:$AX$107,MATCH($B10,A1c_GEM_ID!$B$6:$B$107,0),MATCH(D$6,A1c_GEM_ID!$6:$6,0)-1) -> LHD_U | E10: =INDEX('1_Veh Prop'!$B$6:$Y$107,MATCH(B10,'1_Veh Prop'!$B$6:$B$107,0),MATCH(E$6,'1_Veh Prop'!$B$6:$Y$6,0)) -> 35.13171863 | F10: =INDEX('1_Veh Prop'!$B$6:$Y$107,MATCH(B10,'1_Veh Prop'!$B$6:$B$107,0),MATCH(F$6,'1_Veh Prop'!$B$6:$Y$6,0)) -> 51.71311883 | G10: =INDEX('A2_Power Sizing'!$B$6:$S$107,MATCH($B10,'A2_Power Sizing'!$B$6:$B$107,0),MATCH(G$6,'A2_Power Sizing'!$6:$6,0)-1) -> 258.8527924 | H10: =INDEX('A2_Aux Load'!$B$6:$Z$107,MATCH('1_Veh Prop'!$B10,'A2_Aux Load'!$B$6:$B$107,0),MATCH(H$6,'A2_Aux Load'!$B$6:$Z$6,0)) -> 0.0152650233 | I10: =INDEX('A2_Aux Load'!$B$6:$Z$107,MATCH('1_Veh Prop'!$B10,'A2_Aux Load'!$B$6:$B$107,0),MATCH(I$6,'A2_Aux Load'!$B$6:$Z$6,0)) -> 0.03435601695 | J10: =(INDEX('1_Veh Prop'!$B$6:$CI$107,MATCH($B10,'1_Veh Prop'!$B$6:$B$107,0),MATCH(J$6,'1_Veh Prop'!$6:$6,0)-1)+$H10)/BTR_1 -> 0.3365782387 | K10: =(INDEX('1_Veh Prop'!$B$6:$CI$107,MATCH($B10,'1_Veh Prop'!$B$6:$B$107,0),MATCH(K$6,'1_Veh Prop'!$6:$6,0)-1))/BTR_1 -> 0.7845998578 | L10: =(INDEX('1_Veh Prop'!$B$6:$CI$107,MATCH($B10,'1_Veh Prop'!$B$6:$B$107,0),MATCH(L$6,'1_Veh Prop'!$6:$6,0)-1)+$I10)/BTR_1 -> 0.2491162302 | M10: =K10/CONVERT(INDEX('1_Veh Prop'!$B$6:$AS$107,MATCH($B10,'1_Veh Prop'!$B$6:$B$107,0),MATCH(M$4,'1_Veh Prop'!$6:$6,0)-1),"kg","ton")*1000 -> 98.08144109 | O10: 44.76012888 | P10: 31.32311527 | Q10: 41.26843493 | R10: 57.97961613 | S10: 40.57410568 | T10: 53.45668289 | U10: =Op_Days*SUMPRODUCT('A_Inputs Parameters'!$B$11:$D$11,O10:Q10) -> 9693.539208 | V10: =SUMPRODUCT('A_Inputs Parameters'!$B$11:$D$11,O10:Q10)/E10 -> 1.103679477 | X10: =SUMPRODUCT('A_Inputs Parameters'!$B$11:$D$11,R10:T10) -> 50.22574298 | Y10: 75 | Z10: =CONVERT(('2_ICE Tech'!K10-AG10)*1000,"g","lbm") -> 26.32211709 | AA10: =-Z10/'1_Veh Prop'!S10 -> -0.004617915278 | AB10: ='2_ICE Tech'!M10*1.1 -> 6.6 | AC10: =CONVERT('2_BEV Tech'!$AH10,"m^3","ft^3")/('2_ICE Tech'!$I10/12)/(AB10/12) -> 0.7868151195 | AD10: ='2_BEV Tech'!$Y10*1000/(Pack_SE_1) -> 377.8337531 | AE10: =kW_Weight_Conv_1*'2_ICE Tech'!N10 -> 72.43736041 | AF10: 0 | AG10: 450.2711136 | AH10: ='2_BEV Tech'!$Y10*1000/(Pack_ED_1)*0.001 -> 0.1511335013 | AJ10: 10910.01745 | AK10: 9919.700553 | AL10: 5080.630682 | AM10: 37.9478868 | AN10: =INDEX(A2_Gearbox_ID!$B$7:$J$107,MATCH('2_BEV Tech'!B10,A2_Gearbox_ID!$B$7:$B$107,0),7)*Adj_Factor -> 0 | AO10: 1581.16195 | AP10: 1581.16195 | AQ10: 4743.48585 | AR10: 22944.08887
A11: 5 | B11: ='1_Veh Prop'!B11 -> 05T_Box_Cl8_MP | C11: ='1_Veh Prop'!C11 -> T_Box_Cl8 | D11: =INDEX(A1c_GEM_ID!$B$6:$AX$107,MATCH($B11,A1c_GEM_ID!$B$6:$B$107,0),MATCH(D$6,A1c_GEM_ID!$6:$6,0)-1) -> HHD_M | E11: =INDEX('1_Veh Prop'!$B$6:$Y$107,MATCH(B11,'1_Veh Prop'!$B$6:$B$107,0),MATCH(E$6,'1_Veh Prop'!$B$6:$Y$6,0)) -> 58.31166 | F11: =INDEX('1_Veh Prop'!$B$6:$Y$107,MATCH(B11,'1_Veh Prop'!$B$6:$B$107,0),MATCH(F$6,'1_Veh Prop'!$B$6:$Y$6,0)) -> 89.87900719 | G11: =INDEX('A2_Power Sizing'!$B$6:$S$107,MATCH($B11,'A2_Power Sizing'!$B$6:$B$107,0),MATCH(G$6,'A2_Power Sizing'!$6:$6,0)-1) -> 340.5710258 | H11: =INDEX('A2_Aux Load'!$B$6:$Z$107,MATCH('1_Veh Prop'!$B11,'A2_Aux Load'!$B$6:$B$107,0),MATCH(H$6,'A2_Aux Load'!$B$6:$Z$6,0)) -> 0.03862329015 | I11: =INDEX('A2_Aux Load'!$B$6:$Z$107,MATCH('1_Veh Prop'!$B11,'A2_Aux Load'!$B$6:$B$107,0),MATCH(I$6,'A2_Aux Load'!$B$6:$Z$6,0)) -> 0.08692698236 | J11: =(INDEX('1_Veh Prop'!$B$6:$CI$107,MATCH($B11,'1_Veh Prop'!$B$6:$B$107,0),MATCH(J$6,'1_Veh Prop'!$6:$6,0)-1)+$H11)/BTR_1 -> 0.1516476475 | K11: =(INDEX('1_Veh Prop'!$B$6:$CI$107,MATCH($B11,'1_Veh Prop'!$B$6:$B$107,0),MATCH(K$6,'1_Veh Prop'!$6:$6,0)-1))/BTR_1 -> 2.113548148 | L11: =(INDEX('1_Veh Prop'!$B$6:$CI$107,MATCH($B11,'1_Veh Prop'!$B$6:$B$107,0),MATCH(L$6,'1_Veh Prop'!$6:$6,0)-1)+$I11)/BTR_1 -> 0.1703312688 | M11: =K11/CONVERT(INDEX('1_Veh Prop'!$B$6:$AS$107,MATCH($B11,'1_Veh Prop'!$B$6:$B$107,0),MATCH(M$4,'1_Veh Prop'!$6:$6,0)-1),"kg","ton")*1000 -> 100.6445135 | O11: 150.0992353 | P11: 140.0505693 | Q11: 151.3372728 | R11: 203.5935492 | S11: 189.9636092 | T11: 205.2728146 | U11: =Op_Days*SUMPRODUCT('A_Inputs Parameters'!$B$11:$D$11,O11:Q11) -> 36648.18192 | V11: =SUMPRODUCT('A_Inputs Parameters'!$B$11:$D$11,O11:Q11)/E11 -> 2.51395223 | X11: =SUMPRODUCT('A_Inputs Parameters'!$B$11:$D$11,R11:T11) -> 198.8373469 | Y11: 298 | Z11: =CONVERT(('2_ICE Tech'!K11-AG11)*1000,"g","lbm") -> -914.905397 | AA11: =-Z11/'1_Veh Prop'!S11 -> 0.06099369313 | AB11: ='2_ICE Tech'!M11*1.1 -> 11 | AC11: =CONVERT('2_BEV Tech'!$AH11,"m^3","ft^3")/('2_ICE Tech'!$I11/12)/(AB11/12) -> 2.220908418 | AD11: ='2_BEV Tech'!$Y11*1000/(Pack_SE_1) -> 1501.259446 | AE11: =kW_Weight_Conv_1*'2_ICE Tech'!N11 -> 164.7949949 | AF11: 119.2422164 | AG11: 1785.296657 | AH11: ='2_BEV Tech'!$Y11*1000/(Pack_ED_1)*0.001 -> 0.6005037783 | AJ11: 43349.13602 | AK11: 39414.27686 | AL11: 6684.554518 | AM11: 37.9478868 | AN11: =INDEX(A2_Gearbox_ID!$B$7:$J$107,MATCH('2_BEV Tech'!B11,A2_Gearbox_ID!$B$7:$B$107,0),7)*Adj_Factor -> 4406.592944 | AO11: 1581.16195 | AP11: 1581.16195 | AQ11: 4743.48585 | AR11: 58449.18196
A12: 6 | B12: ='1_Veh Prop'!B12 -> 06T_Box_Cl8_R | C12: ='1_Veh Prop'!C12 -> T_Box_Cl8 | D12: =INDEX(A1c_GEM_ID!$B$6:$AX$107,MATCH($B12,A1c_GEM_ID!$B$6:$B$107,0),MATCH(D$6,A1c_GEM_ID!$6:$6,0)-1) -> HHD_R | E12: =INDEX('1_Veh Prop'!$B$6:$Y$107,MATCH(B12,'1_Veh Prop'!$B$6:$B$107,0),MATCH(E$6,'1_Veh Prop'!$B$6:$Y$6,0)) -> 58.31166 | F12: =INDEX('1_Veh Prop'!$B$6:$Y$107,MATCH(B12,'1_Veh Prop'!$B$6:$B$107,0),MATCH(F$6,'1_Veh Prop'!$B$6:$Y$6,0)) -> 89.87900719 | G12: =INDEX('A2_Power Sizing'!$B$6:$S$107,MATCH($B12,'A2_Power Sizing'!$B$6:$B$107,0),MATCH(G$6,'A2_Power Sizing'!$6:$6,0)-1) -> 340.5710258 | H12: =INDEX('A2_Aux Load'!$B$6:$Z$107,MATCH('1_Veh Prop'!$B12,'A2_Aux Load'!$B$6:$B$107,0),MATCH(H$6,'A2_Aux Load'!$B$6:$Z$6,0)) -> 0.03855009392 | I12: =INDEX('A2_Aux Load'!$B$6:$Z$107,MATCH('1_Veh Prop'!$B12,'A2_Aux Load'!$B$6:$B$107,0),MATCH(I$6,'A2_Aux Load'!$B$6:$Z$6,0)) -> 0.08676224425 | J12: =(INDEX('1_Veh Prop'!$B$6:$CI$107,MATCH($B12,'1_Veh Prop'!$B$6:$B$107,0),MATCH(J$6,'1_Veh Prop'!$6:$6,0)-1)+$H12)/BTR_1 -> 0.1515635929 | K12: =(INDEX('1_Veh Prop'!$B$6:$CI$107,MATCH($B12,'1_Veh Prop'!$B$6:$B$107,0),MATCH(K$6,'1_Veh Prop'!$6:$6,0)-1))/BTR_1 -> 2.264722162 | L12: =(INDEX('1_Veh Prop'!$B$6:$CI$107,MATCH($B12,'1_Veh Prop'!$B$6:$B$107,0),MATCH(L$6,'1_Veh Prop'!$6:$6,0)-1)+$I12)/BTR_1 -> 0.1701420924 | M12: =K12/CONVERT(INDEX('1_Veh Prop'!$B$6:$AS$107,MATCH($B12,'1_Veh Prop'!$B$6:$B$107,0),MATCH(M$4,'1_Veh Prop'!$6:$6,0)-1),"kg","ton")*1000 -> 107.8432306 | O12: 160.110947 | P12: 150.0678508 | Q12: 161.3420188 | R12: 217.1733647 | S12: 203.5509795 | T12: 218.8431818 | U12: =Op_Days*SUMPRODUCT('A_Inputs Parameters'!$B$11:$D$11,O12:Q12) -> 39151.20013 | V12: =SUMPRODUCT('A_Inputs Parameters'!$B$11:$D$11,O12:Q12)/E12 -> 2.685651558 | X12: =SUMPRODUCT('A_Inputs Parameters'!$B$11:$D$11,R12:T12) -> 212.4176522 | Y12: 319 | Z12: =CONVERT(('2_ICE Tech'!K12-AG12)*1000,"g","lbm") -> -1148.140032 | AA12: =-Z12/'1_Veh Prop'!S12 -> 0.07654266881 | AB12: ='2_ICE Tech'!M12*1.1 -> 11 | AC12: =CONVERT('2_BEV Tech'!$AH12,"m^3","ft^3")/('2_ICE Tech'!$I12/12)/(AB12/12) -> 2.377415387 | AD12: ='2_BEV Tech'!$Y12*1000/(Pack_SE_1) -> 1607.052897 | AE12: =kW_Weight_Conv_1*'2_ICE Tech'!N12 -> 164.7949949 | AF12: 119.2422164 | AG12: 1891.090108 | AH12: ='2_BEV Tech'!$Y12*1000/(Pack_ED_1)*0.001 -> 0.6428211587 | AJ12: 46403.94091 | AK12: 42191.79302 | AL12: 6684.554518 | AM12: 37.9478868 | AN12: =INDEX(A2_Gearbox_ID!$B$7:$J$107,MATCH('2_BEV Tech'!B12,A2_Gearbox_ID!$B$7:$B$107,0),7)*Adj_Factor -> 4406.592944 | AO12: 1581.16195 | AP12: 1581.16195 | AQ12: 4743.48585 | AR12: 61226.69812
A13: 7 | B13: ='1_Veh Prop'!B13 -> 07T_Box_Cl6-7_MP | C13: ='1_Veh Prop'!C13 -> T_Box_Cl6-7 | D13: =INDEX(A1c_GEM_ID!$B$6:$AX$107,MATCH($B13,A1c_GEM_ID!$B$6:$B$107,0),MATCH(D$6,A1c_GEM_ID!$6:$6,0)-1) -> MHD_M | E13: =INDEX('1_Veh Prop'!$B$6:$Y$107,MATCH(B13,'1_Veh Prop'!$B$6:$B$107,0),MATCH(E$6,'1_Veh Prop'!$B$6:$Y$6,0)) -> 35.20172089 | F13: =INDEX('1_Veh Prop'!$B$6:$Y$107,MATCH(B13,'1_Veh Prop'!$B$6:$B$107,0),MATCH(F$6,'1_Veh Prop'!$B$6:$Y$6,0)) -> 89.87900719 | G13: =INDEX('A2_Power Sizing'!$B$6:$S$107,MATCH($B13,'A2_Power Sizing'!$B$6:$B$107,0),MATCH(G$6,'A2_Power Sizing'!$6:$6,0)-1) -> 215.2828344 | H13: =INDEX('A2_Aux Load'!$B$6:$Z$107,MATCH('1_Veh Prop'!$B13,'A2_Aux Load'!$B$6:$B$107,0),MATCH(H$6,'A2_Aux Load'!$B$6:$Z$6,0)) -> 0.02546263712 | I13: =INDEX('A2_Aux Load'!$B$6:$Z$107,MATCH('1_Veh Prop'!$B13,'A2_Aux Load'!$B$6:$B$107,0),MATCH(I$6,'A2_Aux Load'!$B$6:$Z$6,0)) -> 0.05730713771 | J13: =(INDEX('1_Veh Prop'!$B$6:$CI$107,MATCH($B13,'1_Veh Prop'!$B$6:$B$107,0),MATCH(J$6,'1_Veh Prop'!$6:$6,0)-1)+$H13)/BTR_1 -> 0.1365346611 | K13: =(INDEX('1_Veh Prop'!$B$6:$CI$107,MATCH($B13,'1_Veh Prop'!$B$6:$B$107,0),MATCH(K$6,'1_Veh Prop'!$6:$6,0)-1))/BTR_1 -> 1.409185542 | L13: =(INDEX('1_Veh Prop'!$B$6:$CI$107,MATCH($B13,'1_Veh Prop'!$B$6:$B$107,0),MATCH(L$6,'1_Veh Prop'!$6:$6,0)-1)+$I13)/BTR_1 -> 0.1363174316 | M13: =K13/CONVERT(INDEX('1_Veh Prop'!$B$6:$AS$107,MATCH($B13,'1_Veh Prop'!$B$6:$B$107,0),MATCH(M$4,'1_Veh Prop'!$6:$6,0)-1),"kg","ton")*1000 -> 112.0609765 | O13: 61.83183087 | P13: 56.37017743 | Q13: 61.82314127 | R13: 138.9277973 | S13: 126.6561975 | T13: 138.9082729 | U13: =Op_Days*SUMPRODUCT('A_Inputs Parameters'!$B$11:$D$11,O13:Q13) -> 14938.5532 | V13: =SUMPRODUCT('A_Inputs Parameters'!$B$11:$D$11,O13:Q13)/E13 -> 1.697479875 | X13: =SUMPRODUCT('A_Inputs Parameters'!$B$11:$D$11,R13:T13) -> 134.2596692 | Y13: 201 | Z13: =CONVERT(('2_ICE Tech'!K13-AG13)*1000,"g","lbm") -> -656.7393813 | AA13: =-Z13/'1_Veh Prop'!S13 -> 0.05863744476 | AB13: ='2_ICE Tech'!M13*1.1 -> 11 | AC13: =CONVERT('2_BEV Tech'!$AH13,"m^3","ft^3")/('2_ICE Tech'!$I13/12)/(AB13/12) -> 1.282530201 | AD13: ='2_BEV Tech'!$Y13*1000/(Pack_SE_1) -> 1012.594458 | AE13: =kW_Weight_Conv_1*'2_ICE Tech'!N13 -> 97.79043655 | AF13: 66.11549815 | AG13: 1176.500393 | AH13: ='2_BEV Tech'!$Y13*1000/(Pack_ED_1)*0.001 -> 0.4050377834 | AJ13: 29238.84678 | AK13: 26584.79748 | AL13: 4225.461752 | AM13: 37.9478868 | AN13: =INDEX(A2_Gearbox_ID!$B$7:$J$107,MATCH('2_BEV Tech'!B13,A2_Gearbox_ID!$B$7:$B$107,0),7)*Adj_Factor -> 2439.205835 | AO13: 1581.16195 | AP13: 1581.16195 | AQ13: 4743.48585 | AR13: 41193.2227
A14: 8 | B14: ='1_Veh Prop'!B14 -> 08T_Box_Cl6-7_R | C14: ='1_Veh Prop'!C14 -> T_Box_Cl6-7 | D14: =INDEX(A1c_GEM_ID!$B$6:$AX$107,MATCH($B14,A1c_GEM_ID!$B$6:$B$107,0),MATCH(D$6,A1c_GEM_ID!$6:$6,0)-1) -> MHD_R | E14: =INDEX('1_Veh Prop'!$B$6:$Y$107,MATCH(B14,'1_Veh Prop'!$B$6:$B$107,0),MATCH(E$6,'1_Veh Prop'!$B$6:$Y$6,0)) -> 35.20172089 | F14: =INDEX('1_Veh Prop'!$B$6:$Y$107,MATCH(B14,'1_Veh Prop'!$B$6:$B$107,0),MATCH(F$6,'1_Veh Prop'!$B$6:$Y$6,0)) -> 89.87900719 | G14: =INDEX('A2_Power Sizing'!$B$6:$S$107,MATCH($B14,'A2_Power Sizing'!$B$6:$B$107,0),MATCH(G$6,'A2_Power Sizing'!$6:$6,0)-1) -> 215.2828344 | H14: =INDEX('A2_Aux Load'!$B$6:$Z$107,MATCH('1_Veh Prop'!$B14,'A2_Aux Load'!$B$6:$B$107,0),MATCH(H$6,'A2_Aux Load'!$B$6:$Z$6,0)) -> 0.02696998549 | I14: =INDEX('A2_Aux Load'!$B$6:$Z$107,MATCH('1_Veh Prop'!$B14,'A2_Aux Load'!$B$6:$B$107,0),MATCH(I$6,'A2_Aux Load'!$B$6:$Z$6,0)) -> 0.0606996308 | J14: =(INDEX('1_Veh Prop'!$B$6:$CI$107,MATCH($B14,'1_Veh Prop'!$B$6:$B$107,0),MATCH(J$6,'1_Veh Prop'!$6:$6,0)-1)+$H14)/BTR_1 -> 0.1382656189 | K14: =(INDEX('1_Veh Prop'!$B$6:$CI$107,MATCH($B14,'1_Veh Prop'!$B$6:$B$107,0),MATCH(K$6,'1_Veh Prop'!$6:$6,0)-1))/BTR_1 -> 1.595080093 | L14: =(INDEX('1_Veh Prop'!$B$6:$CI$107,MATCH($B14,'1_Veh Prop'!$B$6:$B$107,0),MATCH(L$6,'1_Veh Prop'!$6:$6,0)-1)+$I14)/BTR_1 -> 0.1402131883 | M14: =K14/CONVERT(INDEX('1_Veh Prop'!$B$6:$AS$107,MATCH($B14,'1_Veh Prop'!$B$6:$B$107,0),MATCH(M$4,'1_Veh Prop'!$6:$6,0)-1),"kg","ton")*1000 -> 126.8436465 | O14: 69.33721813 | P14: 63.80632299 | Q14: 69.41512472 | R14: 155.7913917 | S14: 143.3642152 | T14: 155.9664373 | U14: =Op_Days*SUMPRODUCT('A_Inputs Parameters'!$B$11:$D$11,O14:Q14) -> 16813.77761 | V14: =SUMPRODUCT('A_Inputs Parameters'!$B$11:$D$11,O14:Q14)/E14 -> 1.910563141 | X14: =SUMPRODUCT('A_Inputs Parameters'!$B$11:$D$11,R14:T14) -> 151.1131761 | Y14: 227 | Z14: =CONVERT(('2_ICE Tech'!K14-AG14)*1000,"g","lbm") -> -945.5060723 | AA14: =-Z14/'1_Veh Prop'!S14 -> 0.08442018503 | AB14: ='2_ICE Tech'!M14*1.1 -> 11 | AC14: =CONVERT('2_BEV Tech'!$AH14,"m^3","ft^3")/('2_ICE Tech'!$I14/12)/(AB14/12) -> 1.44842963 | AD14: ='2_BEV Tech'!$Y14*1000/(Pack_SE_1) -> 1143.576826 | AE14: =kW_Weight_Conv_1*'2_ICE Tech'!N14 -> 97.79043655 | AF14: 66.11549815 | AG14: 1307.482761 | AH14: ='2_BEV Tech'!$Y14*1000/(Pack_ED_1)*0.001 -> 0.4574307305 | AJ14: 33020.98616 | AK14: 30023.62701 | AL14: 4225.461752 | AM14: 37.9478868 | AN14: =INDEX(A2_Gearbox_ID!$B$7:$J$107,MATCH('2_BEV Tech'!B14,A2_Gearbox_ID!$B$7:$B$107,0),7)*Adj_Factor -> 2439.205835 | AO14: 1581.16195 | AP14: 1581.16195 | AQ14: 4743.48585 | AR14: 44632.05223
A15: 9 | B15: ='1_Veh Prop'!B15 -> 09T_Box_Cl8_U | C15: ='1_Veh Prop'!C15 -> T_Box_Cl8 | D15: =INDEX(A1c_GEM_ID!$B$6:$AX$107,MATCH($B15,A1c_GEM_ID!$B$6:$B$107,0),MATCH(D$6,A1c_GEM_ID!$6:$6,0)-1) -> HHD_U | E15: =INDEX('1_Veh Prop'!$B$6:$Y$107,MATCH(B15,'1_Veh Prop'!$B$6:$B$107,0),MATCH(E$6,'1_Veh Prop'!$B$6:$Y$6,0)) -> 58.31166 | F15: =INDEX('1_Veh Prop'!$B$6:$Y$107,MATCH(B15,'1_Veh Prop'!$B$6:$B$107,0),MATCH(F$6,'1_Veh Prop'!$B$6:$Y$6,0)) -> 89.87900719 | G15: =INDEX('A2_Power Sizing'!$B$6:$S$107,MATCH($B15,'A2_Power Sizing'!$B$6:$B$107,0),MATCH(G$6,'A2_Power Sizing'!$6:$6,0)-1) -> 340.5710258 | H15: =INDEX('A2_Aux Load'!$B$6:$Z$107,MATCH('1_Veh Prop'!$B15,'A2_Aux Load'!$B$6:$B$107,0),MATCH(H$6,'A2_Aux Load'!$B$6:$Z$6,0)) -> 0.03854862664 | I15: =INDEX('A2_Aux Load'!$B$6:$Z$107,MATCH('1_Veh Prop'!$B15,'A2_Aux Load'!$B$6:$B$107,0),MATCH(I$6,'A2_Aux Load'!$B$6:$Z$6,0)) -> 0.08675894194 | J15: =(INDEX('1_Veh Prop'!$B$6:$CI$107,MATCH($B15,'1_Veh Prop'!$B$6:$B$107,0),MATCH(J$6,'1_Veh Prop'!$6:$6,0)-1)+$H15)/BTR_1 -> 0.1515619079 | K15: =(INDEX('1_Veh Prop'!$B$6:$CI$107,MATCH($B15,'1_Veh Prop'!$B$6:$B$107,0),MATCH(K$6,'1_Veh Prop'!$6:$6,0)-1))/BTR_1 -> 1.94694537 | L15: =(INDEX('1_Veh Prop'!$B$6:$CI$107,MATCH($B15,'1_Veh Prop'!$B$6:$B$107,0),MATCH(L$6,'1_Veh Prop'!$6:$6,0)-1)+$I15)/BTR_1 -> 0.1701383002 | M15: =K15/CONVERT(INDEX('1_Veh Prop'!$B$6:$AS$107,MATCH($B15,'1_Veh Prop'!$B$6:$B$107,0),MATCH(M$4,'1_Veh Prop'!$6:$6,0)-1),"kg","ton")*1000 -> 92.71109808 | O15: 139.0539124 | P15: 129.0109278 | Q15: 140.2848445 | R15: 188.6117507 | S15: 174.9895169 | T15: 190.2813784 | U15: =Op_Days*SUMPRODUCT('A_Inputs Parameters'!$B$11:$D$11,O15:Q15) -> 33886.94329 | V15: =SUMPRODUCT('A_Inputs Parameters'!$B$11:$D$11,O15:Q15)/E15 -> 2.324539777 | X15: =SUMPRODUCT('A_Inputs Parameters'!$B$11:$D$11,R15:T15) -> 183.8560481 | Y15: 276 | Z15: =CONVERT(('2_ICE Tech'!K15-AG15)*1000,"g","lbm") -> -586.723403 | AA15: =-Z15/'1_Veh Prop'!S15 -> 0.03911489353 | AB15: ='2_ICE Tech'!M15*1.1 -> 11 | AC15: =CONVERT('2_BEV Tech'!$AH15,"m^3","ft^3")/('2_ICE Tech'!$I15/12)/(AB15/12) -> 2.056948736 | AD15: ='2_BEV Tech'!$Y15*1000/(Pack_SE_1) -> 1390.428212 | AE15: =kW_Weight_Conv_1*'2_ICE Tech'!N15 -> 126.7653807 | AF15: 119.2422164 | AG15: 1636.435809 | AH15: ='2_BEV Tech'!$Y15*1000/(Pack_ED_1)*0.001 -> 0.5561712846 | AJ15: 40148.86423 | AK15: 36504.49803 | AL15: 6684.554518 | AM15: 37.9478868 | AN15: =INDEX(A2_Gearbox_ID!$B$7:$J$107,MATCH('2_BEV Tech'!B15,A2_Gearbox_ID!$B$7:$B$107,0),7)*Adj_Factor -> 4406.592944 | AO15: 1581.16195 | AP15: 1581.16195 | AQ15: 4743.48585 | AR15: 55539.40313
... 18 more rows

Sheet 2_FCEV Tech
A1: =Scenario_yr -> 2027 | B1: Return to Table of Contents
C2: Hide
B3: Vehicle ID | C3: Vehicle ID2 | D3: GEM Energy ID | E3: Daily Sizing VMT | F3: Daily Operational VMT | G3: Battery Conditioning @ Hot Ambient Temp | H3: FCEV HVAC Heating Load | I3: FCEV Baseline Energy | J3: FCEV HVAC Cooling Load | K3: FCEV Baseline Energy | L3: Daily Energy Demand for Operation @ Cold Temp | M3: Daily Energy Demand for Operation Without Temp Effects | N3: Daily Energy Demand for Operation @ Hot Temp | O3: Daily Energy Demand for Sizing @ Cold Temp | P3: Daily Energy Demand for Sizing Without Temp Effects | Q3: Daily Energy Demand for Sizing @ Hot Temp | R3: FCEV Operating Energy | T3: Peak Power Demand | U3: Hydrogen Fuel Cell Size | V3: Sizing Hydrogen Mass | W3: Operational Hydrogen Mass | X3: FCEV Battery Size | Z3: FC Stack DMC | AA3: Motor DMC | AB3: Hydrogen Tank DMC | AC3: Battery DMC with IRA Credit | AD3: Power Electronics DMC | AE3: Electric Accessories | AF3: Gearbox DMC | AG3: Final Drive DMC | AH3: FCEV Powertrain DMC | AI3: FCEV Powertrain DMC without IRA Battery Credit | AJ3: IRA Battery Tax Credit
E4: =Sizing_Range_Percentile -> 0.9 | K4: GEM Weight [kg] | L4: =Tech_Pen1&" HVAC Load Only @ 20 F (kWh/mi)" -> Default HVAC Load Only @ 20 F (kWh/mi) | M4: =Tech_Pen1&" Baseline Energy 75 F (kWh/mi)" -> Default Baseline Energy 75 F (kWh/mi) | N4: =Tech_Pen1&" HVAC Load Only @ 95 F (kWh/mi)" -> Default HVAC Load Only @ 95 F (kWh/mi) | O4: =Tech_Pen1&" HVAC Load Only @ 20 F (kWh/mi)" -> Default HVAC Load Only @ 20 F (kWh/mi) | P4: =Tech_Pen1&" Baseline Energy 75 F (kWh/mi)" -> Default Baseline Energy 75 F (kWh/mi) | Q4: =Tech_Pen1&" HVAC Load Only @ 95 F (kWh/mi)" -> Default HVAC Load Only @ 95 F (kWh/mi) | W4: =0.061*1000 -> 61
E5: miles | F5: miles | G5: kWh/mi | H5: kWh/mi | I5: kWh/mi | J5: kWh/mi | K5: kWh/ton-mi | L5: kW/day | M5: kW/day | N5: kW/day | O5: kW/day | P5: kW/day | Q5: kW/day | R5: kWh/mi | T5: kW | U5: kW | V5: kg | W5: kg | X5: kWh | Z5: $ | AA5: $ | AB5: $ | AC5: $ | AD5: $ | AE5: $ | AF5: $ | AG5: $ | AH5: $ | AI5: $ | AJ5: $
A6: # | B6: Vehicle ID | C6: Vehicle ID2 | D6: GEM Energy ID | E6: =CONCATENATE("Absolute Sizing VMT (",E4*100,"%)") -> Absolute Sizing VMT (90%) | F6: =CONCATENATE("Operation VMT (",Op_Range_Percentile*100,"%)") -> Operation VMT (50%) | G6: =Tech_Pen1&" Hot Battery Conditioning (kWh/mi)" -> Default Hot Battery Conditioning (kWh/mi) | H6: =Tech_Pen1&" HVAC Load Only @ 20 F (kWh/mi)" -> Default HVAC Load Only @ 20 F (kWh/mi) | I6: =Tech_Pen1&" Baseline Energy 75 F (kWh/mi)" -> Default Baseline Energy 75 F (kWh/mi) | J6: =Tech_Pen1&" HVAC Load Only @ 95 F (kWh/mi)" -> Default HVAC Load Only @ 95 F (kWh/mi) | K6: =Tech_Pen1&" Baseline Energy 75 F (Wh/ton-mile)" -> Default Baseline Energy 75 F (Wh/ton-mile) | L6: =Tech_Pen1&" Op Energy per Day 20 F HVAC (kWh/day)" -> Default Op Energy per Day 20 F HVAC (kWh/day) | M6: =Tech_Pen1&" Op Energy per Day 75 F (kWh/day)" -> Default Op Energy per Day 75 F (kWh/day) | N6: =Tech_Pen1&" Op Energy per Day 95 F HVAC (kWh/day)" -> Default Op Energy per Day 95 F HVAC (kWh/day) | O6: =Tech_Pen1&" Sizing Energy per Day 20 F HVAC (kWh/day)" -> Default Sizing Energy per Day 20 F HVAC (kWh/day) | P6: =Tech_Pen1&" Sizing Energy per Day 75 F (kWh/day)" -> Default Sizing Energy per Day 75 F (kWh/day) | Q6: =Tech_Pen1&" Sizing Energy per Day 95 F HVAC (kWh/day)" -> Default Sizing Energy per Day 95 F HVAC (kWh/day) | R6: =Tech_Pen1&" "& "FCEV Operating Energy Consumption (kWh/mi)" -> Default FCEV Operating Energy Consumption (kWh/mi) | S6: 1 = Vocational 2 = Tractors | T6: E-Motor Peak Power (kW) | U6: FC Size (kW) | V6: =Tech_Pen1&" H2 Sizing Actual (kg)" -> Default H2 Sizing Actual (kg) | W6: =Tech_Pen1&" H2 Use (H2 kg)" -> Default H2 Use (H2 kg) | X6: =Tech_Pen1&" Battery size (kWh)" -> Default Battery size (kWh) | Z6: FC Stack (unit) | AA6: E-Motor (unit) | AB6: H2 Fuel Tank (unit) | AC6: Battery (unit) | AD6: Power Electronics | AF6: Gearbox | AG6: Final Drive | AH6: =Tech_Pen1&" FCEV PT Cost ($/unit)" -> Default FCEV PT Cost ($/unit) | AI6: =Tech_Pen1&" FCEV PT Cost No Battery IRA ($/unit)" -> Default FCEV PT Cost No Battery IRA ($/unit) | AJ6: Battery Tax Credit (unit)
A7: ='1_Veh Prop'!A7 -> 1 | B7: ='1_Veh Prop'!B7 -> 01V_Amb_Cl4-5_MP | C7: ='1_Veh Prop'!C7 -> V_Amb_Cl4-5 | D7: =INDEX(A1c_GEM_ID!$B$6:$AX$107,MATCH($B7,A1c_GEM_ID!$B$6:$B$107,0),MATCH(D$6,A1c_GEM_ID!$6:$6,0)-1) -> LHD_M | E7: =INDEX('1_Veh Prop'!$B$6:$AS$107,MATCH($B7,'1_Veh Prop'!$B$6:$B$107,0),MATCH(E$6,'1_Veh Prop'!$6:$6,0)-1) -> 50.35810678 | F7: =INDEX('1_Veh Prop'!$B$6:$AS$107,MATCH($B7,'1_Veh Prop'!$B$6:$B$107,0),MATCH(F$6,'1_Veh Prop'!$6:$6,0)-1) -> 33.92166542 | G7: =INDEX('A2_Aux Load'!$B$6:$Z$107,MATCH('1_Veh Prop'!$B7,'A2_Aux Load'!$B$6:$B$107,0),MATCH(G$6,'A2_Aux Load'!$B$6:$Z$6,0)) -> 0.03612866038 | H7: =(INDEX('1_Veh Prop'!$B$6:$CI$107,MATCH($B7,'1_Veh Prop'!$B$6:$B$107,0),MATCH(H$6,'1_Veh Prop'!$6:$6,0)-1))/FCTR_1 -> 0.7954264749 | I7: =(INDEX('1_Veh Prop'!$B$6:$CI$107,MATCH($B7,'1_Veh Prop'!$B$6:$B$107,0),MATCH(I$6,'1_Veh Prop'!$6:$6,0)-1))/FCTR_1 -> 1.311809766 | J7: =(INDEX('1_Veh Prop'!$B$6:$CI$107,MATCH($B7,'1_Veh Prop'!$B$6:$B$107,0),MATCH(J$6,'1_Veh Prop'!$6:$6,0)-1))/FCTR_1 -> 0.5227164272 | K7: =I7/CONVERT(INDEX('1_Veh Prop'!$B$6:$AS$107,MATCH($B7,'1_Veh Prop'!$B$6:$B$107,0),MATCH(K$4,'1_Veh Prop'!$6:$6,0)-1),"kg","ton")*1000 -> 163.9870197 | L7: =M7+X7*Cold_T_Batt_Cond -> 45.31787076 | M7: =I7*$F7 -> 44.49877198 | N7: =M7+$F7*J7+X7*Hot_T_Batt_Cond -> 64.07367726 | O7: =P7+X7*Cold_T_Batt_Cond -> 66.87935506 | P7: =$E7*I7 -> 66.06025628 | Q7: =E7*$J7+P7+X7*Hot_T_Batt_Cond -> 94.22675945 | R7: =SUMPRODUCT('A_Inputs Parameters'!$B$11:$D$11,L7:N7)/F7 -> 1.466115412 | S7: 1 | T7: ='A2_Power Sizing'!S7 -> 258.8527924 | U7: =IF(S7=1,'A2_Power Sizing'!X7,'A2_Power Sizing'!Y7) -> 93.34396979 | V7: =SUMPRODUCT(O7:Q7,'A_Inputs Parameters'!$B$11:$D$11)/33.33/H2_Usable_1/0.9 -> 2.591428223 | W7: =SUMPRODUCT(L7:N7,'A_Inputs Parameters'!$B$11:$D$11)/33.33 -> 1.492141508 | X7: ='A2_Power Sizing'!AB7*(10/60)/DoD_EV_1 -> 43.88893683 | Z7: =U7*FC_Cost_Oth_1 -> 22630.7631 | AA7: =T7*Motor_Cost_1 -> 5080.630682 | AB7: =H2Tank_Cost_1*V7 -> 2076.050303 | AC7: =X7*(Batt_Cost_1-IRA_Batt_1/RPE) -> 5804.868146 | AD7: =Power_Elec_1 -> 1581.16195 | AE7: =4500*Learning_1*Adj_Factor -> 4743.48585 | AF7: =INDEX(A2_Gearbox_ID!$B$7:$J$107,MATCH('2_BEV Tech'!B7,A2_Gearbox_ID!$B$7:$B$107,0),8) -> 0 | AG7: =Final_Drive_1 -> 1581.16195 | AH7: =SUM(Z7:AG7) -> 43498.12198 | AI7: =X7*(Batt_Cost_1)+Z7+AA7+AB7+AD7+AF7+AG7 -> 39334.15555 | AJ7: =X7*(Batt_Cost_1)-AC7 -> 579.5194124
A8: ='1_Veh Prop'!A8 -> 2 | B8: ='1_Veh Prop'!B8 -> 02V_Amb_Cl2b-3_MP | C8: ='1_Veh Prop'!C8 -> V_Amb_Cl2b-3 | D8: =INDEX(A1c_GEM_ID!$B$6:$AX$107,MATCH($B8,A1c_GEM_ID!$B$6:$B$107,0),MATCH(D$6,A1c_GEM_ID!$6:$6,0)-1) -> LHD_M | E8: =INDEX('1_Veh Prop'!$B$6:$AS$107,MATCH($B8,'1_Veh Prop'!$B$6:$B$107,0),MATCH(E$6,'1_Veh Prop'!$6:$6,0)-1) -> 63.97377355 | F8: =INDEX('1_Veh Prop'!$B$6:$AS$107,MATCH($B8,'1_Veh Prop'!$B$6:$B$107,0),MATCH(F$6,'1_Veh Prop'!$6:$6,0)-1) -> 49.4102484 | G8: =INDEX('A2_Aux Load'!$B$6:$Z$107,MATCH('1_Veh Prop'!$B8,'A2_Aux Load'!$B$6:$B$107,0),MATCH(G$6,'A2_Aux Load'!$B$6:$Z$6,0)) -> 0.03612866038 | H8: =(INDEX('1_Veh Prop'!$B$6:$CI$107,MATCH($B8,'1_Veh Prop'!$B$6:$B$107,0),MATCH(H$6,'1_Veh Prop'!$6:$6,0)-1))/FCTR_1 -> 0.379856569 | I8: =(INDEX('1_Veh Prop'!$B$6:$CI$107,MATCH($B8,'1_Veh Prop'!$B$6:$B$107,0),MATCH(I$6,'1_Veh Prop'!$6:$6,0)-1))/FCTR_1 -> 1.311809766 | J8: =(INDEX('1_Veh Prop'!$B$6:$CI$107,MATCH($B8,'1_Veh Prop'!$B$6:$B$107,0),MATCH(J$6,'1_Veh Prop'!$6:$6,0)-1))/FCTR_1 -> 0.2496236608 | K8: =I8/CONVERT(INDEX('1_Veh Prop'!$B$6:$AS$107,MATCH($B8,'1_Veh Prop'!$B$6:$B$107,0),MATCH(K$4,'1_Veh Prop'!$6:$6,0)-1),"kg","ton")*1000 -> 163.9870197 | L8: 65.63594518 | M8: =I8*F8 -> 64.8168464 | N8: 78.99430701 | O8: 84.7405197 | P8: =$I8*E8 -> 83.92142092 | Q8: 101.734282 | R8: =SUMPRODUCT('A_Inputs Parameters'!$B$11:$D$11,L8:N8)/F8 -> 1.390217557 | S8: 1 | T8: ='A2_Power Sizing'!S8 -> 258.8527924 | U8: =IF(S8=1,'A2_Power Sizing'!X8,'A2_Power Sizing'!Y8) -> 93.34396979 | V8: =SUMPRODUCT(O8:Q8,'A_Inputs Parameters'!$B$11:$D$11)/33.33/H2_Usable_1/0.9 -> 3.129473098 | W8: =SUMPRODUCT(L8:N8,'A_Inputs Parameters'!$B$11:$D$11)/33.33 -> 2.060935938 | X8: ='A2_Power Sizing'!AB8*(10/60)/DoD_EV_1 -> 43.88893683 | Z8: 22630.7631 | AA8: 5080.630682 | AB8: 2507.089918 | AC8: 5804.868146 | AD8: =Power_Elec_1 -> 1581.16195 | AE8: 4743.48585 | AF8: =INDEX(A2_Gearbox_ID!$B$7:$J$107,MATCH('2_BEV Tech'!B8,A2_Gearbox_ID!$B$7:$B$107,0),8) -> 0 | AG8: 1581.16195 | AH8: 43929.1616 | AI8: 39765.19516 | AJ8: 579.5194124
A9: ='1_Veh Prop'!A9 -> 3 | B9: ='1_Veh Prop'!B9 -> 03V_Amb_Cl4-5_U | C9: ='1_Veh Prop'!C9 -> V_Amb_Cl4-5 | D9: =INDEX(A1c_GEM_ID!$B$6:$AX$107,MATCH($B9,A1c_GEM_ID!$B$6:$B$107,0),MATCH(D$6,A1c_GEM_ID!$6:$6,0)-1) -> LHD_U | E9: =INDEX('1_Veh Prop'!$B$6:$AS$107,MATCH($B9,'1_Veh Prop'!$B$6:$B$107,0),MATCH(E$6,'1_Veh Prop'!$6:$6,0)-1) -> 58.04734232 | F9: =INDEX('1_Veh Prop'!$B$6:$AS$107,MATCH($B9,'1_Veh Prop'!$B$6:$B$107,0),MATCH(F$6,'1_Veh Prop'!$6:$6,0)-1) -> 39.07758046 | G9: =INDEX('A2_Aux Load'!$B$6:$Z$107,MATCH('1_Veh Prop'!$B9,'A2_Aux Load'!$B$6:$B$107,0),MATCH(G$6,'A2_Aux Load'!$B$6:$Z$6,0)) -> 0.03435601695 | H9: =(INDEX('1_Veh Prop'!$B$6:$CI$107,MATCH($B9,'1_Veh Prop'!$B$6:$B$107,0),MATCH(H$6,'1_Veh Prop'!$6:$6,0)-1))/FCTR_1 -> 0.6900603845 | I9: =(INDEX('1_Veh Prop'!$B$6:$CI$107,MATCH($B9,'1_Veh Prop'!$B$6:$B$107,0),MATCH(I$6,'1_Veh Prop'!$6:$6,0)-1))/FCTR_1 -> 1.155612194 | J9: =(INDEX('1_Veh Prop'!$B$6:$CI$107,MATCH($B9,'1_Veh Prop'!$B$6:$B$107,0),MATCH(J$6,'1_Veh Prop'!$6:$6,0)-1))/FCTR_1 -> 0.4534748467 | K9: =I9/CONVERT(INDEX('1_Veh Prop'!$B$6:$AS$107,MATCH($B9,'1_Veh Prop'!$B$6:$B$107,0),MATCH(K$4,'1_Veh Prop'!$6:$6,0)-1),"kg","ton")*1000 -> 144.4610373 | L9: 45.97762726 | M9: 45.15852848 | N9: 64.72272181 | O9: 67.89931537 | P9: 67.08021659 | Q9: 95.24671976 | R9: =SUMPRODUCT('A_Inputs Parameters'!$B$11:$D$11,L9:N9)/F9 -> 1.289489599 | S9: 1 | T9: ='A2_Power Sizing'!S9 -> 258.8527924 | U9: =IF(S9=1,'A2_Power Sizing'!X9,'A2_Power Sizing'!Y9) -> 93.34396979 | V9: =SUMPRODUCT(O9:Q9,'A_Inputs Parameters'!$B$11:$D$11)/33.33/H2_Usable_1/0.9 -> 2.627409257 | W9: =SUMPRODUCT(L9:N9,'A_Inputs Parameters'!$B$11:$D$11)/33.33 -> 1.511855192 | X9: ='A2_Power Sizing'!AB9*(10/60)/DoD_EV_1 -> 43.88893683 | Z9: 22630.7631 | AA9: 5080.630682 | AB9: 2104.875503 | AC9: 5804.868146 | AD9: 1581.16195 | AE9: 4743.48585 | AF9: =INDEX(A2_Gearbox_ID!$B$7:$J$107,MATCH('2_BEV Tech'!B9,A2_Gearbox_ID!$B$7:$B$107,0),8) -> 0 | AG9: 1581.16195 | AH9: 43526.94718 | AI9: 39362.98075 | AJ9: 579.5194124
A10: ='1_Veh Prop'!A10 -> 4 | B10: ='1_Veh Prop'!B10 -> 04V_Amb_Cl2b-3_U | C10: ='1_Veh Prop'!C10 -> V_Amb_Cl2b-3 | D10: =INDEX(A1c_GEM_ID!$B$6:$AX$107,MATCH($B10,A1c_GEM_ID!$B$6:$B$107,0),MATCH(D$6,A1c_GEM_ID!$6:$6,0)-1) -> LHD_U | E10: =INDEX('1_Veh Prop'!$B$6:$AS$107,MATCH($B10,'1_Veh Prop'!$B$6:$B$107,0),MATCH(E$6,'1_Veh Prop'!$6:$6,0)-1) -> 51.71311883 | F10: =INDEX('1_Veh Prop'!$B$6:$AS$107,MATCH($B10,'1_Veh Prop'!$B$6:$B$107,0),MATCH(F$6,'1_Veh Prop'!$6:$6,0)-1) -> 39.76380417 | G10: =INDEX('A2_Aux Load'!$B$6:$Z$107,MATCH('1_Veh Prop'!$B10,'A2_Aux Load'!$B$6:$B$107,0),MATCH(G$6,'A2_Aux Load'!$B$6:$Z$6,0)) -> 0.03435601695 | H10: =(INDEX('1_Veh Prop'!$B$6:$CI$107,MATCH($B10,'1_Veh Prop'!$B$6:$B$107,0),MATCH(H$6,'1_Veh Prop'!$6:$6,0)-1))/FCTR_1 -> 0.4699166997 | I10: =(INDEX('1_Veh Prop'!$B$6:$CI$107,MATCH($B10,'1_Veh Prop'!$B$6:$B$107,0),MATCH(I$6,'1_Veh Prop'!$6:$6,0)-1))/FCTR_1 -> 1.155612194 | J10: =(INDEX('1_Veh Prop'!$B$6:$CI$107,MATCH($B10,'1_Veh Prop'!$B$6:$B$107,0),MATCH(J$6,'1_Veh Prop'!$6:$6,0)-1))/FCTR_1 -> 0.308806893 | K10: =I10/CONVERT(INDEX('1_Veh Prop'!$B$6:$AS$107,MATCH($B10,'1_Veh Prop'!$B$6:$B$107,0),MATCH(K$4,'1_Veh Prop'!$6:$6,0)-1),"kg","ton")*1000 -> 144.4610373 | L10: 46.77063574 | M10: 45.95153697 | N10: 60.0743673 | O10: 60.57940946 | P10: 59.76031069 | Q10: 77.57317176 | R10: =SUMPRODUCT('A_Inputs Parameters'!$B$11:$D$11,L10:N10)/F10 -> 1.252694997 | S10: 1 | T10: ='A2_Power Sizing'!S10 -> 258.8527924 | U10: =IF(S10=1,'A2_Power Sizing'!X10,'A2_Power Sizing'!Y10) -> 93.34396979 | V10: =SUMPRODUCT(O10:Q10,'A_Inputs Parameters'!$B$11:$D$11)/33.33/H2_Usable_1/0.9 -> 2.277144117 | W10: =SUMPRODUCT(L10:N10,'A_Inputs Parameters'!$B$11:$D$11)/33.33 -> 1.494507008 | X10: ='A2_Power Sizing'!AB10*(10/60)/DoD_EV_1 -> 43.88893683 | Z10: 22630.7631 | AA10: 5080.630682 | AB10: 1824.270374 | AC10: 5804.868146 | AD10: 1581.16195 | AE10: 4743.48585 | AF10: =INDEX(A2_Gearbox_ID!$B$7:$J$107,MATCH('2_BEV Tech'!B10,A2_Gearbox_ID!$B$7:$B$107,0),8) -> 0 | AG10: 1581.16195 | AH10: 43246.34206 | AI10: 39082.37562 | AJ10: 579.5194124
A11: ='1_Veh Prop'!A11 -> 5 | B11: ='1_Veh Prop'!B11 -> 05T_Box_Cl8_MP | C11: ='1_Veh Prop'!C11 -> T_Box_Cl8 | D11: =INDEX(A1c_GEM_ID!$B$6:$AX$107,MATCH($B11,A1c_GEM_ID!$B$6:$B$107,0),MATCH(D$6,A1c_GEM_ID!$6:$6,0)-1) -> HHD_M | E11: =INDEX('1_Veh Prop'!$B$6:$AS$107,MATCH($B11,'1_Veh Prop'!$B$6:$B$107,0),MATCH(E$6,'1_Veh Prop'!$6:$6,0)-1) -> 89.87900719 | F11: =INDEX('1_Veh Prop'!$B$6:$AS$107,MATCH($B11,'1_Veh Prop'!$B$6:$B$107,0),MATCH(F$6,'1_Veh Prop'!$6:$6,0)-1) -> 66 | G11: =INDEX('A2_Aux Load'!$B$6:$Z$107,MATCH('1_Veh Prop'!$B11,'A2_Aux Load'!$B$6:$B$107,0),MATCH(G$6,'A2_Aux Load'!$B$6:$Z$6,0)) -> 0.08692698236 | H11: =(INDEX('1_Veh Prop'!$B$6:$CI$107,MATCH($B11,'1_Veh Prop'!$B$6:$B$107,0),MATCH(H$6,'1_Veh Prop'!$6:$6,0)-1))/FCTR_1 -> 0.1580310088 | I11: =(INDEX('1_Veh Prop'!$B$6:$CI$107,MATCH($B11,'1_Veh Prop'!$B$6:$B$107,0),MATCH(I$6,'1_Veh Prop'!$6:$6,0)-1))/FCTR_1 -> 3.112977893 | J11: =(INDEX('1_Veh Prop'!$B$6:$CI$107,MATCH($B11,'1_Veh Prop'!$B$6:$B$107,0),MATCH(J$6,'1_Veh Prop'!$6:$6,0)-1))/FCTR_1 -> 0.1038504587 | K11: =I11/CONVERT(INDEX('1_Veh Prop'!$B$6:$AS$107,MATCH($B11,'1_Veh Prop'!$B$6:$B$107,0),MATCH(K$4,'1_Veh Prop'!$6:$6,0)-1),"kg","ton")*1000 -> 148.2361052 | L11: 206.3083448 | M11: 205.4565409 | N11: 214.227772 | O11: 280.6431663 | P11: 279.7913624 | Q11: 291.0424393 | R11: =SUMPRODUCT('A_Inputs Parameters'!$B$11:$D$11,L11:N11)/F11 -> 3.1512175 | S11: 1 | T11: ='A2_Power Sizing'!S11 -> 340.5710258 | U11: =IF(S11=1,'A2_Power Sizing'!X11,'A2_Power Sizing'!Y11) -> 199.5012756 | V11: =SUMPRODUCT(O11:Q11,'A_Inputs Parameters'!$B$11:$D$11)/33.33/H2_Usable_1/0.9 -> 9.981248482 | W11: =SUMPRODUCT(L11:N11,'A_Inputs Parameters'!$B$11:$D$11)/33.33 -> 6.240034653 | X11: ='A2_Power Sizing'!AB11*(10/60)/DoD_EV_1 -> 45.6413407 | Z11: 48368.05332 | AA11: 6684.554518 | AB11: 7996.198291 | AC11: 6036.645767 | AD11: 1581.16195 | AE11: 4743.48585 | AF11: =INDEX(A2_Gearbox_ID!$B$7:$J$107,MATCH('2_BEV Tech'!B11,A2_Gearbox_ID!$B$7:$B$107,0),8) -> 4192.2 | AG11: 1581.16195 | AH11: 81183.46164 | AI11: 77042.63434 | AJ11: 602.6585479
A12: ='1_Veh Prop'!A12 -> 6 | B12: ='1_Veh Prop'!B12 -> 06T_Box_Cl8_R | C12: ='1_Veh Prop'!C12 -> T_Box_Cl8 | D12: =INDEX(A1c_GEM_ID!$B$6:$AX$107,MATCH($B12,A1c_GEM_ID!$B$6:$B$107,0),MATCH(D$6,A1c_GEM_ID!$6:$6,0)-1) -> HHD_R | E12: =INDEX('1_Veh Prop'!$B$6:$AS$107,MATCH($B12,'1_Veh Prop'!$B$6:$B$107,0),MATCH(E$6,'1_Veh Prop'!$6:$6,0)-1) -> 89.87900719 | F12: =INDEX('1_Veh Prop'!$B$6:$AS$107,MATCH($B12,'1_Veh Prop'!$B$6:$B$107,0),MATCH(F$6,'1_Veh Prop'!$6:$6,0)-1) -> 66 | G12: =INDEX('A2_Aux Load'!$B$6:$Z$107,MATCH('1_Veh Prop'!$B12,'A2_Aux Load'!$B$6:$B$107,0),MATCH(G$6,'A2_Aux Load'!$B$6:$Z$6,0)) -> 0.08676224425 | H12: =(INDEX('1_Veh Prop'!$B$6:$CI$107,MATCH($B12,'1_Veh Prop'!$B$6:$B$107,0),MATCH(H$6,'1_Veh Prop'!$6:$6,0)-1))/FCTR_1 -> 0.1580310088 | I12: =(INDEX('1_Veh Prop'!$B$6:$CI$107,MATCH($B12,'1_Veh Prop'!$B$6:$B$107,0),MATCH(I$6,'1_Veh Prop'!$6:$6,0)-1))/FCTR_1 -> 3.335637292 | J12: =(INDEX('1_Veh Prop'!$B$6:$CI$107,MATCH($B12,'1_Veh Prop'!$B$6:$B$107,0),MATCH(J$6,'1_Veh Prop'!$6:$6,0)-1))/FCTR_1 -> 0.1038504587 | K12: =I12/CONVERT(INDEX('1_Veh Prop'!$B$6:$AS$107,MATCH($B12,'1_Veh Prop'!$B$6:$B$107,0),MATCH(K$4,'1_Veh Prop'!$6:$6,0)-1),"kg","ton")*1000 -> 158.8388667 | L12: 221.0038652 | M12: 220.1520613 | N12: 228.9232924 | O12: 300.6555721 | P12: 299.8037682 | Q12: 311.0548451 | R12: =SUMPRODUCT('A_Inputs Parameters'!$B$11:$D$11,L12:N12)/F12 -> 3.373876899 | S12: 1 | T12: ='A2_Power Sizing'!S12 -> 340.5710258 | U12: =IF(S12=1,'A2_Power Sizing'!X12,'A2_Power Sizing'!Y12) -> 199.5012756 | V12: =SUMPRODUCT(O12:Q12,'A_Inputs Parameters'!$B$11:$D$11)/33.33/H2_Usable_1/0.9 -> 10.68722405 | W12: =SUMPRODUCT(L12:N12,'A_Inputs Parameters'!$B$11:$D$11)/33.33 -> 6.680944355 | X12: ='A2_Power Sizing'!AB12*(10/60)/DoD_EV_1 -> 45.6413407 | Z12: 48368.05332 | AA12: 6684.554518 | AB12: 8561.770885 | AC12: 6036.645767 | AD12: 1581.16195 | AE12: 4743.48585 | AF12: =INDEX(A2_Gearbox_ID!$B$7:$J$107,MATCH('2_BEV Tech'!B12,A2_Gearbox_ID!$B$7:$B$107,0),8) -> 4192.2 | AG12: 1581.16195 | AH12: 81749.03424 | AI12: 77608.20694 | AJ12: 602.6585479
A13: ='1_Veh Prop'!A13 -> 7 | B13: ='1_Veh Prop'!B13 -> 07T_Box_Cl6-7_MP | C13: ='1_Veh Prop'!C13 -> T_Box_Cl6-7 | D13: =INDEX(A1c_GEM_ID!$B$6:$AX$107,MATCH($B13,A1c_GEM_ID!$B$6:$B$107,0),MATCH(D$6,A1c_GEM_ID!$6:$6,0)-1) -> MHD_M | E13: =INDEX('1_Veh Prop'!$B$6:$AS$107,MATCH($B13,'1_Veh Prop'!$B$6:$B$107,0),MATCH(E$6,'1_Veh Prop'!$6:$6,0)-1) -> 89.87900719 | F13: =INDEX('1_Veh Prop'!$B$6:$AS$107,MATCH($B13,'1_Veh Prop'!$B$6:$B$107,0),MATCH(F$6,'1_Veh Prop'!$6:$6,0)-1) -> 39.84303617 | G13: =INDEX('A2_Aux Load'!$B$6:$Z$107,MATCH('1_Veh Prop'!$B13,'A2_Aux Load'!$B$6:$B$107,0),MATCH(G$6,'A2_Aux Load'!$B$6:$Z$6,0)) -> 0.05730713771 | H13: =(INDEX('1_Veh Prop'!$B$6:$CI$107,MATCH($B13,'1_Veh Prop'!$B$6:$B$107,0),MATCH(H$6,'1_Veh Prop'!$6:$6,0)-1))/FCTR_1 -> 0.1580310088 | I13: =(INDEX('1_Veh Prop'!$B$6:$CI$107,MATCH($B13,'1_Veh Prop'!$B$6:$B$107,0),MATCH(I$6,'1_Veh Prop'!$6:$6,0)-1))/FCTR_1 -> 2.075544597 | J13: =(INDEX('1_Veh Prop'!$B$6:$CI$107,MATCH($B13,'1_Veh Prop'!$B$6:$B$107,0),MATCH(J$6,'1_Veh Prop'!$6:$6,0)-1))/FCTR_1 -> 0.1038504587 | K13: =I13/CONVERT(INDEX('1_Veh Prop'!$B$6:$AS$107,MATCH($B13,'1_Veh Prop'!$B$6:$B$107,0),MATCH(K$4,'1_Veh Prop'!$6:$6,0)-1),"kg","ton")*1000 -> 165.0510506 | L13: 83.23827258 | M13: 82.69599846 | N13: 88.05417792 | O13: 187.0901619 | P13: 186.5478878 | Q13: 197.1023258 | R13: =SUMPRODUCT('A_Inputs Parameters'!$B$11:$D$11,L13:N13)/F13 -> 2.114442689 | S13: 1 | T13: ='A2_Power Sizing'!S13 -> 215.2828344 | U13: =IF(S13=1,'A2_Power Sizing'!X13,'A2_Power Sizing'!Y13) -> 147.9537869 | V13: =SUMPRODUCT(O13:Q13,'A_Inputs Parameters'!$B$11:$D$11)/33.33/H2_Usable_1/0.9 -> 6.681696848 | W13: =SUMPRODUCT(L13:N13,'A_Inputs Parameters'!$B$11:$D$11)/33.33 -> 2.52762726 | X13: ='A2_Power Sizing'!AB13*(10/60)/DoD_EV_1 -> 29.05612285 | Z13: 35870.63106 | AA13: 4225.461752 | AB13: 5352.854707 | AC13: 3843.040505 | AD13: 1581.16195 | AE13: 4743.48585 | AF13: =INDEX(A2_Gearbox_ID!$B$7:$J$107,MATCH('2_BEV Tech'!B13,A2_Gearbox_ID!$B$7:$B$107,0),8) -> 2324.3 | AG13: 1581.16195 | AH13: 59522.09777 | AI13: 55162.27552 | AJ13: 383.663594
A14: ='1_Veh Prop'!A14 -> 8 | B14: ='1_Veh Prop'!B14 -> 08T_Box_Cl6-7_R | C14: ='1_Veh Prop'!C14 -> T_Box_Cl6-7 | D14: =INDEX(A1c_GEM_ID!$B$6:$AX$107,MATCH($B14,A1c_GEM_ID!$B$6:$B$107,0),MATCH(D$6,A1c_GEM_ID!$6:$6,0)-1) -> MHD_R | E14: =INDEX('1_Veh Prop'!$B$6:$AS$107,MATCH($B14,'1_Veh Prop'!$B$6:$B$107,0),MATCH(E$6,'1_Veh Prop'!$6:$6,0)-1) -> 89.87900719 | F14: =INDEX('1_Veh Prop'!$B$6:$AS$107,MATCH($B14,'1_Veh Prop'!$B$6:$B$107,0),MATCH(F$6,'1_Veh Prop'!$6:$6,0)-1) -> 39.84303617 | G14: =INDEX('A2_Aux Load'!$B$6:$Z$107,MATCH('1_Veh Prop'!$B14,'A2_Aux Load'!$B$6:$B$107,0),MATCH(G$6,'A2_Aux Load'!$B$6:$Z$6,0)) -> 0.0606996308 | H14: =(INDEX('1_Veh Prop'!$B$6:$CI$107,MATCH($B14,'1_Veh Prop'!$B$6:$B$107,0),MATCH(H$6,'1_Veh Prop'!$6:$6,0)-1))/FCTR_1 -> 0.1580310088 | I14: =(INDEX('1_Veh Prop'!$B$6:$CI$107,MATCH($B14,'1_Veh Prop'!$B$6:$B$107,0),MATCH(I$6,'1_Veh Prop'!$6:$6,0)-1))/FCTR_1 -> 2.349342773 | J14: =(INDEX('1_Veh Prop'!$B$6:$CI$107,MATCH($B14,'1_Veh Prop'!$B$6:$B$107,0),MATCH(J$6,'1_Veh Prop'!$6:$6,0)-1))/FCTR_1 -> 0.1038504587 | K14: =I14/CONVERT(INDEX('1_Veh Prop'!$B$6:$AS$107,MATCH($B14,'1_Veh Prop'!$B$6:$B$107,0),MATCH(K$4,'1_Veh Prop'!$6:$6,0)-1),"kg","ton")*1000 -> 186.8239755 | L14: 94.1472232 | M14: 93.60494907 | N14: 98.96312853 | O14: 211.6988701 | P14: 211.156596 | Q14: 221.711034 | R14: =SUMPRODUCT('A_Inputs Parameters'!$B$11:$D$11,L14:N14)/F14 -> 2.388240865 | S14: 1 | T14: ='A2_Power Sizing'!S14 -> 215.2828344 | U14: =IF(S14=1,'A2_Power Sizing'!X14,'A2_Power Sizing'!Y14) -> 147.9537869 | V14: =SUMPRODUCT(O14:Q14,'A_Inputs Parameters'!$B$11:$D$11)/33.33/H2_Usable_1/0.9 -> 7.549815695 | W14: =SUMPRODUCT(L14:N14,'A_Inputs Parameters'!$B$11:$D$11)/33.33 -> 2.854928508 | X14: ='A2_Power Sizing'!AB14*(10/60)/DoD_EV_1 -> 29.05612285 | Z14: 35870.63106 | AA14: 4225.461752 | AB14: 6048.323861 | AC14: 3843.040505 | AD14: 1581.16195 | AE14: 4743.48585 | AF14: =INDEX(A2_Gearbox_ID!$B$7:$J$107,MATCH('2_BEV Tech'!B14,A2_Gearbox_ID!$B$7:$B$107,0),8) -> 2324.3 | AG14: 1581.16195 | AH14: 60217.56693 | AI14: 55857.74467 | AJ14: 383.663594
A15: ='1_Veh Prop'!A15 -> 9 | B15: ='1_Veh Prop'!B15 -> 09T_Box_Cl8_U | C15: ='1_Veh Prop'!C15 -> T_Box_Cl8 | D15: =INDEX(A1c_GEM_ID!$B$6:$AX$107,MATCH($B15,A1c_GEM_ID!$B$6:$B$107,0),MATCH(D$6,A1c_GEM_ID!$6:$6,0)-1) -> HHD_U | E15: =INDEX('1_Veh Prop'!$B$6:$AS$107,MATCH($B15,'1_Veh Prop'!$B$6:$B$107,0),MATCH(E$6,'1_Veh Prop'!$6:$6,0)-1) -> 89.87900719 | F15: =INDEX('1_Veh Prop'!$B$6:$AS$107,MATCH($B15,'1_Veh Prop'!$B$6:$B$107,0),MATCH(F$6,'1_Veh Prop'!$6:$6,0)-1) -> 66 | G15: =INDEX('A2_Aux Load'!$B$6:$Z$107,MATCH('1_Veh Prop'!$B15,'A2_Aux Load'!$B$6:$B$107,0),MATCH(G$6,'A2_Aux Load'!$B$6:$Z$6,0)) -> 0.08675894194 | H15: =(INDEX('1_Veh Prop'!$B$6:$CI$107,MATCH($B15,'1_Veh Prop'!$B$6:$B$107,0),MATCH(H$6,'1_Veh Prop'!$6:$6,0)-1))/FCTR_1 -> 0.1580310088 | I15: =(INDEX('1_Veh Prop'!$B$6:$CI$107,MATCH($B15,'1_Veh Prop'!$B$6:$B$107,0),MATCH(I$6,'1_Veh Prop'!$6:$6,0)-1))/FCTR_1 -> 2.867593956 | J15: =(INDEX('1_Veh Prop'!$B$6:$CI$107,MATCH($B15,'1_Veh Prop'!$B$6:$B$107,0),MATCH(J$6,'1_Veh Prop'!$6:$6,0)-1))/FCTR_1 -> 0.1038504587 | K15: =I15/CONVERT(INDEX('1_Veh Prop'!$B$6:$AS$107,MATCH($B15,'1_Veh Prop'!$B$6:$B$107,0),MATCH(K$4,'1_Veh Prop'!$6:$6,0)-1),"kg","ton")*1000 -> 136.5512297 | L15: 190.113005 | M15: 189.2612011 | N15: 198.0324322 | O15: 258.5883017 | P15: 257.7364978 | Q15: 268.9875747 | R15: =SUMPRODUCT('A_Inputs Parameters'!$B$11:$D$11,L15:N15)/F15 -> 2.905833563 | S15: 1 | T15: ='A2_Power Sizing'!S15 -> 340.5710258 | U15: =IF(S15=1,'A2_Power Sizing'!X15,'A2_Power Sizing'!Y15) -> 199.5012756 | V15: =SUMPRODUCT(O15:Q15,'A_Inputs Parameters'!$B$11:$D$11)/33.33/H2_Usable_1/0.9 -> 9.203221311 | W15: =SUMPRODUCT(L15:N15,'A_Inputs Parameters'!$B$11:$D$11)/33.33 -> 5.754125867 | X15: ='A2_Power Sizing'!AB15*(10/60)/DoD_EV_1 -> 45.6413407 | Z15: 48368.05332 | AA15: 6684.554518 | AB15: 7372.903565 | AC15: 6036.645767 | AD15: 1581.16195 | AE15: 4743.48585 | AF15: =INDEX(A2_Gearbox_ID!$B$7:$J$107,MATCH('2_BEV Tech'!B15,A2_Gearbox_ID!$B$7:$B$107,0),8) -> 4192.2 | AG15: 1581.16195 | AH15: 80560.16692 | AI15: 76419.33962 | AJ15: 602.6585479
... 18 more rows

Sheet A2_Gearbox_ID (hidden)
B1: Return to Table of Contents | G1: 2027
B2: Vehicle ID | C2: Vehicle ID2 | D2: GEM Energy ID | E2: ANL Vehicle ID | F2: ICE Gearbox Cost | G2: BEV Gearbox Cost | H2: BEV Gearbox Cost with Learning | I2: FCEV Gearbox Cost with Learning
F4: $ | G4: $ | H4: $ | I4: $
A6: # | B6: Vehicle ID | C6: Vehicle ID2 | D6: GEM Energy ID | E6: ANL Vehicle ID | F6: ICE | G6: BEV | H6: BEV with Learning | I6: FCEV with Learning
A7: ='1_Veh Prop'!A7 -> 1 | B7: ='1_Veh Prop'!B7 -> 01V_Amb_Cl4-5_MP | C7: ='1_Veh Prop'!C7 -> V_Amb_Cl4-5 | D7: ='1_Veh Prop'!F7 -> LHD_M | E7: Service Medium 4 | F7: =INDEX('A98_ANL Gearbox Cost'!$O$5:$U$27,MATCH(A2_Gearbox_ID!E7,'A98_ANL Gearbox Cost'!$O$5:$O$27,0),4) -> 5865.7 | G7: =IF(VALUE(RIGHT(C7,1))<=5,0,INDEX('A98_ANL Gearbox Cost'!$O$5:$U$27,MATCH(A2_Gearbox_ID!E7,'A98_ANL Gearbox Cost'!$O$5:$O$27,0),2)) -> 0 | H7: =G7*Learning_1 -> 0 | I7: =IF(VALUE(RIGHT(C7,1))<=5,0,INDEX('A98_ANL Gearbox Cost'!$O$5:$U$27,MATCH(A2_Gearbox_ID!E7,'A98_ANL Gearbox Cost'!$O$5:$O$27,0),7)) -> 0
A8: ='1_Veh Prop'!A8 -> 2 | B8: ='1_Veh Prop'!B8 -> 02V_Amb_Cl2b-3_MP | C8: ='1_Veh Prop'!C8 -> V_Amb_Cl2b-3 | D8: ='1_Veh Prop'!F8 -> LHD_M | E8: Van Medium 3 | F8: =INDEX('A98_ANL Gearbox Cost'!$O$5:$U$27,MATCH(A2_Gearbox_ID!E8,'A98_ANL Gearbox Cost'!$O$5:$O$27,0),4) -> 4626.3 | G8: =IF(VALUE(RIGHT(C8,1))<=5,0,INDEX('A98_ANL Gearbox Cost'!$O$5:$U$27,MATCH(A2_Gearbox_ID!E8,'A98_ANL Gearbox Cost'!$O$5:$O$27,0),2)) -> 0 | H8: 0 | I8: =IF(VALUE(RIGHT(C8,1))<=5,0,INDEX('A98_ANL Gearbox Cost'!$O$5:$U$27,MATCH(A2_Gearbox_ID!E8,'A98_ANL Gearbox Cost'!$O$5:$O$27,0),7)) -> 0
A9: ='1_Veh Prop'!A9 -> 3 | B9: ='1_Veh Prop'!B9 -> 03V_Amb_Cl4-5_U | C9: ='1_Veh Prop'!C9 -> V_Amb_Cl4-5 | D9: ='1_Veh Prop'!F9 -> LHD_U | E9: Service Medium 4 | F9: =INDEX('A98_ANL Gearbox Cost'!$O$5:$U$27,MATCH(A2_Gearbox_ID!E9,'A98_ANL Gearbox Cost'!$O$5:$O$27,0),4) -> 5865.7 | G9: =IF(VALUE(RIGHT(C9,1))<=5,0,INDEX('A98_ANL Gearbox Cost'!$O$5:$U$27,MATCH(A2_Gearbox_ID!E9,'A98_ANL Gearbox Cost'!$O$5:$O$27,0),2)) -> 0 | H9: 0 | I9: =IF(VALUE(RIGHT(C9,1))<=5,0,INDEX('A98_ANL Gearbox Cost'!$O$5:$U$27,MATCH(A2_Gearbox_ID!E9,'A98_ANL Gearbox Cost'!$O$5:$O$27,0),7)) -> 0
A10: ='1_Veh Prop'!A10 -> 4 | B10: ='1_Veh Prop'!B10 -> 04V_Amb_Cl2b-3_U | C10: ='1_Veh Prop'!C10 -> V_Amb_Cl2b-3 | D10: ='1_Veh Prop'!F10 -> LHD_U | E10: Van Medium 3 | F10: =INDEX('A98_ANL Gearbox Cost'!$O$5:$U$27,MATCH(A2_Gearbox_ID!E10,'A98_ANL Gearbox Cost'!$O$5:$O$27,0),4) -> 4626.3 | G10: =IF(VALUE(RIGHT(C10,1))<=5,0,INDEX('A98_ANL Gearbox Cost'!$O$5:$U$27,MATCH(A2_Gearbox_ID!E10,'A98_ANL Gearbox Cost'!$O$5:$O$27,0),2)) -> 0 | H10: 0 | I10: =IF(VALUE(RIGHT(C10,1))<=5,0,INDEX('A98_ANL Gearbox Cost'!$O$5:$U$27,MATCH(A2_Gearbox_ID!E10,'A98_ANL Gearbox Cost'!$O$5:$O$27,0),7)) -> 0
A11: ='1_Veh Prop'!A11 -> 5 | B11: ='1_Veh Prop'!B11 -> 05T_Box_Cl8_MP | C11: ='1_Veh Prop'!C11 -> T_Box_Cl8 | D11: ='1_Veh Prop'!F11 -> HHD_M | E11: Vocational Heavy 8 | F11: =INDEX('A98_ANL Gearbox Cost'!$O$5:$U$27,MATCH(A2_Gearbox_ID!E11,'A98_ANL Gearbox Cost'!$O$5:$O$27,0),4) -> 10527.3 | G11: =IF(VALUE(RIGHT(C11,1))<=5,0,INDEX('A98_ANL Gearbox Cost'!$O$5:$U$27,MATCH(A2_Gearbox_ID!E11,'A98_ANL Gearbox Cost'!$O$5:$O$27,0),2)) -> 4180.4 | H11: 4180.4 | I11: =IF(VALUE(RIGHT(C11,1))<=5,0,INDEX('A98_ANL Gearbox Cost'!$O$5:$U$27,MATCH(A2_Gearbox_ID!E11,'A98_ANL Gearbox Cost'!$O$5:$O$27,0),7)) -> 4192.2
A12: ='1_Veh Prop'!A12 -> 6 | B12: ='1_Veh Prop'!B12 -> 06T_Box_Cl8_R | C12: ='1_Veh Prop'!C12 -> T_Box_Cl8 | D12: ='1_Veh Prop'!F12 -> HHD_R | E12: Vocational Heavy 8 | F12: =INDEX('A98_ANL Gearbox Cost'!$O$5:$U$27,MATCH(A2_Gearbox_ID!E12,'A98_ANL Gearbox Cost'!$O$5:$O$27,0),4) -> 10527.3 | G12: =IF(VALUE(RIGHT(C12,1))<=5,0,INDEX('A98_ANL Gearbox Cost'!$O$5:$U$27,MATCH(A2_Gearbox_ID!E12,'A98_ANL Gearbox Cost'!$O$5:$O$27,0),2)) -> 4180.4 | H12: 4180.4 | I12: =IF(VALUE(RIGHT(C12,1))<=5,0,INDEX('A98_ANL Gearbox Cost'!$O$5:$U$27,MATCH(A2_Gearbox_ID!E12,'A98_ANL Gearbox Cost'!$O$5:$O$27,0),7)) -> 4192.2
A13: ='1_Veh Prop'!A13 -> 7 | B13: ='1_Veh Prop'!B13 -> 07T_Box_Cl6-7_MP | C13: ='1_Veh Prop'!C13 -> T_Box_Cl6-7 | D13: ='1_Veh Prop'!F13 -> MHD_M | E13: Box Medium 6 | F13: =INDEX('A98_ANL Gearbox Cost'!$O$5:$U$27,MATCH(A2_Gearbox_ID!E13,'A98_ANL Gearbox Cost'!$O$5:$O$27,0),4) -> 4995 | G13: =IF(VALUE(RIGHT(C13,1))<=5,0,INDEX('A98_ANL Gearbox Cost'!$O$5:$U$27,MATCH(A2_Gearbox_ID!E13,'A98_ANL Gearbox Cost'!$O$5:$O$27,0),2)) -> 2314 | H13: 2314 | I13: =IF(VALUE(RIGHT(C13,1))<=5,0,INDEX('A98_ANL Gearbox Cost'!$O$5:$U$27,MATCH(A2_Gearbox_ID!E13,'A98_ANL Gearbox Cost'!$O$5:$O$27,0),7)) -> 2324.3
A14: ='1_Veh Prop'!A14 -> 8 | B14: ='1_Veh Prop'!B14 -> 08T_Box_Cl6-7_R | C14: ='1_Veh Prop'!C14 -> T_Box_Cl6-7 | D14: ='1_Veh Prop'!F14 -> MHD_R | E14: Box Medium 6 | F14: =INDEX('A98_ANL Gearbox Cost'!$O$5:$U$27,MATCH(A2_Gearbox_ID!E14,'A98_ANL Gearbox Cost'!$O$5:$O$27,0),4) -> 4995 | G14: =IF(VALUE(RIGHT(C14,1))<=5,0,INDEX('A98_ANL Gearbox Cost'!$O$5:$U$27,MATCH(A2_Gearbox_ID!E14,'A98_ANL Gearbox Cost'!$O$5:$O$27,0),2)) -> 2314 | H14: 2314 | I14: =IF(VALUE(RIGHT(C14,1))<=5,0,INDEX('A98_ANL Gearbox Cost'!$O$5:$U$27,MATCH(A2_Gearbox_ID!E14,'A98_ANL Gearbox Cost'!$O$5:$O$27,0),7)) -> 2324.3
A15: ='1_Veh Prop'!A15 -> 9 | B15: ='1_Veh Prop'!B15 -> 09T_Box_Cl8_U | C15: ='1_Veh Prop'!C15 -> T_Box_Cl8 | D15: ='1_Veh Prop'!F15 -> HHD_U | E15: Vocational Heavy 8 | F15: =INDEX('A98_ANL Gearbox Cost'!$O$5:$U$27,MATCH(A2_Gearbox_ID!E15,'A98_ANL Gearbox Cost'!$O$5:$O$27,0),4) -> 10527.3 | G15: =IF(VALUE(RIGHT(C15,1))<=5,0,INDEX('A98_ANL Gearbox Cost'!$O$5:$U$27,MATCH(A2_Gearbox_ID!E15,'A98_ANL Gearbox Cost'!$O$5:$O$27,0),2)) -> 4180.4 | H15: 4180.4 | I15: =IF(VALUE(RIGHT(C15,1))<=5,0,INDEX('A98_ANL Gearbox Cost'!$O$5:$U$27,MATCH(A2_Gearbox_ID!E15,'A98_ANL Gearbox Cost'!$O$5:$O$27,0),7)) -> 4192.2
... 18 more rows

Sheet A2_Power Sizing (hidden)
A1: 2027 | B1: Return to Table of Contents | H1: 0.63 | J1: =U1 -> 13.4112 | K1: =V1 -> 26.8224 | U1: 13.4112 | V1: 26.8224 | X1: 75 | Y1: 0.9
A2: Change | C2: Hide | Z2: Delete
B3: Vehicle ID | C3: Vehicle ID2 | D3: Daily Sizing VMT | E3: GVWR/GCWR | F3: GEM Default Weight | G3: GEM Default Rotational Mass | H3: GEM Drag Area | I3: GEM Tire Rotaional Inertia | J3: Max 0-30 mph Acc Time | K3: Max 0-60 mph Acc Time | L3: Inertia for 0-30 mph Acc Time | M3: Drag and Friction for 0-30 mph Acc Time | N3: Road Load for 0-30 mph Acc Time | O3: Inertia for 0-60 mph Acc Time | P3: Drag and Friction for 0-60 mph Acc Time | Q3: Road Load for 0-60 mph Acc Time | R3: Cruise Speed @ Grade | S3: Peak Power Demand | T3: Transient Cycle Peak Power | U3: 0-30 mph Acc Peak Power | V3: 0-60 mph Acc Peak Power | W3: 6% Grade @ Cruise Speed Peak Power | X3: 75 MPH Cruise Peak Power | Y3: 90th Percentile Transient Cycle Peak Power | AA3: FCEV Battery Power Select (Voc = 1 Tractor = 2) | AB3: FCEV Battery Power
S4: =EMotor_Eff_1 -> 0.945
A5: Units | D5: miles | E5: kg | F5: kg | G5: kg | H5: m^2 | I5: kg/ton | J5: sec | K5: sec | L5: N | M5: N | N5: N | O5: N | P5: N | Q5: N | R5: MPH | S5: kW | T5: kW | U5: kW | V5: kW | W5: kW | X5: kW | Y5: kW | AB5: kW
A6: # | B6: Vehicle ID | C6: Vehicle ID2 | D6: =CONCATENATE("Absolute Sizing VMT (",Sizing_Range_Percentile*100,"%)") -> Absolute Sizing VMT (90%) | E6: GVWR/GCWR (kg) | F6: GEM Weight [kg] | G6: Mrot [kg] | H6: GEM CdA | I6: GEM Crr (kg/ton) | J6: 0-30 | K6: 0-60 | L6: 0-30 Inertia (N) | M6: 0-30 Drag and Friction (N) | N6: 0-30 Road Load (N) | O6: 0-60 Inertia (N) | P6: 0-60 Drag and Friction (N) | Q6: 0-60 Road Load (N) | R6: Cruise @ Grade | S6: =Tech_Pen1&" Peak Power (kW)" -> Default Peak Power (kW) | T6: Transient (kW) | U6: 0-30 (kW) | V6: 0-60 (kW) | W6: =CONCATENATE(Grade*100,"% @ Cruise (kW)") -> 6% @ Cruise (kW) | X6: =CONCATENATE("Constant ",X1," MPH") -> Constant 75 MPH | Y6: =Y1*100&"th Percentile ARB (kW)" -> 90th Percentile ARB (kW) | Z6: Peak Eff | AB6: FCHEV Battery Power (kW)
A7: ='1_Veh Prop'!A7 -> 1 | B7: ='1_Veh Prop'!B7 -> 01V_Amb_Cl4-5_MP | C7: ='1_Veh Prop'!C7 -> V_Amb_Cl4-5 | D7: =INDEX(A1a_VMT_ID!$A$6:$AB$107,MATCH($A7,A1a_VMT_ID!$A$6:$A$107,0),MATCH(D$6,A1a_VMT_ID!$6:$6,0)) -> 50.35810678 | E7: =F7 -> 7257 | F7: =INDEX('1_Veh Prop'!$B$6:$CI$107,MATCH($B7,'1_Veh Prop'!$B$6:$B$107,0),MATCH(F$6,'1_Veh Prop'!$6:$6,0)-1) -> 7257 | G7: =INDEX('1_Veh Prop'!$B$6:$CI$107,MATCH($B7,'1_Veh Prop'!$B$6:$B$107,0),MATCH(G$6,'1_Veh Prop'!$6:$6,0)-1) -> 340 | H7: =INDEX('1_Veh Prop'!$B$6:$CI$107,MATCH($B7,'1_Veh Prop'!$B$6:$B$107,0),MATCH(H$6,'1_Veh Prop'!$6:$6,0)-1) -> 3.4 | I7: =INDEX('1_Veh Prop'!$B$6:$CI$107,MATCH($B7,'1_Veh Prop'!$B$6:$B$107,0),MATCH(I$6,'1_Veh Prop'!$6:$6,0)-1) -> 7.7 | J7: =INDEX('1_Veh Prop'!$B$6:$CI$107,MATCH($B7,'1_Veh Prop'!$B$6:$B$107,0),MATCH(J$6,'1_Veh Prop'!$6:$6,0)-1) -> 8 | K7: =INDEX('1_Veh Prop'!$B$6:$CI$107,MATCH($B7,'1_Veh Prop'!$B$6:$B$107,0),MATCH(K$6,'1_Veh Prop'!$6:$6,0)-1) -> 25 | L7: =($U$1*(SUM(F7:G7)/J7)) -> 12735.6108 | M7: =F7*9.81*I7/1000+0.5*1.17*$U$1^2 -> 653.390276 | N7: =SUM(L7:M7) -> 13389.00108 | O7: =($V$1*(SUM(F7:G7)/K7)) -> 8150.790912 | P7: =F7*9.81*I7/1000+0.5*1.17*$V$1^2 -> 969.0450769 | Q7: =SUM(O7:P7) -> 9119.835989 | R7: =INDEX('1_Veh Prop'!$B$6:$CI$107,MATCH($B7,'1_Veh Prop'!$B$6:$B$107,0),MATCH(R$6,'1_Veh Prop'!$6:$6,0)-1) -> 55 | S7: =MAX(T7:W7)/EMotor_Eff_1 -> 258.8527924 | T7: =IF(ABS(MIN(A2a_ARB!B3:YS3))>MAX(A2a_ARB!B3:YS3),ABS(MIN(A2a_ARB!B3:YS3)),MAX(A2a_ARB!B3:YS3)) -> 119.272051 | U7: =N7*$U$1/1000 -> 179.5625712 | V7: =Q7*$V$1/1000 -> 244.6158888 | W7: =($F7*9.81*$I7*COS(ATAN(Grade))/1000+(1.17*$H7)/2*($R7*0.44704)^2+$F7*9.81*SIN(ATAN(Grade)))*($R7*0.44704)/1000 -> 147.8526975 | X7: =($F7*9.81*$I7/1000+(1.17*$H7)/2*($X$1*0.44704)^2+$F7*9.81*SIN(ATAN(0)))*($X$1*0.44704)/1000 -> 93.34396979 | Y7: =_xlfn.PERCENTILE.INC(IF(A2a_ARB!B3:YS3>0,A2a_ARB!B3:YS3),$Y$1) -> 48.18589562 | Z7: =X7-Y7 -> 45.15807417 | AA7: 1 | AB7: =S7-IF(AA7=1,Y7,X7) -> 210.6668968
A8: ='1_Veh Prop'!A8 -> 2 | B8: ='1_Veh Prop'!B8 -> 02V_Amb_Cl2b-3_MP | C8: ='1_Veh Prop'!C8 -> V_Amb_Cl2b-3 | D8: =INDEX(A1a_VMT_ID!$A$6:$AB$107,MATCH($A8,A1a_VMT_ID!$A$6:$A$107,0),MATCH(D$6,A1a_VMT_ID!$6:$6,0)) -> 63.97377355 | E8: 7257 | F8: =INDEX('1_Veh Prop'!$B$6:$CI$107,MATCH($B8,'1_Veh Prop'!$B$6:$B$107,0),MATCH(F$6,'1_Veh Prop'!$6:$6,0)-1) -> 7257 | G8: =INDEX('1_Veh Prop'!$B$6:$CI$107,MATCH($B8,'1_Veh Prop'!$B$6:$B$107,0),MATCH(G$6,'1_Veh Prop'!$6:$6,0)-1) -> 340 | H8: =INDEX('1_Veh Prop'!$B$6:$CI$107,MATCH($B8,'1_Veh Prop'!$B$6:$B$107,0),MATCH(H$6,'1_Veh Prop'!$6:$6,0)-1) -> 3.4 | I8: =INDEX('1_Veh Prop'!$B$6:$CI$107,MATCH($B8,'1_Veh Prop'!$B$6:$B$107,0),MATCH(I$6,'1_Veh Prop'!$6:$6,0)-1) -> 7.7 | J8: =INDEX('1_Veh Prop'!$B$6:$CI$107,MATCH($B8,'1_Veh Prop'!$B$6:$B$107,0),MATCH(J$6,'1_Veh Prop'!$6:$6,0)-1) -> 7 | K8: =INDEX('1_Veh Prop'!$B$6:$CI$107,MATCH($B8,'1_Veh Prop'!$B$6:$B$107,0),MATCH(K$6,'1_Veh Prop'!$6:$6,0)-1) -> 25 | L8: 14554.98377 | M8: 653.390276 | N8: =SUM(L8:M8) -> 15208.37405 | O8: 8150.790912 | P8: 969.0450769 | Q8: =SUM(O8:P8) -> 9119.835989 | R8: =INDEX('1_Veh Prop'!$B$6:$CI$107,MATCH($B8,'1_Veh Prop'!$B$6:$B$107,0),MATCH(R$6,'1_Veh Prop'!$6:$6,0)-1) -> 65 | S8: =MAX(T8:W8)/EMotor_Eff_1 -> 258.8527924 | T8: =IF(ABS(MIN(A2a_ARB!B4:YS4))>MAX(A2a_ARB!B4:YS4),ABS(MIN(A2a_ARB!B4:YS4)),MAX(A2a_ARB!B4:YS4)) -> 119.272051 | U8: 203.962546 | V8: 244.6158888 | W8: 188.5951755 | X8: 93.34396979 | Y8: =_xlfn.PERCENTILE.INC(IF(A2a_ARB!B4:YS4>0,A2a_ARB!B4:YS4),$Y$1) -> 48.18589562 | Z8: 45.15807417 | AA8: 1 | AB8: 210.6668968
A9: ='1_Veh Prop'!A9 -> 3 | B9: ='1_Veh Prop'!B9 -> 03V_Amb_Cl4-5_U | C9: ='1_Veh Prop'!C9 -> V_Amb_Cl4-5 | D9: =INDEX(A1a_VMT_ID!$A$6:$AB$107,MATCH($A9,A1a_VMT_ID!$A$6:$A$107,0),MATCH(D$6,A1a_VMT_ID!$6:$6,0)) -> 58.04734232 | E9: 7257 | F9: =INDEX('1_Veh Prop'!$B$6:$CI$107,MATCH($B9,'1_Veh Prop'!$B$6:$B$107,0),MATCH(F$6,'1_Veh Prop'!$6:$6,0)-1) -> 7257 | G9: =INDEX('1_Veh Prop'!$B$6:$CI$107,MATCH($B9,'1_Veh Prop'!$B$6:$B$107,0),MATCH(G$6,'1_Veh Prop'!$6:$6,0)-1) -> 340 | H9: =INDEX('1_Veh Prop'!$B$6:$CI$107,MATCH($B9,'1_Veh Prop'!$B$6:$B$107,0),MATCH(H$6,'1_Veh Prop'!$6:$6,0)-1) -> 3.4 | I9: =INDEX('1_Veh Prop'!$B$6:$CI$107,MATCH($B9,'1_Veh Prop'!$B$6:$B$107,0),MATCH(I$6,'1_Veh Prop'!$6:$6,0)-1) -> 7.7 | J9: =INDEX('1_Veh Prop'!$B$6:$CI$107,MATCH($B9,'1_Veh Prop'!$B$6:$B$107,0),MATCH(J$6,'1_Veh Prop'!$6:$6,0)-1) -> 8 | K9: =INDEX('1_Veh Prop'!$B$6:$CI$107,MATCH($B9,'1_Veh Prop'!$B$6:$B$107,0),MATCH(K$6,'1_Veh Prop'!$6:$6,0)-1) -> 25 | L9: 12735.6108 | M9: 653.390276 | N9: 13389.00108 | O9: 8150.790912 | P9: 969.0450769 | Q9: 9119.835989 | R9: =INDEX('1_Veh Prop'!$B$6:$CI$107,MATCH($B9,'1_Veh Prop'!$B$6:$B$107,0),MATCH(R$6,'1_Veh Prop'!$6:$6,0)-1) -> 55 | S9: 258.8527924 | T9: =IF(ABS(MIN(A2a_ARB!B5:YS5))>MAX(A2a_ARB!B5:YS5),ABS(MIN(A2a_ARB!B5:YS5)),MAX(A2a_ARB!B5:YS5)) -> 119.272051 | U9: 179.5625712 | V9: 244.6158888 | W9: 147.8526975 | X9: 93.34396979 | Y9: =_xlfn.PERCENTILE.INC(IF(A2a_ARB!B5:YS5>0,A2a_ARB!B5:YS5),$Y$1) -> 48.18589562 | Z9: 45.15807417 | AA9: 1 | AB9: 210.6668968
A10: ='1_Veh Prop'!A10 -> 4 | B10: ='1_Veh Prop'!B10 -> 04V_Amb_Cl2b-3_U | C10: ='1_Veh Prop'!C10 -> V_Amb_Cl2b-3 | D10: =INDEX(A1a_VMT_ID!$A$6:$AB$107,MATCH($A10,A1a_VMT_ID!$A$6:$A$107,0),MATCH(D$6,A1a_VMT_ID!$6:$6,0)) -> 51.71311883 | E10: 7257 | F10: =INDEX('1_Veh Prop'!$B$6:$CI$107,MATCH($B10,'1_Veh Prop'!$B$6:$B$107,0),MATCH(F$6,'1_Veh Prop'!$6:$6,0)-1) -> 7257 | G10: =INDEX('1_Veh Prop'!$B$6:$CI$107,MATCH($B10,'1_Veh Prop'!$B$6:$B$107,0),MATCH(G$6,'1_Veh Prop'!$6:$6,0)-1) -> 340 | H10: =INDEX('1_Veh Prop'!$B$6:$CI$107,MATCH($B10,'1_Veh Prop'!$B$6:$B$107,0),MATCH(H$6,'1_Veh Prop'!$6:$6,0)-1) -> 3.4 | I10: =INDEX('1_Veh Prop'!$B$6:$CI$107,MATCH($B10,'1_Veh Prop'!$B$6:$B$107,0),MATCH(I$6,'1_Veh Prop'!$6:$6,0)-1) -> 7.7 | J10: =INDEX('1_Veh Prop'!$B$6:$CI$107,MATCH($B10,'1_Veh Prop'!$B$6:$B$107,0),MATCH(J$6,'1_Veh Prop'!$6:$6,0)-1) -> 7 | K10: =INDEX('1_Veh Prop'!$B$6:$CI$107,MATCH($B10,'1_Veh Prop'!$B$6:$B$107,0),MATCH(K$6,'1_Veh Prop'!$6:$6,0)-1) -> 25 | L10: 14554.98377 | M10: 653.390276 | N10: 15208.37405 | O10: 8150.790912 | P10: 969.0450769 | Q10: 9119.835989 | R10: =INDEX('1_Veh Prop'!$B$6:$CI$107,MATCH($B10,'1_Veh Prop'!$B$6:$B$107,0),MATCH(R$6,'1_Veh Prop'!$6:$6,0)-1) -> 65 | S10: 258.8527924 | T10: =IF(ABS(MIN(A2a_ARB!B6:YS6))>MAX(A2a_ARB!B6:YS6),ABS(MIN(A2a_ARB!B6:YS6)),MAX(A2a_ARB!B6:YS6)) -> 119.272051 | U10: 203.962546 | V10: 244.6158888 | W10: 188.5951755 | X10: 93.34396979 | Y10: =_xlfn.PERCENTILE.INC(IF(A2a_ARB!B6:YS6>0,A2a_ARB!B6:YS6),$Y$1) -> 48.18589562 | Z10: 45.15807417 | AA10: 1 | AB10: 210.6668968
A11: ='1_Veh Prop'!A11 -> 5 | B11: ='1_Veh Prop'!B11 -> 05T_Box_Cl8_MP | C11: ='1_Veh Prop'!C11 -> T_Box_Cl8 | D11: =INDEX(A1a_VMT_ID!$A$6:$AB$107,MATCH($A11,A1a_VMT_ID!$A$6:$A$107,0),MATCH(D$6,A1a_VMT_ID!$6:$6,0)) -> 89.87900719 | E11: 19051 | F11: =INDEX('1_Veh Prop'!$B$6:$CI$107,MATCH($B11,'1_Veh Prop'!$B$6:$B$107,0),MATCH(F$6,'1_Veh Prop'!$6:$6,0)-1) -> 19051 | G11: =INDEX('1_Veh Prop'!$B$6:$CI$107,MATCH($B11,'1_Veh Prop'!$B$6:$B$107,0),MATCH(G$6,'1_Veh Prop'!$6:$6,0)-1) -> 794 | H11: =INDEX('1_Veh Prop'!$B$6:$CI$107,MATCH($B11,'1_Veh Prop'!$B$6:$B$107,0),MATCH(H$6,'1_Veh Prop'!$6:$6,0)-1) -> 6.86 | I11: =INDEX('1_Veh Prop'!$B$6:$CI$107,MATCH($B11,'1_Veh Prop'!$B$6:$B$107,0),MATCH(I$6,'1_Veh Prop'!$6:$6,0)-1) -> 7.7 | J11: =INDEX('1_Veh Prop'!$B$6:$CI$107,MATCH($B11,'1_Veh Prop'!$B$6:$B$107,0),MATCH(J$6,'1_Veh Prop'!$6:$6,0)-1) -> 20 | K11: =INDEX('1_Veh Prop'!$B$6:$CI$107,MATCH($B11,'1_Veh Prop'!$B$6:$B$107,0),MATCH(K$6,'1_Veh Prop'!$6:$6,0)-1) -> 100 | L11: 13307.2632 | M11: 1544.273654 | N11: 14851.53685 | O11: 5322.90528 | P11: 1859.928455 | Q11: 7182.833735 | R11: =INDEX('1_Veh Prop'!$B$6:$CI$107,MATCH($B11,'1_Veh Prop'!$B$6:$B$107,0),MATCH(R$6,'1_Veh Prop'!$6:$6,0)-1) -> 25 | S11: 340.5710258 | T11: =IF(ABS(MIN(A2a_ARB!B7:YS7))>MAX(A2a_ARB!B7:YS7),ABS(MIN(A2a_ARB!B7:YS7)),MAX(A2a_ARB!B7:YS7)) -> 321.8396194 | U11: 199.1769311 | V11: 192.6608396 | W11: 146.7521563 | X11: 199.5012756 | Y11: =_xlfn.PERCENTILE.INC(IF(A2a_ARB!B7:YS7>0,A2a_ARB!B7:YS7),$Y$1) -> 121.4925904 | Z11: 78.00868521 | AA11: 1 | AB11: 219.0784353
A12: ='1_Veh Prop'!A12 -> 6 | B12: ='1_Veh Prop'!B12 -> 06T_Box_Cl8_R | C12: ='1_Veh Prop'!C12 -> T_Box_Cl8 | D12: =INDEX(A1a_VMT_ID!$A$6:$AB$107,MATCH($A12,A1a_VMT_ID!$A$6:$A$107,0),MATCH(D$6,A1a_VMT_ID!$6:$6,0)) -> 89.87900719 | E12: 19051 | F12: =INDEX('1_Veh Prop'!$B$6:$CI$107,MATCH($B12,'1_Veh Prop'!$B$6:$B$107,0),MATCH(F$6,'1_Veh Prop'!$6:$6,0)-1) -> 19051 | G12: =INDEX('1_Veh Prop'!$B$6:$CI$107,MATCH($B12,'1_Veh Prop'!$B$6:$B$107,0),MATCH(G$6,'1_Veh Prop'!$6:$6,0)-1) -> 794 | H12: =INDEX('1_Veh Prop'!$B$6:$CI$107,MATCH($B12,'1_Veh Prop'!$B$6:$B$107,0),MATCH(H$6,'1_Veh Prop'!$6:$6,0)-1) -> 6.86 | I12: =INDEX('1_Veh Prop'!$B$6:$CI$107,MATCH($B12,'1_Veh Prop'!$B$6:$B$107,0),MATCH(I$6,'1_Veh Prop'!$6:$6,0)-1) -> 7.7 | J12: =INDEX('1_Veh Prop'!$B$6:$CI$107,MATCH($B12,'1_Veh Prop'!$B$6:$B$107,0),MATCH(J$6,'1_Veh Prop'!$6:$6,0)-1) -> 20 | K12: =INDEX('1_Veh Prop'!$B$6:$CI$107,MATCH($B12,'1_Veh Prop'!$B$6:$B$107,0),MATCH(K$6,'1_Veh Prop'!$6:$6,0)-1) -> 100 | L12: 13307.2632 | M12: 1544.273654 | N12: 14851.53685 | O12: 5322.90528 | P12: 1859.928455 | Q12: 7182.833735 | R12: =INDEX('1_Veh Prop'!$B$6:$CI$107,MATCH($B12,'1_Veh Prop'!$B$6:$B$107,0),MATCH(R$6,'1_Veh Prop'!$6:$6,0)-1) -> 25 | S12: 340.5710258 | T12: =IF(ABS(MIN(A2a_ARB!B8:YS8))>MAX(A2a_ARB!B8:YS8),ABS(MIN(A2a_ARB!B8:YS8)),MAX(A2a_ARB!B8:YS8)) -> 321.8396194 | U12: 199.1769311 | V12: 192.6608396 | W12: 146.7521563 | X12: 199.5012756 | Y12: =_xlfn.PERCENTILE.INC(IF(A2a_ARB!B8:YS8>0,A2a_ARB!B8:YS8),$Y$1) -> 121.4925904 | Z12: 78.00868521 | AA12: 1 | AB12: 219.0784353
A13: ='1_Veh Prop'!A13 -> 7 | B13: ='1_Veh Prop'!B13 -> 07T_Box_Cl6-7_MP | C13: ='1_Veh Prop'!C13 -> T_Box_Cl6-7 | D13: =INDEX(A1a_VMT_ID!$A$6:$AB$107,MATCH($A13,A1a_VMT_ID!$A$6:$A$107,0),MATCH(D$6,A1a_VMT_ID!$6:$6,0)) -> 89.87900719 | E13: 11408 | F13: =INDEX('1_Veh Prop'!$B$6:$CI$107,MATCH($B13,'1_Veh Prop'!$B$6:$B$107,0),MATCH(F$6,'1_Veh Prop'!$6:$6,0)-1) -> 11408 | G13: =INDEX('1_Veh Prop'!$B$6:$CI$107,MATCH($B13,'1_Veh Prop'!$B$6:$B$107,0),MATCH(G$6,'1_Veh Prop'!$6:$6,0)-1) -> 340 | H13: =INDEX('1_Veh Prop'!$B$6:$CI$107,MATCH($B13,'1_Veh Prop'!$B$6:$B$107,0),MATCH(H$6,'1_Veh Prop'!$6:$6,0)-1) -> 5.4 | I13: =INDEX('1_Veh Prop'!$B$6:$CI$107,MATCH($B13,'1_Veh Prop'!$B$6:$B$107,0),MATCH(I$6,'1_Veh Prop'!$6:$6,0)-1) -> 7.7 | J13: =INDEX('1_Veh Prop'!$B$6:$CI$107,MATCH($B13,'1_Veh Prop'!$B$6:$B$107,0),MATCH(J$6,'1_Veh Prop'!$6:$6,0)-1) -> 16 | K13: =INDEX('1_Veh Prop'!$B$6:$CI$107,MATCH($B13,'1_Veh Prop'!$B$6:$B$107,0),MATCH(K$6,'1_Veh Prop'!$6:$6,0)-1) -> 50 | L13: 9847.1736 | M13: 966.944363 | N13: 10814.11796 | O13: 6302.191104 | P13: 1282.599164 | Q13: 7584.790268 | R13: =INDEX('1_Veh Prop'!$B$6:$CI$107,MATCH($B13,'1_Veh Prop'!$B$6:$B$107,0),MATCH(R$6,'1_Veh Prop'!$6:$6,0)-1) -> 45 | S13: 215.2828344 | T13: =IF(ABS(MIN(A2a_ARB!B9:YS9))>MAX(A2a_ARB!B9:YS9),ABS(MIN(A2a_ARB!B9:YS9)),MAX(A2a_ARB!B9:YS9)) -> 187.262356 | U13: 145.0302988 | V13: 203.4422785 | W13: 177.858179 | X13: 147.9537869 | Y13: =_xlfn.PERCENTILE.INC(IF(A2a_ARB!B9:YS9>0,A2a_ARB!B9:YS9),$Y$1) -> 75.81344469 | Z13: 72.14034223 | AA13: 1 | AB13: 139.4693897
A14: ='1_Veh Prop'!A14 -> 8 | B14: ='1_Veh Prop'!B14 -> 08T_Box_Cl6-7_R | C14: ='1_Veh Prop'!C14 -> T_Box_Cl6-7 | D14: =INDEX(A1a_VMT_ID!$A$6:$AB$107,MATCH($A14,A1a_VMT_ID!$A$6:$A$107,0),MATCH(D$6,A1a_VMT_ID!$6:$6,0)) -> 89.87900719 | E14: 11408 | F14: =INDEX('1_Veh Prop'!$B$6:$CI$107,MATCH($B14,'1_Veh Prop'!$B$6:$B$107,0),MATCH(F$6,'1_Veh Prop'!$6:$6,0)-1) -> 11408 | G14: =INDEX('1_Veh Prop'!$B$6:$CI$107,MATCH($B14,'1_Veh Prop'!$B$6:$B$107,0),MATCH(G$6,'1_Veh Prop'!$6:$6,0)-1) -> 340 | H14: =INDEX('1_Veh Prop'!$B$6:$CI$107,MATCH($B14,'1_Veh Prop'!$B$6:$B$107,0),MATCH(H$6,'1_Veh Prop'!$6:$6,0)-1) -> 5.4 | I14: =INDEX('1_Veh Prop'!$B$6:$CI$107,MATCH($B14,'1_Veh Prop'!$B$6:$B$107,0),MATCH(I$6,'1_Veh Prop'!$6:$6,0)-1) -> 7.7 | J14: =INDEX('1_Veh Prop'!$B$6:$CI$107,MATCH($B14,'1_Veh Prop'!$B$6:$B$107,0),MATCH(J$6,'1_Veh Prop'!$6:$6,0)-1) -> 16 | K14: =INDEX('1_Veh Prop'!$B$6:$CI$107,MATCH($B14,'1_Veh Prop'!$B$6:$B$107,0),MATCH(K$6,'1_Veh Prop'!$6:$6,0)-1) -> 50 | L14: 9847.1736 | M14: 966.944363 | N14: 10814.11796 | O14: 6302.191104 | P14: 1282.599164 | Q14: 7584.790268 | R14: =INDEX('1_Veh Prop'!$B$6:$CI$107,MATCH($B14,'1_Veh Prop'!$B$6:$B$107,0),MATCH(R$6,'1_Veh Prop'!$6:$6,0)-1) -> 45 | S14: 215.2828344 | T14: =IF(ABS(MIN(A2a_ARB!B10:YS10))>MAX(A2a_ARB!B10:YS10),ABS(MIN(A2a_ARB!B10:YS10)),MAX(A2a_ARB!B10:YS10)) -> 187.262356 | U14: 145.0302988 | V14: 203.4422785 | W14: 177.858179 | X14: 147.9537869 | Y14: =_xlfn.PERCENTILE.INC(IF(A2a_ARB!B10:YS10>0,A2a_ARB!B10:YS10),$Y$1) -> 75.81344469 | Z14: 72.14034223 | AA14: 1 | AB14: 139.4693897
A15: ='1_Veh Prop'!A15 -> 9 | B15: ='1_Veh Prop'!B15 -> 09T_Box_Cl8_U | C15: ='1_Veh Prop'!C15 -> T_Box_Cl8 | D15: =INDEX(A1a_VMT_ID!$A$6:$AB$107,MATCH($A15,A1a_VMT_ID!$A$6:$A$107,0),MATCH(D$6,A1a_VMT_ID!$6:$6,0)) -> 89.87900719 | E15: 19051 | F15: =INDEX('1_Veh Prop'!$B$6:$CI$107,MATCH($B15,'1_Veh Prop'!$B$6:$B$107,0),MATCH(F$6,'1_Veh Prop'!$6:$6,0)-1) -> 19051 | G15: =INDEX('1_Veh Prop'!$B$6:$CI$107,MATCH($B15,'1_Veh Prop'!$B$6:$B$107,0),MATCH(G$6,'1_Veh Prop'!$6:$6,0)-1) -> 794 | H15: =INDEX('1_Veh Prop'!$B$6:$CI$107,MATCH($B15,'1_Veh Prop'!$B$6:$B$107,0),MATCH(H$6,'1_Veh Prop'!$6:$6,0)-1) -> 6.86 | I15: =INDEX('1_Veh Prop'!$B$6:$CI$107,MATCH($B15,'1_Veh Prop'!$B$6:$B$107,0),MATCH(I$6,'1_Veh Prop'!$6:$6,0)-1) -> 7.7 | J15: =INDEX('1_Veh Prop'!$B$6:$CI$107,MATCH($B15,'1_Veh Prop'!$B$6:$B$107,0),MATCH(J$6,'1_Veh Prop'!$6:$6,0)-1) -> 20 | K15: =INDEX('1_Veh Prop'!$B$6:$CI$107,MATCH($B15,'1_Veh Prop'!$B$6:$B$107,0),MATCH(K$6,'1_Veh Prop'!$6:$6,0)-1) -> 100 | L15: 13307.2632 | M15: 1544.273654 | N15: 14851.53685 | O15: 5322.90528 | P15: 1859.928455 | Q15: 7182.833735 | R15: =INDEX('1_Veh Prop'!$B$6:$CI$107,MATCH($B15,'1_Veh Prop'!$B$6:$B$107,0),MATCH(R$6,'1_Veh Prop'!$6:$6,0)-1) -> 25 | S15: 340.5710258 | T15: =IF(ABS(MIN(A2a_ARB!B11:YS11))>MAX(A2a_ARB!B11:YS11),ABS(MIN(A2a_ARB!B11:YS11)),MAX(A2a_ARB!B11:YS11)) -> 321.8396194 | U15: 199.1769311 | V15: 192.6608396 | W15: 146.7521563 | X15: 199.5012756 | Y15: =_xlfn.PERCENTILE.INC(IF(A2a_ARB!B11:YS11>0,A2a_ARB!B11:YS11),$Y$1) -> 121.4925904 | Z15: 78.00868521 | AA15: 1 | AB15: 219.0784353
... 18 more rows

Sheet A2a_ARB (hidden)
A1: Return to Table of Contents | B1: 1 | C1: 2 | D1: 3 | E1: 4 | F1: 5 | G1: 6 | H1: 7 | I1: 8 | J1: 9 | K1: 10 | L1: 11 | M1: 12 | N1: 13 | O1: 14 | P1: 15 | Q1: 16 | R1: 17 | S1: 18 | T1: 19 | U1: 20 | V1: 21 | W1: 22 | X1: 23 | Y1: 24 | Z1: 25 | AA1: 26 | AB1: 27 | AC1: 28 | AD1: 29 | AE1: 30 | AF1: 31 | AG1: 32 | AH1: 33 | AI1: 34 | AJ1: 35 | AK1: 36 | AL1: 37 | AM1: 38 | AN1: 39 | AO1: 40 | AP1: 41 | AQ1: 42 | AR1: 43 | AS1: 44 | AT1: 45 | AU1: 46 | AV1: 47 | AW1: 48 | AX1: 49 | AY1: 50 | AZ1: 51 | BA1: 52 | BB1: 53 | BC1: 54 | BD1: 55 | BE1: 56 | BF1: 57 | BG1: 58 | BH1: 59 | BI1: 60 | BJ1: 61 | BK1: 62 | BL1: 63 | BM1: 64 | BN1: 65 | BO1: 66 | BP1: 67 | BQ1: 68 | BR1: 69 | BS1: 70 | BT1: 71 | BU1: 72 | BV1: 73 | BW1: 74 | BX1: 75 | BY1: 76 | BZ1: 77 | CA1: 78 | CB1: 79 | CC1: 80 | CD1: 81 | CE1: 82 | CF1: 83 | CG1: 84 | CH1: 85 | CI1: 86 | CJ1: 87 | CK1: 88 | CL1: 89 | CM1: 90 | CN1: 91 | CO1: 92 | CP1: 93 | CQ1: 94 | CR1: 95 | CS1: 96 | CT1: 97 | CU1: 98 | CV1: 99 | CW1: 100 | CX1: 101 | CY1: 102 | CZ1: 103 | DA1: 104 | DB1: 105 | DC1: 106 | DD1: 107 | DE1: 108 | DF1: 109 | DG1: 110 | DH1: 111 | DI1: 112 | DJ1: 113 | DK1: 114 | DL1: 115 | DM1: 116 | DN1: 117 | DO1: 118 | DP1: 119 | DQ1: 120 | DR1: 121 | DS1: 122 | DT1: 123 | DU1: 124 | DV1: 125 | DW1: 126 | DX1: 127 | DY1: 128 | DZ1: 129 | EA1: 130 | EB1: 131 | EC1: 132 | ED1: 133 | EE1: 134 | EF1: 135 | EG1: 136 | EH1: 137 | EI1: 138 | EJ1: 139 | EK1: 140 | EL1: 141 | EM1: 142 | EN1: 143 | EO1: 144 | EP1: 145 | EQ1: 146 | ER1: 147 | ES1: 148 | ET1: 149 | EU1: 150 | EV1: 151 | EW1: 152 | EX1: 153 | EY1: 154 | EZ1: 155 | FA1: 156 | FB1: 157 | FC1: 158 | FD1: 159 | FE1: 160 | FF1: 161 | FG1: 162 | FH1: 163 | FI1: 164 | FJ1: 165 | FK1: 166 | FL1: 167 | FM1: 168 | FN1: 169 | FO1: 170 | FP1: 171 | FQ1: 172 | FR1: 173 | FS1: 174 | FT1: 175 | FU1: 176 | FV1: 177 | FW1: 178 | FX1: 179 | FY1: 180 | FZ1: 181 | GA1: 182 | GB1: 183 | GC1: 184 | GD1: 185 | GE1: 186 | GF1: 187 | GG1: 188 | GH1: 189 | GI1: 190 | GJ1: 191 | GK1: 192 | GL1: 193 | GM1: 194 | GN1: 195 | GO1: 196 | GP1: 197 | GQ1: 198 | GR1: 199 | GS1: 200 | GT1: 201 | GU1: 202 | GV1: 203 | GW1: 204 | GX1: 205 | GY1: 206 | GZ1: 207 | HA1: 208 | HB1: 209 | HC1: 210 | HD1: 211 | HE1: 212 | HF1: 213 | HG1: 214 | HH1: 215 | HI1: 216 | HJ1: 217 | HK1: 218 | HL1: 219 | HM1: 220 | HN1: 221 | HO1: 222 | HP1: 223 | HQ1: 224 | HR1: 225 | HS1: 226 | HT1: 227 | HU1: 228 | HV1: 229 | HW1: 230 | HX1: 231 | HY1: 232 | HZ1: 233 | IA1: 234 | IB1: 235 | IC1: 236 | ID1: 237 | IE1: 238 | IF1: 239 | IG1: 240 | IH1: 241 | II1: 242 | IJ1: 243 | IK1: 244 | IL1: 245 | IM1: 246 | IN1: 247 | IO1: 248 | IP1: 249 | IQ1: 250 | IR1: 251 | IS1: 252 | IT1: 253 | IU1: 254 | IV1: 255 | IW1: 256 | IX1: 257 | IY1: 258 | IZ1: 259 | JA1: 260 | JB1: 261 | JC1: 262 | JD1: 263 | JE1: 264 | JF1: 265 | JG1: 266 | JH1: 267 | JI1: 268 | JJ1: 269 | JK1: 270 | JL1: 271 | JM1: 272 | JN1: 273 | JO1: 274 | JP1: 275 | JQ1: 276 | JR1: 277 | JS1: 278 | JT1: 279 | JU1: 280 | JV1: 281 | JW1: 282 | JX1: 283 | JY1: 284 | JZ1: 285 | KA1: 286 | KB1: 287 | KC1: 288 | KD1: 289 | KE1: 290 | KF1: 291 | KG1: 292 | KH1: 293 | KI1: 294 | KJ1: 295 | KK1: 296 | KL1: 297 | KM1: 298 | KN1: 299 | KO1: 300 | KP1: 301 | KQ1: 302 | KR1: 303 | KS1: 304 | KT1: 305 | KU1: 306 | KV1: 307 | KW1: 308 | KX1: 309 | KY1: 310 | KZ1: 311 | LA1: 312 | LB1: 313 | LC1: 314 | LD1: 315 | LE1: 316 | LF1: 317 | LG1: 318 | LH1: 319 | LI1: 320 | LJ1: 321 | LK1: 322 | LL1: 323 | LM1: 324 | LN1: 325 | LO1: 326 | LP1: 327 | LQ1: 328 | LR1: 329 | LS1: 330 | LT1: 331 | LU1: 332 | LV1: 333 | LW1: 334 | LX1: 335 | LY1: 336 | LZ1: 337 | MA1: 338 | MB1: 339 | MC1: 340 | MD1: 341 | ME1: 342 | MF1: 343 | MG1: 344 | MH1: 345 | MI1: 346 | MJ1: 347 | MK1: 348 | ML1: 349 | MM1: 350 | MN1: 351 | MO1: 352 | MP1: 353 | MQ1: 354 | MR1: 355 | MS1: 356 | MT1: 357 | MU1: 358 | MV1: 359 | MW1: 360 | MX1: 361 | MY1: 362 | MZ1: 363 | NA1: 364 | NB1: 365 | NC1: 366 | ND1: 367 | NE1: 368 | NF1: 369 | NG1: 370 | NH1: 371 | NI1: 372 | NJ1: 373 | NK1: 374 | NL1: 375 | NM1: 376 | NN1: 377 | NO1: 378 | NP1: 379 | NQ1: 380 | NR1: 381 | NS1: 382 | NT1: 383 | NU1: 384 | NV1: 385 | NW1: 386 | NX1: 387 | NY1: 388 | NZ1: 389 | OA1: 390 | OB1: 391 | OC1: 392 | OD1: 393 | OE1: 394 | OF1: 395 | OG1: 396 | OH1: 397 | OI1: 398 | OJ1: 399 | OK1: 400 | OL1: 401 | OM1: 402 | ON1: 403 | OO1: 404 | OP1: 405 | OQ1: 406 | OR1: 407 | OS1: 408 | OT1: 409 | OU1: 410 | OV1: 411 | OW1: 412 | OX1: 413 | OY1: 414 | OZ1: 415 | PA1: 416 | PB1: 417 | PC1: 418 | PD1: 419 | PE1: 420 | PF1: 421 | PG1: 422 | PH1: 423 | PI1: 424 | PJ1: 425 | PK1: 426 | PL1: 427 | PM1: 428 | PN1: 429 | PO1: 430 | PP1: 431 | PQ1: 432 | PR1: 433 | PS1: 434 | PT1: 435 | PU1: 436 | PV1: 437 | PW1: 438 | PX1: 439 | PY1: 440 | PZ1: 441 | QA1: 442 | QB1: 443 | QC1: 444 | QD1: 445 | QE1: 446 | QF1: 447 | QG1: 448 | QH1: 449 | QI1: 450 | QJ1: 451 | QK1: 452 | QL1: 453 | QM1: 454 | QN1: 455 | QO1: 456 | QP1: 457 | QQ1: 458 | QR1: 459 | QS1: 460 | QT1: 461 | QU1: 462 | QV1: 463 | QW1: 464 | QX1: 465 | QY1: 466 | QZ1: 467 | RA1: 468 | RB1: 469 | RC1: 470 | RD1: 471 | RE1: 472 | RF1: 473 | RG1: 474 | RH1: 475 | RI1: 476 | RJ1: 477 | RK1: 478 | RL1: 479 | RM1: 480 | RN1: 481 | RO1: 482 | RP1: 483 | RQ1: 484 | RR1: 485 | RS1: 486 | RT1: 487 | RU1: 488 | RV1: 489 | RW1: 490 | RX1: 491 | RY1: 492 | RZ1: 493 | SA1: 494 | SB1: 495 | SC1: 496 | SD1: 497 | SE1: 498 | SF1: 499 | SG1: 500 | SH1: 501 | SI1: 502 | SJ1: 503 | SK1: 504 | SL1: 505 | SM1: 506 | SN1: 507 | SO1: 508 | SP1: 509 | SQ1: 510 | SR1: 511 | SS1: 512 | ST1: 513 | SU1: 514 | SV1: 515 | SW1: 516 | SX1: 517 | SY1: 518 | SZ1: 519 | TA1: 520 | TB1: 521 | TC1: 522 | TD1: 523 | TE1: 524 | TF1: 525 | TG1: 526 | TH1: 527 | TI1: 528 | TJ1: 529 | TK1: 530 | TL1: 531 | TM1: 532 | TN1: 533 | TO1: 534 | TP1: 535 | TQ1: 536 | TR1: 537 | TS1: 538 | TT1: 539 | TU1: 540 | TV1: 541 | TW1: 542 | TX1: 543 | TY1: 544 | TZ1: 545 | UA1: 546 | UB1: 547 | UC1: 548 | UD1: 549 | UE1: 550 | UF1: 551 | UG1: 552 | UH1: 553 | UI1: 554 | UJ1: 555 | UK1: 556 | UL1: 557 | UM1: 558 | UN1: 559 | UO1: 560 | UP1: 561 | UQ1: 562 | UR1: 563 | US1: 564 | UT1: 565 | UU1: 566 | UV1: 567 | UW1: 568 | UX1: 569 | UY1: 570 | UZ1: 571 | VA1: 572 | VB1: 573 | VC1: 574 | VD1: 575 | VE1: 576 | VF1: 577 | VG1: 578 | VH1: 579 | VI1: 580 | VJ1: 581 | VK1: 582 | VL1: 583 | VM1: 584 | VN1: 585 | VO1: 586 | VP1: 587 | VQ1: 588 | VR1: 589 | VS1: 590 | VT1: 591 | VU1: 592 | VV1: 593 | VW1: 594 | VX1: 595 | VY1: 596 | VZ1: 597 | WA1: 598 | WB1: 599 | WC1: 600 | WD1: 601 | WE1: 602 | WF1: 603 | WG1: 604 | WH1: 605 | WI1: 606 | WJ1: 607 | WK1: 608 | WL1: 609 | WM1: 610 | WN1: 611 | WO1: 612 | WP1: 613 | WQ1: 614 | WR1: 615 | WS1: 616 | WT1: 617 | WU1: 618 | WV1: 619 | WW1: 620 | WX1: 621 | WY1: 622 | WZ1: 623 | XA1: 624 | XB1: 625 | XC1: 626 | XD1: 627 | XE1: 628 | XF1: 629 | XG1: 630 | XH1: 631 | XI1: 632 | XJ1: 633 | XK1: 634 | XL1: 635 | XM1: 636 | XN1: 637 | XO1: 638 | XP1: 639 | XQ1: 640 | XR1: 641 | XS1: 642 | XT1: 643 | XU1: 644 | XV1: 645 | XW1: 646 | XX1: 647 | XY1: 648 | XZ1: 649 | YA1: 650 | YB1: 651 | YC1: 652 | YD1: 653 | YE1: 654 | YF1: 655 | YG1: 656 | YH1: 657 | YI1: 658 | YJ1: 659 | YK1: 660 | YL1: 661 | YM1: 662 | YN1: 663 | YO1: 664 | YP1: 665 | YQ1: 666 | YR1: 667 | YS1: 668
A2: Target Speed (mph) | B2: 0 | C2: 0 | D2: 0 | E2: 0 | F2: 0 | G2: 0 | H2: 0.410031102 | I2: 1.17998585 | J2: 2.259980482 | K2: 3.190100134 | L2: 3.969897418 | M2: 4.659993408 | N2: 5.320114402 | O2: 5.939970476 | P2: 6.479967792 | Q2: 6.90990766 | R2: 7.28012123 | S2: 7.640044876 | T2: 8.020100982 | U2: 8.360115862 | V2: 8.59991583 | W2: 8.739948274 | X2: 8.820030726 | Y2: 8.820030726 | Z2: 8.760080734 | AA2: 8.660089516 | AB2: 8.580007064 | AC2: 8.520057072 | AD2: 8.46010708 | AE2: 8.380024628 | AF2: 8.310008406 | AG2: 8.210017188 | AH2: 8.11002597 | AI2: 7.999968522 | AJ2: 7.94001853 | AK2: 7.94001853 | AL2: 7.799986086 | AM2: 7.42999621 | AN2: 6.790007676 | AO2: 5.810004262 | AP2: 4.649927178 | AQ2: 3.02993523 | AR2: 1.879924376 | AS2: 1.150010854 | AT2: 1.139944624 | AU2: 1.120035858 | AV2: 1.109969628 | AW2: 1.19005208 | AX2: 1.570108186 | AY2: 2.310087938 | AZ2: 3.36995011 | BA2: 4.510118428 | BB2: 5.55991437 | BC2: 6.40995157 | BD2: 7.08998133 | BE2: 7.58993742 | BF2: 7.989902292 | BG2: 8.320074636 | BH2: 8.639957056 | BI2: 8.909955714 | BJ2: 9.13007061 | BK2: 9.29001182 | BL2: 9.400069268 | BM2: 9.390003038 | BN2: 9.200086832 | BO2: 8.839939492 | BP2: 8.350049632 | BQ2: 7.810052316 | BR2: 7.219947544 | BS2: 6.649975232 | BT2: 6.130110376 | BU2: 5.75005427 | BV2: 5.610021826 | BW2: 5.650063052 | BX2: 5.799938032 | BY2: 5.950036706 | BZ2: 6.09006915 | CA2: 6.209969134 | CB2: 6.309960352 | CC2: 6.339935348 | CD2: 6.469901562 | CE2: 6.649975232 | CF2: 6.879932664 | CG2: 7.040097568 | CH2: 7.049940104 | CI2: 7.010122572 | CJ2: 6.900065124 | CK2: 6.879932664 | CL2: 6.889998894 | CM2: 6.960015116 | CN2: 7.040097568 | CO2: 7.170063782 | CP2: 7.289963766 | CQ2: 7.389954984 | CR2: 7.480103666 | CS2: 7.570028654 | CT2: 7.61006988 | CU2: 7.58993742 | CV2: 7.529987428 | CW2: 7.459971206 | CX2: 7.400021214 | CY2: 7.389954984 | CZ2: 7.380112448 | DA2: 7.370046218 | DB2: 7.370046218 | DC2: 7.389954984 | DD2: 7.41992998 | DE2: 7.42999621 | DF2: 7.400021214 | DG2: 7.389954984 | DH2: 7.41992998 | DI2: 7.500012432 | DJ2: 7.570028654 | DK2: 7.60000365 | DL2: 7.60000365 | DM2: 7.61006988 | DN2: 7.640044876 | DO2: 7.680086102 | DP2: 7.740036094 | DQ2: 7.820118546 | DR2: 7.899977304 | DS2: 7.959927296 | DT2: 7.989902292 | DU2: 8.020100982 | DV2: 8.010034752 | DW2: 7.870002308 | DX2: 7.58993742 | DY2: 7.200038778 | DZ2: 6.520009018 | EA2: 5.529939374 | EB2: 4.360019754 | EC2: 3.299933888 | ED2: 2.500004144 | EE2: 1.940098062 | EF2: 1.560041956 | EG2: 0.950028418 | EH2: 0.420097332 | EI2: 0 | EJ2: 0 | EK2: 0 | EL2: 0 | EM2: 0 | EN2: 0 | EO2: 0 | EP2: 0 | EQ2: 0 | ER2: 0 | ES2: 0 | ET2: 0 | EU2: 0 | EV2: 0 | EW2: 0 | EX2: 0 | EY2: 0 | EZ2: 0 | FA2: 0 | FB2: 0 | FC2: 0 | FD2: 0 | FE2: 0 | FF2: 0 | FG2: 0 | FH2: 0 | FI2: 0 | FJ2: 0 | FK2: 0 | FL2: 0 | FM2: 0 | FN2: 0 | FO2: 0 | FP2: 0 | FQ2: 1.109969628 | FR2: 2.650102818 | FS2: 4.449944742 | FT2: 5.680038048 | FU2: 6.74996645 | FV2: 7.58993742 | FW2: 7.750102324 | FX2: 7.629978646 | FY2: 7.670019872 | FZ2: 8.699907048 | GA2: 10.19999901 | GB2: 11.91998218 | GC2: 12.8400356 | GD2: 13.26997547 | GE2: 13.38003292 | GF2: 13.60999035 | GG2: 14.14998766 | GH2: 14.84008365 | GI2: 16.4900506 | GJ2: 18.32993375 | GK2: 20.3599568 | GL2: 21.46992643 | GM2: 22.34993862 | GN2: 22.95995216 | GO2: 23.46013194 | GP2: 23.92004681 | GQ2: 24.4200029 | GR2: 24.98997521 | GS2: 25.91002863 | GT2: 26.26010974 | GU2: 26.38000973 | GV2: 26.26010974 | GW2: 26.49006717 | GX2: 26.76006583 | GY2: 27.07010572 | GZ2: 26.63994215 | HA2: 25.99011108 | HB2: 24.77008401 | HC2: 24.03994679 | HD2: 23.39011572 | HE2: 22.72999473 | HF2: 22.16002242 | HG2: 21.66006633 | HH2: 21.39006767 | HI2: 21.43010889 | HJ2: 20.66999668 | HK2: 17.98007633 | HL2: 13.15007548 | HM2: 7.710061098 | HN2: 3.299933888 | HO2: 0.880012196 | HP2: 0 | HQ2: 0 | HR2: 0 | HS2: 0 | HT2: 0 | HU2: 0 | HV2: 0 | HW2: 0 | HX2: 0 | HY2: 0 | HZ2: 0 | IA2: 0 | IB2: 0 | IC2: 0 | ID2: 0 | IE2: 0 | IF2: 0 | IG2: 0 | IH2: 0 | II2: 0 | IJ2: 0 | IK2: 0 | IL2: 0 | IM2: 0 | IN2: 0 | IO2: 0 | IP2: 0 | IQ2: 0 | IR2: 0 | IS2: 0 | IT2: 0 | IU2: 0 | IV2: 0 | IW2: 0 | IX2: 0 | IY2: 0 | IZ2: 0.49995609 | JA2: 1.570108186 | JB2: 3.069976456 | JC2: 4.57006842 | JD2: 5.650063052 | JE2: 6.949948886 | JF2: 8.050075978 | JG2: 9.13007061 | JH2: 10.05012403 | JI2: 11.62000852 | JJ2: 12.92011805 | JK2: 13.83994778 | JL2: 14.3799451 | JM2: 15.6400134 | JN2: 17.14010536 | JO2: 18.21003376 | JP2: 18.90012975 | JQ2: 19.44012707 | JR2: 20.08995814 | JS2: 21.89002376 | JT2: 24.15000424 | JU2: 26.26010974 | JV2: 26.94998204 | JW2: 27.03006449 | JX2: 27.30006315 | JY2: 28.09999289 | JZ2: 29.44014365 | KA2: 30.78007071 | KB2: 32.09002277 | KC2: 33.24003362 | KD2: 34.4600607 | KE2: 35.42015535 | KF2: 35.88007021 | KG2: 36.03016889 | KH2: 35.84002899 | KI2: 35.65011278 | KJ2: 35.3100979 | KK2: 35.18997422 | KL2: 35.119958 | KM2: 35.119958 | KN2: 35.04009924 | KO2: 35.08014047 | KP2: 35.04009924 | KQ2: 35.3400729 | KR2: 35.50001411 | KS2: 35.77001276 | KT2: 35.81005399 | KU2: 35.92011144 | KV2: 36.23015132 | KW2: 36.42006753 | KX2: 36.65002496 | KY2: 36.26012632 | KZ2: 36.06998642 | LA2: 35.84002899 | LB2: 35.96015266 | LC2: 35.9999702 | LD2: 35.57003033 | LE2: 35.00005802 | LF2: 34.08000459 | LG2: 33.3901323 | LH2: 32.20008022 | LI2: 30.32015584 | LJ2: 28.480049 | LK2: 26.94998204 | LL2: 26.18002729 | LM2: 25.38009755 | LN2: 24.77008401 | LO2: 23.46013194 | LP2: 22.38997985 | LQ2: 20.96997034 | LR2: 20.08995814 | LS2: 18.90012975 | LT2: 18.16999254 | LU2: 16.47998437 | LV2: 15.07004109 | LW2: 12.23002206 | LX2: 10.08009903 | LY2: 7.710061098 | LZ2: 7.319938762 | MA2: 8.63011452 | MB2: 10.76997132 | MC2: 12.65011939 | MD2: 13.87998901 | ME2: 15.02999986 | MF2: 15.6400134 | MG2: 16.99000669 | MH2: 17.98007633 | MI2: 19.13008719 | MJ2: 18.66994863 | MK2: 18.25007499 | ML2: 18.16999254 | MM2: 18.39994997 | MN2: 19.63004328 | MO2: 20.32013927 | MP2: 21.43010889 | MQ2: 21.46992643 | MR2: 21.97010621 | MS2: 22.27007986 | MT2: 22.6899535 | MU2: 23.15009206 | MV2: 23.69008938 | MW2: 23.96008803 | MX2: 24.27012792 | MY2: 24.34014414 | MZ2: 24.50008535 | NA2: 24.4200029 | NB2: 24.37996167 | NC2: 24.30994545 | ND2: 24.23008669 | NE2: 24.69000156 | NF2: 25.11009889 | NG2: 25.52997253 | NH2: 25.38009755 | NI2: 24.57994411 | NJ2: 23.76994813 | NK2: 23.5399907 | NL2: 23.49994948 | NM2: 24.15000424 | NN2: 24.30010291 | NO2: 24.15000424 | NP2: 23.19013329 | NQ2: 22.5000373 | NR2: 21.93006498 | NS2: 21.84998253 | NT2: 21.55000888 | NU2: 21.89002376 | NV2: 21.97010621 | NW2: 21.97010621 | NX2: 22.01014744 | NY2: 21.84998253 | NZ2: 21.6200251 | OA2: 21.6200251 | OB2: 22.01014744 | OC2: 22.81007718 | OD2: 23.5399907 | OE2: 24.37996167 | OF2: 24.800059 | OG2: 24.6101428 | OH2: 23.12011706 | OI2: 21.6200251 | OJ2: 19.90004193 | OK2: 18.86008853 | OL2: 17.78993643 | OM2: 17.24993912 | ON2: 16.90992424 | OO2: 16.74998303 | OP2: 16.74998303 | OQ2: 16.8701067 | OR2: 16.36992692 | OS2: 16.36992692 | OT2: 16.4900506 | OU2: 17.21012158 | OV2: 17.41010402 | OW2: 17.37006279 | OX2: 16.8701067 | OY2: 16.72000803 | OZ2: 16.22005194 | PA2: 15.76013708 | PB2: 14.71995998 | PC2: 13.6900728 | PD2: 12.00006463 | PE2: 10.42995644 | PF2: 8.709973278 | PG2: 7.44006244 | PH2: 5.710013044 | PI2: 4.21998731 | PJ2: 2.300021708 | PK2: 0.99991218 | PL2: 0 | PM2: 0.610013538 | PN2: 1.19005208 | PO2: 1.609925718 | PP2: 1.53006696 | PQ2: 2.340062934 | PR2: 4.290003532 | PS2: 7.24992254 | PT2: 10.19999901 | PU2: 12.45997949 | PV2: 14.53004377 | PW2: 16.22005194 | PX2: 17.87001888 | PY2: 19.74010072 | PZ2: 21.01001156 | QA2: 22.23003864 | QB2: 22.61993728 | QC2: 23.61000692 | QD2: 24.88014146 | QE2: 26.15005229 | QF2: 26.99002326 | QG2: 27.55999558 | QH2: 28.18007534 | QI2: 28.93996386 | QJ2: 29.83004229 | QK2: 30.78007071 | QL2: 31.82002411 | QM2: 32.78011876 | QN2: 33.24003362 | QO2: 33.46999106 | QP2: 33.31004985 | QQ2: 33.08009241 | QR2: 32.78011876 | QS2: 32.38999642 | QT2: 32.130064 | QU2: 31.82002411 | QV2: 31.55002545 | QW2: 31.2500518 | QX2: 30.94001192 | QY2: 30.71005448 | QZ2: 30.55995581 | RA2: 30.79013694 | RB2: 31.13015182 | RC2: 31.55002545 | RD2: 31.50998423 | RE2: 31.469943 | RF2: 31.43996801 | RG2: 31.50998423 | RH2: 31.59006668 | RI2: 31.67014913 | RJ2: 32.01016401 | RK2: 32.63002009 | RL2: 33.3901323 | RM2: 34.30996203 | RN2: 34.81014181 | RO2: 34.20012827 | RP2: 32.38999642 | RQ2: 30.28995715 | RR2: 28.56013145 | RS2: 26.45002595 | RT2: 24.78999277 | RU2: 23.12011706 | RV2: 20.72994667 | RW2: 18.32993375 | RX2: 15.72009585 | RY2: 13.11003426 | RZ2: 10.46999767 | SA2: 7.820118546 | SB2: 5.699946814 | SC2: 3.569932546 | SD2: 0.920053422 | SE2: 0 | SF2: 0 | SG2: 0 | SH2: 0 | SI2: 0 | SJ2: 0 | SK2: 0 | SL2: 0 | SM2: 0 | SN2: 0 | SO2: 0 | SP2: 0 | SQ2: 0 | SR2: 0 | SS2: 0 | ST2: 0 | SU2: 0 | SV2: 0 | SW2: 0 | SX2: 0 | SY2: 0 | SZ2: 0 | TA2: 0 | TB2: 0 | TC2: 0.49995609 | TD2: 1.500091964 | TE2: 2.999960234 | TF2: 4.500052198 | TG2: 5.799938032 | TH2: 6.520009018 | TI2: 6.74996645 | TJ2: 6.439926566 | TK2: 6.169927908 | TL2: 6.330092812 | TM2: 6.709925224 | TN2: 7.400021214 | TO2: 7.670019872 | TP2: 7.330004992 | TQ2: 6.709925224 | TR2: 6.40995157 | TS2: 6.60009147 | TT2: 6.560050244 | TU2: 5.939970476 | TV2: 5.450080616 | TW2: 5.869954254 | TX2: 6.709925224 | TY2: 7.559962424 | TZ2: 7.58993742 | UA2: 7.629978646 | UB2: 7.670019872 | UC2: 7.670019872 | UD2: 7.480103666 | UE2: 7.289963766 | UF2: 7.289963766 | UG2: 7.400021214 | UH2: 7.480103666 | UI2: 7.519921198 | UJ2: 7.519921198 | UK2: 7.480103666 | UL2: 7.44006244 | UM2: 7.28012123 | UN2: 7.210105008 | UO2: 7.08998133 | UP2: 7.060006334 | UQ2: 7.289963766 | UR2: 7.750102324 | US2: 8.550032068 | UT2: 9.090029384 | UU2: 10.0400578 | UV2: 11.12005243 | UW2: 12.45997949 | UX2: 12.99997681 | UY2: 14.26004511 | UZ2: 15.37001474 | VA2: 17.01998168 | VB2: 18.16999254 | VC2: 19.20994594 | VD2: 20.17004059 | VE2: 20.65993045 | VF2: 21.12006901 | VG2: 21.43010889 | VH2: 22.65997851 | VI2: 23.92004681 | VJ2: 25.42013877 | VK2: 25.52997253 | VL2: 26.67998338 | VM2: 28.14003412 | VN2: 30.05999972 | VO2: 30.94001192 | VP2: 31.63010791 | VQ2: 32.36002143 | VR2: 33.24003362 | VS2: 33.66013096 | VT2: 34.12004582 | VU2: 35.92011144 | VV2: 37.71995336 | VW2: 39.26008655 | VX2: 39.45000276 | VY2: 39.83005886 | VZ2: 40.18013997 | WA2: 40.48011363 | WB2: 40.75011229 | WC2: 41.02011094 | WD2: 41.36012582 | WE2: 41.79006569 | WF2: 42.40007923 | WG2: 42.82017656 | WH2: 43.05013399 | WI2: 43.09017522 | WJ2: 43.2400502 | WK2: 43.59013131 | WL2: 44.01000495 | WM2: 44.35001983 | WN2: 44.55000226 | WO2: 44.82000092 | WP2: 45.05018205 | WQ2: 45.31011448 | WR2: 45.58011313 | WS2: 45.99998677 | WT2: 46.31002666 | WU2: 46.53998409 | WV2: 46.61000031 | WW2: 46.92004019 | WX2: 47.19003885 | WY2: 47.46003751 | WZ2: 47.54011996 | XA2: 47.54011996 | XB2: 47.54011996 | XC2: 47.50007874 | XD2: 47.50007874 | XE2: 47.50007874 | XF2: 47.31016253 | XG2: 47.04016387 | XH2: 46.77016521 | XI2: 45.54007191 | XJ2: 43.2400502 | XK2: 41.52006703 | XL2: 39.79001764 | XM2: 38.07003447 | XN2: 36.33998508 | XO2: 34.03996337 | XP2: 32.44994642 | XQ2: 30.86015316 | XR2: 28.83013011 | XS2: 26.45002595 | XT2: 24.27012792 | XU2: 22.04012243 | XV2: 19.81995948 | XW2: 17.04011414 | XX2: 14.26004511 | XY2: 11.52001731 | XZ2: 8.7799895 | YA2: 7.170063782 | YB2: 5.55991437 | YC2: 3.72003122 | YD2: 3.38001634 | YE2: 3.110017682 | YF2: 2.580086596 | YG2: 1.660033174 | YH2: 0.66996353 | YI2: 0 | YJ2: 0 | YK2: 0 | YL2: 0 | YM2: 0 | YN2: 0 | YO2: 0 | YP2: 0 | YQ2: 0 | YR2: 0 | YS2: 0
